Workbook

Sheet Control Panel
A1: GO TO
A2: Utah | C2: FILING INFORMATION | J2: Model Checks
A3: 1.1 | J3: (Must Be 0)
A4: 1.2 | E4: UTAH | J4: ='Model Checks'!D7 -> 0.08081062138
A5: 1.3 pg 1 | D5: Current Case No. | E5: 20-057-14 | J5: (If this is not 0, or very close, go to
A6: 1.3 pg 2 | D6: Filing Date | E6: 2020-09-30 | J6: the "Model Checks"
D7: Test-Year Ending | E7: 2021-10-31 | J7: Tab and find the
A8: 1.4 pg 1 | D8: Proposed Effective Date | E8: 2020-11-01 | J8: problem.)
A9: 1.4 pg 2 | D9: Prior Case No. | E9: 20-057-07
A10: 1.4 pg 3 | J10: Go To
A11: 1.5 | C11: Total Increase (Decrease) | E11: ='Utah Summary-by class'!Q27 -> 39556967.91 | G11: =E11-F11 -> 39556967.91 | J11: Model Checks'
A12: 1.6 pg 1
A13: 1.6 pg 2
A14: 1.6 pg 3 | C14: Typical Customer's Bill | J14: Old Ut Data color
A15: 1.7 pg 1
A16: 1.7 pg 2 | D16: Previous | E16: ='Ut 1.6'!F30 -> 639.92 | J16: New Data color
A17: 1.8 | D17: Proposed | E17: ='Ut 1.6'!H30 -> 668.32
A18: 1.9 | D18: Difference | E18: ='Ut 1.6'!J30 -> 28.4 | G18: =E18-F18 -> 28.4
A19: Monthly Inputs | D19: % Difference | E19: ='Ut 1.6'!J32 -> 4.44 | G19: =E19-F19 -> 4.44
A20: Other Inputs
A21: Expenses
A22: Rate Base
C29: DEU Exhibit Headings
C31: UTAH
E32: Dominion Energy Utah
E33: ="Docket No. "&E5 -> Docket No. 20-057-14
C35: Test-Year (enter as text)
D36: from | E36: 2020-11-01
D37: to | E37: 2021-10-31

Sheet Monthly Inputs
A1: MONTHLY INPUTS
G2: TEST-YEAR COLUMNS | S2: 12-Month
E3: Sep20 | F3: Oct20 | G3: Nov20 | H3: Dec20 | I3: Jan21 | J3: Feb21 | K3: Mar21 | L3: Apr21 | M3: May21 | N3: Jun21 | O3: Jul21 | P3: Aug21 | Q3: Sep21 | R3: Oct21 | S3: =R3 -> Oct21 | T3: Source
E4: 9 | F4: 10 | G4: 11 | H4: 12 | I4: 1 | J4: 2 | K4: 3 | L4: 4 | M4: 5 | N4: 6 | O4: 7 | P4: 8 | Q4: 9 | R4: 10
A5: QGC Company Produced Gas In MDth | I5: Updated: | J5: 2020-09-10
A6: WEXPRO I
B7: Company Production In Dth | E7: 4001024 | F7: 3914310 | G7: 4036562.991 | H7: 4267608.818 | I7: 4199300.303 | J7: 3607811.222 | K7: 4077727.58 | L7: 3892772.98 | M7: 3970687.71 | N7: 3628610.995 | O7: 3709329.799 | P7: 3802801.048 | Q7: 3746574.004 | R7: 3864162.413 | S7: =SUM(G7:R7) -> 46803949.86
B8: Birch Cr Gathering | E8: 0 | F8: 0 | G8: 0 | H8: 0 | I8: 0 | J8: 0 | K8: 0 | L8: 0 | M8: 0 | N8: 0 | O8: 0 | P8: 0 | Q8: 0 | R8: =R7/$S$7*$S$8 -> 0 | S8: ='Other Inputs'!$D$175 -> 0
B9: Gathering | E9: 721092.3412 | F9: 705464.1417 | G9: =G7/$S$7*$S$9 -> 718377.0717 | H9: 759495.7227 | I9: 747339.0263 | J9: 642073.1863 | K9: 725703.0312 | L9: 692787.1213 | M9: 706653.4119 | N9: 645774.87 | O9: 660140.1948 | P9: 676775.0404 | Q9: 666768.4533 | R9: 687695.3699 | S9: =+'Royalty Data'!E1 -> 8329582.5
A12: WEXPRO II
B13: Company Production In Dth | E13: 998334 | F13: 896292 | G13: 1324401.003 | H13: 1317980.505 | I13: 1276232.799 | J13: 1081869.601 | K13: 1209337.924 | L13: 1143387.002 | M13: 1156337.201 | N13: 1096781.989 | O13: 1112128.097 | P13: 1148267.895 | Q13: 1138370.993 | R13: 1208528.809 | S13: =SUM(G13:R13) -> 14213623.82
B14: Samson Gathering | E14: 542332.7404 | F14: 486899.6714 | G14: =G13/$S$13*$S$14 -> 714739.5124 | H14: 711274.5622 | I14: 688744.5765 | J14: 583852.5864 | K14: 652643.4183 | L14: 617051.6829 | M14: 624040.5171 | N14: 591900.355 | O14: 600182.1894 | P14: 619685.7546 | Q14: 614344.6933 | R14: 652206.7633 | S14: =+'Royalty Data'!L1 -> 7670666.611
D21: 1000
B23: Injections in Dth
C24: Chalk Creek | E24: 93650 | F24: 132000 | G24: 120000 | H24: 1000.000015 | I24: 0 | J24: 0 | K24: 0 | L24: 0 | M24: 0 | N24: 0 | O24: 0 | P24: 0 | Q24: 75000 | R24: 124000 | S24: =SUM(G24:R24) -> 320000
C25: Clay Basin | E25: 2400000 | F25: 1881992 | G25: 0 | H25: 0 | I25: 0 | J25: 0 | K25: 0 | L25: 0 | M25: 0 | N25: 2500001 | O25: 2580000 | P25: 2580000 | Q25: 2500001 | R25: 1921993 | S25: 12081995
C26: Coalville | E26: 50190 | F26: 310000 | G26: 0 | H26: 0 | I26: 0 | J26: 0 | K26: 0 | L26: 0 | M26: 0 | N26: 0 | O26: 0 | P26: 0 | Q26: 120000 | R26: 240186.0046 | S26: 360186.0046
C27: Leroy | E27: 0 | F27: 443483 | G27: 0 | H27: 0 | I27: 0 | J27: 0 | K27: 0 | L27: 0 | M27: 0 | N27: 0 | O27: 0 | P27: 0 | Q27: 225000 | R27: 218497.9939 | S27: 443497.9939
C28: Spire | E28: 341730 | F28: 353119 | G28: 0 | H28: 0 | I28: 0 | J28: 0 | K28: 0 | L28: 0 | M28: 0 | N28: 0 | O28: 0 | P28: 0 | Q28: 0 | R28: 0 | S28: 0
C29: Total Injections | E29: 2885570 | F29: 3120594 | G29: =SUM(G24:G28) -> 120000 | H29: 1000.000015 | I29: 0 | J29: 0 | K29: 0 | L29: 0 | M29: =SUM(M24:M28) -> 0 | N29: =SUM(N24:N28) -> 2500001 | O29: 2580000 | P29: 2580000 | Q29: 2920001 | R29: 2504676.999 | S29: 13205679
B31: Withdrawls In Dth
C32: Chalk Creek | E32: 0 | F32: 0 | G32: 0 | H32: 0 | I32: 0 | J32: 44176.12267 | K32: 230872.3145 | L32: 40045.15743 | M32: 0 | N32: 0 | O32: 0 | P32: 0 | Q32: 0 | R32: 0 | S32: =SUM(G32:R32) -> 315093.5946
C33: Clay Basin | E33: 0 | F33: 0 | G33: 0 | H33: 0 | I33: 3297912 | J33: 2657426 | K33: 2954991 | L33: 1870600 | M33: 0 | N33: 0 | O33: 0 | P33: 0 | Q33: 0 | R33: 0 | S33: 10780929
C34: Coalville | E34: 0 | F34: 0 | G34: 0 | H34: 0 | I34: 0 | J34: 58643.13698 | K34: 292934.3987 | L34: 0 | M34: 0 | N34: 0 | O34: 0 | P34: 0 | Q34: 0 | R34: 0 | S34: 351577.5357
C35: Leroy | E35: 0 | F35: 0 | G35: 0 | H35: 0 | I35: 0 | J35: 77024.33968 | K35: 355696.6763 | L35: 0 | M35: 0 | N35: 0 | O35: 0 | P35: 0 | Q35: 0 | R35: 0 | S35: 432721.016
C36: Spire | E36: 0 | F36: 0 | G36: 0 | H36: 508000.0086 | I36: 514600.0118 | J36: 464800.0107 | K36: 514600.0118 | L36: 0 | M36: 0 | N36: 0 | O36: 0 | P36: 0 | Q36: 0 | R36: 0 | S36: 2002000.043
C37: Total Withdrawls | E37: 0 | F37: 0 | G37: =SUM(G32:G36) -> 0 | H37: 508000.0086 | I37: 3812512.012 | J37: 3302069.61 | K37: 4349094.401 | L37: 1910645.157 | M37: =SUM(M32:M36) -> 0 | N37: =SUM(N32:N36) -> 0 | O37: 0 | P37: 0 | Q37: 0 | R37: 0 | S37: 13882321.19
B39: Lost & Unaccounted for on QPC
A42: Injection and Withdrawl Used, Lost and Unaccounted For
D43: Gas Use
D44: %
B45: Injections in Dth
C46: Chalk Creek | D46: ='Other Inputs'!E150 -> 0.0099 | E46: =E24*-$D46 -> -927.135 | F46: -1306.8 | G46: -1188 | H46: =H24*-$D46 -> -9.900000149 | I46: 0 | J46: 0 | K46: 0 | L46: 0 | M46: =M24*-$D46 -> 0 | N46: 0 | O46: 0 | P46: 0 | Q46: -742.5 | R46: -1227.6 | S46: =SUM(G46:R46) -> -3168
C47: Clay Basin | D47: ='Other Inputs'!E159 -> 0.01253 | E47: -30072 | F47: -23581.35976 | G47: 0 | H47: =H25*-$D47 -> 0 | I47: 0 | J47: 0 | K47: 0 | L47: 0 | M47: 0 | N47: -31325.01253 | O47: -32327.4 | P47: -32327.4 | Q47: -31325.01253 | R47: -24082.57229 | S47: =SUM(G47:R47) -> -151387.3973
C48: Coalville | D48: ='Other Inputs'!E162 -> 0.0108 | E48: =E26*-$D48 -> -542.052 | F48: -3348 | G48: =G26*-$D48 -> 0 | H48: 0 | I48: 0 | J48: 0 | K48: 0 | L48: 0 | M48: 0 | N48: 0 | O48: 0 | P48: 0 | Q48: -1296 | R48: -2594.00885 | S48: =SUM(G48:R48) -> -3890.00885
C49: Leroy | D49: ='Other Inputs'!E156 -> 0.0295 | E49: 0 | F49: -13082.7485 | G49: 0 | H49: 0 | I49: 0 | J49: 0 | K49: 0 | L49: 0 | M49: 0 | N49: 0 | O49: 0 | P49: 0 | Q49: -6637.5 | R49: -6445.69082 | S49: =SUM(G49:R49) -> -13083.19082
C50: Ryckman | D50: ='Other Inputs'!E153 -> 0.025 | E50: -8543.25 | F50: -8827.975 | G50: 0 | H50: 0 | I50: 0 | J50: 0 | K50: 0 | L50: 0 | M50: 0 | N50: 0 | O50: 0 | P50: 0 | Q50: 0 | R50: 0 | S50: =SUM(G50:R50) -> 0
C51: Total Injections | E51: =SUM(E46:E50) -> -40084.437 | F51: -50146.88326 | G51: -1188 | H51: -9.900000149 | I51: 0 | J51: 0 | K51: 0 | L51: 0 | M51: 0 | N51: -31325.01253 | O51: -32327.4 | P51: -32327.4 | Q51: -40001.01253 | R51: -34349.87196 | S51: =SUM(S46:S50) -> -171528.597
B53: Withdrawls In Dth
C54: Chalk Creek | D54: ='Other Inputs'!E151 -> 0.0184 | E54: =E32*-$D54 -> 0 | F54: 0 | G54: =G32*-$D54 -> 0 | H54: 0 | I54: 0 | J54: -812.8406571 | K54: -4248.050587 | L54: -736.8308967 | M54: =M32*-$D54 -> 0 | N54: 0 | O54: 0 | P54: 0 | Q54: 0 | R54: 0 | S54: =SUM(G54:R54) -> -5797.722141
C55: Clay Basin | D55: ='Other Inputs'!E160 -> 0.0015 | E55: 0 | F55: 0 | G55: 0 | H55: 0 | I55: -4946.868 | J55: -3986.139 | K55: -4432.4865 | L55: -2805.9 | M55: 0 | N55: 0 | O55: 0 | P55: 0 | Q55: 0 | R55: 0 | S55: =SUM(G55:R55) -> -16171.3935
C56: Coalville | D56: ='Other Inputs'!E163 -> 0.0239 | E56: 0 | F56: 0 | G56: 0 | H56: 0 | I56: 0 | J56: -1401.570974 | K56: -7001.132129 | L56: 0 | M56: 0 | N56: 0 | O56: 0 | P56: 0 | Q56: 0 | R56: 0 | S56: =SUM(G56:R56) -> -8402.703103
C57: Leroy | D57: ='Other Inputs'!E157 -> 0.0243 | E57: 0 | F57: 0 | G57: 0 | H57: 0 | I57: 0 | J57: -1871.691454 | K57: -8643.429234 | L57: 0 | M57: 0 | N57: 0 | O57: 0 | P57: 0 | Q57: 0 | R57: 0 | S57: =SUM(G57:R57) -> -10515.12069
C58: Ryckman | D58: ='Other Inputs'!E154 -> 0 | E58: 0 | F58: 0 | G58: 0 | H58: 0 | I58: 0 | J58: 0 | K58: 0 | L58: 0 | M58: 0 | N58: 0 | O58: 0 | P58: 0 | Q58: 0 | R58: 0 | S58: =SUM(G58:R58) -> 0
C59: Total Withdrawls | E59: =SUM(E54:E58) -> 0 | F59: =SUM(F54:F58) -> 0 | G59: =SUM(G54:G58) -> 0 | H59: 0 | I59: -4946.868 | J59: -8072.242085 | K59: -24325.09845 | L59: -3542.730897 | M59: 0 | N59: 0 | O59: 0 | P59: 0 | Q59: 0 | R59: 0 | S59: =SUM(S54:S58) -> -40886.93943
B61: QPC Transportation Loss
C62: Chalk Creek | D62: ='Other Inputs'!$E$273 -> 0.0119 | E62: =E32*-$D62 -> 0 | F62: =F32*-$D62 -> 0 | G62: =G32*-$D62 -> 0 | H62: =H32*-$D62 -> 0 | I62: 0 | J62: -525.6958598 | K62: -2747.380543 | L62: -476.5373734 | M62: =M32*-$D62 -> 0 | N62: 0 | O62: 0 | P62: 0 | Q62: 0 | R62: 0 | S62: =SUM(G62:R62) -> -3749.613776
C63: Clay Basin | D63: ='Other Inputs'!$E$273 -> 0.0119 | E63: =E33*-$D63 -> 0 | F63: 0 | G63: =G33*-$D63 -> 0 | H63: 0 | I63: -39245.1528 | J63: -31623.3694 | K63: -35164.3929 | L63: -22260.14 | M63: 0 | N63: 0 | O63: 0 | P63: 0 | Q63: 0 | R63: 0 | S63: =SUM(G63:R63) -> -128293.0551
C64: Coalville | D64: ='Other Inputs'!$E$273 -> 0.0119 | E64: 0 | F64: 0 | G64: 0 | H64: 0 | I64: 0 | J64: -697.8533301 | K64: -3485.919345 | L64: 0 | M64: 0 | N64: 0 | O64: 0 | P64: 0 | Q64: 0 | R64: 0 | S64: =SUM(G64:R64) -> -4183.772675
C65: Leroy | D65: ='Other Inputs'!$E$273 -> 0.0119 | E65: 0 | F65: 0 | G65: 0 | H65: 0 | I65: 0 | J65: -916.5896422 | K65: -4232.790448 | L65: 0 | M65: 0 | N65: 0 | O65: 0 | P65: 0 | Q65: 0 | R65: 0 | S65: =SUM(G65:R65) -> -5149.38009
C66: Ryckman | D66: ='Other Inputs'!$E$273 -> 0.0119 | E66: 0 | F66: 0 | G66: 0 | H66: -6045.200102 | I66: -6123.74014 | J66: -5531.120127 | K66: -6123.74014 | L66: 0 | M66: 0 | N66: 0 | O66: 0 | P66: 0 | Q66: 0 | R66: 0 | S66: =SUM(G66:R66) -> -23823.80051
C67: Total Withdrawls | E67: =SUM(E62:E66) -> 0 | F67: =SUM(F62:F66) -> 0 | G67: =SUM(G62:G66) -> 0 | H67: -6045.200102 | I67: -45368.89294 | J67: -39294.62836 | K67: -51754.22338 | L67: -22736.67737 | M67: 0 | N67: 0 | O67: 0 | P67: 0 | Q67: 0 | R67: 0 | S67: -165199.6222
B70: Total Injections & Withdrawls | E70: =E51+E59 -> -40084.437 | F70: =F51+F59 -> -50146.88326 | G70: =G51+G59 -> -1188 | H70: =H51+H59 -> -9.900000149 | I70: -4946.868 | J70: -8072.242085 | K70: -24325.09845 | L70: -3542.730897 | M70: 0 | N70: -31325.01253 | O70: -32327.4 | P70: -32327.4 | Q70: -40001.01253 | R70: -34349.87196 | S70: =S51+S59 -> -212415.5365
R72: Fuel Factor | S72: =-S70/(S37+S29) -> 0.007841683955
S74: 12-Month
E75: =E3 -> Sep20 | F75: =F3 -> Oct20 | G75: =G3 -> Nov20 | H75: =H3 -> Dec20 | I75: Jan21 | J75: Feb21 | K75: Mar21 | L75: Apr21 | M75: May21 | N75: Jun21 | O75: Jul21 | P75: Aug21 | Q75: Sep21 | R75: Oct21 | S75: Total
I77: Updated: | J77: 2020-09-10 | K77: EXH 1.2
A78: Natural Gas Spot Price Forecast - Average of GI, Cera & Pira | G78: (Forecast --->)
B79: Kern River Opal, Wyoming | E79: 1.95 | F79: 1.99 | G79: 2.42 | H79: 3.03 | I79: 3.5 | J79: 3.35 | K79: 3.18 | L79: 3.08 | M79: 3.02 | N79: 3 | O79: 3.01 | P79: 2.98 | Q79: 2.89 | R79: 2.79
B82: Spot Purchases from IRP | G82: 5656.579 | H82: 7580.279 | I82: 5166.029 | J82: 4938.72 | K82: 3402.448 | L82: 2103.954 | M82: 390.151 | N82: 1227.308 | O82: 686.415 | P82: 497.673 | Q82: 1238.995 | R82: 4130.602 | S82: =SUM(G82:R82) -> 37019.153
C83: In DTH | G83: =G82*1000 -> 5656579 | H83: =H82*1000 -> 7580279 | I83: 5166029 | J83: 4938720 | K83: 3402448 | L83: =L82*1000 -> 2103954 | M83: =M82*1000 -> 390151 | N83: 1227308 | O83: =O82*1000 -> 686415 | P83: 497673 | Q83: 1238995 | R83: 4130602 | S83: =SUM(G83:R83) -> 37019153
C84: In $ | G84: =G83*G79 -> 13688921.18 | H84: =H83*H79 -> 22968245.37 | I84: =I83*I79 -> 18081101.5 | J84: =J83*J79 -> 16544712 | K84: =K83*K79 -> 10819784.64 | L84: 6480178.32 | M84: 1178256.02 | N84: 3681924 | O84: 2066109.15 | P84: 1483065.54 | Q84: 3580695.55 | R84: 11524379.58 | S84: =SUM(G84:R84) -> 112097372.8
A87: CONTRACT PURCHASES | I87: Updated: | J87: 2020-09-10
B88: RESET FORMULAS TO WORKSHEET
B89: Peaking Purchases (DTH) | G89: 1000000 | H89: 4000000 | I89: 5000000 | J89: 3000000 | K89: 0 | L89: 0 | M89: 0 | N89: 0 | O89: 0 | P89: 0 | Q89: 0 | R89: 0 | S89: =SUM(G89:R89) -> 13000000
B90: Peaking Purchases ($) | G90: 2502476.605 | H90: 12518323.39 | I90: 18063797.63 | J90: 10375660.69 | K90: 0 | L90: 0 | M90: 0 | N90: 0 | O90: 0 | P90: 0 | Q90: 0 | R90: 0 | S90: =SUM(G90:R90) -> 43460258.32
B92: Term Purchases (DTH) | G92: 900000 | H92: 2092500 | I92: 2092500 | J92: 1890000 | K92: 930000 | L92: 900000 | M92: 0 | N92: 0 | O92: 0 | P92: 0 | Q92: 0 | R92: 0 | S92: =SUM(G92:R92) -> 8805000
B93: Term Purchases ($) | G93: 2382601.783 | H93: 6519800.646 | I93: 7502314.65 | J93: 6493061.22 | K93: 3168131.198 | L93: 2976021.36 | M93: 0 | N93: 0 | O93: 0 | P93: 0 | Q93: 0 | R93: 0 | S93: =SUM(G93:R93) -> 29041930.86
B94: Stabilization Costs (Winter Months - Oct to Mar) | G94: 0 | H94: 0 | I94: 0 | J94: 0 | K94: 0 | L94: 0 | M94: 0 | N94: 0 | O94: 0 | P94: 0 | Q94: 0 | R94: 0 | S94: =SUM(G94:R94) -> 0
B97: Total Purchases (DTH) | E97: 0 | F97: 0 | G97: =G89+G92 -> 1900000 | H97: =H89+H92 -> 6092500 | I97: 7092500 | J97: 4890000 | K97: 930000 | L97: =L89+L92 -> 900000 | M97: 0 | N97: 0 | O97: 0 | P97: 0 | Q97: 0 | R97: 0 | S97: =SUM(G97:R97) -> 21805000
B98: Total Purchases ($) | E98: 0 | F98: 0 | G98: =G90+G93 -> 4885078.388 | H98: 19038124.04 | I98: 25566112.28 | J98: 16868721.91 | K98: 3168131.198 | L98: =L90+L93 -> 2976021.36 | M98: 0 | N98: 0 | O98: 0 | P98: 0 | Q98: 0 | R98: 0 | S98: =SUM(G98:R98) -> 72502189.17
A101: Typical Customer Monthly Usage in Dth
B102: Utah | G102: =VLOOKUP(MONTH(L3),$F$116:$G$127,2,FALSE) -> 8.3 | H102: 4.4 | I102: 3.1 | J102: 2 | K102: 1.8 | L102: 2 | M102: =VLOOKUP(MONTH(R3),$F$116:$G$127,2,FALSE) -> 3.1 | N102: =VLOOKUP(MONTH(G3),$F$116:$G$127,2,FALSE) -> 6.3 | O102: =VLOOKUP(MONTH(H3),$F$116:$G$127,2,FALSE) -> 11.5 | P102: =VLOOKUP(MONTH(I3),$F$116:$G$127,2,FALSE) -> 14.9 | Q102: =VLOOKUP(MONTH(J3),$F$116:$G$127,2,FALSE) -> 12.5 | R102: =VLOOKUP(MONTH(K3),$F$116:$G$127,2,FALSE) -> 10.1 | S102: =SUM(G102:R102) -> 80
B103: Wyoming | G103: =VLOOKUP(MONTH(L3),$F$116:$H$127,3,FALSE) -> 9.4 | H103: 5.8 | I103: 3.7 | J103: 2.3 | K103: 1.7 | L103: 2.1 | M103: =VLOOKUP(MONTH(R3),$F$116:$H$127,3,FALSE) -> 4.1 | N103: =VLOOKUP(MONTH(G3),$F$116:$H$127,3,FALSE) -> 8 | O103: =VLOOKUP(MONTH(H3),$F$116:$H$127,3,FALSE) -> 12.3 | P103: =VLOOKUP(MONTH(I3),$F$116:$H$127,3,FALSE) -> 14.7 | Q103: =VLOOKUP(MONTH(J3),$F$116:$H$127,3,FALSE) -> 14.1 | R103: =VLOOKUP(MONTH(K3),$F$116:$H$127,3,FALSE) -> 11.8 | S103: =SUM(G103:R103) -> 90
A105: INPUTS FROM WEXPRO | G105: =+G3 -> Nov20 | H105: =+H3 -> Dec20 | I105: Jan21 | J105: Feb21 | K105: Mar21 | L105: Apr21 | M105: May21 | N105: Jun21 | O105: Jul21 | P105: Aug21 | Q105: Sep21 | R105: Oct21 | S105: 12-Month
S106: Total
A107: Wexpro I Operator Fee (Wexpro forecast) | E107: Updated: | F107: 2020-09-17 | G107: 14401212.7 | H107: 14472928.38 | I107: 15167231.74 | J107: 15305825.24 | K107: 15052453.45 | L107: 14628575.05 | M107: 14633961.06 | N107: 14268753.06 | O107: 14328766.67 | P107: 14024183.6 | Q107: 13986427.89 | R107: 14178809.26 | S107: =SUM(G107:R107) -> 174449128.1
A109: Wexpro II Operator Fee (Wexpro forecast) | E109: Updated: | F109: 2020-09-17 | G109: 3255895.9 | H109: 3459143.286 | I109: 3632346.306 | J109: 3330860.126 | K109: 3429375.845 | L109: 3284846.033 | M109: 3280623.61 | N109: 3173348.071 | O109: 3186139.215 | P109: 3176308.68 | Q109: 3168510.89 | R109: 3244227.133 | S109: =SUM(G109:R109) -> 39621625.1
F115: Typical UPC | G115: UT | H115: WY
F116: 1 | G116: 14.9 | H116: 14.7
F117: 2 | G117: 12.5 | H117: 14.1
F118: 3 | G118: 10.1 | H118: 11.8
F119: 4 | G119: 8.3 | H119: 9.4
F120: 5 | G120: 4.4 | H120: 5.8
F121: 6 | G121: 3.1 | H121: 3.7
F122: 7 | G122: 2 | H122: 2.3
F123: 8 | G123: 1.8 | H123: 1.7
F124: 9 | G124: 2 | H124: 2.1
F125: 10 | G125: 3.1 | H125: 4.1
F126: 11 | G126: 6.3 | H126: 8
F127: 12 | G127: 11.5 | H127: 12.3
F128: Total | G128: =SUM(G116:G127) -> 80 | H128: =SUM(H116:H127) -> 90

Sheet Other Inputs
H1: Used In
A2: INPUT SECTION | H2: Ut | I2: Wy | J2: Source
A3: INPUTS FROM QUESTAR PIPELINE TARIFF AND CONTRACTS
B5: Storage Commodity Rates | E5: Rate | F5: Effective
B6: Peaking Injections | E6: 0.03872 | F6: 2020-01-01 | H6: 1.3.2 | I6: 1.3p2
B7: Peaking Withdrawals | E7: 0.03872 | F7: =$F$6 -> 2020-01-01 | H7: 1.3.2 | I7: 1.3p2
B8: Spire Injections | E8: 0.015 | F8: =$F$6 -> 2020-01-01
B9: Spire Withdrawals | E9: 0.01 | F9: =$F$6 -> 2020-01-01
B10: Clay Basin Injections | E10: 0.01049 | F10: =$F$6 -> 2020-01-01 | H10: 1.3.2 | I10: 1.3p2
B11: Clay Basin Withdrawals | E11: 0.01781 | F11: =$F$6 -> 2020-01-01 | H11: 1.3.2 | I11: 1.3p2
B13: Storage Field Reservation Charges
B14: Peaking Storage Fields Demand (Leroy, Chalk Creek, Coalville) | E14: 2.87375 | F14: =$F$6 -> 2020-01-01 | H14: 1.3.2 | I14: 1.3p2
B15: Spire | E15: 0.09 | F15: =$F$6 -> 2020-01-01
B16: Clay Basin Demand | E16: 2.85338 | F16: =$F$6 -> 2020-01-01 | H16: 1.3.2 | I16: 1.3p2
B17: Clay Basin Capacity | E17: 0.02378 | F17: =$F$6 -> 2020-01-01 | H17: 1.3.2 | I17: 1.3p2
B19: Peak Hour Service
B20: Kern River | D20: 28752 | E20: 3 | F20: =+F21*E21/E20 -> 11.65333333
B21: mid Nov - mid Feb | E21: =16+31+31+14 -> 92 | F21: 0.38
B23: Dominion Energy Questar Pipeline | D23: =(150000+49000)/24*8 -> 66333.33333 | E23: 3 | F23: =(1303816+425913)/(D23*E23) -> 8.692105528
B24: mid Nov - mid Feb | E24: =16+31+31+14 -> 92 | F24: =+F23/E24*E23 -> 0.2834382237
B27: FIRM TRANSPORTATION | D27: Contract Dth | E27: Months | F27: Maximum Rate | G27: Effective
B28: T-1 Transportation - Yearly (MT241) | D28: =798902 -> 798902 | E28: 12 | F28: 5.28804 | G28: 2020-01-01 | H28: 1.3p1
B29: T-1 Transportation - Yearly (Mainline 104) | D29: 30000 | E29: 12 | F29: 5.28804 | G29: =$G$28 -> 2020-01-01 | H29: Jan
B30: T-1 Transportation - Yearly (Tieline 112) | D30: 12000 | E30: 12 | F30: 5.28804 | G30: =$G$28 -> 2020-01-01 | H30: 1.3p1
B31: T-1 Transportation - Nov-Mar | D31: 75000 | E31: 5 | F31: 6.80887 | G31: =$G$28 -> 2020-01-01
B32: T-1 Transportation - Yearly (Hyrum) | D32: 100000 | E32: 12 | F32: 5.28804 | G32: =$G$28 -> 2020-01-01
B33: Total Yearly T-1 Transportation | D33: =SUM(D28:D32) -> 1015902 | E33: 12
B35: No-Notice Transportation (BASE TARIFF RATE) | D35: 203542 | E35: 12 | F35: 0.86753 | G35: =$G$28 -> 2020-01-01 | H35: 1.3p1
B37: TRANSPORTATION COMMODITY
B38: PIPELINE USAGE CHARGE TO VOLUMETRIC RELEASES
B39: QPC Commodity
B40: QPC Firm Transportation Usage Charge (Max & Min) (BASE TARIFF RATE) | F40: 0.00267 | G40: 2020-01-01 | H40: 1.3p1
B41: QPC (ANNUAL CHARGE ADJUSTMENT) | F41: 0.0011 | G41: 2020-10-01 | H41: 1.3p1
E43: Current | F43: Proposed
B44: INTER TRANS (T-2 PIPELINE BASE TARIFF) MAX | D44: Base Tariff | E44: 0.17652 | F44: 0.17652 | G44: 2020-01-01
D45: Annual Charge | E45: 0.0013 | F45: 0.0011 | G45: 2020-10-01
D46: Total | E46: =SUM(E44:E45) -> 0.17782 | F46: =SUM(F44:F45) -> 0.17762
B49: Utah | E49: =ROUND((E46)/(1-$E270),5) -> 0.17883 | F49: =ROUND((F46)/(1-E270),5) -> 0.17863 | H49: 1.6.3
B50: Wyoming | F50: =ROUND((F46)/(1-E271),5) -> 0.18032
A52: INPUTS FROM KERN RIVER PIPELINE TARIFF AND CONTRACTS | E52: 15.78929167
B53: Kern River 2003 Expansion | D53: Contract Dth | E53: Months | F53: Maximum Rate | G53: Effective
F54: =0.2021-0.0222 -> 0.1799 | G54: 2020-01-01
B55: Jan - Dec #20029 | D55: 33000 | E55: 12 | F55: =(F54*(365-153))/E55 -> 3.178233333 | H55: 1.3.1
B56: November - March #20029 | D56: 50000 | E56: 5 | F56: =F55 -> 3.178233333 | H56: Jan
B57: Jan - Dec #1829 | D57: 1885 | E57: 12 | F57: =F58*E58/E57 -> 5.471958333
B58: Days in Tariff Rate | E58: 365 | F58: =0.2021-0.0222 -> 0.1799 | G58: =G54 -> 2020-01-01
B61: Citadel Energy Marketing
B62: Dec - Feb #20017 | D62: 56925 | E62: 3 | F62: =+E63*F63/E62 -> 8.7 | H62: 1.3.1
B63: Days in Tariff Rate | E63: =31+31+28 -> 90 | F63: 0.29
B64: Nov & Mar #20017 | D64: 6000 | E64: 2 | F64: =+F65*E65/E64 -> 8.845 | H64: Jan
B65: Days in Tariff Rate | E65: =30+31 -> 61 | F65: 0.29
B66: Nov - Mar #20024 | D66: 27000 | E66: 5 | F66: =+F67*E67/E66 -> 8.758 | H66: Jan
B67: Days in Tariff Rate | E67: =30+31+31+28+31 -> 151 | F67: 0.29
B69: Kern River 2003 Expansion | E69: Days in TEST PERIOD
B70: Jan - Dec | C70: 0.6581041568 | D70: =D55+D57 -> 34885 | E70: 365 | F70: 0.0044 | G70: =G58 -> 2020-01-01 | H70: 1.3p1
B71: November - March | C71: =C70 -> 0.6581041568 | D71: =D56 -> 50000 | E71: =30+31+31+28+31 -> 151 | F71: 0.0044 | G71: =G58 -> 2020-01-01 | H71: 1.3p1
B73: Kern River Original System Period Two Rates #20017
B74: Dec - Feb #20017 | C74: =+C70 -> 0.6581041568 | D74: 56925 | E74: =31+31+28 -> 90 | F74: 0.0044 | G74: =+G71 -> 2020-01-01 | H74: 1.3.1
B75: Nov & Mar #20017 | C75: =+C70 -> 0.6581041568 | D75: 6000 | E75: 61 | F75: 0.0044 | G75: =+G71 -> 2020-01-01 | H75: 1.3.2
B76: Kern River 2002 Expansion Period Two Rates #20024
B77: Nov - Mar #20024 | C77: =+C70 -> 0.6581041568 | D77: 27000 | E77: =30+31+31+28+31 -> 151 | F77: 0.0044 | G77: =+G71 -> 2020-01-01 | H77: Jan
A80: INPUTS FROM QUESTAR GAS TARIFF
A83: Current SNG Rates
B84: UTAH | E84: Current SNG Base | F84: Current SNG Amort. | G84: Current SNG Total | J84: Effective
B85: GS | D85: Winter | E85: 0.90846 | F85: 0.01022 | G85: =E85+F85 -> 0.91868 | J85: 2020-06-01
D86: Summer | E86: 0.38154 | F86: 0.00429 | G86: =E86+F86 -> 0.38583 | J86: 2020-06-01
B88: FS | D88: Winter | E88: 0.87936 | F88: 0.00989 | G88: =E88+F88 -> 0.88925 | J88: 2020-06-01
D89: Summer | E89: 0.75764 | F89: 0.00852 | G89: =E89+F89 -> 0.76616 | J89: 2020-06-01
B91: NGV | E91: 0.76995 | F91: 0.00866 | G91: =E91+F91 -> 0.77861 | J91: 2020-06-01
B93: (This includes bad debt adjustment) IS | E93: 0.17898 | F93: 0 | G93: =E93+F93 -> 0.17898 | J93: 2020-06-01
A95: Current Rates
B96: Utah GS | J96: Effective
B97: Block 1 | D97: Summer | G97: 6.13836 | J97: 2020-06-01
B98: Block 2 | D98: Summer | G98: 4.94976 | J98: =+J97 -> 2020-06-01
B99: Block 1 | D99: Winter | G99: 7.365 | J99: =+J97 -> 2020-06-01
B100: Block 2 | D100: Winter | G100: 6.1764 | J100: =+J97 -> 2020-06-01
B101: #1 BSF | G101: 6.75 | J101: =+J97 -> 2020-06-01
B103: Wyoming GS
B104: Block 1 | G104: 6.3124 | J104: 2020-09-01
B105: Block 2 | G105: 6.05217 | J105: =+J104 -> 2020-09-01
B106: BSF | G106: 12 | J106: =+J104 -> 2020-09-01
A108: INPUTS FROM PREVIOUS PASSTHROUGH CASE
B109: PRIOR PERIOD COMPANY PRODUCTION AVERAGE GAS COST
E110: PROPOSED | F110: PRIOR CASE | G110: Most Recent
B111: VOLUMES DTH | E111: =+'Monthly Inputs'!S7+'Monthly Inputs'!S13 -> 61017573.68 | F111: 58049957 | G111: EXH 1.2p1
B112: AMOUNT | E112: =+D198+D220 -> 243853237.2 | F112: 227712471.3 | G112: EXH 1.2p1
B113: AVG COST | E113: =+E112/E111 -> 3.996442705 | F113: =ROUND(+F112/F111,5) -> 3.9227
B115: Utah Cost of Gas by Component
B116: Unit Cost Of Gas (Line 7) | F116: 3.07628
B117: 191 Account Amortization (Line 8) | F117: 0.43865
B118: Tax Reform Surcredit 4 | F118: -0.00972
B119: Total Unit Cost In Rates (Line 9) | F119: =SUM(F116:F118) -> 3.50521
B121: I-2 Commodity Cost (excluding bad debt) | E121: 0
B123: Wyoming Cost of Gas by Component
B124: Unit Cost Of Gas (Line 9) | F124: 3.72717
B125: 191 Account Amortization (Line 10) | F125: -0.13374
B126: Tax Reform Surcredit 4 | F126: -0.00852
B127: Total Unit Cost In Rates (Line 11) | F127: =SUM(F124:F126) -> 3.58491
A132: INPUTS FROM 191 ACCOUNT MONTH END BALANCE ACTUAL OR FORECAST | E132: Utah | F132: Wyoming
E133: 2020 | F133: 2020-03-31
H134: 1.6.2
D135: current yr /mo(text)
B136: August 2020 191 account (Actual/Forecast) | D136: 2020 | E136: 35999919 | F136: 239438 | H136: 1.6.1
B137: Supplier Non-Gas Cost Under (Over) Collected through March 2020 (act/fcst) | D137: August | E137: 11137704 | H137: 1.6.2
B138: Commodity Cost Under (Over) Collected during YEAR (Act/Fcst) | E138: =E136-E137 -> 24862215
B140: SPRING SNG Amortization Balance March 2020 | D140: -13037885 | E140: -14000000 | F140: =+D140-E140 -> 962115
A142: INPUTS FROM IRP
B143: #1 Peak Day Demand Forecast | E143: 2020 | F143: Source
B144: Utah | E144: =E146-E145 -> 1195063 | F144: 2020 IRP
B145: Wyoming | E145: 37218
B146: System Total Peak Day Demand Forecast | E146: 1232281 | F146: 2020-2021 Heating Season | H146: 1.5 | I146: 1.5
A149: STORAGE FIELD INPUTS | E149: Storage
B150: Chalk Creek Injections Factor | E150: 0.0099
B151: Chalk Creek Withdrawls Factor | E151: 0.0184
B153: Spire Injections Factor | E153: 0.025
B154: Spire Withdrawls Factor | E154: 0
B156: Leroy Injections Factor | E156: 0.0295
B157: Leroy Withdrawls Factor | E157: 0.0243
B159: Clay Basin Injections Factor | E159: 0.01253
B160: Clay Basin Withdrawls Factor | E160: 0.0015
B162: Coalville Injections Factor | E162: 0.0108
B163: Coalville Withdrawls Factor | E163: 0.0239
B165: QPC Storage Field Reservation Charges | E165: Monthly Dth
B166: Peaking Storage Fields Maximum Daily Withdrawal Qty (Leroy, Chalk Creek, Coalville) | E166: 184625
B167: Spire Maximum Storage Qty | E167: =2500000 -> 2500000 | F167: contract ends March 2021
B168: Clay Basin Minimum Required Deliverability | E168: 111827
B169: Clay Basin Capacity | E169: 13419000
A171: OTHER INPUTS FROM GLEN, TOM, TINA & Al | D171: Revenue
B172: OTHER GATHERING
B176: Total Forecasted Birch Creek | D176: 270160.5 | E176: 2020-07-31
B178: Other gathering | D178: 1145164.86 | E178: 2020-07-31 | H178: JanB
B179: Total Gathering | D179: =SUM(D176:D178) -> 1415325.36 | H179: 1.3.1 | I179: 1.3P1
B181: Other Transportation | D181: 3682628.27 | E181: 2020-07-31 | H181: 1.3.1
B183: Forecast Future Contracts Premium over spot price | E183: 0.02 | F183: Verified with Will 9/8/20
D185: Commodity | E185: Demand
D186: Charge | E186: Charge | F186: Effective
B187: Gathering Rates -System wide Gathering agreement #163 (SWGA) | D187: 3342366.949 | E187: 5013550.423 | F187: 2020-01-01 | I187: 1.3p1
B190: Gathering Rate Wexpro II | D190: 3199242.085 | I190: 1.3p1
A193: OTHER INPUTS FROM JIM LIVSEY | D193: Volume (Dth) | E193: Revenue
A194: WEXPRO I
B195: Questar Gas Production 1/ | D195: Current
B196: Test-Year Royalties | D196: ='Royalty Detail'!I1423 -> 23180637.64 | H196: 1.4.1 | I196: 1.4P1
B197: Operator Service Fee | D197: ='Monthly Inputs'!S107 -> 174449128.1 | H197: 1.4.1 | I197: 1.4P1
B198: Total Questar Gas Production Costs | D198: =SUM(D196:D197) -> 197629765.8
B200: Total Questar Gas Production Dth | D200: ='Royalty Detail'!F1428 -> 46803949.86
F201: Hot | G201: Hot
B202: Other Revenue Credits | D202: 1 | E202: 2 | F202: 2 | G202: 2 | I202: 1
D203: Historical | E203: Forecast | F203: =HLOOKUP(F$202,$D$202:$E$211,$I203) -> Forecast | G203: =HLOOKUP(G$202,$D$202:$E$211,$I203) -> Forecast | I203: 2
D204: 12 Mo Ending | E204: 12 Mo Ending | F204: Utah | G204: Wyoming | I204: 3
B205: 483 Sales for Resale | E205: 3386880 | F205: =HLOOKUP(F$202,$D$202:$E$211,$I205) -> 3386880 | G205: =HLOOKUP(G$202,$D$202:$E$211,$I205) -> 3386880 | I205: 4
B206: 490 Incidental Plant Prod Sales | E206: 3053673 | F206: =HLOOKUP(F$202,$D$202:$E$211,$I206) -> 3053673 | G206: 3053673 | I206: 5
B207: 492 Incidental Gasoline_Oil Sales | E207: 3427726.576 | F207: 3427726.576 | G207: 3427726.576 | I207: 6
B208: 4951 Overriding Royalty Revenue from Celsius | E208: 7675684.86 | F208: 7675684.86 | G208: 7675684.86 | I208: 7
B209: 4952 Oil Revenue Received from Wexpro | E209: 0 | F209: 0 | G209: 0 | I209: 8
B210: 3rd Party & Liquids Credits from MLPX Acquisiiton | E210: 795122.4 | F210: =HLOOKUP(F$202,$D$202:$E$211,$I210) -> 795122.4 | G210: 795122.4 | I210: 9
B211: 758001 Gas Well Royalities - Other | E211: -565232.1124 | F211: -565232.1124 | G211: -565232.1124 | I211: 10
B214: Total Other Revenue Credits | D214: =SUM(D205:D211) -> 0 | E214: =SUM(E205:E211) -> 17773854.72 | F214: =SUM(F205:F211) -> 17773854.72 | G214: =SUM(G205:G211) -> 17773854.72
A216: WEXPRO II
B217: Questar Gas Production 1/ | D217: Current
B218: Test-Year Royalties | D218: ='Royalty Detail'!I1679 -> 6601846.345 | H218: 1.4.1 | I218: 1.4P1
B219: Operator Service Fee | D219: ='Monthly Inputs'!S109 -> 39621625.1 | H219: 1.4.1 | I219: 1.4P1
B220: Total Questar Gas Production Costs | D220: =SUM(D218:D219) -> 46223471.44
B222: Total Questar Gas Production Dth | D222: ='Royalty Detail'!F1684 -> 14213623.82
F223: Hot | G223: Hot
B224: Other Revenue Credits | D224: 1 | E224: 2 | F224: 2 | G224: 2 | I224: 1
D225: Historical | E225: Forecast | F225: =HLOOKUP(F$202,$D$202:$E$211,$I225) -> Forecast | G225: =HLOOKUP(G$202,$D$202:$E$211,$I225) -> Forecast | I225: 2
D226: 12 Mo Ending | E226: 12 Mo Ending | F226: Utah | G226: Wyoming | I226: 3
B227: 483 Sales for Resale | E227: 0 | F227: =HLOOKUP(F$224,$D$224:$E$232,$I227) -> 0 | G227: 0 | I227: 4
B228: 490 Incidental Plant Prod Sales | E228: 216000 | F228: 216000 | G228: 216000 | I228: 5
B229: 492 Incidental Gasoline_Oil Sales | E229: 1073422.594 | F229: 1073422.594 | G229: 1073422.594 | I229: 6
B230: 4951 Overriding Royalty Revenue from Celsius | E230: 0 | F230: 0 | G230: 0 | I230: 7
B231: 4952 Oil Revenue Received from Wexpro | E231: 219653.2824 | F231: 219653.2824 | G231: 219653.2824 | I231: 8
B232: 758001 Gas Well Royalities - Other | E232: -174860.5406 | F232: -174860.5406 | G232: -174860.5406 | I232: 9
B235: Total Other Revenue Credits | D235: =SUM(D227:D232) -> 0 | E235: =SUM(E227:E233) -> 1334215.336 | F235: =SUM(F227:F232) -> 1334215.336 | G235: =SUM(G227:G232) -> 1334215.336
E237: Proceeds | F237: Dths | G237: Price
B238: Sales of Wexpro Gas | E238: 0 | F238: 0 | G238: 0
A240: SUMMARY INPUTS FROM REVRUN, RATE BASE, EXPENSES, ETC.
B242: Supplier Non-Gas Costs Recovered at Current Rates 3/ | E242: ='RevRun Fcst'!T$199 -> 87237087.18 | H242: 1.6.2
B243: MT Supplier Non-Gas | E243: ='RevRun Fcst'!T142 -> 0
B244: Net Supplier Non-Gas | E244: =E242-E243 -> 87237087.18
B245: UT Current Int Sales SNG Rate - not including Bad Debt adj. | E245: ='RevRun Fcst'!T102+'RevRun Fcst'!T93 -> 151174 | F245: 0.17862
E247: ='Rate Base'!$U$8 -> 2020-03-31 | F247: update to most current
B248: Account 164-1 - Gas Stored Underground | D248: Dth | E248: Ending Balance | F248: $ per Dth
D249: ='Rate Base'!T285 -> -10922007 | E249: ='Rate Base'!T206 -> 39991140.93 | F249: =+E249/D249 -> -3.661519438 | H249: 1.4.2
A252: UT CET and DSM AMORTIZATION FILING INPUTS
E253: Base DNG | F253: Current DNG
B254: GS Rates (Base rates are before CET, DSM, & EA Amortizations) | D254: Summer Blk 1 | E254: 1.99981 | F254: 2.24732
D255: Summer Blk 2 | E255: 0.79741 | F255: 1.05872
D256: Winter Blk 1 | E256: 2.70165 | F256: 2.94111
D257: Winter Blk 2 | E257: 1.49925 | F257: 1.75251
A261: MISCELLANEOUS INPUTS
B262: Test-Year | D262: ='Control Panel'!E36 -> 2020-11-01 | E262: ='Control Panel'!E37 -> 2021-10-31
B264: Wexpro Red. @ 6.3% | E264: -0.063 | I264: 1.3p3
B266: Pre-Tax Rate of Return % | D266: WYO | E266: 0.088 | F266: 2020-09-01 | I266: 1.3p2
B267: Pre-Tax Rate of Return % | D267: UTAH | E267: 0.089 | F267: 2018-03-01
B270: QGC Lost & Unaccounted For % (Utah | E270: 0.00565 | F270: 2016-06-01 | H270: Q | I270: Q
B271: QGC Lost & Unaccounted For % (Wyoming) | E271: 0.015
B272: Gathering Lost & Unaccounted For | E272: 0.04005 | F272: 2016-06-01 | H272: Q | I272: Q
B273: QPC Lost & Unaccounted For % | E273: 0.0119 | F273: 2010-04-23 | H273: Q | I273: Q
B274: TOTAL | E274: =SUM(E272:E273) -> 0.05195
... 31 more rows

Sheet CET & DSM WY (hidden)
A1: Rate Caclulation for the CET and DSM Amortizations WY
L3: Solver Cells
A4: CET Amortization % Calculation | L4: % Change | M4: Difference
B5: Balance | C5: Date | D5: GS Dth | F5: Amortization per Dth | L5: =J20/D20 ->  | M5: =G20-B11 ->  | O5: -> Difference should be at 0 (Use Goal Seek to Get Difference to Equal 0.
A6: DSM Balance | B6: ='Other Inputs'!#REF! ->  | C6: ='Other Inputs'!#REF! ->  | D6: =B20 ->  | F6: =B6/D6 -> 
O8: Typical Bill Rates
A9: CET Amortization Calculation
B10: Balance | C10: Date | D10: DNG Rev | F10: New DNG | I10: % Change | O10: Current | P10: Proposed
A11: CET Balance | B11: ='Other Inputs'!#REF! ->  | C11: ='Other Inputs'!#REF! ->  | D11: =D20 ->  | F11: =D11+B11 ->  | I11: =L5 ->  | O11: Effective | R11: SNG & | S11: CET, DSM
O12: ='Other Inputs'!$J$104 -> 2020-09-01 | P12: CET Only | Q12: DSM Only | R12: Commodity | S12: Commodity
O13: BSF | P13: BSF | Q13: BSF | R13: BSF | S13: BSF
B14: Revenue Calculation | F14: CET Amortization | I14: Total DNG | L14: REVRUN Calculation | O14: ='Other Inputs'!$G$106 -> 12 | P14: ='Other Inputs'!$G$106 -> 12 | Q14: ='Other Inputs'!$G$106 -> 12 | R14: ='Other Inputs'!$G$106 -> 12 | S14: =#REF! -> 
A15: WY GS | B15: Dth | C15: Base DNG | D15: DNG Revenue | F15: CET Rate | G15: Revenue | I15: DNG Rate | J15: Revenue | L15: CET Rate | M15: CET Amort
A16: Block 1 | B16: ='Other Inputs'!#REF! ->  | C16: ='Other Inputs'!#REF! ->  | D16: =B16*C16 ->  | F16: =ROUND((G16/B16),5) ->  | G16: =D16*$L$5 ->  | I16: =C16+F16 ->  | J16: =I16*B16 ->  | L16: =ROUND(F16,5) ->  | M16: =B16*L16 ->  | O16: ='Other Inputs'!$G$97 -> 6.13836 | P16: =J24 ->  | Q16: =J31 ->  | R16: =J36 ->  | S16: =J41 -> 
A17: Block 2 | B17: ='Other Inputs'!#REF! ->  | C17: ='Other Inputs'!#REF! ->  | D17: =B17*C17 ->  | F17: =ROUND((G17/B17),5) ->  | G17: =D17*$L$5 ->  | I17: =C17+F17 ->  | J17: =I17*B17 ->  | L17: =ROUND(F17,5) ->  | M17: =B17*L17 -> 
O18: ='Other Inputs'!$G$104 -> 6.3124 | P18: =J24 ->  | Q18: =J31 ->  | R18: =J36 ->  | S18: =J41 -> 
A20: GS-1 Block Rev | B20: =SUM(B16:B19) ->  | D20: =SUM(D16:D19) ->  | G20: =SUM(G16:G19) ->  | J20: =B11 ->  | M20: =SUM(M16:M19) -> 
A22: Total Rate Calculation With CET Amortization Only | J22: ='Control Panel'!#REF! ->  | L22: ='Other Inputs'!$J$104 -> 2020-09-01
A23: WY GS | B23: Total DNG | C23: CET | D23: DSM | F23: Total DNG | G23: Core Commodity Cost | J23: Total Rate | L23: Total Rate
A24: Block 1 | B24: =$C$16 ->  | C24: =$F$16 ->  | D24: 0.06792 | F24: =SUM(B24:D24) ->  | G24: 4.96884 | J24: =SUM(F24:G24) ->  | L24: ='Other Inputs'!G104 -> 6.3124 | M24: =J24-L24 -> 
A25: Block 2 | B25: =$C$17 ->  | C25: =$F$17 ->  | D25: =$D$24 -> 0.06792 | F25: =SUM(B25:D25) ->  | G25: =G24 -> 4.96884 | J25: =SUM(F25:G25) ->  | L25: ='Other Inputs'!$G$105 -> 6.05217 | M25: =J25-L25 -> 
A29: Total Rate Calculation With DSM Amortization Only | J29: =J22 ->  | L29: ='Other Inputs'!$J$104 -> 2020-09-01
A30: WY GS | B30: Base DNG | C30: CET | D30: DSM | F30: Total DNG | G30: Core Commodity Cost | J30: Total Rate | L30: Total Rate
A31: Block 1 | B31: =$C$16 ->  | C31: 0.04505 | D31: =$F$6 ->  | F31: =ROUND(SUM(B31:D31),5) ->  | G31: =G24 -> 4.96884 | J31: =SUM(F31:I31) ->  | L31: ='Other Inputs'!$G$97 -> 6.13836 | M31: =J31-L31 -> 
A32: Block 2 | B32: =$C$17 ->  | C32: 0.02848 | D32: =$F$6 ->  | F32: =ROUND(SUM(B32:D32),5) ->  | G32: =G25 -> 4.96884 | J32: =SUM(F32:I32) ->  | L32: ='Other Inputs'!$G$105 -> 6.05217 | M32: =J32-L32 -> 
A34: Total Rate Calculation With Core Commodity Cost Changes Only | J34: =J22 ->  | L34: ='Other Inputs'!$J$104 -> 2020-09-01
A35: WY GS | B35: Base DNG | C35: CET | D35: DSM | F35: Total DNG | G35: Core Commodity Cost | J35: Total Rate | L35: Total Rate
A36: Block 1 | B36: =$C$16 ->  | C36: =C31 -> 0.04505 | D36: =D24 -> 0.06792 | F36: =SUM(B36:D36) ->  | G36: =#REF! ->  | J36: =SUM(F36:I36) ->  | L36: ='Other Inputs'!$G$97 -> 6.13836 | M36: =J36-L36 -> 
A37: Block 2 | B37: =$C$17 ->  | C37: =C32 -> 0.02848 | D37: =D25 -> 0.06792 | F37: =SUM(B37:D37) ->  | G37: =#REF! ->  | J37: =SUM(F37:I37) ->  | L37: ='Other Inputs'!$G$105 -> 6.05217 | M37: =J37-L37 -> 
A39: Total Rate Calculation | J39: =J29 ->  | L39: ='Other Inputs'!$J$104 -> 2020-09-01
A40: WY GS | B40: Base DNG | C40: CET | D40: DSM | F40: Total DNG | G40: Core Commodity Cost | J40: Total Rate | L40: Total Rate
A41: Block 1 | B41: =$C$16 ->  | C41: =$F$16 ->  | D41: =$F$6 ->  | F41: =SUM(B41:D41) ->  | G41: =#REF! ->  | J41: =SUM(F41:I41) ->  | L41: ='Other Inputs'!$G$97 -> 6.13836 | M41: =J41-L41 -> 
A42: Block 2 | B42: =$C$17 ->  | C42: =$F$17 ->  | D42: =$F$6 ->  | F42: =SUM(B42:D42) ->  | G42: =#REF! ->  | J42: =SUM(F42:I42) ->  | L42: ='Other Inputs'!$G$105 -> 6.05217 | M42: =J42-L42 -> 
A44: Typical Customer Difference - CET Amortization Only
B45: Typical
A46: GS | B46: Dth | C46: =O12 -> 2020-09-01 | D46: =J39 ->  | F46: Change | G46: % Change
A47: January | B47: 14.7 | C47: =ROUND($O$14+(B47*$O$18),2) -> 104.79 | D47: =ROUND($P$14+(B47*$P$18),2) ->  | F47: =D47-C47 -> 
A48: February | B48: 14.1 | C48: =ROUND($O$14+(B48*$O$18),2) -> 101 | D48: =ROUND($P$14+(B48*$P$18),2) ->  | F48: =D48-C48 -> 
A49: March | B49: 11.8 | C49: =ROUND($O$14+(B49*$O$18),2) -> 86.49 | D49: =ROUND($P$14+(B49*$P$18),2) -> 
A50: April | B50: 9.4 | C50: =ROUND($O$14+(B50*$O$16),2) -> 69.7 | D50: =ROUND($P$14+(B50*$P$16),2) -> 
A51: May | B51: 5.8 | C51: 47.6 | D51: =ROUND($P$14+(B51*$P$16),2) -> 
A52: June | B52: 3.7 | C52: 34.71
A53: July | B53: 2.3 | C53: 26.12
A54: August | B54: 1.7 | C54: 22.44
A55: September | B55: 2.1 | C55: 24.89
A56: October | B56: 4.1 | C56: 37.17
A57: November | B57: 8 | C57: =ROUND($O$14+(B57*$O$18),2) -> 62.5 | D57: =ROUND($P$14+(B57*$P$18),2) -> 
A58: December | B58: 12.3 | C58: =ROUND($O$14+(B58*$O$18),2) -> 89.64 | D58: =ROUND($P$14+(B58*$P$18),2) -> 
B59: =SUM(B47:B58) -> 90 | C59: =SUM(C47:C58) -> 707.05 | D59: =SUM(D47:D58) ->  | F59: =SUM(F47:F58) ->  | G59: =F59/C59 -> 
A62: Typical Customer Difference - DSM Amortization Only
B63: Typical
A64: GS | B64: Dth | C64: =C46 -> 2020-09-01 | D64: =D46 ->  | F64: Change | G64: % Change
A65: January | B65: 14.7 | C65: =ROUND($O$14+(B65*$O$18),2) -> 104.79 | D65: =ROUND($Q$14+(B65*$Q$18),2) ->  | F65: =D65-C65 -> 
A66: February | B66: 14.1 | C66: =ROUND($O$14+(B66*$O$18),2) -> 101 | D66: =ROUND($Q$14+(B66*$Q$18),2) ->  | F66: =D66-C66 -> 
A67: March | B67: 11.8 | C67: =ROUND($O$14+(B67*$O$18),2) -> 86.49 | D67: =ROUND($Q$14+(B67*$Q$18),2) -> 
A68: April | B68: 9.4 | C68: =ROUND($O$14+(B68*$O$16),2) -> 69.7 | D68: =ROUND($Q$14+(B68*$Q$16),2) -> 
A69: May | B69: 5.8 | C69: 47.6
A70: June | B70: 3.7 | C70: 34.71
A71: July | B71: 2.3 | C71: 26.12
A72: August | B72: 1.7 | C72: 22.44
A73: September | B73: 2.1 | C73: 24.89
A74: October | B74: 4.1 | C74: 37.17
A75: November | B75: 8 | C75: =ROUND($O$14+(B75*$O$18),2) -> 62.5 | D75: =ROUND($Q$14+(B75*$Q$18),2) -> 
A76: December | B76: 12.3 | C76: =ROUND($O$14+(B76*$O$18),2) -> 89.64 | D76: =ROUND($Q$14+(B76*$Q$18),2) -> 
B77: =SUM(B65:B76) -> 90 | C77: =SUM(C65:C76) -> 707.05 | D77: =SUM(D65:D76) ->  | F77: =SUM(F65:F76) ->  | G77: =F77/C77 -> 
A80: Typical Customer Difference - SNG and Commodity Changes Only
B81: Typical
A82: GS | B82: Dth | C82: =C64 -> 2020-09-01 | D82: =D64 ->  | F82: Change | G82: % Change
A83: January | B83: 14.7 | C83: =ROUND($O$14+(B83*$O$18),2) -> 104.79 | D83: =ROUND($R$14+(B83*$R$18),2) ->  | F83: =D83-C83 -> 
A84: February | B84: 14.1 | C84: =ROUND($O$14+(B84*$O$18),2) -> 101 | D84: =ROUND($R$14+(B84*$R$18),2) ->  | F84: =D84-C84 -> 
A85: March | B85: 11.8 | C85: =ROUND($O$14+(B85*$O$18),2) -> 86.49 | D85: =ROUND($R$14+(B85*$R$18),2) -> 
A86: April | B86: 9.4 | C86: =ROUND($O$14+(B86*$O$16),2) -> 69.7 | D86: =ROUND($R$14+(B86*$R$16),2) -> 
A87: May | B87: 5.8 | C87: 47.6
A88: June | B88: 3.7 | C88: 34.71
A89: July | B89: 2.3 | C89: 26.12
A90: August | B90: 1.7 | C90: 22.44
A91: September | B91: 2.1 | C91: 24.89
A92: October | B92: 4.1 | C92: 37.17
A93: November | B93: 8 | C93: =ROUND($O$14+(B93*$O$18),2) -> 62.5 | D93: =ROUND($R$14+(B93*$R$18),2) -> 
A94: December | B94: 12.3 | C94: =ROUND($O$14+(B94*$O$18),2) -> 89.64 | D94: =ROUND($R$14+(B94*$R$18),2) -> 
B95: =SUM(B83:B94) -> 90 | C95: =SUM(C83:C94) -> 707.05 | D95: =SUM(D83:D94) ->  | F95: =SUM(F83:F94) ->  | G95: =F95/C95 -> 
A98: Typical Customer Difference - CET & DSM Amort, SNG and Commodity Changes
B99: Typical
A100: GS | B100: Dth | C100: =C46 -> 2020-09-01 | D100: =D46 ->  | F100: Change | G100: % Change
A101: January | B101: 14.7 | C101: =ROUND($O$14+(B101*$O$18),2) -> 104.79 | D101: =ROUND($S$14+(B101*$S$18),2) ->  | F101: =D101-C101 -> 
A102: February | B102: 14.1 | C102: =ROUND($O$14+(B102*$O$18),2) -> 101 | D102: =ROUND($S$14+(B102*$S$18),2) ->  | F102: =D102-C102 -> 
A103: March | B103: 11.8 | C103: =ROUND($O$14+(B103*$O$18),2) -> 86.49 | D103: =ROUND($S$14+(B103*$S$18),2) -> 
A104: April | B104: 9.4 | C104: =ROUND($O$14+(B104*$O$16),2) -> 69.7 | D104: =ROUND($S$14+(B104*$S$16),2) -> 
A105: May | B105: 5.8 | C105: 47.6
A106: June | B106: 3.7 | C106: 34.71
A107: July | B107: 2.3 | C107: 26.12
A108: August | B108: 1.7 | C108: 22.44
A109: September | B109: 2.1 | C109: 24.89
A110: October | B110: 4.1 | C110: 37.17
A111: November | B111: 8 | C111: =ROUND($O$14+(B111*$O$18),2) -> 62.5 | D111: =ROUND($S$14+(B111*$S$18),2) -> 
A112: December | B112: 12.3 | C112: =ROUND($O$14+(B112*$O$18),2) -> 89.64 | D112: =ROUND($S$14+(B112*$S$18),2) -> 
B113: =SUM(B101:B112) -> 90 | C113: =SUM(C101:C112) -> 707.05 | D113: =SUM(D101:D112) ->  | F113: =SUM(F101:F112) ->  | G113: =F113/C113 -> 

Sheet WY Tariff Sheets (hidden)
T2: Rates Per Dth Used Each Month
B3: 2.02 General Service Rate Schedule (GS) | K3: 2.02 General Service Rate Schedule (GS) | Q3: 2.03 Firm Sales Service Rate Schedule (FS) | T3: Dth = decatherm = 10 therms = 1,000,000 BTU | Z3: 4.02 INTERRUPTIBLE SALES RATE SERVICE SCHEDULE (IS) | BF3: 2.04 NATURAL GAS VEHICLE RATE (NGV)
L4: Rates Per Dth Used Each Month | R4: Summer Rates: Apr. 1 - Oct. 31
C5: Rates Per Dth Used Each Month | L5: Dth = decatherm = 10 therms = 1,000,000 BTU | R5: First | T5: Next | V5: All Over | Z5: IS VOLUMETRIC RATES | AA5: Rates Per Dth Used Each Month | BF5: NGV Volumetric Rate
C6: Dth = decatherm = 10 therms = 1,000,000 BTU | L6: First 45 Dth | M6: All Over 45 Dth | R6: 80 | T6: 730 | V6: 810 | AA6: Dth = decatherm = 10 therms = 1,000,000 BTU | BJ6: Rates Per Dth Used Each Month
C7: First 45 Dth | D7: All Over 45 Dth | K7: Non-Gas Cost | L7: ='CET & DSM WY'!B31 ->  | M7: ='CET & DSM WY'!B32 ->  | Q7: Non Gas Cost | R7: =#REF! ->  | T7: =#REF! ->  | V7: =#REF! ->  | AA7: First | AB7: Next | AC7: All Over | BJ7: Dth = decatherm = 10 therms = 1,000,000 BTU
B8: Non-Gas Cost | C8: ='CET & DSM WY'!B24 ->  | D8: ='CET & DSM WY'!B25 ->  | K8: Conservation Enabling Adjustment | L8: =ROUND('CET & DSM WY'!C31,5) -> 0.04505 | M8: ='CET & DSM WY'!C32 -> 0.02848 | Q8: Core Service Commodity Cost | R8: =#REF! ->  | T8: =#REF! ->  | V8: =#REF! ->  | AA8: 48600 | AB8: 72900 | AC8: 121500
B9: Conservation Enabling Adjustment | C9: ='CET & DSM WY'!C24 ->  | D9: ='CET & DSM WY'!C25 ->  | K9: Energy Efficiency Services | L9: ='CET & DSM WY'!D31 ->  | M9: ='CET & DSM WY'!D32 ->  | Z9: Distribution Non-Gas Rate | AA9: =#REF! ->  | AB9: =#REF! ->  | AC9: =#REF! ->  | BF9: Non-Gas Cost | BG9: =#REF! -> 
B10: Energy Efficiency Services | C10: ='CET & DSM WY'!D24 -> 0.06792 | D10: ='CET & DSM WY'!D25 -> 0.06792 | K10: Core Service Commodity Cost | L10: ='CET & DSM WY'!G31 -> 4.96884 | M10: =ROUND('CET & DSM WY'!G32,5) -> 4.96884 | Q10: Total Rate | R10: =SUM(R7:R8) ->  | T10: =SUM(T7:T8) ->  | V10: =SUM(V7:V8) ->  | Z10: Upstream Pipeline Cost | AA10: =#REF! ->  | AB10: =#REF! ->  | AC10: =#REF! ->  | BF10: Core Commodity Cost | BG10: =#REF! -> 
B11: Core Service Commodity Cost | C11: ='CET & DSM WY'!G24 -> 4.96884 | D11: ='CET & DSM WY'!G25 -> 4.96884 | Z11: Commodity Rate | BF11: Total Rate | BG11: =SUM(BG9:BJ10) -> 
K12: Total Rate | L12: =SUM(L7:L10) ->  | M12: =SUM(M7:M10) ->  | Q12: Minimum Monthly Distribution Non-Gas Charge | W12: =#REF! -> 
B13: Total Rate | C13: =SUM(C8:C11) ->  | D13: =SUM(D8:D11) -> 
M15: BSF Category 1 | N15: =E16 -> 12
D16: BSF Category 1 | E16: ='CET & DSM WY'!O14 -> 12 | M16: BSF Category 2 | N16: =E17 -> 44 | U16: BSF Category 1 | W16: ='Other Inputs'!G106 -> 12
D17: BSF Category 2 | E17: 44 | M17: BSF Category 3 | N17: =E18 -> 86 | U17: BSF Category 2 | W17: =#REF! -> 
D18: BSF Category 3 | E18: 86 | M18: BSF Category 4 | N18: =E19 -> 555 | U18: BSF Category 3 | W18: =#REF! ->  | Z18: Total Rate | AA18: $ | AB18: $ | AC18: $
D19: BSF Category 4 | E19: 555 | U19: BSF Category 4 | W19: =#REF! -> 
Z20: Minimum Monthly Distribution Non-Gas Charge
BF23: =B38 -> Issued by R. W. Jibson, President | BI23: Advice No | BJ23: Section Revision No.
AB24: BSF Category 1 | AC24: ='Other Inputs'!G106 -> 12
AB25: BSF Category 2 | AC25: =#REF! -> 
AB26: BSF Category 3 | AC26: =#REF! -> 
AB27: BSF Category 4 | AC27: =#REF! -> 
K37: Issued by R. W. Jibson, President | M37: Section Revision No. | N37: Effective Date
B38: Issued by R. W. Jibson, President | D38: Section Revision No. | E38: Effective Date | Q38: =B38 -> Issued by R. W. Jibson, President | T38: Advice No | U38: Section Revision No. | W38: Effective Date
B42: New CET ONLY | K42: New DSM ONLY | Q42: New Pass Through Values
Z47: =B38 -> Issued by R. W. Jibson, President | AC47: Advice No
Z50: New Pass Through Values

Sheet Calculations
A1: GAS BALANCE FOR 12 MONTHS ENDING: _________________
D3: SALES VOLUMES IN DEKATHERMS (12 Months of Forecast)
D4: Forecast | E4: Forecast | F4: Forecast | G4: Forecast | H4: Forecast | I4: Forecast | J4: Forecast | K4: Forecast | L4: Forecast | M4: Forecast | N4: Forecast | O4: Forecast | P4: 12-Month
A5: RATE CLASS | D5: =+'Monthly Inputs'!G3 -> Nov20 | E5: =+'Monthly Inputs'!H3 -> Dec20 | F5: =+'Monthly Inputs'!I3 -> Jan21 | G5: =+'Monthly Inputs'!J3 -> Feb21 | H5: =+'Monthly Inputs'!K3 -> Mar21 | I5: =+'Monthly Inputs'!L3 -> Apr21 | J5: =+'Monthly Inputs'!M3 -> May21 | K5: =+'Monthly Inputs'!N3 -> Jun21 | L5: =+'Monthly Inputs'!O3 -> Jul21 | M5: =+'Monthly Inputs'!P3 -> Aug21 | N5: =+'Monthly Inputs'!Q3 -> Sep21 | O5: =+'Monthly Inputs'!R3 -> Oct21 | P5: Total | Q5: 1
A6: UTAH | D6: =MONTH(D5) -> 11 | E6: =MONTH(E5) -> 12 | F6: 1 | G6: 2 | H6: 3 | I6: 4 | J6: 5 | K6: 6 | L6: 7 | M6: 8 | N6: 9 | O6: 10 | Q6: 2
B7: GSR | D7: ='RevRun Fcst'!H21 -> 11641281 | E7: ='RevRun Fcst'!I21 -> 18270327 | F7: ='RevRun Fcst'!J21 -> 19939293 | G7: ='RevRun Fcst'!K21 -> 16412136 | H7: ='RevRun Fcst'!L21 -> 12829606 | I7: ='RevRun Fcst'!M21 -> 9029589 | J7: ='RevRun Fcst'!N21 -> 5148466 | K7: ='RevRun Fcst'!O21 -> 2883634 | L7: ='RevRun Fcst'!P21 -> 2360072 | M7: ='RevRun Fcst'!Q21 -> 2305067 | N7: ='RevRun Fcst'!R21 -> 2582449 | O7: ='RevRun Fcst'!S21 -> 5950841 | P7: =SUM(D7:O7) -> 109352761 | Q7: 3
B8: GSC | D8: ='RevRun Fcst'!H30 -> 0 | E8: ='RevRun Fcst'!I30 -> 0 | F8: ='RevRun Fcst'!J30 -> 0 | G8: ='RevRun Fcst'!K30 -> 0 | H8: ='RevRun Fcst'!L30 -> 0 | I8: ='RevRun Fcst'!M30 -> 0 | J8: ='RevRun Fcst'!N30 -> 0 | K8: ='RevRun Fcst'!O30 -> 0 | L8: ='RevRun Fcst'!P30 -> 0 | M8: ='RevRun Fcst'!Q30 -> 0 | N8: ='RevRun Fcst'!R30 -> 0 | O8: ='RevRun Fcst'!S30 -> 0 | P8: 0 | Q8: 4
B9: GSS | D9: ='RevRun Fcst'!H39 -> 0 | E9: ='RevRun Fcst'!I39 -> 0 | F9: ='RevRun Fcst'!J39 -> 0 | G9: ='RevRun Fcst'!K39 -> 0 | H9: ='RevRun Fcst'!L39 -> 0 | I9: ='RevRun Fcst'!M39 -> 0 | J9: ='RevRun Fcst'!N39 -> 0 | K9: ='RevRun Fcst'!O39 -> 0 | L9: ='RevRun Fcst'!P39 -> 0 | M9: ='RevRun Fcst'!Q39 -> 0 | N9: ='RevRun Fcst'!R39 -> 0 | O9: ='RevRun Fcst'!S39 -> 0 | P9: 0 | Q9: 5
B10: F-1 | D10: ='RevRun Fcst'!H48 -> 244926 | E10: ='RevRun Fcst'!I48 -> 295649 | F10: ='RevRun Fcst'!J48 -> 335774 | G10: ='RevRun Fcst'!K48 -> 309283 | H10: ='RevRun Fcst'!L48 -> 273272 | I10: ='RevRun Fcst'!M48 -> 252684 | J10: ='RevRun Fcst'!N48 -> 213199 | K10: ='RevRun Fcst'!O48 -> 180221 | L10: ='RevRun Fcst'!P48 -> 164753 | M10: ='RevRun Fcst'!Q48 -> 154409 | N10: ='RevRun Fcst'!R48 -> 169664 | O10: ='RevRun Fcst'!S48 -> 201501 | P10: 2795335 | Q10: 6
B11: F-4 | D11: ='RevRun Fcst'!H75 -> 0 | E11: ='RevRun Fcst'!I75 -> 0 | F11: ='RevRun Fcst'!J75 -> 0 | G11: ='RevRun Fcst'!K75 -> 0 | H11: ='RevRun Fcst'!L75 -> 0 | I11: ='RevRun Fcst'!M75 -> 0 | J11: ='RevRun Fcst'!N75 -> 0 | K11: ='RevRun Fcst'!O75 -> 0 | L11: ='RevRun Fcst'!P75 -> 0 | M11: ='RevRun Fcst'!Q75 -> 0 | N11: ='RevRun Fcst'!R75 -> 0 | O11: ='RevRun Fcst'!S75 -> 0 | P11: 0 | Q11: 7
B12: NGV | D12: ='RevRun Fcst'!H66 -> 20389 | E12: ='RevRun Fcst'!I66 -> 17778 | F12: ='RevRun Fcst'!J66 -> 14988 | G12: ='RevRun Fcst'!K66 -> 14457 | H12: ='RevRun Fcst'!L66 -> 15829 | I12: ='RevRun Fcst'!M66 -> 16652 | J12: ='RevRun Fcst'!N66 -> 18107 | K12: ='RevRun Fcst'!O66 -> 15404 | L12: ='RevRun Fcst'!P66 -> 16116 | M12: ='RevRun Fcst'!Q66 -> 18752 | N12: ='RevRun Fcst'!R66 -> 17532 | O12: ='RevRun Fcst'!S66 -> 19026 | P12: 205030 | Q12: 8
A13: Total Firm Sales | D13: =SUM(D7:D12) -> 11906596 | E13: 18583754 | F13: =SUM(F7:F12) -> 20290055 | G13: 16735876 | H13: 13118707 | I13: 9298925 | J13: 5379772 | K13: 3079259 | L13: 2540941 | M13: 2478228 | N13: 2769645 | O13: 6171368 | P13: =SUM(P7:P12) -> 112353126 | Q13: 9
Q14: 10
B15: I-4 | D15: ='RevRun Fcst'!H102 -> 13908 | E15: ='RevRun Fcst'!I102 -> 16213 | F15: ='RevRun Fcst'!J102 -> 21928 | G15: ='RevRun Fcst'!K102 -> 17958 | H15: ='RevRun Fcst'!L102 -> 15806 | I15: ='RevRun Fcst'!M102 -> 11768 | J15: ='RevRun Fcst'!N102 -> 9182 | K15: ='RevRun Fcst'!O102 -> 11399 | L15: ='RevRun Fcst'!P102 -> 8097 | M15: ='RevRun Fcst'!Q102 -> 7719 | N15: ='RevRun Fcst'!R102 -> 8099 | O15: ='RevRun Fcst'!S102 -> 9097 | P15: =SUM(D15:O15) -> 151174 | Q15: 11
B16: IS-4 | D16: ='RevRun Fcst'!H93 -> 0 | E16: ='RevRun Fcst'!I93 -> 0 | F16: ='RevRun Fcst'!J93 -> 0 | G16: ='RevRun Fcst'!K93 -> 0 | H16: ='RevRun Fcst'!L93 -> 0 | I16: ='RevRun Fcst'!M93 -> 0 | J16: ='RevRun Fcst'!N93 -> 0 | K16: ='RevRun Fcst'!O93 -> 0 | L16: ='RevRun Fcst'!P93 -> 0 | M16: ='RevRun Fcst'!Q93 -> 0 | N16: ='RevRun Fcst'!R93 -> 0 | O16: ='RevRun Fcst'!S93 -> 0 | P16: =SUM(D16:O16) -> 0 | Q16: 12
A17: Total Interruptible Sales | D17: =SUM(D15:D16) -> 13908 | E17: 16213 | F17: 21928 | G17: 17958 | H17: 15806 | I17: 11768 | J17: 9182 | K17: 11399 | L17: 8097 | M17: 7719 | N17: 8099 | O17: 9097 | P17: 151174 | Q17: 13
Q18: 14
Q19: 15
A20: Total Utah Sales | D20: =+D13+D17 -> 11920504 | E20: =+E13+E17 -> 18599967 | F20: =+F13+F17 -> 20311983 | G20: =+G13+G17 -> 16753834 | H20: 13134513 | I20: 9310693 | J20: 5388954 | K20: 3090658 | L20: 2549038 | M20: 2485947 | N20: 2777744 | O20: 6180465 | P20: =+P13+P17 -> 112504300 | Q20: 16
Q21: 17
A22: Total Utah Transportation | D22: ='RevRun Fcst'!H204 -> 8571509 | E22: ='RevRun Fcst'!I204 -> 9392608 | F22: ='RevRun Fcst'!J204 -> 8860361 | G22: ='RevRun Fcst'!K204 -> 8117902 | H22: ='RevRun Fcst'!L204 -> 8134035 | I22: ='RevRun Fcst'!M204 -> 6651397 | J22: ='RevRun Fcst'!N204 -> 6995986 | K22: ='RevRun Fcst'!O204 -> 6850150 | L22: ='RevRun Fcst'!P204 -> 8415257 | M22: ='RevRun Fcst'!Q204 -> 8377140 | N22: ='RevRun Fcst'!R204 -> 7203952 | O22: ='RevRun Fcst'!S204 -> 8159203 | P22: =SUM(D22:O22) -> 95729500 | Q22: 18
Q23: 19
Q24: 20
A25: Total Utah Sales & Trans | D25: =+D20+D22 -> 20492013 | E25: 27992575 | F25: 29172344 | G25: 24871736 | H25: 21268548 | I25: 15962090 | J25: 12384940 | K25: 9940808 | L25: 10964295 | M25: 10863087 | N25: 9981696 | O25: 14339668 | P25: =+P20+P22 -> 208233800 | Q25: 21
Q26: 22
A27: WYOMING | Q27: 23
A28: GS-1 | D28: ='RevRun Fcst'!H244 -> 403714 | E28: ='RevRun Fcst'!I244 -> 560652 | F28: ='RevRun Fcst'!J244 -> 597254 | G28: ='RevRun Fcst'!K244 -> 524038 | H28: ='RevRun Fcst'!L244 -> 433257 | I28: ='RevRun Fcst'!M244 -> 315240 | J28: ='RevRun Fcst'!N244 -> 206679 | K28: ='RevRun Fcst'!O244 -> 103685 | L28: ='RevRun Fcst'!P244 -> 56938 | M28: ='RevRun Fcst'!Q244 -> 57751 | N28: ='RevRun Fcst'!R244 -> 81779 | O28: ='RevRun Fcst'!S244 -> 222835 | P28: =SUM(D28:O28) -> 3563822 | Q28: 24
A29: GS-W | D29: ='RevRun Fcst'!H271 -> 0 | E29: ='RevRun Fcst'!I271 -> 0 | F29: ='RevRun Fcst'!J271 -> 0 | G29: ='RevRun Fcst'!K271 -> 0 | H29: ='RevRun Fcst'!L271 -> 0 | I29: ='RevRun Fcst'!M271 -> 0 | J29: ='RevRun Fcst'!N271 -> 0 | K29: ='RevRun Fcst'!O271 -> 0 | L29: ='RevRun Fcst'!P271 -> 0 | M29: ='RevRun Fcst'!Q271 -> 0 | N29: ='RevRun Fcst'!R271 -> 0 | O29: ='RevRun Fcst'!S271 -> 0 | P29: =SUM(D29:O29) -> 0 | Q29: 25
A30: F-1 | D30: ='RevRun Fcst'!H253 -> 16698 | E30: ='RevRun Fcst'!I253 -> 19327 | F30: ='RevRun Fcst'!J253 -> 20259 | G30: ='RevRun Fcst'!K253 -> 19037 | H30: ='RevRun Fcst'!L253 -> 17839 | I30: ='RevRun Fcst'!M253 -> 14831 | J30: ='RevRun Fcst'!N253 -> 14408 | K30: ='RevRun Fcst'!O253 -> 9123 | L30: ='RevRun Fcst'!P253 -> 10309 | M30: ='RevRun Fcst'!Q253 -> 8742 | N30: ='RevRun Fcst'!R253 -> 13875 | O30: ='RevRun Fcst'!S253 -> 16598 | P30: =SUM(D30:O30) -> 181046 | Q30: 26
A31: NGV | D31: ='RevRun Fcst'!H262 -> 484 | E31: ='RevRun Fcst'!I262 -> 491 | F31: ='RevRun Fcst'!J262 -> 212 | G31: ='RevRun Fcst'!K262 -> 230 | H31: ='RevRun Fcst'!L262 -> 336 | I31: ='RevRun Fcst'!M262 -> 362 | J31: ='RevRun Fcst'!N262 -> 405 | K31: ='RevRun Fcst'!O262 -> 400 | L31: ='RevRun Fcst'!P262 -> 343 | M31: ='RevRun Fcst'!Q262 -> 410 | N31: ='RevRun Fcst'!R262 -> 359 | O31: ='RevRun Fcst'!S262 -> 402 | P31: =SUM(D31:O31) -> 4434 | Q31: 27
A32: Total Firm Sales | D32: =SUM(D28:D31) -> 420896 | E32: 580470 | F32: 617725 | G32: 543305 | H32: 451432 | I32: 330433 | J32: 221492 | K32: 113208 | L32: 67590 | M32: 66903 | N32: 96013 | O32: 239835 | P32: 3749302 | Q32: 28
Q33: 29
A34: I-2 | D34: ='RevRun Fcst'!H280 -> 16312 | E34: ='RevRun Fcst'!I280 -> 16918 | F34: ='RevRun Fcst'!J280 -> 17198 | G34: ='RevRun Fcst'!K280 -> 16993 | H34: ='RevRun Fcst'!L280 -> 17855 | I34: ='RevRun Fcst'!M280 -> 15080 | J34: ='RevRun Fcst'!N280 -> 11204 | K34: ='RevRun Fcst'!O280 -> 7587 | L34: ='RevRun Fcst'!P280 -> 5376 | M34: ='RevRun Fcst'!Q280 -> 5895 | N34: ='RevRun Fcst'!R280 -> 5305 | O34: ='RevRun Fcst'!S280 -> 11861 | P34: =SUM(D34:O34) -> 147584 | Q34: 30
A35: I-4 | D35: ='RevRun Fcst'!H289 -> 0 | E35: ='RevRun Fcst'!I289 -> 0 | F35: ='RevRun Fcst'!J289 -> 0 | G35: ='RevRun Fcst'!K289 -> 0 | H35: ='RevRun Fcst'!L289 -> 0 | I35: ='RevRun Fcst'!M289 -> 0 | J35: ='RevRun Fcst'!N289 -> 0 | K35: ='RevRun Fcst'!O289 -> 0 | L35: ='RevRun Fcst'!P289 -> 0 | M35: ='RevRun Fcst'!Q289 -> 0 | N35: ='RevRun Fcst'!R289 -> 0 | O35: ='RevRun Fcst'!S289 -> 0 | P35: =SUM(D35:O35) -> 0 | Q35: 31
A36: Total Interruptible Sales | D36: =SUM(D34:D35) -> 16312 | E36: 16918 | F36: 17198 | G36: 16993 | H36: 17855 | I36: 15080 | J36: 11204 | K36: 7587 | L36: 5376 | M36: 5895 | N36: 5305 | O36: 11861 | P36: 147584 | Q36: 32
Q37: 33
Q38: 34
A39: Total Wyoming Sales | D39: =+D32+D36 -> 437208 | E39: =+E32+E36 -> 597388 | F39: 634923 | G39: 560298 | H39: 469287 | I39: 345513 | J39: 232696 | K39: 120795 | L39: 72966 | M39: 72798 | N39: 101318 | O39: 251696 | P39: 3896886 | Q39: 35
Q40: 36
A41: Total Wyoming Transportation | D41: ='RevRun Fcst'!H328 -> 37891 | E41: ='RevRun Fcst'!I328 -> 52557 | F41: ='RevRun Fcst'!J328 -> 77199 | G41: ='RevRun Fcst'!K328 -> 45946 | H41: ='RevRun Fcst'!L328 -> 42768 | I41: ='RevRun Fcst'!M328 -> 35116 | J41: ='RevRun Fcst'!N328 -> 43650 | K41: ='RevRun Fcst'!O328 -> 36637 | L41: ='RevRun Fcst'!P328 -> 37481 | M41: ='RevRun Fcst'!Q328 -> 20973 | N41: ='RevRun Fcst'!R328 -> 25224 | O41: ='RevRun Fcst'!S328 -> 47490 | P41: =SUM(D41:O41) -> 502932 | Q41: 37
Q42: 38
Q43: 39
A44: Total Wyoming Sales & Trans | D44: =+D39+D41 -> 475099 | E44: 649945 | F44: 712122 | G44: 606244 | H44: 512055 | I44: 380629 | J44: 276346 | K44: 157432 | L44: 110447 | M44: 93771 | N44: 126542 | O44: 299186 | P44: 4399818 | Q44: 40
Q45: 41
Q46: 42
A47: Total System Sales and Trans | D47: =+D25+D44 -> 20967112 | E47: 28642520 | F47: 29884466 | G47: 25477980 | H47: 21780603 | I47: 16342719 | J47: 12661286 | K47: 10098240 | L47: 11074742 | M47: 10956858 | N47: 10108238 | O47: =+O25+O44 -> 14638854 | P47: 212633618 | Q47: 43
Q48: 44
A49: Usage by Season | Q49: 45
C50: Month | D50: =MONTH(D5) -> 11 | E50: 12 | F50: 1 | G50: 2 | H50: 3 | I50: 4 | J50: 5 | K50: 6 | L50: 7 | M50: 8 | N50: 9 | O50: 10 | Q50: 46
A51: GS | C51: Season (0=Winter, 1=Summer) | D51: =IF(D$50<4,0,IF(D$50>10,0,1)) -> 0 | E51: =IF(E$50<4,0,IF(E$50>10,0,1)) -> 0 | F51: 0 | G51: 0 | H51: 0 | I51: 1 | J51: 1 | K51: 1 | L51: 1 | M51: 1 | N51: 1 | O51: 1 | P51: Total | Q51: 47
B52: Winter | D52: =IF(D51=0,D7+D8,0) -> 11641281 | E52: =IF(E51=0,E7+E8,0) -> 18270327 | F52: 19939293 | G52: 16412136 | H52: 12829606 | I52: 0 | J52: 0 | K52: 0 | L52: 0 | M52: 0 | N52: 0 | O52: 0 | P52: =SUM(D52:O52) -> 79092643 | Q52: 48
B53: Summer | D53: =IF(D51=1,D7+D8,0) -> 0 | E53: 0 | F53: 0 | G53: 0 | H53: 0 | I53: 9029589 | J53: 5148466 | K53: 2883634 | L53: 2360072 | M53: 2305067 | N53: 2582449 | O53: 5950841 | P53: =SUM(D53:O53) -> 30260118 | Q53: 49
A54: GSS | Q54: 50
B55: Winter | D55: =IF(D51=0,D9,0) -> 0 | E55: 0 | F55: 0 | G55: 0 | H55: 0 | I55: 0 | J55: 0 | K55: 0 | L55: 0 | M55: 0 | N55: 0 | O55: 0 | P55: =SUM(D55:O55) -> 0 | Q55: 51
B56: Summer | D56: =IF(D51=1,D9,0) -> 0 | E56: 0 | F56: 0 | G56: 0 | H56: 0 | I56: 0 | J56: 0 | K56: 0 | L56: 0 | M56: 0 | N56: 0 | O56: 0 | P56: =SUM(D56:O56) -> 0 | Q56: 52
A57: F-S | Q57: 53
B58: Winter | D58: =IF(D51=0,D10,0) -> 244926 | E58: 295649 | F58: 335774 | G58: 309283 | H58: 273272 | I58: 0 | J58: 0 | K58: 0 | L58: 0 | M58: 0 | N58: 0 | O58: 0 | P58: =SUM(D58:O58) -> 1458904 | Q58: 54
B59: Summer | D59: =IF(D51=1,D10,0) -> 0 | E59: 0 | F59: 0 | G59: 0 | H59: 0 | I59: 252684 | J59: 213199 | K59: 180221 | L59: 164753 | M59: 154409 | N59: 169664 | O59: 201501 | P59: =SUM(D59:O59) -> 1336431 | Q59: 55
Q60: 56
Q61: 57
B62: Rates: R050201.R1 | C62: WYOMING NON-CORE DNG REVENUES FROM DEMAND FORECAST AND CURRENTLY EFFECTIVE I-SALES GAS COST RATES | Q62: 58
D63: Forecast | E63: Forecast | F63: Forecast | G63: Forecast | H63: Forecast | I63: Forecast | J63: Forecast | K63: Forecast | L63: Forecast | M63: Forecast | N63: Forecast | O63: Forecast | P63: 12-Month | Q63: 59
D64: =D5 -> Nov20 | E64: =E5 -> Dec20 | F64: =F5 -> Jan21 | G64: Feb21 | H64: Mar21 | I64: Apr21 | J64: May21 | K64: Jun21 | L64: Jul21 | M64: Aug21 | N64: Sep21 | O64: Oct21 | P64: Total | Q64: 60
A65: I-2 & 1-4 (Non-Gas Revenue) (Yearly) | D65: ='RevRun Fcst'!H273+'RevRun Fcst'!H282 -> 5569.14 | E65: ='RevRun Fcst'!I273+'RevRun Fcst'!I282 -> 5715.55 | F65: ='RevRun Fcst'!J273+'RevRun Fcst'!J282 -> 5783.21 | G65: ='RevRun Fcst'!K273+'RevRun Fcst'!K282 -> 5733.67 | H65: ='RevRun Fcst'!L273+'RevRun Fcst'!L282 -> 5941.95 | I65: ='RevRun Fcst'!M273+'RevRun Fcst'!M282 -> 5271.47 | J65: ='RevRun Fcst'!N273+'RevRun Fcst'!N282 -> 4335 | K65: ='RevRun Fcst'!O273+'RevRun Fcst'!O282 -> 3461.09 | L65: ='RevRun Fcst'!P273+'RevRun Fcst'!P282 -> 2926.89 | M65: ='RevRun Fcst'!Q273+'RevRun Fcst'!Q282 -> 3052.28 | N65: ='RevRun Fcst'!R273+'RevRun Fcst'!R282 -> 2909.73 | O65: ='RevRun Fcst'!S273+'RevRun Fcst'!S282 -> 4493.73 | P65: =SUM(D65:O65) -> 55193.71 | Q65: 61
A66: IC (Total Revenue) (Yearly) | D66: =ROUND(D41*$P66/$P41,0) -> 6611 | E66: 9169 | F66: 13468 | G66: 8016 | H66: 7461 | I66: 6126 | J66: 7615 | K66: 6392 | L66: 6539 | M66: 3659 | N66: 4401 | O66: =P66-SUM(D66:N66) -> 8285.43 | P66: ='RevRun Fcst'!T300+'RevRun Fcst'!T314 -> 87742.43 | Q66: 62
Q67: 63
A68: I-2 Gas Cost (Rate Effective ) | D68: 0 | E68: =+D68 -> 0 | F68: 0 | G68: 0 | H68: 0 | I68: 0 | J68: 0 | K68: 0 | L68: 0 | M68: 0 | N68: 0 | O68: 0 | Q68: 64
A69: I-4 Gas Cost (Rate Effective ) | D69: 0 | E69: 0 | F69: 0 | G69: 0 | H69: 0 | I69: 0 | J69: 0 | K69: 0 | L69: 0 | M69: 0 | N69: 0 | O69: 0 | Q69: 65
Q70: 66
Q71: 67
D72: ALLOCATION BASES | Q72: 68
D73: DEMAND | G73: OTHER COST | Q73: 69
A74: Utah Peak Day Demand | D74: =+D76-D75 -> 1195063 | E74: =D74/D76 -> 0.9697974731 | G74: Utah Sales | H74: =+P20 -> 112504300 | I74: =H74/H76 -> 0.966521939 | Q74: 70
A75: Wyoming Peak Day Demand | D75: ='Other Inputs'!E145 -> 37218 | E75: =1-E74 -> 0.03020252686 | G75: Wyoming Sales | H75: =+P39 -> 3896886 | I75: =1-I74 -> 0.03347806095 | Q75: 71
A76: Peak Day Demand | D76: ='Other Inputs'!E146 -> 1232281 | E76: =ROUND(D76/D$76,4) -> 1 | G76: Total Sales | H76: =+H74+H75 -> 116401186 | I76: =ROUND(H76/H$76,4) -> 1 | Q76: 72
Q77: 73
Q78: 74
D79: Financial Report Information (Latest 12 Months of Actual Expenses and 13 Months of Rate Base) | Q79: 75
D80: Actual | E80: Actual | F80: Actual | G80: Actual | H80: Actual | I80: Actual | J80: Actual | K80: Actual | L80: Actual | M80: Actual | N80: Actual | O80: Actual | Q80: 76
A81: Accounts | D81: =+Expenses!G9 -> 2019-09-30 | E81: =+Expenses!H9 -> 2019-10-31 | F81: =+Expenses!I9 -> 2019-11-30 | G81: =+Expenses!J9 -> 2019-12-31 | H81: =+Expenses!K9 -> 2020-01-31 | I81: =+Expenses!L9 -> 2020-02-29 | J81: =+Expenses!M9 -> 2020-03-31 | K81: =+Expenses!N9 -> 2020-04-30 | L81: =+Expenses!O9 -> 2020-05-31 | M81: =+Expenses!P9 -> 2020-06-30 | N81: =+Expenses!Q9 -> 2020-07-31 | O81: =+Expenses!R9 -> 2020-08-31 | P81: =Expenses!S9 -> 2020-08-31 | Q81: 77
A82: EXPENSES | Q82: 78
B83: Gas Use In Dth (Acct 810 & 812) | D83: 0 | E83: 0 | F83: 0 | G83: 0 | H83: 0 | I83: 0 | J83: 0 | K83: 0 | L83: 0 | M83: 0 | N83: 0 | O83: 0 | P83: 0 | Q83: 79
Q84: 80
B85: Other Revenue (Yearly) | Q85: 81
B86: Sales for Resale (account 483) | D86: =Expenses!G445 -> 73309.38 | E86: =Expenses!H445 -> 82673.16 | F86: =Expenses!I445 -> 68644.04 | G86: =Expenses!J445 -> 70355.24 | H86: =Expenses!K445 -> 86088.37 | I86: =Expenses!L445 -> 75772.24 | J86: =Expenses!M445 -> 59954.75 | K86: =Expenses!N445 -> 24632.19 | L86: =Expenses!O445 -> 44259.16 | M86: =Expenses!P445 -> 40411.35 | N86: =Expenses!Q445 -> 54229.7 | O86: =Expenses!R445 -> 46577.86 | P86: =Expenses!S445 -> 726907.44 | Q86: 82
B87: Incidental Plant Prod Sales (Acct 490) | D87: =Expenses!G446 -> 253697.29 | E87: =Expenses!H446 -> 275588.14 | F87: =Expenses!I446 -> 662111.99 | G87: =Expenses!J446 -> 399229.79 | H87: =Expenses!K446 -> -730 | I87: =Expenses!L446 -> 383406.41 | J87: =Expenses!M446 -> 677456.4 | K87: =Expenses!N446 -> 119970.49 | L87: =Expenses!O446 -> 1.56 | M87: =Expenses!P446 -> 259609.79 | N87: =Expenses!Q446 -> 210693.17 | O87: =Expenses!R446 -> 62.57 | P87: =Expenses!S446 -> 3241097.6 | Q87: 83
B88: Gas Processed by Others (account 491) | D88: =Expenses!G461 -> 0 | E88: =Expenses!H461 -> 0 | F88: =Expenses!I461 -> 0 | G88: =Expenses!J461 -> 0 | H88: =Expenses!K461 -> 0 | I88: =Expenses!L461 -> 0 | J88: =Expenses!M461 -> 0 | K88: =Expenses!N461 -> 0 | L88: =Expenses!O461 -> 0 | M88: =Expenses!P461 -> 0 | N88: =Expenses!Q461 -> 0 | O88: =Expenses!R461 -> 0 | P88: =Expenses!S461 -> 0 | Q88: 84
B89: Gasoline - Oil Sales (account 492) | D89: =Expenses!G447 -> 128879.13 | E89: =Expenses!H447 -> 173592.87 | F89: =Expenses!I447 -> 143609.06 | G89: =Expenses!J447 -> 140902.18 | H89: =Expenses!K447 -> 213523.79 | I89: =Expenses!L447 -> 154680.31 | J89: =Expenses!M447 -> 216608.86 | K89: =Expenses!N447 -> 112612.69 | L89: =Expenses!O447 -> 110454.59 | M89: =Expenses!P447 -> 104425.28 | N89: =Expenses!Q447 -> 89789.17 | O89: =Expenses!R447 -> 95103.5 | P89: =Expenses!S447 -> 1684181.43 | Q89: 85
B90: Gasoline - Oil Cost (account 758.001) | D90: =-Expenses!G450 -> 0 | E90: =-Expenses!H450 -> 0 | F90: =-Expenses!I450 -> 0 | G90: =-Expenses!J450 -> 0 | H90: =-Expenses!K450 -> 0 | I90: =-Expenses!L450 -> 0 | J90: =-Expenses!M450 -> 0 | K90: =-Expenses!N450 -> 0 | L90: =-Expenses!O450 -> 0 | M90: =-Expenses!P450 -> 0 | N90: =-Expenses!Q450 -> 0 | O90: =-Expenses!R450 -> 0 | P90: =-Expenses!S450 -> 0 | Q90: 86
Q91: 87
Q92: 88
B93: Overriding Royalty (account 495-1) | D93: =Expenses!G448 -> 464717.1 | E93: =Expenses!H448 -> 632240.04 | F93: =Expenses!I448 -> 613677.29 | G93: =Expenses!J448 -> 754819.39 | H93: =Expenses!K448 -> 603101.31 | I93: =Expenses!L448 -> 790900.23 | J93: =Expenses!M448 -> 178223.21 | K93: =Expenses!N448 -> 1447070.91 | L93: =Expenses!O448 -> 114480.11 | M93: =Expenses!P448 -> 383927.26 | N93: =Expenses!Q448 -> 85397.86 | O93: =Expenses!R448 -> 359347.73 | P93: =Expenses!S448 -> 6427902.44 | Q93: 89
B94: Wexpro Revenue Sharing (account 495-2) | D94: =Expenses!G449 -> 12590 | E94: =Expenses!H449 -> 16754.78 | F94: =Expenses!I449 -> 14506 | G94: =Expenses!J449 -> 3768 | H94: =Expenses!K449 -> 23859 | I94: =Expenses!L449 -> 6741 | J94: =Expenses!M449 -> 10178 | K94: =Expenses!N449 -> 15 | L94: =Expenses!O449 -> 741 | M94: =Expenses!P449 -> 4959 | N94: =Expenses!Q449 -> 4517 | O94: =Expenses!R449 -> 4717 | P94: =Expenses!S449 -> 103345.78 | Q94: 90
P95: Page 2 of 6 | Q95: 91
C96: Actual | D96: Actual | E96: Actual | F96: Actual | G96: Actual | H96: Actual | I96: Actual | J96: Actual | K96: Actual | L96: Actual | M96: Actual | N96: Actual | O96: Actual | P96: 13-Month | Q96: 92
A97: Accounts | C97: ='Rate Base'!H8 -> 2019-08-01 | D97: ='Rate Base'!I8 -> 2019-09-01 | E97: ='Rate Base'!J8 -> 2019-10-01 | F97: ='Rate Base'!K8 -> 2019-11-01 | G97: ='Rate Base'!L8 -> 2019-12-01 | H97: ='Rate Base'!M8 -> 2020-01-01 | I97: ='Rate Base'!N8 -> 2020-02-01 | J97: ='Rate Base'!O8 -> 2020-03-01 | K97: ='Rate Base'!P8 -> 2020-04-01 | L97: ='Rate Base'!Q8 -> 2020-05-01 | M97: ='Rate Base'!R8 -> 2020-06-01 | N97: ='Rate Base'!S8 -> 2020-07-01 | O97: ='Rate Base'!T8 -> 2020-08-01 | P97: Average | Q97: 93
A98: RATE BASE - PRODUCTION | Q98: 94
B99: Acct 164 (Working Gas) - Production | C99: ='Rate Base'!H206 -> 44111455.51 | D99: ='Rate Base'!I206 -> 53650234.79 | E99: ='Rate Base'!J206 -> 55516771.69 | F99: ='Rate Base'!K206 -> 55528751.16 | G99: ='Rate Base'!L206 -> 45965722.86 | H99: ='Rate Base'!M206 -> 30071846.23 | I99: ='Rate Base'!N206 -> 17550004.17 | J99: ='Rate Base'!O206 -> 5954574.05 | K99: ='Rate Base'!P206 -> 7662333.65 | L99: ='Rate Base'!Q206 -> 15431079.14 | M99: ='Rate Base'!R206 -> 23791129.14 | N99: ='Rate Base'!S206 -> 32725279.74 | O99: ='Rate Base'!T206 -> 39991140.93 | P99: =(((+C99+O99)/2)+SUM(D99:N99))/12 -> 32158252.07 | Q99: 95
B100: Acct 101 - Production | C100: ='Rate Base'!H148 -> 79968136 | D100: ='Rate Base'!I148 -> 79968136 | E100: ='Rate Base'!J148 -> 79968136 | F100: ='Rate Base'!K148 -> 79968136 | G100: ='Rate Base'!L148 -> 79968136 | H100: ='Rate Base'!M148 -> 79968136 | I100: ='Rate Base'!N148 -> 79968136 | J100: ='Rate Base'!O148 -> 79968136 | K100: ='Rate Base'!P148 -> 79968136 | L100: ='Rate Base'!Q148 -> 79968136 | M100: ='Rate Base'!R148 -> 80635577 | N100: ='Rate Base'!S148 -> 81330340 | O100: ='Rate Base'!T148 -> 85278442 | P100: 80358535.83 | Q100: 96
B101: Acct 108 - Production | C101: ='Rate Base'!H166 -> -70408495 | D101: ='Rate Base'!I166 -> -70449961 | E101: ='Rate Base'!J166 -> -70491428 | F101: ='Rate Base'!K166 -> -70532895 | G101: ='Rate Base'!L166 -> -70574362 | H101: ='Rate Base'!M166 -> -70574362 | I101: ='Rate Base'!N166 -> -70615829 | J101: ='Rate Base'!O166 -> -70657296 | K101: ='Rate Base'!P166 -> -70681637 | L101: ='Rate Base'!Q166 -> -70726362 | M101: ='Rate Base'!R166 -> -70779677 | N101: ='Rate Base'!S166 -> -70844363 | O101: ='Rate Base'!T166 -> -70899585 | P101: -70631851 | Q101: 97
B102: Acct 111 - Production | C102: ='Rate Base'!H173 -> -6150276.66 | D102: ='Rate Base'!I173 -> -6150276.66 | E102: ='Rate Base'!J173 -> -6150276.66 | F102: ='Rate Base'!K173 -> -6150276.66 | G102: ='Rate Base'!L173 -> -6150276.66 | H102: ='Rate Base'!M173 -> -6150276.66 | I102: ='Rate Base'!N173 -> -6150276.66 | J102: ='Rate Base'!O173 -> -6150277 | K102: ='Rate Base'!P173 -> -6150276.66 | L102: ='Rate Base'!Q173 -> -6150276.66 | M102: ='Rate Base'!R173 -> -6150276.66 | N102: ='Rate Base'!S173 -> -6150276.66 | O102: ='Rate Base'!T173 -> -6150277 | P102: -6150276.702 | Q102: 98
B103: Acct 2550 - Production | C103: ='Rate Base'!H241 -> 0 | D103: ='Rate Base'!I241 -> 0 | E103: ='Rate Base'!J241 -> 0 | F103: ='Rate Base'!K241 -> 0 | G103: ='Rate Base'!L241 -> 0 | H103: ='Rate Base'!M241 -> 0 | I103: ='Rate Base'!N241 -> 0 | J103: ='Rate Base'!O241 -> 0 | K103: ='Rate Base'!P241 -> 0 | L103: ='Rate Base'!Q241 -> 0 | M103: ='Rate Base'!R241 -> 0 | N103: ='Rate Base'!S241 -> 0 | O103: ='Rate Base'!T241 -> 0 | P103: 0 | Q103: 99
B104: Acct 2820 - Production | C104: ='Rate Base'!H248 -> -17269302 | D104: ='Rate Base'!I248 -> -17226459 | E104: ='Rate Base'!J248 -> -17079672 | F104: ='Rate Base'!K248 -> -17428392 | G104: ='Rate Base'!L248 -> -15543577 | H104: ='Rate Base'!M248 -> -15543577 | I104: ='Rate Base'!N248 -> -19537705 | J104: ='Rate Base'!O248 -> -21522270 | K104: ='Rate Base'!P248 -> -22799373 | L104: ='Rate Base'!Q248 -> -24346133 | M104: ='Rate Base'!R248 -> -25879912 | N104: ='Rate Base'!S248 -> -27207238 | O104: ='Rate Base'!T248 -> -28783938 | P104: -20595077.33 | Q104: 100
B105: Acct 2821 - Production | C105: ='Rate Base'!H255 -> -700755.31 | D105: ='Rate Base'!I255 -> -700755.31 | E105: ='Rate Base'!J255 -> -700755.31 | F105: ='Rate Base'!K255 -> -700755.31 | G105: ='Rate Base'!L255 -> -700755.31 | H105: ='Rate Base'!M255 -> -700755.31 | I105: ='Rate Base'!N255 -> -700755.31 | J105: ='Rate Base'!O255 -> -700755.31 | K105: ='Rate Base'!P255 -> -700755.31 | L105: ='Rate Base'!Q255 -> -700755.31 | M105: ='Rate Base'!R255 -> -700755.31 | N105: ='Rate Base'!S255 -> -700755.31 | O105: ='Rate Base'!T255 -> -700755.31 | P105: -700755.31 | Q105: 101
Q106: 102
D107: Production | H107: Acct 101 | I107: Acct 108 | J107: Acct 111 | K107: Acct 2550 | L107: Acct 2820 | M107: Acct 2821 | N107: Total | Q107: 103
B108: Depreciation - Acct 403 | D108: =Expenses!S385 -> 551076 | F108: Thirteen month average | H108: =P100 -> 80358535.83 | I108: =P101 -> -70631851 | J108: =P102 -> -6150276.702 | K108: =P103 -> 0 | L108: =P104 -> -20595077.33 | M108: =P105 -> -700755.31 | N108: =SUM(H108:M108) -> -17719424.51 | Q108: 104
B109: Amortization & Depletion - Acct 404 | D109: =Expenses!S392 -> 0 | F109: =CONCATENATE("Wexpro Red. @ ",-'Other Inputs'!E264*100," %") -> Wexpro Red. @ 6.3 % | H109: =H108*'Other Inputs'!$E$264 -> -5062587.757 | I109: =I108*'Other Inputs'!$E$264 -> 4449806.613 | J109: =J108*'Other Inputs'!$E$264 -> 387467.4323 | N109: =SUM(H109:M109) -> -225313.7122 | Q109: 105
B110: Utah Pre-Tax Return on Production Assets | D110: =+N111 -> -1597081.702 | M110: =SUM(N108:N109) -> -17944738.22 | Q110: 106
B111: Utah Production Cost | D111: =SUM(D108:D110) -> -1046005.702 | M111: ="Utah Pre-Tax Rate of Return on Production Assets ("&'Other Inputs'!E267&")" -> Utah Pre-Tax Rate of Return on Production Assets (0.089) | N111: =M110*'Other Inputs'!E267 -> -1597081.702 | Q111: 107
M112: ="Wyoming Pre-Tax Rate of Return on Production Assets ("&'Other Inputs'!E266&")" -> Wyoming Pre-Tax Rate of Return on Production Assets (0.088) | N112: =M110*'Other Inputs'!E266 -> -1579136.964 | Q112: 108
Q113: 109
A114: TACTICAL PLAN INFORMATION (IRP) | P114: 12-Month | Q114: 110
D115: =D5 -> Nov20 | E115: =E5 -> Dec20 | F115: Jan21 | G115: Feb21 | H115: Mar21 | I115: Apr21 | J115: May21 | K115: Jun21 | L115: Jul21 | M115: Aug21 | N115: Sep21 | O115: Oct21 | P115: Total | Q115: 111
A116: COMPANY PRODUCTION | Q116: 112
B117: Prior Company | Q117: 113
B118: D24 Wells | Q118: 114
B119: Brady & Powel | Q119: 115
B120: Total Company Production Wexpro I & II | D120: ='Monthly Inputs'!G7+'Monthly Inputs'!G13 -> 5360963.994 | E120: ='Monthly Inputs'!H7+'Monthly Inputs'!H13 -> 5585589.323 | F120: ='Monthly Inputs'!I7+'Monthly Inputs'!I13 -> 5475533.102 | G120: ='Monthly Inputs'!J7+'Monthly Inputs'!J13 -> 4689680.824 | H120: ='Monthly Inputs'!K7+'Monthly Inputs'!K13 -> 5287065.504 | I120: ='Monthly Inputs'!L7+'Monthly Inputs'!L13 -> 5036159.982 | J120: ='Monthly Inputs'!M7+'Monthly Inputs'!M13 -> 5127024.91 | K120: ='Monthly Inputs'!N7+'Monthly Inputs'!N13 -> 4725392.984 | L120: ='Monthly Inputs'!O7+'Monthly Inputs'!O13 -> 4821457.896 | M120: ='Monthly Inputs'!P7+'Monthly Inputs'!P13 -> 4951068.943 | N120: ='Monthly Inputs'!Q7+'Monthly Inputs'!Q13 -> 4884944.997 | O120: ='Monthly Inputs'!R7+'Monthly Inputs'!R13 -> 5072691.222 | P120: =SUM(D120:O120) -> 61017573.68 | Q120: 116
Q121: 117
A122: STORAGE INJECTIONS | Q122: 118
B123: Chalk Creek | D123: ='Monthly Inputs'!G24 -> 120000 | E123: ='Monthly Inputs'!H24 -> 1000.000015 | F123: ='Monthly Inputs'!I24 -> 0 | G123: ='Monthly Inputs'!J24 -> 0 | H123: ='Monthly Inputs'!K24 -> 0 | I123: ='Monthly Inputs'!L24 -> 0 | J123: ='Monthly Inputs'!M24 -> 0 | K123: ='Monthly Inputs'!N24 -> 0 | L123: ='Monthly Inputs'!O24 -> 0 | M123: ='Monthly Inputs'!P24 -> 0 | N123: ='Monthly Inputs'!Q24 -> 75000 | O123: ='Monthly Inputs'!R24 -> 124000 | P123: =SUM(D123:O123) -> 320000 | Q123: 119
B124: Coalville | D124: ='Monthly Inputs'!G26 -> 0 | E124: ='Monthly Inputs'!H26 -> 0 | F124: ='Monthly Inputs'!I26 -> 0 | G124: ='Monthly Inputs'!J26 -> 0 | H124: ='Monthly Inputs'!K26 -> 0 | I124: ='Monthly Inputs'!L26 -> 0 | J124: ='Monthly Inputs'!M26 -> 0 | K124: ='Monthly Inputs'!N26 -> 0 | L124: ='Monthly Inputs'!O26 -> 0 | M124: ='Monthly Inputs'!P26 -> 0 | N124: ='Monthly Inputs'!Q26 -> 120000 | O124: ='Monthly Inputs'!R26 -> 240186.0046 | P124: =SUM(D124:O124) -> 360186.0046 | Q124: 120
B125: Leroy | D125: ='Monthly Inputs'!G27 -> 0 | E125: ='Monthly Inputs'!H27 -> 0 | F125: ='Monthly Inputs'!I27 -> 0 | G125: ='Monthly Inputs'!J27 -> 0 | H125: ='Monthly Inputs'!K27 -> 0 | I125: ='Monthly Inputs'!L27 -> 0 | J125: ='Monthly Inputs'!M27 -> 0 | K125: ='Monthly Inputs'!N27 -> 0 | L125: ='Monthly Inputs'!O27 -> 0 | M125: ='Monthly Inputs'!P27 -> 0 | N125: ='Monthly Inputs'!Q27 -> 225000 | O125: ='Monthly Inputs'!R27 -> 218497.9939 | P125: =SUM(D125:O125) -> 443497.9939 | Q125: 121
B126: Ryckman | D126: ='Monthly Inputs'!G28 -> 0 | E126: ='Monthly Inputs'!H28 -> 0 | F126: ='Monthly Inputs'!I28 -> 0 | G126: ='Monthly Inputs'!J28 -> 0 | H126: ='Monthly Inputs'!K28 -> 0 | I126: ='Monthly Inputs'!L28 -> 0 | J126: ='Monthly Inputs'!M28 -> 0 | K126: ='Monthly Inputs'!N28 -> 0 | L126: ='Monthly Inputs'!O28 -> 0 | M126: ='Monthly Inputs'!P28 -> 0 | N126: ='Monthly Inputs'!Q28 -> 0 | O126: ='Monthly Inputs'!R28 -> 0 | P126: =SUM(D126:O126) -> 0 | Q126: 122
B127: Total Peaking Storage | D127: =SUM(D123:D126) -> 120000 | E127: =SUM(E123:E126) -> 1000.000015 | F127: 0 | G127: 0 | H127: 0 | I127: 0 | J127: 0 | K127: 0 | L127: 0 | M127: 0 | N127: 420000 | O127: 582683.9985 | P127: 1123683.999 | Q127: 123
B128: Clay Basin | D128: ='Monthly Inputs'!G25 -> 0 | E128: ='Monthly Inputs'!H25 -> 0 | F128: ='Monthly Inputs'!I25 -> 0 | G128: ='Monthly Inputs'!J25 -> 0 | H128: ='Monthly Inputs'!K25 -> 0 | I128: ='Monthly Inputs'!L25 -> 0 | J128: ='Monthly Inputs'!M25 -> 0 | K128: ='Monthly Inputs'!N25 -> 2500001 | L128: ='Monthly Inputs'!O25 -> 2580000 | M128: ='Monthly Inputs'!P25 -> 2580000 | N128: ='Monthly Inputs'!Q25 -> 2500001 | O128: ='Monthly Inputs'!R25 -> 1921993 | P128: =SUM(D128:O128) -> 12081995 | Q128: 124
B129: Total Storage Injections | D129: =SUM(D127:D128) -> 120000 | E129: =SUM(E127:E128) -> 1000.000015 | F129: 0 | G129: 0 | H129: 0 | I129: 0 | J129: 0 | K129: 2500001 | L129: 2580000 | M129: 2580000 | N129: 2920001 | O129: 2504676.998 | P129: =SUM(P127:P128) -> 13205679 | Q129: 125
A130: STORAGE WITHDRAWLS | Q130: 126
B131: Chalk Creek | D131: ='Monthly Inputs'!G32 -> 0 | E131: ='Monthly Inputs'!H32 -> 0 | F131: ='Monthly Inputs'!I32 -> 0 | G131: ='Monthly Inputs'!J32 -> 44176.12267 | H131: ='Monthly Inputs'!K32 -> 230872.3145 | I131: ='Monthly Inputs'!L32 -> 40045.15743 | J131: ='Monthly Inputs'!M32 -> 0 | K131: ='Monthly Inputs'!N32 -> 0 | L131: ='Monthly Inputs'!O32 -> 0 | M131: ='Monthly Inputs'!P32 -> 0 | N131: ='Monthly Inputs'!Q32 -> 0 | O131: ='Monthly Inputs'!R32 -> 0 | P131: =SUM(D131:O131) -> 315093.5946 | Q131: 127
B132: Coalville | D132: ='Monthly Inputs'!G34 -> 0 | E132: ='Monthly Inputs'!H34 -> 0 | F132: ='Monthly Inputs'!I34 -> 0 | G132: ='Monthly Inputs'!J34 -> 58643.13698 | H132: ='Monthly Inputs'!K34 -> 292934.3987 | I132: ='Monthly Inputs'!L34 -> 0 | J132: ='Monthly Inputs'!M34 -> 0 | K132: ='Monthly Inputs'!N34 -> 0 | L132: ='Monthly Inputs'!O34 -> 0 | M132: ='Monthly Inputs'!P34 -> 0 | N132: ='Monthly Inputs'!Q34 -> 0 | O132: ='Monthly Inputs'!R34 -> 0 | P132: =SUM(D132:O132) -> 351577.5357 | Q132: 128
B133: Leroy | D133: ='Monthly Inputs'!G35 -> 0 | E133: ='Monthly Inputs'!H35 -> 0 | F133: ='Monthly Inputs'!I35 -> 0 | G133: ='Monthly Inputs'!J35 -> 77024.33968 | H133: ='Monthly Inputs'!K35 -> 355696.6763 | I133: ='Monthly Inputs'!L35 -> 0 | J133: ='Monthly Inputs'!M35 -> 0 | K133: ='Monthly Inputs'!N35 -> 0 | L133: ='Monthly Inputs'!O35 -> 0 | M133: ='Monthly Inputs'!P35 -> 0 | N133: ='Monthly Inputs'!Q35 -> 0 | O133: ='Monthly Inputs'!R35 -> 0 | P133: =SUM(D133:O133) -> 432721.016 | Q133: 129
B134: Ryckman | D134: ='Monthly Inputs'!G36 -> 0 | E134: ='Monthly Inputs'!H36 -> 508000.0086 | F134: ='Monthly Inputs'!I36 -> 514600.0118 | G134: ='Monthly Inputs'!J36 -> 464800.0107 | H134: ='Monthly Inputs'!K36 -> 514600.0118 | I134: ='Monthly Inputs'!L36 -> 0 | J134: ='Monthly Inputs'!M36 -> 0 | K134: ='Monthly Inputs'!N36 -> 0 | L134: ='Monthly Inputs'!O36 -> 0 | M134: ='Monthly Inputs'!P36 -> 0 | N134: ='Monthly Inputs'!Q36 -> 0 | O134: ='Monthly Inputs'!R36 -> 0 | P134: =SUM(D134:O134) -> 2002000.043 | Q134: 130
B135: Total Peaking Storage | D135: =SUM(D131:D134) -> 0 | E135: =SUM(E131:E134) -> 508000.0086 | F135: 514600.0118 | G135: 644643.61 | H135: 1394103.401 | I135: 40045.15743 | J135: 0 | K135: 0 | L135: 0 | M135: 0 | N135: 0 | O135: 0 | P135: 3101392.189 | Q135: 131
B136: Clay Basin | D136: ='Monthly Inputs'!G33 -> 0 | E136: ='Monthly Inputs'!H33 -> 0 | F136: ='Monthly Inputs'!I33 -> 3297912 | G136: ='Monthly Inputs'!J33 -> 2657426 | H136: ='Monthly Inputs'!K33 -> 2954991 | I136: ='Monthly Inputs'!L33 -> 1870600 | J136: ='Monthly Inputs'!M33 -> 0 | K136: ='Monthly Inputs'!N33 -> 0 | L136: ='Monthly Inputs'!O33 -> 0 | M136: ='Monthly Inputs'!P33 -> 0 | N136: ='Monthly Inputs'!Q33 -> 0 | O136: ='Monthly Inputs'!R33 -> 0 | P136: =SUM(D136:O136) -> 10780929 | Q136: 132
B137: Total Storage Withdrawls | D137: =SUM(D135:D136) -> 0 | E137: 508000.0086 | F137: 3812512.012 | G137: 3302069.61 | H137: 4349094.401 | I137: 1910645.157 | J137: 0 | K137: 0 | L137: 0 | M137: 0 | N137: 0 | O137: 0 | P137: 13882321.19 | Q137: 133
Q138: 134
Q139: 135
A140: Gas Supply and Demand | D140: =D4 -> Forecast | E140: Forecast | F140: Forecast | G140: Forecast | H140: Forecast | I140: Forecast | J140: Forecast | K140: Forecast | L140: Forecast | M140: Forecast | N140: Forecast | O140: Forecast | P140: 12-Month | Q140: 136
A141: Demand | D141: =D5 -> Nov20 | E141: Dec20 | F141: Jan21 | G141: Feb21 | H141: Mar21 | I141: Apr21 | J141: May21 | K141: Jun21 | L141: Jul21 | M141: Aug21 | N141: Sep21 | O141: Oct21 | P141: Total | Q141: 137
Q142: 138
A143: Utah Sales | D143: =+D20 -> 11920504 | E143: =+E20 -> 18599967 | F143: 20311983 | G143: 16753834 | H143: 13134513 | I143: 9310693 | J143: 5388954 | K143: 3090658 | L143: 2549038 | M143: 2485947 | N143: 2777744 | O143: 6180465 | P143: =SUM(D143:O143) -> 112504300 | Q143: 139
A144: Wyoming Sales | D144: =+D39 -> 437208 | E144: 597388 | F144: 634923 | G144: 560298 | H144: 469287 | I144: 345513 | J144: 232696 | K144: 120795 | L144: 72966 | M144: 72798 | N144: 101318 | O144: 251696 | P144: =SUM(D144:O144) -> 3896886 | Q144: 140
A145: Total Sales | D145: =+D143+D144 -> 12357712 | E145: 19197355 | F145: 20946906 | G145: 17314132 | H145: 13603800 | I145: 9656206 | J145: 5621650 | K145: 3211453 | L145: 2622004 | M145: 2558745 | N145: 2879062 | O145: 6432161 | P145: 116401186 | Q145: 141
Q146: 142
A147: Distribution Use (Offices) | C147: Check formulas for correct month | D147: =ROUND(O83,0) -> 0 | E147: =ROUND(D83,0) -> 0 | F147: =ROUND(E83,0) -> 0 | G147: 0 | H147: 0 | I147: 0 | J147: 0 | K147: 0 | L147: 0 | M147: 0 | N147: 0 | O147: 0 | P147: =SUM(D147:O147) -> 0 | Q147: 143
A148: Distribution Lost and Unaccounted for | D148: =+D150-D145-D147 -> 70218 | E148: =+E150-E145-E147 -> 109081 | F148: 119022 | G148: 98381 | H148: 77298 | I148: 54868 | J148: 31943 | K148: 18248 | L148: 14898 | M148: 14539 | N148: 16359 | O148: =+O150-O145-O147 -> 36548 | P148: =SUM(D148:O148) -> 661403 | Q148: 144
Q149: 145
A150: Total City Gate | D150: =ROUND((D145+D147)/(1-'Other Inputs'!$E$270),0) -> 12427930 | E150: =ROUND((E145+E147)/(1-'Other Inputs'!$E$270),0) -> 19306436 | F150: =ROUND((F145+F147)/(1-'Other Inputs'!$E$270),0) -> 21065928 | G150: =ROUND((G145+G147)/(1-'Other Inputs'!$E$270),0) -> 17412513 | H150: =ROUND((H145+H147)/(1-'Other Inputs'!$E$270),0) -> 13681098 | I150: =ROUND((I145+I147)/(1-'Other Inputs'!$E$270),0) -> 9711074 | J150: =ROUND((J145+J147)/(1-'Other Inputs'!$E$270),0) -> 5653593 | K150: =ROUND((K145+K147)/(1-'Other Inputs'!$E$270),0) -> 3229701 | L150: =ROUND((L145+L147)/(1-'Other Inputs'!$E$270),0) -> 2636902 | M150: =ROUND((M145+M147)/(1-'Other Inputs'!$E$270),0) -> 2573284 | N150: =ROUND((N145+N147)/(1-'Other Inputs'!$E$270),0) -> 2895421 | O150: =ROUND((O145+O147)/(1-'Other Inputs'!$E$270),0) -> 6468709 | P150: =SUM(D150:O150) -> 117062589 | Q150: 146
Q151: 147
A152: Peaking Injection | D152: =+D127 -> 120000 | E152: 1000.000015 | F152: 0 | G152: 0 | H152: 0 | I152: 0 | J152: 0 | K152: 0 | L152: 0 | M152: 0 | N152: 420000 | O152: 582683.9985 | P152: =SUM(D152:O152) -> 1123683.999 | Q152: 148
A153: Clay Basin Injection | D153: =+D128 -> 0 | E153: 0 | F153: 0 | G153: 0 | H153: 0 | I153: 0 | J153: 0 | K153: 2500001 | L153: 2580000 | M153: 2580000 | N153: 2500001 | O153: 1921993 | P153: =SUM(D153:O153) -> 12081995 | Q153: 149
A154: Storage Lost & Unaccounted For | D154: =-'Monthly Inputs'!G51 -> 1188 | E154: =-'Monthly Inputs'!H51 -> 9.900000149 | F154: =-'Monthly Inputs'!I51 -> 0 | G154: =-'Monthly Inputs'!J51 -> 0 | H154: =-'Monthly Inputs'!K51 -> 0 | I154: =-'Monthly Inputs'!L51 -> 0 | J154: =-'Monthly Inputs'!M51 -> 0 | K154: =-'Monthly Inputs'!N51 -> 31325.01253 | L154: =-'Monthly Inputs'!O51 -> 32327.4 | M154: =-'Monthly Inputs'!P51 -> 32327.4 | N154: =-'Monthly Inputs'!Q51 -> 40001.01253 | O154: =-'Monthly Inputs'!R51 -> 34349.87196 | P154: =SUM(D154:O154) -> 171528.597 | Q154: 150
A155: Total Demand | D155: =SUM(D150:D154) -> 12549118 | E155: =SUM(E150:E154) -> 19307445.9 | F155: 21065928 | G155: 17412513 | H155: =SUM(H150:H154) -> 13681098 | I155: 9711074 | J155: 5653593 | K155: 5761027.013 | L155: 5249229.4 | M155: 5185611.4 | N155: 5855423.013 | O155: =SUM(O150:O154) -> 9007735.87 | P155: =SUM(D155:O155) -> 130439796.6 | Q155: 151
Q156: 152
D157: Forecast | E157: Forecast | F157: Forecast | G157: Forecast | H157: Forecast | I157: Forecast | J157: Forecast | K157: Forecast | L157: Forecast | M157: Forecast | N157: Forecast | O157: Forecast | P157: 12-Month | Q157: 153
A158: Supply | D158: =D5 -> Nov20 | E158: Dec20 | F158: Jan21 | G158: Feb21 | H158: Mar21 | I158: Apr21 | J158: May21 | K158: Jun21 | L158: Jul21 | M158: Aug21 | N158: Sep21 | O158: Oct21 | P158: Total | Q158: 154
A159: Company Production | D159: =+D120 -> 5360963.994 | E159: =+E120 -> 5585589.323 | F159: 5475533.102 | G159: 4689680.824 | H159: 5287065.504 | I159: 5036159.982 | J159: 5127024.91 | K159: 4725392.984 | L159: 4821457.896 | M159: 4951068.943 | N159: 4884944.997 | O159: 5072691.222 | P159: =SUM(D159:O159) -> 61017573.68 | Q159: 155
A160: Co Prod Lost & Unaccounted For | D160: =ROUND(D159*(-'Other Inputs'!$E$272-'Other Inputs'!$E$273),0) -> -278502 | E160: =ROUND(E159*(-'Other Inputs'!$E$272-'Other Inputs'!$E$273),0) -> -290171 | F160: =ROUND(F159*(-'Other Inputs'!$E$272-'Other Inputs'!$E$273),0) -> -284454 | G160: =ROUND(G159*(-'Other Inputs'!$E$272-'Other Inputs'!$E$273),0) -> -243629 | H160: =ROUND(H159*(-'Other Inputs'!$E$272-'Other Inputs'!$E$273),0) -> -274663 | I160: =ROUND(I159*(-'Other Inputs'!$E$272-'Other Inputs'!$E$273),0) -> -261629 | J160: =ROUND(J159*(-'Other Inputs'!$E$272-'Other Inputs'!$E$273),0) -> -266349 | K160: =ROUND(K159*(-'Other Inputs'!$E$272-'Other Inputs'!$E$273),0) -> -245484 | L160: =ROUND(L159*(-'Other Inputs'!$E$272-'Other Inputs'!$E$273),0) -> -250475 | M160: =ROUND(M159*(-'Other Inputs'!$E$272-'Other Inputs'!$E$273),0) -> -257208 | N160: =ROUND(N159*(-'Other Inputs'!$E$272-'Other Inputs'!$E$273),0) -> -253773 | O160: =ROUND(O159*(-'Other Inputs'!$E$272-'Other Inputs'!$E$273),0) -> -263526 | P160: =SUM(D160:O160) -> -3169863 | Q160: 156
A161: Company Production @ City Gate | D161: =SUM(D159:D160) -> 5082461.994 | E161: =SUM(E159:E160) -> 5295418.323 | F161: 5191079.102 | G161: 4446051.824 | H161: 5012402.504 | I161: 4774530.982 | J161: 4860675.91 | K161: 4479908.984 | L161: 4570982.896 | M161: 4693860.943 | N161: 4631171.997 | O161: 4809165.222 | P161: =SUM(D161:O161) -> 57847710.68 | Q161: 157
Q162: 158
A163: Peaking Withdrawal | D163: =+D135 -> 0 | E163: 508000.0086 | F163: 514600.0118 | G163: 644643.61 | H163: 1394103.401 | I163: 40045.15743 | J163: 0 | K163: 0 | L163: 0 | M163: 0 | N163: 0 | O163: 0 | P163: =SUM(D163:O163) -> 3101392.189 | Q163: 159
A164: Clay Basin Withdrawal | D164: =+D136 -> 0 | E164: 0 | F164: 3297912 | G164: 2657426 | H164: 2954991 | I164: 1870600 | J164: 0 | K164: 0 | L164: 0 | M164: 0 | N164: 0 | O164: 0 | P164: =SUM(D164:O164) -> 10780929 | Q164: 160
A165: QPC Transportation Loss on Storage | D165: ='Monthly Inputs'!G67+'Monthly Inputs'!G59 -> 0 | E165: ='Monthly Inputs'!H67+'Monthly Inputs'!H59 -> -6045.200102 | F165: ='Monthly Inputs'!I67+'Monthly Inputs'!I59 -> -50315.76094 | G165: ='Monthly Inputs'!J67+'Monthly Inputs'!J59 -> -47366.87044 | H165: ='Monthly Inputs'!K67+'Monthly Inputs'!K59 -> -76079.32183 | I165: ='Monthly Inputs'!L67+'Monthly Inputs'!L59 -> -26279.40827 | J165: ='Monthly Inputs'!M67+'Monthly Inputs'!M59 -> 0 | K165: ='Monthly Inputs'!N67+'Monthly Inputs'!N59 -> 0 | L165: ='Monthly Inputs'!O67+'Monthly Inputs'!O59 -> 0 | M165: ='Monthly Inputs'!P67+'Monthly Inputs'!P59 -> 0 | N165: ='Monthly Inputs'!Q67+'Monthly Inputs'!Q59 -> 0 | O165: ='Monthly Inputs'!R67+'Monthly Inputs'!R59 -> 0 | P165: =SUM(D165:O165) -> -206086.5616 | Q165: 161
A166: Storage Lost & Unaccounted For | D166: ='Monthly Inputs'!G51 -> -1188 | E166: ='Monthly Inputs'!H51 -> -9.900000149 | F166: ='Monthly Inputs'!I51 -> 0 | G166: ='Monthly Inputs'!J51 -> 0 | H166: ='Monthly Inputs'!K51 -> 0 | I166: ='Monthly Inputs'!L51 -> 0 | J166: ='Monthly Inputs'!M51 -> 0 | K166: ='Monthly Inputs'!N51 -> -31325.01253 | L166: ='Monthly Inputs'!O51 -> -32327.4 | M166: ='Monthly Inputs'!P51 -> -32327.4 | N166: ='Monthly Inputs'!Q51 -> -40001.01253 | O166: ='Monthly Inputs'!R51 -> -34349.87196 | P166: =SUM(D166:O166) -> -171528.597 | Q166: 162
A167: Storage Supply @ City Gate | D167: =SUM(D163:D166) -> -1188 | E167: =SUM(E163:E166) -> 501944.9085 | F167: 3762196.251 | G167: 3254702.74 | H167: 4273015.079 | I167: 1884365.749 | J167: 0 | K167: -31325.01253 | L167: -32327.4 | M167: -32327.4 | N167: -40001.01253 | O167: -34349.87196 | P167: 13504706.03 | Q167: 163
Q168: 164
A169: Gas Purchased @ City Gate | D169: =D155-D161-D167-D154 -> 7466656.006 | E169: =E155-E161-E167-E154 -> 13510072.77 | F169: 12112652.65 | G169: 9711758.437 | H169: 4395680.417 | I169: 3052177.269 | J169: 792917.0896 | K169: 1281118.029 | L169: 678246.5042 | M169: 491750.4571 | N169: 1224251.016 | O169: 4198570.648 | P169: =SUM(D169:O169) -> 58915851.29 | Q169: 165
A170: Gas Reimbursement | D170: =+D171-D169 -> 89922.99405 | E170: =+E171-E169 -> 162706.2319 | F170: 145876.3527 | G170: 116961.5632 | H170: 52938.5832 | I170: 36758.73092 | J170: 9548.910413 | K170: 15428.97112 | L170: 8168.495778 | M170: 5922.542875 | N170: 14743.98418 | O170: 50564.3516 | P170: =SUM(D170:O170) -> 709541.712 | Q170: 166
A171: Gas Purchased - Dth ( /.98) | D171: =ROUND(D169/(1-'Other Inputs'!$E$273),0) -> 7556579 | E171: =ROUND(E169/(1-'Other Inputs'!$E$273),0) -> 13672779 | F171: =ROUND(F169/(1-'Other Inputs'!$E$273),0) -> 12258529 | G171: =ROUND(G169/(1-'Other Inputs'!$E$273),0) -> 9828720 | H171: =ROUND(H169/(1-'Other Inputs'!$E$273),0) -> 4448619 | I171: =ROUND(I169/(1-'Other Inputs'!$E$273),0) -> 3088936 | J171: =ROUND(J169/(1-'Other Inputs'!$E$273),0) -> 802466 | K171: =ROUND(K169/(1-'Other Inputs'!$E$273),0) -> 1296547 | L171: =ROUND(L169/(1-'Other Inputs'!$E$273),0) -> 686415 | M171: =ROUND(M169/(1-'Other Inputs'!$E$273),0) -> 497673 | N171: =ROUND(N169/(1-'Other Inputs'!$E$273),0) -> 1238995 | O171: =ROUND(O169/(1-'Other Inputs'!$E$273),0) -> 4249135 | P171: =SUM(D171:O171) -> 59625393 | Q171: 167
Q172: 168
A173: Transported Volumes - total | D173: =+D161+D169+D137+D165 -> 12549118 | E173: =+E161+E169+E137+E165 -> 19307445.9 | F173: =+F161+F169+F137+F165 -> 21065928 | G173: 17412513 | H173: =+H161+H169+H137+H165 -> 13681098 | I173: 9711074 | J173: 5653593 | K173: 5761027.013 | L173: 5249229.4 | M173: 5185611.4 | N173: 5855423.013 | O173: 9007735.87 | P173: =+P161+P169+P137+P165 -> 130439796.6 | Q173: 169
A174: Kern transported volumes | D174: =HLOOKUP(MONTH(D5),kernrivertrans,6,FALSE) -> 2327418.256 | E174: =HLOOKUP(MONTH(E5),kernrivertrans,6,FALSE) -> 3443931.444 | F174: 3443931.444 | G174: 3110647.756 | H174: =HLOOKUP(MONTH(H5),kernrivertrans,6,FALSE) -> 2404998.864 | I174: 688738.9053 | J174: =HLOOKUP(MONTH(J5),kernrivertrans,6,FALSE) -> 711696.8688 | K174: 688738.9053 | L174: 711696.8688 | M174: 711696.8688 | N174: 688738.9053 | O174: 711696.8688 | Q174: 170
A175: Storage Fuel % | C175: =(P154-P166)/(P163+P164+P152+P153) -> 0.01266454488 | Q175: 171
Q176: 172
A177: Company Production as % of Total Supply / Demand | D177: =D159/(D171+D159) -> 0.4150142172 | E177: 0.2900344011 | F177: =F159/(F171+F159) -> 0.3087579749 | G177: 0.3230163487 | H177: =H159/(H171+H159) -> 0.5430604804 | I177: 0.6198277526 | J177: 0.8646652787 | K177: 0.7846961272 | L177: 0.8753756644 | M177: 0.9086627693 | N177: 0.7976800882 | O177: =O159/(O171+O159) -> 0.5441735451 | P177: =P159/(P171+P159) -> 0.5057698377 | Q177: 173
Q178: 174
A179: Peak Hour Service | D179: =IF(OR(D6=11,D6=12,D6=1,D6=2),'Other Inputs'!D$20*16*'Other Inputs'!$F$21,0)+IF(OR(D6=11,D6=12,D6=1,D6=2),'Other Inputs'!$D$23*16*'Other Inputs'!$F$24,0) -> 475634.5948 | E179: =IF(OR(E6=11,E6=12,E6=1,E6=2),'Other Inputs'!E$20*16*'Other Inputs'!$F$21,0)+IF(OR(E6=11,E6=12,E6=1,E6=2),'Other Inputs'!$D$23*16*'Other Inputs'!$F$24,0) -> 300840.6748 | F179: =IF(OR(F6=11,F6=12,F6=1,F6=2),'Other Inputs'!F$20*31*'Other Inputs'!$F$21,0)+IF(OR(F6=11,F6=12,F6=1,F6=2),'Other Inputs'!$D$23*31*'Other Inputs'!$F$24,0) -> 582980.7437 | G179: =IF(OR(G6=11,G6=12,G6=1,G6=2),'Other Inputs'!G$20*31*'Other Inputs'!$F$21,0)+IF(OR(G6=11,G6=12,G6=1,G6=2),'Other Inputs'!$D$23*31*'Other Inputs'!$F$24,0) -> 582843.4674 | H179: =IF(OR(H6=11,H6=12,H6=1,H6=2),'Other Inputs'!H$20*14*'Other Inputs'!$F$21,0)+IF(OR(H6=11,H6=12,H6=1,H6=2),'Other Inputs'!$D$23*14*'Other Inputs'!$F$24,0) -> 0 | I179: =IF(OR(I6=11,I6=12,I6=1,I6=2),'Other Inputs'!I$20*16*'Other Inputs'!$F$21,0)+IF(OR(I6=11,I6=12,I6=1,I6=2),'Other Inputs'!$D$23*16*'Other Inputs'!$F$24,0) -> 0 | J179: =IF(OR(J6=11,J6=12,J6=1,J6=2),'Other Inputs'!J$20*16*'Other Inputs'!$F$21,0)+IF(OR(J6=11,J6=12,J6=1,J6=2),'Other Inputs'!$D$23*16*'Other Inputs'!$F$24,0) -> 0 | K179: =IF(OR(K6=11,K6=12,K6=1,K6=2),'Other Inputs'!K$20*16*'Other Inputs'!$F$21,0)+IF(OR(K6=11,K6=12,K6=1,K6=2),'Other Inputs'!$D$23*16*'Other Inputs'!$F$24,0) -> 0 | L179: =IF(OR(L6=11,L6=12,L6=1,L6=2),'Other Inputs'!L$20*16*'Other Inputs'!$F$21,0)+IF(OR(L6=11,L6=12,L6=1,L6=2),'Other Inputs'!$D$23*16*'Other Inputs'!$F$24,0) -> 0 | M179: =IF(OR(M6=11,M6=12,M6=1,M6=2),'Other Inputs'!M$20*16*'Other Inputs'!$F$21,0)+IF(OR(M6=11,M6=12,M6=1,M6=2),'Other Inputs'!$D$23*16*'Other Inputs'!$F$24,0) -> 0 | N179: =IF(OR(N6=11,N6=12,N6=1,N6=2),'Other Inputs'!N$20*16*'Other Inputs'!$F$21,0)+IF(OR(N6=11,N6=12,N6=1,N6=2),'Other Inputs'!$D$23*16*'Other Inputs'!$F$24,0) -> 0 | O179: =IF(OR(O6=11,O6=12,O6=1,O6=2),'Other Inputs'!O$20*16*'Other Inputs'!$F$21,0)+IF(OR(O6=11,O6=12,O6=1,O6=2),'Other Inputs'!$D$23*16*'Other Inputs'!$F$24,0) -> 0 | P179: =SUM(D179:O179) -> 1942299.481 | Q179: 175
Q180: 176
A181: PURCHASES BREAKDOWN | Q181: 177
A182: Spot Market Purchases | D182: ='Monthly Inputs'!G83 -> 5656579 | E182: ='Monthly Inputs'!H83 -> 7580279 | F182: ='Monthly Inputs'!I83 -> 5166029 | G182: ='Monthly Inputs'!J83 -> 4938720 | H182: ='Monthly Inputs'!K83 -> 3402448 | I182: ='Monthly Inputs'!L83 -> 2103954 | J182: ='Monthly Inputs'!M83 -> 390151 | K182: ='Monthly Inputs'!N83 -> 1227308 | L182: ='Monthly Inputs'!O83 -> 686415 | M182: ='Monthly Inputs'!P83 -> 497673 | N182: ='Monthly Inputs'!Q83 -> 1238995 | O182: ='Monthly Inputs'!R83 -> 4130602 | P182: =SUM(D182:O182) -> 37019153 | Q182: 178
A183: Spot Market Purchases Cost | D183: ='Monthly Inputs'!G84 -> 13688921.18 | E183: ='Monthly Inputs'!H84 -> 22968245.37 | F183: ='Monthly Inputs'!I84 -> 18081101.5 | G183: ='Monthly Inputs'!J84 -> 16544712 | H183: ='Monthly Inputs'!K84 -> 10819784.64 | I183: ='Monthly Inputs'!L84 -> 6480178.32 | J183: ='Monthly Inputs'!M84 -> 1178256.02 | K183: ='Monthly Inputs'!N84 -> 3681924 | L183: ='Monthly Inputs'!O84 -> 2066109.15 | M183: ='Monthly Inputs'!P84 -> 1483065.54 | N183: ='Monthly Inputs'!Q84 -> 3580695.55 | O183: ='Monthly Inputs'!R84 -> 11524379.58 | P183: =SUM(D183:O183) -> 112097372.8 | Q183: 179
Q184: 180
A185: Contract Purchases (Dth) | D185: ='Monthly Inputs'!G92 -> 900000 | E185: ='Monthly Inputs'!H92 -> 2092500 | F185: ='Monthly Inputs'!I92 -> 2092500 | G185: ='Monthly Inputs'!J92 -> 1890000 | H185: ='Monthly Inputs'!K92 -> 930000 | I185: ='Monthly Inputs'!L92 -> 900000 | J185: ='Monthly Inputs'!M92 -> 0 | K185: ='Monthly Inputs'!N92 -> 0 | L185: ='Monthly Inputs'!O92 -> 0 | M185: ='Monthly Inputs'!P92 -> 0 | N185: ='Monthly Inputs'!Q92 -> 0 | O185: ='Monthly Inputs'!R92 -> 0 | P185: =SUM(D185:O185) -> 8805000 | Q185: 181
A186: Contract Purchases Cost Including Stabalization Costs | D186: ='Monthly Inputs'!G93+'Monthly Inputs'!G94 -> 2382601.783 | E186: ='Monthly Inputs'!H93+'Monthly Inputs'!H94 -> 6519800.646 | F186: ='Monthly Inputs'!I93+'Monthly Inputs'!I94 -> 7502314.65 | G186: ='Monthly Inputs'!J93+'Monthly Inputs'!J94 -> 6493061.22 | H186: ='Monthly Inputs'!K93+'Monthly Inputs'!K94 -> 3168131.198 | I186: ='Monthly Inputs'!L93+'Monthly Inputs'!L94 -> 2976021.36 | J186: ='Monthly Inputs'!M93+'Monthly Inputs'!M94 -> 0 | K186: ='Monthly Inputs'!N93+'Monthly Inputs'!N94 -> 0 | L186: ='Monthly Inputs'!O93+'Monthly Inputs'!O94 -> 0 | M186: ='Monthly Inputs'!P93+'Monthly Inputs'!P94 -> 0 | N186: ='Monthly Inputs'!Q93+'Monthly Inputs'!Q94 -> 0 | O186: ='Monthly Inputs'!R93+'Monthly Inputs'!R94 -> 0 | P186: =SUM(D186:O186) -> 29041930.86 | Q186: 182
Q187: 183
A188: Peak Purchases (Dth) | D188: ='Monthly Inputs'!G89 -> 1000000 | E188: ='Monthly Inputs'!H89 -> 4000000 | F188: ='Monthly Inputs'!I89 -> 5000000 | G188: ='Monthly Inputs'!J89 -> 3000000 | H188: ='Monthly Inputs'!K89 -> 0 | I188: ='Monthly Inputs'!L89 -> 0 | J188: ='Monthly Inputs'!M89 -> 0 | K188: ='Monthly Inputs'!N89 -> 0 | L188: ='Monthly Inputs'!O89 -> 0 | M188: ='Monthly Inputs'!P89 -> 0 | N188: ='Monthly Inputs'!Q89 -> 0 | O188: ='Monthly Inputs'!R89 -> 0 | P188: =SUM(D188:O188) -> 13000000 | Q188: 184
A189: Peak Purchases Cost | D189: ='Monthly Inputs'!G90 -> 2502476.605 | E189: ='Monthly Inputs'!H90 -> 12518323.39 | F189: ='Monthly Inputs'!I90 -> 18063797.63 | G189: ='Monthly Inputs'!J90 -> 10375660.69 | H189: ='Monthly Inputs'!K90 -> 0 | I189: ='Monthly Inputs'!L90 -> 0 | J189: ='Monthly Inputs'!M90 -> 0 | K189: ='Monthly Inputs'!N90 -> 0 | L189: ='Monthly Inputs'!O90 -> 0 | M189: ='Monthly Inputs'!P90 -> 0 | N189: ='Monthly Inputs'!Q90 -> 0 | O189: ='Monthly Inputs'!R90 -> 0 | P189: =SUM(D189:O189) -> 43460258.32 | Q189: 185
Q190: 186
A191: Future Purchases | D191: =+D171-D182-D185-D188 -> -9.313225746e-10 | E191: =+E171-E182-E185-E188 -> 0 | F191: =+F171-F182-F185-F188 -> 0 | G191: =+G171-G182-G185-G188 -> 0 | H191: =+H171-H182-H185-H188 -> 116171 | I191: =+I171-I182-I185-I188 -> 84982 | J191: =+J171-J182-J185-J188 -> 412315 | K191: =+K171-K182-K185-K188 -> 69239 | L191: 0 | M191: =+M171-M182-M185-M188 -> 0 | N191: 0 | O191: 118533 | P191: =SUM(D191:O191) -> 801240 | Q191: 187
A192: Future Purchases Cost | D192: =ROUND(D191*D199,0) -> 0 | E192: =ROUND(E191*E199,0) -> 0 | F192: =ROUND(F191*F199,0) -> 0 | G192: =ROUND(G191*G199,0) -> 0 | H192: =ROUND(H191*H199,0) -> 371747 | I192: 263444 | J192: 1253438 | K192: 209102 | L192: 0 | M192: 0 | N192: 0 | O192: 333078 | P192: =SUM(D192:O192) -> 2430809 | Q192: 188
Q193: 189
A194: Total Purchases Cost | D194: =+D183+D186+D189+D192 -> 18573999.57 | E194: =+E183+E186+E189+E192 -> 42006369.41 | F194: =+F183+F186+F189+F192 -> 43647213.78 | G194: =+G183+G186+G189+G192 -> 33413433.91 | H194: =+H183+H186+H189+H192 -> 14359662.84 | I194: 9719643.68 | J194: =+J183+J186+J189+J192 -> 2431694.02 | K194: 3891026 | L194: 2066109.15 | M194: 1483065.54 | N194: 3580695.55 | O194: =+O183+O186+O189+O192 -> 11857457.58 | P194: 187030371 | Q194: 190
Q195: 191
A196: Gas Cost | Q196: 192
A197: Gas Cost Purchases | D197: =IF(D171=0,0,ROUND(D194/D171,5)) -> 2.45799 | E197: =IF(E171=0,0,ROUND(E194/E171,5)) -> 3.07226 | F197: 3.56056 | G197: 3.39957 | H197: 3.22789 | I197: 3.1466 | J197: 3.03028 | K197: 3.00107 | L197: 3.01 | M197: 2.98 | N197: 2.89 | O197: 2.79056 | Q197: 193
A198: Gas Cost Injection Rate | D198: ='Ut Storage'!K27 -> 3.800087404 | E198: =+D198 -> 3.800087404 | F198: 3.800087404 | G198: 3.800087404 | H198: 3.800087404 | I198: 3.800087404 | J198: 3.800087404 | K198: 3.800087404 | L198: 3.800087404 | M198: 3.800087404 | N198: 3.800087404 | O198: 3.800087404 | Q198: 194
A199: =CONCATENATE("'Future Contract Price (spot + $",'Other Inputs'!E183,")") -> 'Future Contract Price (spot + $0.02) | D199: =+D231+'Other Inputs'!$E$183 -> 2.44 | E199: =+E231+'Other Inputs'!$E$183 -> 3.05 | F199: =+F231+'Other Inputs'!$E$183 -> 3.52 | G199: =+G231+'Other Inputs'!$E$183 -> 3.37 | H199: =+H231+'Other Inputs'!$E$183 -> 3.2 | I199: =+I231+'Other Inputs'!$E$183 -> 3.1 | J199: =+J231+'Other Inputs'!$E$183 -> 3.04 | K199: =+K231+'Other Inputs'!$E$183 -> 3.02 | L199: =+L231+'Other Inputs'!$E$183 -> 3.03 | M199: =+M231+'Other Inputs'!$E$183 -> 3 | N199: =+N231+'Other Inputs'!$E$183 -> 2.91 | O199: =+O231+'Other Inputs'!$E$183 -> 2.81 | Q199: 195
Q200: 196
A201: System Production | D201: =+D161 -> 5082461.994 | E201: 5295418.323 | F201: 5191079.102 | G201: 4446051.824 | H201: 5012402.504 | I201: 4774530.982 | J201: 4860675.91 | K201: 4479908.984 | L201: 4570982.896 | M201: 4693860.943 | N201: 4631171.997 | O201: 4809165.222 | P201: =SUM(D201:O201) -> 57847710.68 | Q201: 197
... 52 more rows

Sheet CET & DSM (hidden)
A1: Rate Caclulation for the CET and DSM Amortizations
P3: Solver Cells
A4: CET Amortization % Calculation | P4: % Change | Q4: Difference
B5: Balance | C5: Date | D5: GS Dth | H5: Amortization per Dth | P5: =J20/D20 ->  | Q5: =J20-B11 ->  | S5: -> Difference should be at 0 (Use Goal Seek to Get Difference to Equal 0.
A6: DSM Balance | B6: ='Other Inputs'!#REF! ->  | C6: ='Other Inputs'!#REF! ->  | D6: =B20 ->  | H6: =ROUND(B6/D6,5) -> 
S8: Typical Bill Rates
A9: CET Amortization Calculation
B10: Balance | C10: Date | D10: DNG Rev | H10: New DNG | L10: % Change | S10: Current | T10: Proposed
A11: CET Balance | B11: ='Other Inputs'!#REF! ->  | C11: ='Other Inputs'!#REF! ->  | D11: =D20 ->  | H11: =D11+B11 ->  | L11: =P5 ->  | S11: Effective | V11: SNG & | W11: CET, DSM
S12: ='Other Inputs'!$J$97 -> 2020-06-01 | T12: CET Only | U12: DSM Only | V12: Commodity | W12: Commodity
S13: BSF | T13: BSF | U13: BSF | V13: BSF | W13: BSF
B14: Revenue Calculation | H14: CET Amortization | L14: Total DNG | P14: REVRUN Calculation | S14: ='Other Inputs'!$G$101 -> 6.75 | T14: ='Other Inputs'!$G$101 -> 6.75 | U14: ='Other Inputs'!$G$101 -> 6.75 | V14: ='Other Inputs'!$G$101 -> 6.75 | W14: ='Ut 1.6 Source'!$C$12 -> 6.75
A15: Utah GS | B15: Dth | C15: Base DNG | D15: DNG Revenue | H15: CET Rate | J15: Revenue | L15: DNG Rate | N15: Revenue | P15: CET Rate | Q15: CET Amort
A16: Block 1 Summer | B16: ='Other Inputs'!#REF! ->  | C16: ='Other Inputs'!E254 -> 1.99981 | D16: =B16*C16 ->  | H16: =ROUND((J16/B16),5) ->  | J16: =D16*$P$5 ->  | L16: =C16+H16 ->  | N16: =L16*B16 ->  | P16: =ROUND(H16,5) ->  | Q16: =B16*P16 ->  | S16: ='Other Inputs'!$G$97 -> 6.13836 | T16: =N24 ->  | U16: =N31 ->  | V16: =N38 ->  | W16: =N45 -> 
A17: Block 2 Summer | B17: ='Other Inputs'!#REF! ->  | C17: ='Other Inputs'!E255 -> 0.79741 | D17: =B17*C17 ->  | H17: =ROUND((J17/B17),5) ->  | J17: =D17*$P$5 ->  | L17: =C17+H17 ->  | N17: =L17*B17 ->  | P17: =ROUND(H17,5) ->  | Q17: =B17*P17 -> 
A18: Block 1 Winter | B18: ='Other Inputs'!#REF! ->  | C18: ='Other Inputs'!E256 -> 2.70165 | D18: =B18*C18 ->  | H18: =ROUND((J18/B18),5) ->  | J18: =D18*$P$5 ->  | L18: =C18+H18 ->  | N18: =L18*B18 ->  | P18: =ROUND(H18,5) ->  | Q18: =B18*P18 ->  | S18: ='Other Inputs'!$G$99 -> 7.365 | T18: =N26 ->  | U18: =N33 ->  | V18: =N40 ->  | W18: =N47 -> 
A19: Block 2 Winter | B19: ='Other Inputs'!#REF! ->  | C19: ='Other Inputs'!E257 -> 1.49925 | D19: =B19*C19 ->  | H19: =ROUND((J19/B19),5) ->  | J19: =D19*$P$5 ->  | L19: =C19+H19 ->  | N19: =L19*B19 ->  | P19: =ROUND(H19,5) ->  | Q19: =B19*P19 -> 
A20: GS-1 Block Rev | B20: =SUM(B16:B19) ->  | D20: =SUM(D16:D19) ->  | J20: =B11 ->  | N20: =SUM(N16:N19) ->  | Q20: =SUM(Q16:Q19) -> 
A22: Total Rate Calculation With CET Amortization Only | N22: ='Control Panel'!E8 -> 2020-11-01 | P22: ='Other Inputs'!$J$97 -> 2020-06-01
A23: Utah GS | B23: Base DNG | C23: CET | D23: DSM | E23: Energy Assist | F23: Infrastructure | H23: Total DNG | I23: Base SNG | J23: SNG Amort | L23: Base Gas Cost | M23: 191 Amort | N23: Total Rate | P23: Total Rate
A24: Block 1 Summer | B24: =$C$16 -> 1.99981 | C24: =$H$16 ->  | D24: 0.44104 | E24: 0.01519 | F24: 0.02908 | H24: =SUM(B24:F24) ->  | I24: 0.55715 | J24: 0.01244 | L24: 4.21339 | M24: 0.14067 | N24: =SUM(H24:M24) ->  | P24: ='Other Inputs'!$G$97 -> 6.13836 | Q24: =N24-P24 -> 
A25: Block 2 Summer | B25: =$C$17 -> 0.79741 | C25: =$H$17 ->  | D25: =$D$24 -> 0.44104 | E25: =$E$24 -> 0.01519 | F25: 0.0108 | H25: =SUM(B25:F25) ->  | I25: =I24 -> 0.55715 | J25: =J24 -> 0.01244 | L25: =L24 -> 4.21339 | M25: =$M$24 -> 0.14067 | N25: =SUM(H25:M25) ->  | P25: ='Other Inputs'!$G$98 -> 4.94976 | Q25: =N25-P25 -> 
A26: Block 1 Winter | B26: =$C$18 -> 2.70165 | C26: =$H$18 ->  | D26: =$D$24 -> 0.44104 | E26: =$E$24 -> 0.01519 | F26: 0.03453 | H26: =SUM(B26:F26) ->  | I26: 1.18665 | J26: 0.02651 | L26: =L24 -> 4.21339 | M26: =$M$24 -> 0.14067 | N26: =SUM(H26:M26) ->  | P26: ='Other Inputs'!$G$99 -> 7.365 | Q26: =N26-P26 -> 
A27: Block 2 Winter | B27: =$C$19 -> 1.49925 | C27: =$H$19 ->  | D27: =$D$24 -> 0.44104 | E27: =$E$24 -> 0.01519 | F27: 0.01434 | H27: =SUM(B27:F27) ->  | I27: =I26 -> 1.18665 | J27: =J26 -> 0.02651 | L27: =L24 -> 4.21339 | M27: =$M$24 -> 0.14067 | N27: =SUM(H27:M27) ->  | P27: ='Other Inputs'!$G$100 -> 6.1764 | Q27: =N27-P27 -> 
A29: Total Rate Calculation With DSM Amortization Only | N29: =N22 -> 2020-11-01 | P29: ='Other Inputs'!$J$97 -> 2020-06-01
A30: Utah GS | B30: Base DNG | C30: CET | D30: DSM | E30: Energy Assist | F30: Infrastructure | H30: Total DNG | I30: Base SNG | J30: SNG Amort | L30: Commodity | M30: 191 Amort | N30: Total Rate | P30: Total Rate
A31: Block 1 Summer | B31: =$C$16 -> 1.99981 | C31: -0.0599 | D31: =$H$6 ->  | E31: =$E$24 -> 0.01519 | F31: =F24 -> 0.02908 | H31: =SUM(B31:F31) ->  | I31: =$I$24 -> 0.55715 | J31: =J24 -> 0.01244 | L31: =$L$24 -> 4.21339 | M31: =$M$24 -> 0.14067 | N31: =SUM(H31:M31) ->  | P31: ='Other Inputs'!$G$97 -> 6.13836 | Q31: =N31-P31 -> 
A32: Block 2 Summer | B32: =$C$17 -> 0.79741 | C32: -0.02224 | D32: =$H$6 ->  | E32: =$E$24 -> 0.01519 | F32: =F25 -> 0.0108 | H32: =SUM(B32:F32) ->  | I32: =$I$24 -> 0.55715 | J32: =J25 -> 0.01244 | L32: =$L$24 -> 4.21339 | M32: =$M$24 -> 0.14067 | N32: =SUM(H32:M32) ->  | P32: ='Other Inputs'!$G$98 -> 4.94976 | Q32: =N32-P32 -> 
A33: Block 1 Winter | B33: =$C$18 -> 2.70165 | C33: -0.07112 | D33: =$H$6 ->  | E33: =$E$24 -> 0.01519 | F33: =F26 -> 0.03453 | H33: =SUM(B33:F33) ->  | I33: =$I$26 -> 1.18665 | J33: =J26 -> 0.02651 | L33: =$L$24 -> 4.21339 | M33: =$M$24 -> 0.14067 | N33: =SUM(H33:M33) ->  | P33: ='Other Inputs'!$G$99 -> 7.365 | Q33: =N33-P33 -> 
A34: Block 2 Winter | B34: =$C$19 -> 1.49925 | C34: -0.02953 | D34: =$H$6 ->  | E34: =$E$24 -> 0.01519 | F34: =F27 -> 0.01434 | H34: =SUM(B34:F34) ->  | I34: =$I$26 -> 1.18665 | J34: =J27 -> 0.02651 | L34: =$L$24 -> 4.21339 | M34: =$M$24 -> 0.14067 | N34: =SUM(H34:M34) ->  | P34: ='Other Inputs'!$G$100 -> 6.1764 | Q34: =N34-P34 -> 
A36: Total Rate Calculation With SNG and Commodity Changes Only | N36: =N22 -> 2020-11-01 | P36: ='Other Inputs'!$J$97 -> 2020-06-01
A37: Utah GS | B37: Base DNG | C37: CET | D37: DSM | E37: Energy Assist | F37: Infrastructure | H37: Total DNG | I37: Base SNG | J37: SNG | L37: Commodity | M37: 191 Amort | N37: Total Rate | P37: Total Rate
A38: Block 1 Summer | B38: =$C$16 -> 1.99981 | C38: =C31 -> -0.0599 | D38: =D24 -> 0.44104 | E38: =$E$24 -> 0.01519 | F38: =F24 -> 0.02908 | H38: =SUM(B38:F38) -> 2.42522 | I38: =#REF! ->  | J38: =#REF! ->  | L38: ='Ut 1.5 p1'!$F$29 -> 3.66269 | M38: ='Ut 1.5 p1'!$F$30 -> 0.22099 | N38: =SUM(H38:M38) ->  | P38: ='Other Inputs'!$G$97 -> 6.13836 | Q38: =N38-P38 -> 
A39: Block 2 Summer | B39: =$C$17 -> 0.79741 | C39: =C32 -> -0.02224 | D39: =D25 -> 0.44104 | E39: =$E$24 -> 0.01519 | F39: =F25 -> 0.0108 | H39: =SUM(B39:F39) -> 1.2422 | I39: =#REF! ->  | J39: =#REF! ->  | L39: ='Ut 1.5 p1'!$F$29 -> 3.66269 | M39: ='Ut 1.5 p1'!$F$30 -> 0.22099 | N39: =SUM(H39:M39) ->  | P39: ='Other Inputs'!$G$98 -> 4.94976 | Q39: =N39-P39 -> 
A40: Block 1 Winter | B40: =$C$18 -> 2.70165 | C40: =C33 -> -0.07112 | D40: =D26 -> 0.44104 | E40: =$E$24 -> 0.01519 | F40: =F26 -> 0.03453 | H40: =SUM(B40:F40) -> 3.12129 | I40: =#REF! ->  | J40: =#REF! ->  | L40: ='Ut 1.5 p1'!$F$29 -> 3.66269 | M40: ='Ut 1.5 p1'!$F$30 -> 0.22099 | N40: =SUM(H40:M40) ->  | P40: ='Other Inputs'!$G$99 -> 7.365 | Q40: =N40-P40 -> 
A41: Block 2 Winter | B41: =$C$19 -> 1.49925 | C41: =C34 -> -0.02953 | D41: =D27 -> 0.44104 | E41: =$E$24 -> 0.01519 | F41: =F27 -> 0.01434 | H41: =SUM(B41:F41) -> 1.94029 | I41: =#REF! ->  | J41: =#REF! ->  | L41: ='Ut 1.5 p1'!$F$29 -> 3.66269 | M41: ='Ut 1.5 p1'!$F$30 -> 0.22099 | N41: =SUM(H41:M41) ->  | P41: ='Other Inputs'!$G$100 -> 6.1764 | Q41: =N41-P41 -> 
A43: Total Rate Calculation | N43: =N29 -> 2020-11-01 | P43: ='Other Inputs'!$J$97 -> 2020-06-01
A44: Utah GS | B44: Base DNG | C44: CET | D44: DSM | E44: Energy Assist | F44: Infrastructure | H44: Total DNG | I44: Base SNG | J44: SNG | L44: Commodity | N44: Total Rate | P44: Total Rate
A45: Block 1 Summer | B45: =$C$16 -> 1.99981 | C45: =$H$16 ->  | D45: =$H$6 ->  | E45: =$E$24 -> 0.01519 | F45: =F38 -> 0.02908 | H45: =SUM(B45:F45) ->  | I45: =I38 ->  | J45: =#REF! ->  | L45: ='Ut 1.5 p1'!$F$32 -> 3.87396 | N45: =SUM(H45:L45) ->  | P45: ='Other Inputs'!$G$97 -> 6.13836 | Q45: =N45-P45 -> 
A46: Block 2 Summer | B46: =$C$17 -> 0.79741 | C46: =$H$17 ->  | D46: =$H$6 ->  | E46: =$E$24 -> 0.01519 | F46: =F39 -> 0.0108 | H46: =SUM(B46:F46) ->  | I46: =I39 ->  | J46: =#REF! ->  | L46: =$L$45 -> 3.87396 | N46: =SUM(H46:L46) ->  | P46: ='Other Inputs'!$G$98 -> 4.94976 | Q46: =N46-P46 -> 
A47: Block 1 Winter | B47: =$C$18 -> 2.70165 | C47: =$H$18 ->  | D47: =$H$6 ->  | E47: =$E$24 -> 0.01519 | F47: =F40 -> 0.03453 | H47: =SUM(B47:F47) ->  | I47: =I40 ->  | J47: =#REF! ->  | L47: =$L$45 -> 3.87396 | N47: =SUM(H47:L47) ->  | P47: ='Other Inputs'!$G$99 -> 7.365 | Q47: =N47-P47 -> 
A48: Block 2 Winter | B48: =$C$19 -> 1.49925 | C48: =$H$19 ->  | D48: =$H$6 ->  | E48: =$E$24 -> 0.01519 | F48: =F41 -> 0.01434 | H48: =SUM(B48:F48) ->  | I48: =I41 ->  | J48: =#REF! ->  | L48: =$L$45 -> 3.87396 | N48: =SUM(H48:L48) ->  | P48: ='Other Inputs'!$G$100 -> 6.1764 | Q48: =N48-P48 -> 
A50: Typical Customer Difference - CET Amortization Only
B51: Typical
A52: GS | B52: Dth | C52: =S12 -> 2020-06-01 | D52: =N43 -> 2020-11-01 | H52: Change | J52: % Change
A53: January | B53: 14.9 | C53: =ROUND($S$14+(B53*$S$18),2) -> 116.49 | D53: =ROUND($T$14+(B53*$T$18),2) ->  | H53: =D53-C53 -> 
A54: February | B54: 12.5 | C54: =ROUND($S$14+(B54*$S$18),2) -> 98.81 | D54: =ROUND($T$14+(B54*$T$18),2) -> 
A55: March | B55: 10.1 | C55: =ROUND($S$14+(B55*$S$18),2) -> 81.14 | D55: =ROUND($T$14+(B55*$T$18),2) -> 
A56: April | B56: 8.3 | C56: =ROUND($S$14+(B56*$S$16),2) -> 57.7 | D56: =ROUND($T$14+(B56*$T$16),2) -> 
A57: May | B57: 4.4 | C57: 33.76 | D57: =ROUND($T$14+(B57*$T$16),2) -> 
A58: June | B58: 3.1 | C58: 25.78
A59: July | B59: 2 | C59: 19.03
A60: August | B60: 1.8 | C60: 17.8
A61: September | B61: 2 | C61: 19.03
A62: October | B62: 3.1 | C62: 25.78
A63: November | B63: 6.3 | C63: =ROUND($S$14+(B63*$S$18),2) -> 53.15 | D63: =ROUND($T$14+(B63*$T$18),2) -> 
A64: December | B64: 11.5 | C64: =ROUND($S$14+(B64*$S$18),2) -> 91.45 | D64: =ROUND($T$14+(B64*$T$18),2) -> 
B65: =SUM(B53:B64) -> 80 | C65: =SUM(C53:C64) -> 639.92 | D65: =SUM(D53:D64) ->  | H65: =SUM(H53:H64) ->  | J65: =H65/C65 -> 
A68: Typical Customer Difference - DSM Amortization Only
B69: Typical
A70: GS | B70: Dth | C70: =C52 -> 2020-06-01 | D70: =D52 -> 2020-11-01 | H70: Change | J70: % Change
A71: January | B71: 14.9 | C71: =ROUND($S$14+(B71*$S$18),2) -> 116.49 | D71: =ROUND($U$14+(B71*$U$18),2) ->  | H71: =D71-C71 -> 
A72: February | B72: 12.5 | C72: =ROUND($S$14+(B72*$S$18),2) -> 98.81 | D72: =ROUND($U$14+(B72*$U$18),2) -> 
A73: March | B73: 10.1 | C73: =ROUND($S$14+(B73*$S$18),2) -> 81.14 | D73: =ROUND($U$14+(B73*$U$18),2) -> 
A74: April | B74: 8.3 | C74: =ROUND($S$14+(B74*$S$16),2) -> 57.7 | D74: =ROUND($U$14+(B74*$U$16),2) -> 
A75: May | B75: 4.4 | C75: 33.76
A76: June | B76: 3.1 | C76: 25.78
A77: July | B77: 2 | C77: 19.03
A78: August | B78: 1.8 | C78: 17.8
A79: September | B79: 2 | C79: 19.03
A80: October | B80: 3.1 | C80: 25.78
A81: November | B81: 6.3 | C81: =ROUND($S$14+(B81*$S$18),2) -> 53.15 | D81: =ROUND($U$14+(B81*$U$18),2) -> 
A82: December | B82: 11.5 | C82: =ROUND($S$14+(B82*$S$18),2) -> 91.45 | D82: =ROUND($U$14+(B82*$U$18),2) -> 
B83: =SUM(B71:B82) -> 80 | C83: =SUM(C71:C82) -> 639.92 | D83: =SUM(D71:D82) ->  | H83: =SUM(H71:H82) ->  | J83: =H83/C83 -> 
A86: Typical Customer Difference - SNG and Commodity Changes Only
B87: Typical
A88: GS-1 | B88: Dth | C88: =C70 -> 2020-06-01 | D88: =D70 -> 2020-11-01 | H88: Change | J88: % Change
A89: January | B89: 14.9 | C89: =ROUND($S$14+(B89*$S$18),2) -> 116.49 | D89: =ROUND($V$14+(B89*$V$18),2) ->  | H89: =D89-C89 -> 
A90: February | B90: 12.5 | C90: =ROUND($S$14+(B90*$S$18),2) -> 98.81 | D90: =ROUND($V$14+(B90*$V$18),2) -> 
A91: March | B91: 10.1 | C91: =ROUND($S$14+(B91*$S$18),2) -> 81.14 | D91: =ROUND($V$14+(B91*$V$18),2) -> 
A92: April | B92: 8.3 | C92: =ROUND($S$14+(B92*$S$16),2) -> 57.7 | D92: =ROUND($V$14+(B92*$V$16),2) -> 
A93: May | B93: 4.4 | C93: 33.76
A94: June | B94: 3.1 | C94: 25.78
A95: July | B95: 2 | C95: 19.03
A96: August | B96: 1.8 | C96: 17.8
A97: September | B97: 2 | C97: 19.03
A98: October | B98: 3.1 | C98: 25.78
A99: November | B99: 6.3 | C99: =ROUND($S$14+(B99*$S$18),2) -> 53.15 | D99: =ROUND($V$14+(B99*$V$18),2) -> 
A100: December | B100: 11.5 | C100: =ROUND($S$14+(B100*$S$18),2) -> 91.45 | D100: =ROUND($V$14+(B100*$V$18),2) -> 
B101: =SUM(B89:B100) -> 80 | C101: =SUM(C89:C100) -> 639.92 | D101: =SUM(D89:D100) ->  | H101: =SUM(H89:H100) ->  | J101: =H101/C101 -> 
A104: Typical Customer Difference - CET & DSM Amort, SNG and Commodity Changes
B105: Typical
A106: GS-1 | B106: Dth | C106: =C52 -> 2020-06-01 | D106: =D52 -> 2020-11-01 | H106: Change | J106: % Change
A107: January | B107: 14.9 | C107: =ROUND($S$14+(B107*$S$18),2) -> 116.49 | D107: =ROUND($W$14+(B107*$W$18),2) ->  | H107: =D107-C107 -> 
A108: February | B108: 12.5 | C108: =ROUND($S$14+(B108*$S$18),2) -> 98.81 | D108: =ROUND($W$14+(B108*$W$18),2) -> 
A109: March | B109: 10.1 | C109: =ROUND($S$14+(B109*$S$18),2) -> 81.14 | D109: =ROUND($W$14+(B109*$W$18),2) -> 
A110: April | B110: 8.3 | C110: =ROUND($S$14+(B110*$S$16),2) -> 57.7 | D110: =ROUND($W$14+(B110*$W$16),2) -> 
A111: May | B111: 4.4 | C111: 33.76
A112: June | B112: 3.1 | C112: 25.78
A113: July | B113: 2 | C113: 19.03
A114: August | B114: 1.8 | C114: 17.8
A115: September | B115: 2 | C115: 19.03
A116: October | B116: 3.1 | C116: 25.78
A117: November | B117: 6.3 | C117: =ROUND($S$14+(B117*$S$18),2) -> 53.15 | D117: =ROUND($W$14+(B117*$W$18),2) -> 
A118: December | B118: 11.5 | C118: =ROUND($S$14+(B118*$S$18),2) -> 91.45 | D118: =ROUND($W$14+(B118*$W$18),2) -> 
B119: =SUM(B107:B118) -> 80 | C119: =SUM(C107:C118) -> 639.92 | D119: =SUM(D107:D118) ->  | H119: =SUM(H107:H118) ->  | J119: =H119/C119 -> 

Sheet UT Tariff Sheets PT (hidden)
B2: 2.02 GS Rate Schedule | J2: 2.03 FS Rate Schedule | AB2: 4.03 ES Rate Schedule | AI2: 2.05 NGV Rate Schedule
C3: Rates Per Dth Used Each Month | M3: Rates Per Dth Used Each Month | T3: 4.02 IS Rate Schedule | AB3: ES Volumetric Rates | AI3: NGV Volumetric Rate
C4: Summer Rates: Apr. 1 - Oct. 31 | E4: Winter Rates: Nov. 1 - Mar. 31 | M4: Dth = decatherm = 10 therms = 1,000,000 BTU | T4: IS Volumetric Rates
C5: First 45 Dth | D5: All Over 45 Dth | E5: First 45 Dth | F5: All Over 45 Dth | K5: Summer Rates: Apr. 1 - Oct. 31 | N5: Winter Rates: Nov. 1 - Mar. 31 | U5: Rates Per Dth Used Each Month | AE5: Rates Per Dth Used Each Month | AM5: Rates Per Dth Used Each Month
B6: Base DNG | C6: ='CET & DSM'!B38 -> 1.99981 | D6: ='CET & DSM'!B39 -> 0.79741 | E6: ='CET & DSM'!B40 -> 2.70165 | F6: ='CET & DSM'!B41 -> 1.49925 | K6: First | L6: Next | M6: All Over | N6: First | O6: Next | P6: All Over | U6: Dth = decatherm = 10 therms = 1,000,000 BTU | AE6: Dth = decatherm = 10 therms = 1,000,000 BTU | AM6: Dth = decatherm = 10 therms = 1,000,000 BTU
B7: CET Amortization | C7: ='CET & DSM'!C38 -> -0.0599 | D7: ='CET & DSM'!C39 -> -0.02224 | E7: ='CET & DSM'!C40 -> -0.07112 | F7: ='CET & DSM'!C41 -> -0.02953 | K7: 200 | L7: 1800 | M7: 2000 | N7: 200 | O7: 1800 | P7: 2000 | U7: First | V7: Next | W7: All Over | AB7: Distribution Non-Gas Rate | AC7: ='Ut 1.6 Source'!#REF! ->  | AI7: Base DNG | AK7: ='Ut 1.6 Source'!C52 -> 8.09217
B8: DSM Amortization | C8: =ROUND('CET & DSM'!D38,5) -> 0.44104 | D8: =ROUND('CET & DSM'!D39,5) -> 0.44104 | E8: =ROUND('CET & DSM'!D40,5) -> 0.44104 | F8: =ROUND('CET & DSM'!D41,5) -> 0.44104 | J8: Base DNG | K8: ='Ut 1.6 Source'!C19 -> 1.08979 | L8: ='Ut 1.6 Source'!D19 -> 0.59781 | M8: ='Ut 1.6 Source'!E19 -> 0.07994 | N8: ='Ut 1.6 Source'!F19 -> 1.61575 | O8: ='Ut 1.6 Source'!G19 -> 1.12377 | P8: ='Ut 1.6 Source'!H19 -> 0.60589 | U8: 2000 | V8: 18000 | W8: 20000 | AI8: Energy Assistance | AK8: ='Other Inputs'!#REF! -> 
B9: Energy Assistance | C9: ='Other Inputs'!#REF! ->  | D9: ='Other Inputs'!#REF! ->  | E9: ='Other Inputs'!#REF! ->  | F9: ='Other Inputs'!#REF! ->  | J9: Energy Assistance | K9: ='Other Inputs'!#REF! ->  | L9: ='Other Inputs'!#REF! ->  | M9: ='Other Inputs'!#REF! ->  | N9: ='Other Inputs'!#REF! ->  | O9: ='Other Inputs'!#REF! ->  | P9: ='Other Inputs'!#REF! ->  | T9: Base DNG | U9: ='Ut 1.6 Source'!C60 -> 0.91606 | V9: ='Ut 1.6 Source'!D60 -> 0.146 | W9: ='Ut 1.6 Source'!E60 -> 0.08965 | AB9: Base SNG | AC9: =ROUND(#REF!,5) ->  | AI9: Distribution Non-Gas Rate | AK9: =SUM(AK7:AM8) -> 
B10: Distribution Non-Gas Rate | C10: =SUM(C6:C9) ->  | D10: =SUM(D6:D9) ->  | E10: =SUM(E6:E9) ->  | F10: =SUM(F6:F9) ->  | J10: Distribution Non-Gas Rate | K10: =SUM(K8:K9) ->  | T10: Energy Assistance | U10: ='Other Inputs'!#REF! ->  | V10: ='Other Inputs'!#REF! ->  | W10: ='Other Inputs'!#REF! ->  | AB10: SNG Amortization | AC10: =ROUND(#REF!,5) -> 
T11: Distribution Non-Gas Rate | U11: =SUM(U9:U10) ->  | V11: =SUM(V9:V10) ->  | W11: =SUM(W9:W10) ->  | AB11: Supplier Non-Gas Rate | AC11: =SUM(AC9:AF10) ->  | AI11: Base SNG | AK11: =ROUND(#REF!,5) -> 
B12: Base SNG | C12: ='CET & DSM'!I38 ->  | D12: ='CET & DSM'!I39 ->  | E12: ='CET & DSM'!I40 ->  | F12: ='CET & DSM'!I41 ->  | J12: Base SNG | K12: =ROUND(#REF!,5) ->  | L12: =ROUND(#REF!,5) ->  | M12: =ROUND(#REF!,5) ->  | N12: =ROUND(#REF!,5) ->  | O12: =ROUND(#REF!,5) ->  | P12: =ROUND(#REF!,5) ->  | T12: Supplier Non-Gas Rate | U12: =ROUND(#REF!/(1-'Other Inputs'!$E$281),5) ->  | V12: =ROUND(#REF!/(1-'Other Inputs'!$E$281),5) ->  | W12: =ROUND(#REF!/(1-'Other Inputs'!$E$281),5) ->  | AI12: SNG Amortization | AK12: =ROUND(#REF!,5) -> 
B13: SNG Amortization | C13: ='CET & DSM'!J38 ->  | D13: ='CET & DSM'!J39 ->  | E13: ='CET & DSM'!J40 ->  | F13: ='CET & DSM'!J41 ->  | J13: SNG Amortization | K13: =ROUND(#REF!,5) ->  | L13: =ROUND(#REF!,5) ->  | M13: =ROUND(#REF!,5) ->  | N13: =ROUND(#REF!,5) ->  | O13: =ROUND(#REF!,5) ->  | P13: =ROUND(#REF!,5) ->  | AB13: Commodity Rate | AC13: Highest Gas Cost | AI13: Supplier Non-Gas Rate | AK13: =SUM(AK11:AM12) -> 
B14: Supplier Non-Gas Rate | C14: =SUM(C12:C13) ->  | D14: =SUM(D12:D13) ->  | E14: =SUM(E12:E13) ->  | F14: =SUM(F12:F13) ->  | J14: Supplier Non-Gas Rate | K14: =SUM(K12:K13) ->  | AB14: Total Rate | AC14: $
AI15: Base Gas Cost | AK15: =ROUND('Ut 1.5 p1'!$F$29,5) -> 3.66269
B16: Base Gas Cost | C16: ='Ut 1.5 p1'!$F$29 -> 3.66269 | D16: ='Ut 1.5 p1'!$F$29 -> 3.66269 | E16: ='Ut 1.5 p1'!$F$29 -> 3.66269 | F16: ='Ut 1.5 p1'!$F$29 -> 3.66269 | J16: Base Gas Cost | K16: =ROUND('Ut 1.5 p1'!$F$29,5) -> 3.66269 | L16: =ROUND('Ut 1.5 p1'!$F$29,5) -> 3.66269 | M16: =ROUND('Ut 1.5 p1'!$F$29,5) -> 3.66269 | N16: =ROUND('Ut 1.5 p1'!$F$29,5) -> 3.66269 | O16: =ROUND('Ut 1.5 p1'!$F$29,5) -> 3.66269 | P16: =ROUND('Ut 1.5 p1'!$F$29,5) -> 3.66269 | AB16: Penalty for failure to interrupt or limit usage when requested by the Company. See See § 3.02 | AI16: Commodity Amortization | AK16: =ROUND('Ut 1.5 p1'!$F$30,5) -> 0.22099
B17: 191 Amortization | C17: ='Ut 1.5 p1'!$F$30 -> 0.22099 | D17: ='Ut 1.5 p1'!$F$30 -> 0.22099 | E17: ='Ut 1.5 p1'!$F$30 -> 0.22099 | F17: ='Ut 1.5 p1'!$F$30 -> 0.22099 | J17: 191 Amortization | K17: =ROUND('Ut 1.5 p1'!$F$30,5) -> 0.22099 | L17: =ROUND('Ut 1.5 p1'!$F$30,5) -> 0.22099 | M17: =ROUND('Ut 1.5 p1'!$F$30,5) -> 0.22099 | N17: =ROUND('Ut 1.5 p1'!$F$30,5) -> 0.22099 | O17: =ROUND('Ut 1.5 p1'!$F$30,5) -> 0.22099 | P17: =ROUND('Ut 1.5 p1'!$F$30,5) -> 0.22099 | AI17: Commodity Rate | AK17: =SUM(AK15:AM16) -> 3.88368
B18: Commodity Rate | C18: =SUM(C16:C17) -> 3.88368 | D18: =SUM(D16:D17) -> 3.88368 | E18: =SUM(E16:E17) -> 3.88368 | F18: =SUM(F16:F17) -> 3.88368 | J18: Commodity Rate | K18: =SUM(K16:K17) -> 3.88368 | L18: 3.88368 | M18: 3.88368 | N18: 3.88368 | O18: 3.88368 | P18: 3.88368 | T18: Total Rate | U18: $ | V18: $ | W18: $
AI19: Total Rate | AK19: =SUM(AK9,AK13,AK17) -> 
B20: Total Rate | C20: =SUM(C18,C14,C10) ->  | D20: =SUM(D18,D14,D10) ->  | E20: =SUM(E18,E14,E10) ->  | F20: =SUM(F18,F14,F10) ->  | J20: Total Rate | K20: =SUM(K18,K14,K10) ->  | T20: Minimum Monthly Distribution Non-Gas Charge
AI21: Penalty for failure to interrupt or limit usage when requested by the Company. See See § 3.02
E22: BSF Category 1 | F22: ='Ut 1.6 Source'!C12 -> 6.75 | J22: Minimum Monthly Distribution Non-Gas Charge | O22: Summer | P22: =ROUND(K8*175,0) -> 191
E23: BSF Category 2 | F23: ='Ut 1.6 Source'!C13 -> 18.25 | O23: Winter | P23: =ROUND(N8*175,0) -> 283
E24: BSF Category 3 | F24: ='Ut 1.6 Source'!C14 -> 63.5 | V24: BSF Category 1 | W24: 5
E25: BSF Category 4 | F25: ='Ut 1.6 Source'!C15 -> 420.25 | V25: BSF Category 2 | W25: 29
N26: BSF Category 1 | P26: 5 | V26: BSF Category 3 | W26: 67
N27: BSF Category 2 | P27: 21 | V27: BSF Category 4 | W27: 274
N28: BSF Category 3 | P28: 55
N29: BSF Category 4 | P29: 244
AI30: =B44 -> Issued by R. W. Jibson, President | AL30: Advice No | AM30: Section Revision No.
AB39: =B44 -> Issued by R. W. Jibson, President | AE39: Advice No | AF39: Section Revision No.
AB42: New Pass Through Values
B44: Issued by R. W. Jibson, President | D44: Advice No | E44: Section Revision No. | F44: Effective Date
T47: =B44 -> Issued by R. W. Jibson, President | W47: Advice No
B48: Pass Through Changes | J48: =B44 -> Issued by R. W. Jibson, President | M48: Advice No | N48: Section Revision No. | P48: Effective Date
T50: New Pass Through Values
J51: New Pass Through Values

Sheet UT Tariff Sheets (hidden)
B2: 2.02 GS Rate Schedule | I2: 2.02 GS Rate Schedule
C3: Rates Per Dth Used Each Month | J3: Rates Per Dth Used Each Month
C4: Summer Rates: Apr. 1 - Oct. 31 | E4: Winter Rates: Nov. 1 - Mar. 31 | J4: Summer Rates: Apr. 1 - Oct. 31 | L4: Winter Rates: Nov. 1 - Mar. 31
C5: First 45 Dth | D5: All Over 45 Dth | E5: First 45 Dth | F5: All Over 45 Dth | J5: First 45 Dth | K5: All Over 45 Dth | L5: First 45 Dth | M5: All Over 45 Dth
B6: Base DNG | C6: ='CET & DSM'!B24 -> 1.99981 | D6: ='CET & DSM'!B25 -> 0.79741 | E6: ='CET & DSM'!B26 -> 2.70165 | F6: ='CET & DSM'!B27 -> 1.49925 | I6: Base DNG | J6: ='CET & DSM'!B31 -> 1.99981 | K6: ='CET & DSM'!B32 -> 0.79741 | L6: ='CET & DSM'!B33 -> 2.70165 | M6: ='CET & DSM'!B34 -> 1.49925
B7: CET Amortization | C7: ='CET & DSM'!H16 ->  | D7: ='CET & DSM'!H17 ->  | E7: ='CET & DSM'!H18 ->  | F7: ='CET & DSM'!H19 ->  | I7: CET Amortization | J7: ='CET & DSM'!C31 -> -0.0599 | K7: ='CET & DSM'!C32 -> -0.02224 | L7: ='CET & DSM'!C33 -> -0.07112 | M7: ='CET & DSM'!C34 -> -0.02953
B8: DSM Amortization | C8: ='CET & DSM'!D24 -> 0.44104 | D8: ='CET & DSM'!D25 -> 0.44104 | E8: ='CET & DSM'!D26 -> 0.44104 | F8: ='CET & DSM'!D27 -> 0.44104 | I8: DSM Amortization | J8: =ROUND('CET & DSM'!D31,5) ->  | K8: =ROUND('CET & DSM'!D32,5) ->  | L8: =ROUND('CET & DSM'!D33,5) ->  | M8: =ROUND('CET & DSM'!D34,5) -> 
B9: Energy Assistance | C9: ='Other Inputs'!#REF! ->  | D9: ='Other Inputs'!#REF! ->  | E9: ='Other Inputs'!#REF! ->  | F9: ='Other Inputs'!#REF! ->  | I9: Energy Assistance | J9: ='Other Inputs'!#REF! ->  | K9: ='Other Inputs'!#REF! ->  | L9: ='Other Inputs'!#REF! ->  | M9: ='Other Inputs'!#REF! -> 
B10: Distribution Non-Gas Rate | C10: =SUM(C6:C9) ->  | D10: =SUM(D6:D9) ->  | E10: =SUM(E6:E9) ->  | F10: =SUM(F6:F9) ->  | I10: Distribution Non-Gas Rate | J10: =SUM(J6:J9) ->  | K10: =SUM(K6:K9) ->  | L10: =SUM(L6:L9) ->  | M10: =SUM(M6:M9) -> 
B12: Base SNG | C12: ='CET & DSM'!I24 -> 0.55715 | D12: ='CET & DSM'!I25 -> 0.55715 | E12: ='CET & DSM'!I26 -> 1.18665 | F12: ='CET & DSM'!I27 -> 1.18665 | I12: Base SNG | J12: ='CET & DSM'!I31 -> 0.55715 | K12: ='CET & DSM'!I32 -> 0.55715 | L12: ='CET & DSM'!I33 -> 1.18665 | M12: ='CET & DSM'!I34 -> 1.18665
B13: SNG Amortization | C13: ='CET & DSM'!J24 -> 0.01244 | D13: ='CET & DSM'!J25 -> 0.01244 | E13: ='CET & DSM'!J26 -> 0.02651 | F13: ='CET & DSM'!J27 -> 0.02651 | I13: SNG Amortization | J13: ='CET & DSM'!J31 -> 0.01244 | K13: ='CET & DSM'!J32 -> 0.01244 | L13: ='CET & DSM'!J33 -> 0.02651 | M13: ='CET & DSM'!J34 -> 0.02651
B14: Supplier Non-Gas Rate | C14: =SUM(C12:C13) -> 0.56959 | D14: =SUM(D12:D13) -> 0.56959 | E14: =SUM(E12:E13) -> 1.21316 | F14: =SUM(F12:F13) -> 1.21316 | I14: Supplier Non-Gas Rate | J14: =SUM(J12:J13) -> 0.56959 | K14: =SUM(K12:K13) -> 0.56959 | L14: =SUM(L12:L13) -> 1.21316 | M14: =SUM(M12:M13) -> 1.21316
B16: Base Gas Cost | C16: ='CET & DSM'!L24 -> 4.21339 | D16: ='CET & DSM'!L25 -> 4.21339 | E16: ='CET & DSM'!L26 -> 4.21339 | F16: ='CET & DSM'!L27 -> 4.21339 | I16: Base Gas Cost | J16: ='CET & DSM'!L31 -> 4.21339 | K16: ='CET & DSM'!L32 -> 4.21339 | L16: ='CET & DSM'!L33 -> 4.21339 | M16: ='CET & DSM'!L34 -> 4.21339
B17: 191 Amortization | C17: ='CET & DSM'!M24 -> 0.14067 | D17: ='CET & DSM'!M25 -> 0.14067 | E17: ='CET & DSM'!M26 -> 0.14067 | F17: ='CET & DSM'!M27 -> 0.14067 | I17: 191 Amortization | J17: ='CET & DSM'!M31 -> 0.14067 | K17: ='CET & DSM'!M32 -> 0.14067 | L17: ='CET & DSM'!M33 -> 0.14067 | M17: ='CET & DSM'!M34 -> 0.14067
B18: Commodity Rate | C18: =SUM(C16:C17) -> 4.35406 | D18: =SUM(D16:D17) -> 4.35406 | E18: =SUM(E16:E17) -> 4.35406 | F18: =SUM(F16:F17) -> 4.35406 | I18: Commodity Rate | J18: =SUM(J16:J17) -> 4.35406 | K18: =SUM(K16:K17) -> 4.35406 | L18: =SUM(L16:L17) -> 4.35406 | M18: =SUM(M16:M17) -> 4.35406
B20: Total Rate | C20: =SUM(C18,C14,C10) ->  | D20: =SUM(D18,D14,D10) ->  | E20: =SUM(E18,E14,E10) ->  | F20: =SUM(F18,F14,F10) ->  | I20: Total Rate | J20: =SUM(J18,J14,J10) ->  | K20: =SUM(K18,K14,K10) ->  | L20: =SUM(L18,L14,L10) ->  | M20: =SUM(M18,M14,M10) -> 
E23: BSF Category 1 | F23: ='Ut 1.6 Source'!C12 -> 6.75 | L23: BSF Category 1 | M23: ='Ut 1.6 Source'!C12 -> 6.75
E24: BSF Category 2 | F24: ='Ut 1.6 Source'!C13 -> 18.25 | L24: BSF Category 2 | M24: ='Ut 1.6 Source'!C13 -> 18.25
E25: BSF Category 3 | F25: ='Ut 1.6 Source'!C14 -> 63.5 | L25: BSF Category 3 | M25: ='Ut 1.6 Source'!C14 -> 63.5
E26: BSF Category 4 | F26: ='Ut 1.6 Source'!C15 -> 420.25 | L26: BSF Category 4 | M26: ='Ut 1.6 Source'!C15 -> 420.25
B45: Issued by R. W. Jibson, President | D45: Advice No | E45: Section Revision No. | F45: Effective Date | I45: Issued by R. W. Jibson, President | K45: Advice No | L45: Section Revision No. | M45: Effective Date
B49: New CET Only | I49: NEW DSM ONLY

Sheet Utah Summary-by class
A1: UTAH SUMMARY
B2: NOT AN EXHIBIT !!!
Q3: Sub Total
C4: COMMODITY | J4: SNG | Q4: TOTAL
C5: Current | D5: Proposed | E5: Current | F5: Proposed | G5: Revenue | H5: % | J5: Current | K5: Proposed | L5: Current | M5: Proposed | N5: Revenue | O5: % | Q5: Revenue | R5: %
A6: RATE | B6: Dth Sales | C6: Rates | D6: Rates | E6: Revenue | F6: Revenue | G6: Difference | H6: Change | J6: Rates | K6: Rates | L6: Revenue | M6: Revenue | N6: Difference | O6: Change | Q6: Difference | R6: Change
A8: GS (W) | B8: =Calculations!P52 -> 79092643 | C8: ='Ut 1.5 p1'!$H$32 -> 3.50521 | D8: =ROUND('Ut 1.5 p1'!$F$32,5) -> 3.87396 | E8: =ROUND(B8*C8,0) -> 277236323 | F8: =ROUND(B8*D8,0) -> 306401735 | G8: =(F8-E8) -> 29165412 | J8: ='Other Inputs'!G85 -> 0.91868 | K8: ='Ut 1.5 p6'!E33 -> 0.90215 | L8: =ROUND(B8*J8,0) -> 72660829 | M8: =B8*K8 -> 71353427.88 | N8: =(M8-L8) -> -1307401.118 | O8: =IF(N8=0,0,N8/L8) -> -0.01799320398 | Q8: =G8+N8 -> 27858010.88
A9: GS (S) | B9: =Calculations!P53 -> 30260118 | C9: ='Ut 1.5 p1'!$H$32 -> 3.50521 | D9: =D8 -> 3.87396 | E9: =ROUND(B9*C9,0) -> 106068068 | F9: =ROUND(B9*D9,0) -> 117226487 | G9: =(F9-E9) -> 11158419 | J9: ='Other Inputs'!G86 -> 0.38583 | K9: ='Ut 1.5 p6'!E29 -> 0.37874 | L9: =ROUND(B9*J9,0) -> 11675261 | M9: =B9*K9 -> 11460717.09 | N9: =(M9-L9) -> -214543.9087 | O9: =IF(N9=0,0,N9/L9) -> -0.01837594112 | Q9: =G9+N9 -> 10943875.09
A10: Total | B10: =SUM(B8:B9) -> 109352761 | E10: =SUM(E8:E9) -> 383304391 | F10: =SUM(F8:F9) -> 423628222 | G10: =SUM(G8:G9) -> 40323831 | H10: =IF(G10=0,0,G10/E10) -> 0.1052005454 | L10: =SUM(L8:L9) -> 84336090 | M10: =SUM(M8:M9) -> 82814144.97 | N10: =SUM(N8:N9) -> -1521945.026 | O10: =IF(N10=0,0,N10/L10) -> -0.01804618908 | Q10: =SUM(Q8:Q9) -> 38801885.97 | R10: =IF(Q10=0,0,Q10/(E10+L10)) -> 0.08297375345
A13: FS (W) | B13: =Calculations!P58 -> 1458904 | C13: ='Ut 1.5 p1'!$H$32 -> 3.50521 | D13: =D8 -> 3.87396 | E13: =ROUND(B13*C13,0) -> 5113765 | F13: =ROUND(B13*D13,0) -> 5651736 | G13: =(F13-E13) -> 537971 | J13: ='Other Inputs'!G88 -> 0.88925 | K13: ='Ut 1.5 p6'!E41 -> 0.82727 | L13: =ROUND(B13*J13,0) -> 1297330 | M13: =B13*K13 -> 1206907.512 | N13: =(M13-L13) -> -90422.48792 | O13: =IF(N13=0,0,N13/L13) -> -0.06969891078 | Q13: =G13+N13 -> 447548.5121
A14: FS (S) | B14: =Calculations!P59 -> 1336431 | C14: ='Ut 1.5 p1'!$H$32 -> 3.50521 | D14: =D9 -> 3.87396 | E14: =ROUND(B14*C14,0) -> 4684471 | F14: =ROUND(B14*D14,0) -> 5177280 | G14: =(F14-E14) -> 492809 | J14: ='Other Inputs'!G89 -> 0.76616 | K14: ='Ut 1.5 p6'!E37 -> 0.64869 | L14: =ROUND(B14*J14,0) -> 1023920 | M14: =B14*K14 -> 866929.4254 | N14: =(M14-L14) -> -156990.5746 | O14: =IF(N14=0,0,N14/L14) -> -0.1533230864 | Q14: =G14+N14 -> 335818.4254
A15: Total | B15: =SUM(B13:B14) -> 2795335 | E15: =SUM(E13:E14) -> 9798236 | F15: =SUM(F13:F14) -> 10829016 | G15: =SUM(G13:G14) -> 1030780 | H15: =IF(G15=0,0,G15/E15) -> 0.1052005688 | L15: =SUM(L13:L14) -> 2321250 | M15: =SUM(M13:M14) -> 2073836.937 | N15: =SUM(N13:N14) -> -247413.0625 | O15: =IF(N15=0,0,N15/L15) -> -0.1065861336 | Q15: =SUM(Q13:Q14) -> 783366.9375 | R15: =IF(Q15=0,0,Q15/(E15+L15)) -> 0.06463697697
A18: NGV | B18: =Calculations!P12 -> 205030 | C18: ='Ut 1.5 p1'!$H$32 -> 3.50521 | D18: ='Ut 1.5 p6'!E22 -> 3.77433 | E18: =ROUND(B18*C18,0) -> 718673 | F18: =ROUND(B18*D18,0) -> 773851 | G18: =(F18-E18) -> 55178 | H18: =IF(G18=0,0,G18/E18) -> 0.07677761652 | J18: ='Other Inputs'!G91 -> 0.77861 | K18: ='Ut 1.5 p6'!E57 -> 0.95364 | L18: =ROUND(B18*J18,0) -> 159638 | M18: =ROUND(B18*K18,0) -> 195525 | N18: =(M18-L18) -> 35887 | O18: =IF(N18=0,0,N18/L18) -> 0.2248023654 | Q18: =G18+N18 -> 91065 | R18: =IF(Q18=0,0,Q18/(E18+L18)) -> 0.1036819532
A21: IS | B21: =Calculations!P17 -> 151174 | C21: ='Ut 1.5 p1'!$H$32 -> 3.50521 | D21: =D8 -> 3.87396 | E21: =ROUND(B21*C21,0) -> 529897 | F21: =ROUND(B21*D21,0) -> 585642 | G21: =(F21-E21) -> 55745 | H21: =IF(G21=0,0,G21/E21) -> 0.1051996898 | J21: ='Other Inputs'!G93 -> 0.17898 | K21: ='Ut 1.5 p6'!E43 -> 0.17957 | L21: =ROUND(B21*J21,0) -> 27057 | M21: =ROUND(B21*K21,0) -> 27146 | N21: =(M21-L21) -> 89 | O21: =IF(N21=0,0,N21/L21) -> 0.003289352109 | Q21: =G21+N21 -> 55834 | R21: =IF(Q21=0,0,Q21/(E21+L21)) -> 0.1002488536
A23: TSF | B23: ='Ut 1.5 p3'!F18 -> 345541.44 | J23: ='Ut 1.5 p6'!D47 -> 1.67911 | K23: ='Ut 1.5 p6'!E47 -> 1.16137 | L23: =ROUND(B23*J23,0) -> 580202 | M23: =ROUND(B23*K23,0) -> 401301 | N23: =(M23-L23) -> -178901 | O23: =IF(N23=0,0,N23/L23) -> -0.3083426117 | Q23: =G23+N23 -> -178901 | R23: =IF(Q23=0,0,Q23/(E23+L23)) -> -0.3083426117
A25: TBF | B25: ='Ut 1.5 p3'!G18 -> 47509.2 | J25: ='Ut 1.5 p6'!D52 -> 1.05573 | K25: ='Ut 1.5 p6'!E52 -> 1.13398 | L25: =ROUND(B25*J25,0) -> 50157 | M25: =ROUND(B25*K25,0) -> 53874 | N25: =(M25-L25) -> 3717 | O25: =IF(N25=0,0,N25/L25) -> 0.07410730307 | Q25: =G25+N25 -> 3717 | R25: =IF(Q25=0,0,Q25/(E25+L25)) -> 0.07410730307
B26: - | E26: - | F26: - | G26: - | L26: ------------------- | M26: ------------------- | N26: ------------------- | Q26: -------------------
B27: =B10+B15+B18+B21 -> 112504300 | E27: =E10+E15+E18+E21 -> 394351197 | F27: =F10+F15+F18+F21 -> 435816731 | G27: =G10+G15+G18+G21 -> 41465534 | H27: =IF(G27=0,0,G27/E27) -> 0.1051487464 | L27: =L10+L15+L18+L21+L23+L25 -> 87474394 | M27: =M10+M15+M18+M21+M23+M25 -> 85565827.91 | N27: =N10+N15+N18+N21+N23+N25 -> -1908566.089 | O27: =IF(N27=0,0,N27/L27) -> -0.02181856886 | Q27: =Q10+Q15+Q18+Q21+Q23+Q25 -> 39556967.91 | R27: =IF(Q27=0,0,Q27/(E27+L27)) -> 0.0820981049
G28: =IF(G27>0,"Commodity Increase","Commodity Decrease") -> Commodity Increase | N28: =IF(N27>0,"Increase to SNG","Decrease to SNG") -> Decrease to SNG
B29: NOT AN EXHIBIT !!!
G30: =ROUND(G27,-3) -> 41466000 | N30: =ROUND(N27,-3) -> -1909000 | Q30: =ROUND(Q27,-3) -> 39557000
B31: =B27 -> 112504300 | G31: Rounded | N31: Rounded | Q31: Rounded

Sheet UT Summary - by cost (hidden)

Sheet WY Summary - by cost (hidden)

Sheet Model Checks
B2: Model Checks
B3: If the total of all checks is not zero, or very close to zero, find the checks below that are out of balance and follow the calculations
B4: back through the model and correct any errors.
D6: Total of all Checks
D7: =ABS(SUM(D10:D1993)) -> 0.08081062138
B9: Forecasted Demand
C10: Utah | D10: =Calculations!P25-'RevRun Fcst'!T205 -> 0
C11: Wyoming | D11: =Calculations!P44-'RevRun Fcst'!T329 -> 0
C12: Total System | D12: =Calculations!P47-'RevRun Fcst'!T370 -> 0
B13: Forecasted Utah Demand Check by Month
C14: 1 | D14: =Calculations!D25-'RevRun Fcst'!H205 -> 0
C15: 2 | D15: =Calculations!E25-'RevRun Fcst'!I205 -> 0
C16: 3 | D16: =Calculations!F25-'RevRun Fcst'!J205 -> 0
C17: 4 | D17: =Calculations!G25-'RevRun Fcst'!K205 -> 0
C18: 5 | D18: =Calculations!H25-'RevRun Fcst'!L205 -> 0
C19: 6 | D19: =Calculations!I25-'RevRun Fcst'!M205 -> 0
C20: 7 | D20: =Calculations!J25-'RevRun Fcst'!N205 -> 0
C21: 8 | D21: =Calculations!K25-'RevRun Fcst'!O205 -> 0
C22: 9 | D22: =Calculations!L25-'RevRun Fcst'!P205 -> 0
C23: 10 | D23: =Calculations!M25-'RevRun Fcst'!Q205 -> 0
C24: 11 | D24: =Calculations!N25-'RevRun Fcst'!R205 -> 0
C25: 12 | D25: =Calculations!O25-'RevRun Fcst'!S205 -> 0
C26: Wyoming I-2 and I-4 Revenues | D26: =('RevRun Fcst'!T273+'RevRun Fcst'!T282)-Calculations!P65 -> 0
C27: System Sales Volumes | D27: =Calculations!H76-'RevRun Fcst'!T368 -> 0
C28: Utah Sales Volumes | D28: =Calculations!P20-'Utah Summary-by class'!B27 -> 0
B29: Company Production | D29: =Calculations!P120-'Monthly Inputs'!S7-'Monthly Inputs'!S13 -> 0
B30: Injections | D30: ='Monthly Inputs'!S29-SUM('Monthly Inputs'!S23:S28) -> 0
B31: Withdrawls | D31: ='Monthly Inputs'!S37-SUM('Monthly Inputs'!S32:S36) -> 0
B32: Injections & Withdrawls | D32: =SUM('Ut 1.4 p2'!D23:D28)-'Monthly Inputs'!S29-'Monthly Inputs'!S37 -> 0
B33: Injections | D33: =Calculations!P129-'Monthly Inputs'!S29 -> 0
B34: Withdrawls | D34: =Calculations!P137-'Monthly Inputs'!S37 -> 0
B35: Sales for Resale | D35: =Expenses!S445-Calculations!P86 -> 0
B36: Incidental Plant Prod Sales | D36: =Expenses!S446-Calculations!P87 -> 0
B37: Incidental Gas & Oil Sales | D37: =Expenses!S447-Calculations!P89 -> 0
B38: Gasoline and Oil Costs | D38: =Expenses!S450+Calculations!P90 -> 0
B39: Wexpro Revenue Sharing | D39: =Expenses!S449-Calculations!P94 -> 0
B40: Storage Gas | D40: ='Rate Base'!U206-Calculations!P99 -> 0
B41: 101 Production | D41: ='Rate Base'!U148-Calculations!P100 -> 0
B42: 108 Production | D42: ='Rate Base'!U166-Calculations!P101 -> 0
B43: 111 Production | D43: ='Rate Base'!U173-Calculations!P102 -> 0
B44: 255 Production | D44: ='Rate Base'!U241-Calculations!P103 -> 0
B45: 282 Production | D45: ='Rate Base'!U248-Calculations!P104 -> 0
B46: 282.1 Production | D46: ='Rate Base'!U255-Calculations!P105 -> 0
B47: Production Rate Base | D47: =SUM(Calculations!P99:P105)-'Rate Base'!U275 -> 0
B48: Purchased Gas Cost | D48: ='Ut 1.2 p4'!E24-Calculations!P194 -> -0.02424627542
B49: Working Gas Rate Base | D49: =Calculations!P99-'Ut 1.2 p5'!E43 -> 0
B50: Allocations | D50: ='Ut 1.1 p2'!F43-'Ut 1.1 p2'!G43-'Ut 1.1 p2'!H43+'Ut 1.1 p2'!H41 -> -1.490116119e-08
B52: System Sales | D52: ='SDR#1'!C10-'RevRun Fcst'!T368 -> 0
B53: Lost & Unaccounted For | D53: ='SDR#1'!C15-(('SDR#1'!C10+'SDR#1'!C11)/(1-'Other Inputs'!E270)) -> -0.6314175129
B54: Supply / Demand | D54: ='SDR#1'!C36-'SDR#1'!C15 -> -1.417419747
B55: System Sales | D55: ='SDR#3'!H36-'SDR#1'!C10 -> 0
B56: SNG Revenue | D56: ='SDR#4'!G23+'SDR#4'!G33-'Utah Summary-by class'!L27 -> 1.46199441
B57: Utah Sales | D57: ='SDR#3'!D36-'SDR#4'!E23 -> 0
B58: Utah Sales | D58: ='SDR#2'!G71-'Ut 1.1 p2'!H43 -> 0.6918997616
B59: Seasonal Volumes | D59: =Calculations!P52+Calculations!P53-Calculations!P7-Calculations!P8 -> 0
B60: Seasonal Volumes | D60: =Calculations!P55+Calculations!P56-Calculations!P9 -> 0
B61: Seasonal Volumes | D61: =Calculations!P58+Calculations!P59-Calculations!P10 -> 0

Sheet Royalty Detail
D4: Test-Year Cost of Dominion Energy's Production
D5: November 2020 through October 2021
B7: WEXPRO I
B8: (A) | C8: (B) | D8: (C) | E8: (D) | F8: (E) | G8: (F) | H8: (G) | I8: (H)
F9: Base Year | G9: Market | H9: Royalty | I9: Test-Year
B10: Field Name | C10: Well Name | D10: Formation | E10: Price $ | F10: Dth | G10: Value $ | H10: Rate % | I10: Royalty $
A11: 1 | B11: ACE UNIT (CO) | C11: ACE UNIT 10 FT UN | D11: MESAVERDE | E11: 2.921610834 | F11: 42394.75 | G11: =E11*F11 -> 123860.9609 | H11: 0.1268519763 | I11: =G11*H11 -> 15712.00768
A12: 2 | C12: ACE UNIT 11 FT UN | D12: FORT UNION | E12: 2.921610834 | F12: 20712.979 | G12: =E12*F12 -> 60515.26385 | H12: 0.1268519763 | I12: =G12*H12 -> 7676.480817
A13: 3 | C13: ACE UNIT 12 FT UN | D13: FORT UNION | E13: 2.921610834 | F13: 39080.391 | G13: 114177.6937 | H13: 0.1371675 | I13: 15661.46881
A14: 4 | C14: ACE UNIT 13 FT UN | D14: FORT UNION | E14: 2.921610834 | F14: 36040.959 | G14: 105297.6563 | H14: 0.1268519763 | I14: 13357.2158
A15: 5 | C15: ACE UNIT 2 FT UN | D15: FORT UNION | E15: 2.921610834 | F15: 44417.644 | G15: 129771.0699 | H15: 0.1268519763 | I15: 16461.71669
A16: 6 | B16: BIRCH CR (WY) | C16: BIRCH CREEK UNIT 1 BR | D16: BEAR RIVER | E16: 2.921610834 | F16: 6979.068 | G16: 20390.12068 | H16: 0.1329769324 | I16: 2711.4157
A17: 7 | C17: BIRCH CREEK UNIT 1 BR - D24 | D17: BEAR RIVER | E17: 2.921610834 | F17: 2082.126 | G17: 6083.16188 | H17: 0.1329769324 | I17: 808.9202061
A18: 8 | C18: BIRCH CREEK UNIT 1 FR | D18: FRONTIER | E18: 2.921610834 | F18: 6969.413 | G18: 20361.91253 | H18: 0.1329769324 | I18: 2707.664666
A19: 9 | C19: BIRCH CREEK UNIT 1 FR - D24 | D19: FRONTIER | E19: 2.921610834 | F19: 2080.201 | G19: 6077.537779 | H19: 0.1329769324 | I19: 808.1723305
A20: 10 | C20: BIRCH CREEK UNIT 100 FR | D20: FRONTIER | E20: 2.921610834 | F20: 5660.967 | G20: 16539.14252 | H20: 0.1329769324 | I20: 2199.324437
A21: 11 | C21: BIRCH CREEK UNIT 101 BR | D21: BEAR RIVER | E21: 2.921610834 | F21: 531.966 | G21: 1554.197629 | H21: 0.1329769324 | I21: 206.6724331
A22: 12 | C22: BIRCH CREEK UNIT 101 FR | D22: FRONTIER | E22: 2.921610834 | F22: 10116.13 | G22: 29555.39501 | H22: 0.1329769324 | I22: 3930.185764
A23: 13 | C23: BIRCH CREEK UNIT 103 BR | D23: BEAR RIVER | E23: 2.921610834 | F23: 928.034 | G23: 2711.354189 | H23: 0.1329769324 | I23: 360.5475627
A24: 14 | C24: BIRCH CREEK UNIT 103 FR | D24: FRONTIER | E24: 2.921610834 | F24: 8318.306 | G24: 24302.85293 | H24: 0.1329769324 | I24: 3231.718832
A25: 15 | C25: BIRCH CREEK UNIT 104 BR | D25: BEAR RIVER | E25: 2.921610834 | F25: 2497.816 | G25: 7297.646287 | H25: 0.1329769324 | I25: 970.4186171
A26: 16 | C26: BIRCH CREEK UNIT 104 FR | D26: FRONTIER | E26: 2.921610834 | F26: 10663.816 | G26: 31155.52036 | H26: 0.1329769324 | I26: 4142.965525
A27: 17 | C27: BIRCH CREEK UNIT 105 BR | D27: BEAR RIVER | E27: 2.921610834 | F27: 8082.325 | G27: 23613.40828 | H27: 0.1329769324 | I27: 3140.038598
A28: 18 | C28: BIRCH CREEK UNIT 105 FR | D28: FRONTIER | E28: 2.921610834 | F28: 9103.365 | G28: 26596.48981 | H28: 0.1329769324 | I28: 3536.719628
A29: 19 | C29: BIRCH CREEK UNIT 106 BR | D29: BEAR RIVER | E29: 2.921610834 | F29: 5692.907 | G29: 16632.45877 | H29: 0.1329769324 | I29: 2211.733346
A30: 20 | C30: BIRCH CREEK UNIT 106 FR | D30: FRONTIER | E30: 2.921610834 | F30: 20199.289 | G30: 59014.46158 | H30: 0.1329769324 | I30: 7847.56207
A31: 21 | C31: BIRCH CREEK UNIT 107 BR | D31: BEAR RIVER | E31: 2.921610834 | F31: 1559.06 | G31: 4554.966587 | H31: 0.1329769324 | I31: 605.705484
A32: 22 | C32: BIRCH CREEK UNIT 107 FR | D32: FRONTIER | E32: 2.921610834 | F32: 1494.718 | G32: 4366.984303 | H32: 0.1329769324 | I32: 580.7081765
A33: 23 | C33: BIRCH CREEK UNIT 108 BR | D33: BEAR RIVER | E33: 2.921610834 | F33: 1642.04 | G33: 4797.401854 | H33: 0.1329769324 | I33: 637.9437821
A34: 24 | C34: BIRCH CREEK UNIT 108 FR | D34: FRONTIER | E34: 2.921610834 | F34: 8021.21 | G34: 23434.85404 | H34: 0.1329769324 | I34: 3116.295002
A35: 25 | C35: BIRCH CREEK UNIT 109 BAX | D35: BAXTER | E35: 2.921610834 | F35: 2914.895 | G35: 8516.188812 | H35: 0.13375 | I35: 1139.040254
A36: 26 | C36: BIRCH CREEK UNIT 109 BR | D36: BEAR RIVER | E36: 2.921610834 | F36: 7011.888 | G36: 20486.00795 | H36: 0.1329769324 | I36: 2724.166494
A37: 27 | C37: BIRCH CREEK UNIT 109 FR | D37: FRONTIER | E37: 2.921610834 | F37: 6373.157 | G37: 18619.88454 | H37: 0.1329769324 | I37: 2476.015128
A38: 28 | C38: BIRCH CREEK UNIT 110 BR | D38: BEAR RIVER | E38: 2.921610834 | F38: 9166.971 | G38: 26782.32179 | H38: 0.1329769324 | I38: 3561.430995
A39: 29 | C39: BIRCH CREEK UNIT 110 FR | D39: FRONTIER | E39: 2.921610834 | F39: 8464.194 | G39: 24729.08089 | H39: 0.1329769324 | I39: 3288.397319
A40: 30 | C40: BIRCH CREEK UNIT 111 BR | D40: BEAR RIVER | E40: 2.921610834 | F40: 10103.832 | G40: 29519.46504 | H40: 0.1329769324 | I40: 3925.407907
A41: 31 | C41: BIRCH CREEK UNIT 111 FR | D41: FRONTIER | E41: 2.921610834 | F41: 3736.926 | G41: 10917.84349 | H41: 0.1329769324 | I41: 1451.821336
A42: 32 | C42: BIRCH CREEK UNIT 112 BR | D42: BEAR RIVER | E42: 2.921610834 | F42: 4530.454 | G42: 13236.22349 | H42: 0.1329769324 | I42: 1760.112396
A43: 33 | C43: BIRCH CREEK UNIT 112 FR | D43: FRONTIER | E43: 2.921610834 | F43: 12247.819 | G43: 35783.36068 | H43: 0.1329769324 | I43: 4758.361535
A44: 34 | C44: BIRCH CREEK UNIT 113 BR | D44: BEAR RIVER | E44: 2.921610834 | F44: 13058.788 | G44: 38152.6965 | H44: 0.1329769324 | I44: 5073.428544
A45: 35 | C45: BIRCH CREEK UNIT 113 FR | D45: FRONTIER | E45: 2.921610834 | F45: 3903.756 | G45: 11405.25582 | H45: 0.1329769324 | I45: 1516.635933
A46: 36 | C46: BIRCH CREEK UNIT 114 BR | D46: BEAR RIVER | E46: 2.921610834 | F46: 15965.232 | G46: 46644.19478 | H46: 0.1329769324 | I46: 6202.601937
A47: 37 | C47: BIRCH CREEK UNIT 114 FR | D47: FRONTIER | E47: 2.921610834 | F47: 3739.848 | G47: 10926.38043 | H47: 0.1329769324 | I47: 1452.956553
A48: 38 | C48: BIRCH CREEK UNIT 115 BR | D48: BEAR RIVER | E48: 2.921610834 | F48: 3452.812 | G48: 10087.77295 | H48: 0.1329769324 | I48: 1341.441101
A49: 39 | C49: BIRCH CREEK UNIT 115 FR | D49: FRONTIER | E49: 2.921610834 | F49: 11564.658 | G49: 33787.43011 | H49: 0.1329769324 | I49: 4492.94881
A50: 40 | C50: BIRCH CREEK UNIT 116 BR | D50: BEAR RIVER | E50: 2.921610834 | F50: 8881.98 | G50: 25949.689 | H50: 0.1329769324 | I50: 3450.71004
A51: 41 | C51: BIRCH CREEK UNIT 116 FR | D51: FRONTIER | E51: 2.921610834 | F51: 3128.282 | G51: 9139.622583 | H51: 0.1329769324 | I51: 1215.358975
A52: 42 | C52: BIRCH CREEK UNIT 117 BAX | D52: BAXTER | E52: 2.921610834 | F52: 917.128 | G52: 2679.491101 | H52: 0.13375 | I52: 358.3819348
A53: 43 | C53: BIRCH CREEK UNIT 117 BR | D53: BEAR RIVER | E53: 2.921610834 | F53: 607.929 | G53: 1776.131953 | H53: 0.1329769324 | I53: 236.1845786
A54: 44 | C54: BIRCH CREEK UNIT 117 FR | D54: FRONTIER | E54: 2.921610834 | F54: 6101.826 | G54: 17827.16095 | H54: 0.1329769324 | I54: 2370.601177
A55: 45 | C55: BIRCH CREEK UNIT 118 BR | D55: BEAR RIVER | E55: 2.921610834 | F55: 1023.038 | G55: 2988.918905 | H55: 0.1329769324 | I55: 397.4572672
A56: 46 | C56: BIRCH CREEK UNIT 118 FR | D56: FRONTIER | E56: 2.921610834 | F56: 9212.54 | G56: 26915.45667 | H56: 0.1329769324 | I56: 3579.134863
A57: 47 | C57: BIRCH CREEK UNIT 119 BR | D57: BEAR RIVER | E57: 2.921610834 | F57: 3779.818 | G57: 11043.15722 | H57: 0.1329769324 | I57: 1468.485171
A58: 48 | C58: BIRCH CREEK UNIT 119 FR | D58: FRONTIER | E58: 2.921610834 | F58: 15130.989 | G58: 44206.86139 | H58: 0.1329769324 | I58: 5878.49282
A59: 49 | C59: BIRCH CREEK UNIT 121 BR | D59: BEAR RIVER | E59: 2.921610834 | F59: 17518.181 | G59: 51181.3074 | H59: 0.1329769324 | I59: 6805.933256
A60: 50 | C60: BIRCH CREEK UNIT 121 FR | D60: FRONTIER | E60: 2.921610834 | F60: 3588.815 | G60: 10485.12079 | H60: 0.1329769324 | I60: 1394.279198
A61: 51 | C61: BIRCH CREEK UNIT 122 BR | D61: BEAR RIVER | E61: 2.921610834 | F61: 3810.193 | G61: 11131.90115 | H61: 0.1329769324 | I61: 1480.286067
A62: 52 | C62: BIRCH CREEK UNIT 122 FR | D62: FRONTIER | E62: 2.921610834 | F62: 13107.687 | G62: 38295.56035 | H62: 0.1329769324 | I62: 5092.42614
A63: 53 | C63: BIRCH CREEK UNIT 123 BR | D63: BEAR RIVER | E63: 2.921610834 | F63: 4268.001 | G63: 12469.43796 | H63: 0.1329769324 | I63: 1658.147609
A64: 54 | C64: BIRCH CREEK UNIT 123 FR | D64: FRONTIER | E64: 2.921610834 | F64: 12797.528 | G64: 37389.39645 | H64: 0.1329769324 | I64: 4971.927245
A65: 55 | C65: BIRCH CREEK UNIT 124 BR | D65: BEAR RIVER | E65: 2.921610834 | F65: 2541.635 | G65: 7425.668352 | H65: 0.1329769324 | I65: 987.4425986
A66: 56 | C66: BIRCH CREEK UNIT 124 FR | D66: FRONTIER | E66: 2.921610834 | F66: 10158.88 | G66: 29680.29387 | H66: 0.1329769324 | I66: 3946.794432
A67: 57 | C67: BIRCH CREEK UNIT 126 BR | D67: BEAR RIVER | E67: 2.921610834 | F67: 7551.239 | G67: 22061.78167 | H67: 0.1329769324 | I67: 2933.708051
A68: 58 | C68: BIRCH CREEK UNIT 126 FR | D68: FRONTIER | E68: 2.921610834 | F68: 11326.837 | G68: 33092.6097 | H68: 0.1329769324 | I68: 4400.553723
A69: 59 | C69: BIRCH CREEK UNIT 127 BR | D69: DAKOTA | E69: 2.921610834 | F69: 5570.244 | G69: 16274.08522 | H69: 0.1329769324 | I69: 2164.07793
A70: 60 | C70: BIRCH CREEK UNIT 127 FR | D70: FRONTIER | E70: 2.921610834 | F70: 1394.111 | G70: 4073.049802 | H70: 0.1329769324 | I70: 541.6216682
A71: 61 | C71: BIRCH CREEK UNIT 128 FR | D71: FRONTIER | E71: 2.921610834 | F71: 23994.296 | G71: 70101.99515 | H71: 0.1329769324 | I71: 9321.948271
A72: 62 | C72: BIRCH CREEK UNIT 129 BR | D72: BEAR RIVER | E72: 2.921610834 | F72: 561.98 | G72: 1641.886857 | H72: 0.1329769324 | I72: 218.3330776
A73: 63 | C73: BIRCH CREEK UNIT 129 FR | D73: FRONTIER | E73: 2.921610834 | F73: 10666.003 | G73: 31161.90992 | H73: 0.1329769324 | I73: 4143.81519
A74: 64 | C74: BIRCH CREEK UNIT 130 BR | D74: BEAR RIVER | E74: 2.921610834 | F74: 10232.979 | G74: 29896.78231 | H74: 0.1329769324 | I74: 3975.582401
A75: 65 | C75: BIRCH CREEK UNIT 130 FR | D75: FRONTIER | E75: 2.921610834 | F75: 12509.245 | G75: 36547.14572 | H75: 0.1329769324 | I75: 4859.927326
A76: 66 | C76: BIRCH CREEK UNIT 131 FR | D76: FRONTIER | E76: 2.921610834 | F76: 15527.494 | G76: =E76*F76 -> 45365.2947 | H76: 0.1329769324 | I76: =G76*H76 -> 6032.537727
A77: 67 | C77: BIRCH CREEK UNIT 132 BR | D77: BEAR RIVER | E77: 2.921610834 | F77: 2524.088 | G77: 7374.402847 | H77: 0.1329769324 | I77: 980.625469
A78: 68 | C78: BIRCH CREEK UNIT 132 FR | D78: FRONTIER | E78: 2.921610834 | F78: 14244.228 | G78: 41616.09085 | H78: 0.1329769324 | I78: 5533.9801
A79: 69 | C79: BIRCH CREEK UNIT 133 BR | D79: BEAR RIVER | E79: 2.921610834 | F79: 5274.747 | G79: 15410.75798 | H79: 0.1329769324 | I79: 2049.275323
A80: 70 | C80: BIRCH CREEK UNIT 133 FR | D80: FRONTIER | E80: 2.921610834 | F80: 21105.634 | G80: 61662.44896 | H80: 0.1329769324 | I80: 8199.683307
A81: 71 | C81: BIRCH CREEK UNIT 134 BR | D81: BEAR RIVER | E81: 2.921610834 | F81: 13278.74 | G81: 38795.31065 | H81: 0.1329769324 | I81: 5158.881402
A82: 72 | C82: BIRCH CREEK UNIT 134 FR | D82: FRONTIER | E82: 2.921610834 | F82: 18338.008 | G82: 53576.52285 | H82: 0.1329769324 | I82: 7124.441658
A83: 73 | C83: BIRCH CREEK UNIT 135 BR | D83: BEAR RIVER | E83: 2.921610834 | F83: 937.312 | G83: 2738.460894 | H83: 0.1329769324 | I83: 364.1521292
A84: 74 | C84: BIRCH CREEK UNIT 135 FR | D84: FRONTIER | E84: 2.921610834 | F84: 1407.006 | G84: 4110.723973 | H84: 0.1329769324 | I84: 546.631464
A85: 75 | C85: BIRCH CREEK UNIT 137 BR | D85: BEAR RIVER | E85: 2.921610834 | F85: 5258.027 | G85: 15361.90865 | H85: 0.1329769324 | I85: 2042.779488
A86: 76 | C86: BIRCH CREEK UNIT 137 FR | D86: FRONTIER | E86: 2.921610834 | F86: 8582.392 | G86: 25074.40945 | H86: 0.1329769324 | I86: 3334.318051
A87: 77 | C87: BIRCH CREEK UNIT 138 BR | D87: BEAR RIVER | E87: 2.921610834 | F87: 292.978 | G87: 855.967699 | H87: 0.1329769324 | I87: 113.8239589
A88: 78 | C88: BIRCH CREEK UNIT 138 FR | D88: FRONTIER | E88: 2.921610834 | F88: 7052.218 | G88: 20603.83651 | H88: 0.1329769324 | I88: 2739.834976
A89: 79 | C89: BIRCH CREEK UNIT 139 BR | D89: BEAR RIVER | E89: 2.921610834 | F89: 10046.799 | G89: 29352.83681 | H89: 0.1329769324 | I89: 3903.250196
A90: 80 | C90: BIRCH CREEK UNIT 139 FR | D90: FRONTIER | E90: 2.921610834 | F90: 7212.057 | G90: 21070.82387 | H90: 0.1331519628 | I90: 2805.621555
A91: 81 | C91: BIRCH CREEK UNIT 13A BR | D91: BEAR RIVER | E91: 2.921610834 | F91: 7738.105 | G91: 22607.7314 | H91: 0.1329769324 | I91: 3006.306771
A92: 82 | C92: BIRCH CREEK UNIT 13A FR | D92: FRONTIER | E92: 2.921610834 | F92: 7725.935 | G92: 22572.1754 | H92: 0.1329769324 | I92: 3001.578643
A93: 83 | C93: BIRCH CREEK UNIT 140 BR | D93: BEAR RIVER | E93: 2.921610834 | F93: 3261.492 | G93: 9528.810363 | H93: 0.1329769324 | I93: 1267.111972
A94: 84 | C94: BIRCH CREEK UNIT 140 FR | D94: FRONTIER | E94: 2.921610834 | F94: 18488.927 | G94: 54017.44943 | H94: 0.1329769324 | I94: 7183.074723
A95: 85 | C95: BIRCH CREEK UNIT 141 BR | D95: BEAR RIVER | E95: 2.921610834 | F95: 14001.395 | G95: 40906.62732 | H95: 0.1329769324 | I95: 5439.637817
A96: 86 | C96: BIRCH CREEK UNIT 141 FR | D96: FRONTIER | E96: 2.921610834 | F96: 4662.637 | G96: 13622.41077 | H96: 0.1329769324 | I96: 1811.466397
A97: 87 | C97: BIRCH CREEK UNIT 142 BR | D97: BEAR RIVER | E97: 2.921610834 | F97: 2861.258 | G97: 8359.482372 | H97: 0.1329769324 | I97: 1111.618322
A98: 88 | C98: BIRCH CREEK UNIT 142 FR | D98: FRONTIER | E98: 2.921610834 | F98: 6675.324 | G98: 19502.69892 | H98: 0.1329769324 | I98: 2593.409076
A99: 89 | C99: BIRCH CREEK UNIT 144 BR | D99: BEAR RIVER | E99: 2.921610834 | F99: 652.028 | G99: 1904.972069 | H99: 0.1329769324 | I99: 253.3173421
A100: 90 | C100: BIRCH CREEK UNIT 144 FR | D100: FRONTIER | E100: 2.921610834 | F100: 10223.266 | G100: 29868.40471 | H100: 0.1329769324 | I100: 3971.808834
A101: 91 | C101: BIRCH CREEK UNIT 145 BR | D101: BEAR RIVER | E101: 2.921610834 | F101: 1280.761 | G101: 3741.885214 | H101: 0.1329769324 | I101: 497.5844171
A102: 92 | C102: BIRCH CREEK UNIT 145 FR | D102: FRONTIER | E102: 2.921610834 | F102: 9384.337 | G102: 27417.38065 | H102: 0.1329769324 | I102: 3645.879174
A103: 93 | C103: BIRCH CREEK UNIT 146 BR | D103: BEAR RIVER | E103: 2.921610834 | F103: 12102.786 | G103: 35359.6307 | H103: 0.1329769324 | I103: 4702.015222
A104: 94 | C104: BIRCH CREEK UNIT 146 FR | D104: FRONTIER | E104: 2.921610834 | F104: 4027.023 | G104: 11765.39403 | H104: 0.1329769324 | I104: 1564.526006
A105: 95 | C105: BIRCH CREEK UNIT 148 BR | D105: BEAR RIVER | E105: 2.921610834 | F105: 235.02 | G105: 686.6369782 | H105: 0.1329769324 | I105: 91.30687905
A106: 96 | C106: BIRCH CREEK UNIT 148 FR | D106: FRONTIER | E106: 2.921610834 | F106: 23065.278 | G106: 67387.7661 | H106: 0.1329769324 | I106: 8961.018418
A107: 97 | C107: BIRCH CREEK UNIT 149 BR | D107: BEAR RIVER | E107: 2.921610834 | F107: 5087.855 | G107: 14864.73229 | H107: 0.1329769324 | I107: 1976.666501
A108: 98 | C108: BIRCH CREEK UNIT 149 FR | D108: FRONTIER | E108: 2.921610834 | F108: 18043.306 | G108: 52715.51829 | H108: 0.1329769324 | I108: 7009.947913
A109: 99 | C109: BIRCH CREEK UNIT 151 BR | D109: BEAR RIVER | E109: 2.921610834 | F109: 5154.109 | G109: 15058.30069 | H109: 0.1329769324 | I109: 2002.406634
A110: 100 | C110: BIRCH CREEK UNIT 151 FR | D110: FRONTIER | E110: 2.921610834 | F110: 7106.565 | G110: 20762.6173 | H110: 0.1329769324 | I110: 2760.949157
A111: 101 | C111: BIRCH CREEK UNIT 153 ALMY | D111: ALMY | E111: 2.921610834 | F111: 925.021 | G111: 2702.551375 | H111: 0.13375 | I111: 361.4662465
A112: 102 | C112: BIRCH CREEK UNIT 157 MESA | D112: MESAVERDE | E112: 2.921610834 | F112: 992.072 | G112: 2898.448303 | H112: 0.13375 | I112: 387.6674606
A113: 103 | C113: BIRCH CREEK UNIT 159 MESA | D113: MESAVERDE | E113: 2.921610834 | F113: 8685.38 | G113: 25375.30031 | H113: 0.13375 | I113: 3393.946416
A114: 104 | C114: BIRCH CREEK UNIT 164 FR | D114: FRONTIER | E114: 2.921610834 | F114: 17889.353 | G114: 52265.72754 | H114: 0.1329769324 | I114: 6950.136119
A115: 105 | C115: BIRCH CREEK UNIT 166 BR | D115: BEAR RIVER | E115: 2.921610834 | F115: 4736.744 | G115: 13838.92259 | H115: 0.1329769324 | I115: 1840.257474
A116: 106 | C116: BIRCH CREEK UNIT 166 FR | D116: FRONTIER | E116: 2.921610834 | F116: 1187.067 | G116: 3468.147808 | H116: 0.1329769324 | I116: 461.1836567
A117: 107 | C117: BIRCH CREEK UNIT 167 BR | D117: BEAR RIVER | E117: 2.921610834 | F117: 1718.101 | G117: 5019.622496 | H117: 0.1329769324 | I117: 667.4940014
A118: 108 | C118: BIRCH CREEK UNIT 167 FR | D118: FRONTIER | E118: 2.921610834 | F118: 6866.836 | G118: 20062.22245 | H118: 0.1329769324 | I118: 2667.812799
A119: 109 | C119: BIRCH CREEK UNIT 168 BR | D119: BEAR RIVER | E119: 2.921610834 | F119: 841.12 | G119: 2457.425305 | H119: 0.1329769324 | I119: 326.7808787
A120: 110 | C120: BIRCH CREEK UNIT 168 RECOM BAX | D120: BAXTER | E120: 2.921610834 | F120: 1428.205 | G120: 4172.659201 | H120: 0.13375 | I120: 558.0931682
A121: 111 | C121: BIRCH CREEK UNIT 168 RECOM FR | D121: FRONTIER | E121: 2.921610834 | F121: 3441.087 | G121: 10053.51706 | H121: 0.1329769324 | I121: 1336.885859
A122: 112 | C122: BIRCH CREEK UNIT 169 BR | D122: BEAR RIVER | E122: 2.921610834 | F122: 3119.992 | G122: 9115.40243 | H122: 0.1329769324 | I122: 1212.138253
A123: 113 | C123: BIRCH CREEK UNIT 169 FR | D123: FRONTIER | E123: 2.921610834 | F123: 12470.631 | G123: 36434.33064 | H123: 0.1329769324 | I123: 4844.925523
A124: 114 | C124: BIRCH CREEK UNIT 173 BR | D124: BEAR RIVER | E124: 2.921610834 | F124: 6428.303 | G124: 18780.99969 | H124: 0.1329769324 | I124: 2497.439726
A125: 115 | C125: BIRCH CREEK UNIT 173 FR | D125: FRONTIER | E125: 2.921610834 | F125: 18288.931 | G125: 53433.13895 | H125: 0.1329769324 | I125: 7105.374907
A126: 116 | C126: BIRCH CREEK UNIT 174 BR | D126: BEAR RIVER | E126: 2.921610834 | F126: 10953.994 | G126: 32003.30755 | H126: 0.1329769324 | I126: 4255.701665
A127: 117 | C127: BIRCH CREEK UNIT 174 FR | D127: FRONTIER | E127: 2.921610834 | F127: 10834.106 | G127: 31653.04147 | H127: 0.1329769324 | I127: 4209.124356
A128: 118 | C128: BIRCH CREEK UNIT 177 BR | D128: BEAR RIVER | E128: 2.921610834 | F128: 3418.171 | G128: 9986.565426 | H128: 0.1329769324 | I128: 1327.982836
A129: 119 | C129: BIRCH CREEK UNIT 177 FR | D129: FRONTIER | E129: 2.921610834 | F129: 13688.427 | G129: 39992.25663 | H129: 0.1329769324 | I129: 5318.047606
A130: 120 | C130: BIRCH CREEK UNIT 178 BR | D130: BEAR RIVER | E130: 2.921610834 | F130: 5157.302 | G130: 15067.6294 | H130: 0.1329769324 | I130: 2003.647136
A131: 121 | C131: BIRCH CREEK UNIT 178 FR | D131: FRONTIER | E131: 2.921610834 | F131: 20630.668 | G131: 60274.78314 | H131: 0.1329769324 | I131: 8015.155764
A132: 122 | C132: BIRCH CREEK UNIT 179 BR | D132: BEAR RIVER | E132: 2.921610834 | F132: 3422.636 | G132: 9999.610419 | H132: 0.1329769324 | I132: 1329.717519
A133: 123 | C133: BIRCH CREEK UNIT 179 FR | D133: FRONTIER | E133: 2.921610834 | F133: 2276.916 | G133: 6652.262454 | H133: 0.1329769324 | I133: 884.5974548
A134: 124 | C134: BIRCH CREEK UNIT 180 FR | D134: FRONTIER | E134: 2.921610834 | F134: 12775.835 | G134: 37326.01795 | H134: 0.1329769324 | I134: 4963.499366
A135: 125 | C135: BIRCH CREEK UNIT 181 BR | D135: BEAR RIVER | E135: 2.921610834 | F135: 2979.196 | G135: 8704.051311 | H135: 0.1329769324 | I135: 1157.438043
A136: 126 | C136: BIRCH CREEK UNIT 181 FR | D136: FRONTIER | E136: 2.921610834 | F136: 11899.151 | G136: 34764.68848 | H136: 0.1329769324 | I136: 4622.90163
A137: 127 | C137: BIRCH CREEK UNIT 182 BR | D137: BEAR RIVER | E137: 2.921610834 | F137: 3149.337 | G137: 9201.137099 | H137: 0.1329769324 | I137: 1223.538986
A138: 128 | C138: BIRCH CREEK UNIT 182 FR | D138: FRONTIER | E138: 2.921610834 | F138: 4716.771 | G138: 13780.56926 | H138: 0.1329769324 | I138: 1832.497827
A139: 129 | C139: BIRCH CREEK UNIT 183 BR | D139: BEAR RIVER | E139: 2.921610834 | F139: 7591.618 | G139: 22179.7534 | H139: 0.1329769324 | I139: 2949.395569
A140: 130 | C140: BIRCH CREEK UNIT 183 FR | D140: FRONTIER | E140: 2.921610834 | F140: 11381.045 | G140: =E140*F140 -> 33250.98438 | H140: 0.1329769324 | I140: =G140*H140 -> 4421.613902
A141: 131 | C141: BIRCH CREEK UNIT 184 BR | D141: BEAR RIVER | E141: 2.921610834 | F141: 1849.086 | G141: 5402.309691 | H141: 0.1329769324 | I141: 718.3825706
A142: 132 | C142: BIRCH CREEK UNIT 184 FR | D142: FRONTIER | E142: 2.921610834 | F142: 16675.35 | G142: 48718.88322 | H142: 0.1329769324 | I142: 6478.487642
A143: 133 | C143: BIRCH CREEK UNIT 185 BR | D143: BEAR RIVER | E143: 2.921610834 | F143: 5556.985 | G143: 16235.34758 | H143: 0.1329769324 | I143: 2158.926718
A144: 134 | C144: BIRCH CREEK UNIT 185 FR | D144: FRONTIER | E144: 2.921610834 | F144: 12964.1 | G144: 37876.05501 | H144: 0.1329769324 | I144: 5036.641608
A145: 135 | C145: BIRCH CREEK UNIT 187 BR | D145: BEAR RIVER | E145: 2.921610834 | F145: 6963.956 | G145: 20345.9693 | H145: 0.1329769324 | I145: 2705.544584
A146: 136 | C146: BIRCH CREEK UNIT 187 FR | D146: FRONTIER | E146: 2.921610834 | F146: 12380.41 | G146: 36170.73999 | H146: 0.1329769324 | I146: 4809.874047
A147: 137 | C147: BIRCH CREEK UNIT 188 FR | D147: FRONTIER | E147: 2.921610834 | F147: 19535.786 | G147: 57075.96403 | H147: 0.1329769324 | I147: 7589.786611
A148: 138 | C148: BIRCH CREEK UNIT 189 BR | D148: BEAR RIVER | E148: 2.921610834 | F148: 7027.059 | G148: 20530.33171 | H148: 0.1329769324 | I148: 2730.060532
A149: 139 | C149: BIRCH CREEK UNIT 189 FR | D149: FRONTIER | E149: 2.921610834 | F149: 10120.182 | G149: 29567.23337 | H149: 0.1329769324 | I149: 3931.759994
A150: 140 | C150: BIRCH CREEK UNIT 190 BR | D150: BEAR RIVER | E150: 2.921610834 | F150: 2301.951 | G150: 6725.404981 | H150: 0.1329769324 | I150: 894.3237237
A151: 141 | C151: BIRCH CREEK UNIT 190 FR | D151: FRONTIER | E151: 2.921610834 | F151: 20671.858 | G151: 60395.12429 | H151: 0.1329769324 | I151: 8031.158362
A152: 142 | C152: BIRCH CREEK UNIT 191 BR | D152: BEAR RIVER | E152: 2.921610834 | F152: 3152.092 | G152: 9209.186137 | H152: 0.1329769324 | I152: 1224.609323
A153: 143 | C153: BIRCH CREEK UNIT 191 FR | D153: FRONTIER | E153: 2.921610834 | F153: 13444.674 | G153: 39280.10522 | H153: 0.1329769324 | I153: 5223.347897
A154: 144 | C154: BIRCH CREEK UNIT 192 BR | D154: BEAR RIVER | E154: 2.921610834 | F154: 1532.096 | G154: 4476.188272 | H154: 0.1329769324 | I154: 595.2297854
A155: 145 | C155: BIRCH CREEK UNIT 192 FR | D155: FRONTIER | E155: 2.921610834 | F155: 24010.052 | G155: 70148.02805 | H155: 0.1329769324 | I155: 9328.069585
A156: 146 | C156: BIRCH CREEK UNIT 193 BR | D156: BEAR RIVER | E156: 2.921610834 | F156: 829.974 | G156: 2424.86103 | H156: 0.1329769324 | I156: 322.4505814
A157: 147 | C157: BIRCH CREEK UNIT 193 FR | D157: FRONTIER | E157: 2.921610834 | F157: 15749.652 | G157: 46014.35392 | H157: 0.1329769324 | I157: 6118.847631
A158: 148 | C158: BIRCH CREEK UNIT 194 BR | D158: BEAR RIVER | E158: 2.921610834 | F158: 1472.044 | G158: 4300.739699 | H158: 0.1329769324 | I158: 571.8991723
A159: 149 | C159: BIRCH CREEK UNIT 194 FR | D159: FRONTIER | E159: 2.921610834 | F159: 23087.232 | G159: 67451.90714 | H159: 0.1329769324 | I159: 8969.547697
A160: 150 | C160: BIRCH CREEK UNIT 195 BR | D160: BEAR RIVER | E160: 2.921610834 | F160: 3514.167 | G160: 10267.02838 | H160: 0.1329769324 | I160: 1365.277939
A161: 151 | C161: BIRCH CREEK UNIT 195 FR | D161: FRONTIER | E161: 2.921610834 | F161: 25757.427 | G161: 75253.17778 | H161: 0.1329769324 | I161: 10006.93674
A162: 152 | C162: BIRCH CREEK UNIT 196 BR | D162: BEAR RIVER | E162: 2.921610834 | F162: 386.978 | G162: 1130.599117 | H162: 0.1329769324 | I162: 150.3436024
A163: 153 | C163: BIRCH CREEK UNIT 196 FR | D163: FRONTIER | E163: 2.921610834 | F163: 18753.555 | G163: 54790.58947 | H163: 0.1329769324 | I163: 7285.884512
A164: 154 | C164: BIRCH CREEK UNIT 198 BR | D164: BEAR RIVER | E164: 2.921610834 | F164: 3817.23 | G164: 11152.46052 | H164: 0.1329769324 | I164: 1483.019989
A165: 155 | C165: BIRCH CREEK UNIT 198 FR | D165: FRONTIER | E165: 2.921610834 | F165: 2243.009 | G165: 6553.199395 | H165: 0.1329769324 | I165: 871.4243531
A166: 156 | C166: BIRCH CREEK UNIT 199 BR | D166: BEAR RIVER | E166: 2.921610834 | F166: 1000.91 | G166: 2924.2695 | H166: 0.1329769324 | I166: 388.8603877
A167: 157 | C167: BIRCH CREEK UNIT 199 FR | D167: FRONTIER | E167: 2.921610834 | F167: 10139.739 | G167: 29624.37132 | H167: 0.1329769324 | I167: 3939.358023
A168: 158 | C168: BIRCH CREEK UNIT 2 BR | D168: BEAR RIVER | E168: 2.921610834 | F168: 4089.06 | G168: 11946.642 | H168: 0.1329769324 | I168: 1588.627805
A169: 159 | C169: BIRCH CREEK UNIT 2 FR | D169: FRONTIER | E169: 2.921610834 | F169: 6678.693 | G169: 19512.54183 | H169: 0.1329769324 | I169: 2594.717956
A170: 160 | C170: BIRCH CREEK UNIT 200 BR | D170: BEAR RIVER | E170: 2.921610834 | F170: 2637.245 | G170: 7705.003564 | H170: 0.1329769324 | I170: 1024.587738
A171: 161 | C171: BIRCH CREEK UNIT 200 FR | D171: FRONTIER | E171: 2.921610834 | F171: 7930.079 | G171: 23168.60472 | H171: 0.1329769324 | I171: 3080.889984
A172: 162 | C172: BIRCH CREEK UNIT 201-25 BR | D172: BEAR RIVER | E172: 2.921610834 | F172: 2679.388 | G172: 7828.12901 | H172: 0.1329769324 | I172: 1040.960582
A173: 163 | C173: BIRCH CREEK UNIT 201-25 FR | D173: FRONTIER | E173: 2.921610834 | F173: 6262.721 | G173: 18297.23352 | H173: 0.1329769324 | I173: 2433.109986
A174: 164 | C174: BIRCH CREEK UNIT 202-25 BR | D174: BEAR RIVER | E174: 2.921610834 | F174: 5136.99 | G174: 15008.28564 | H174: 0.1329769324 | I174: 1995.755785
A175: 165 | C175: BIRCH CREEK UNIT 202-25 FR | D175: FRONTIER | E175: 2.921610834 | F175: 11985.962 | G175: 35018.31644 | H175: 0.1329769324 | I175: 4656.628298
A176: 166 | C176: BIRCH CREEK UNIT 203-25 BR | D176: BEAR RIVER | E176: 2.921610834 | F176: 6826.781 | G176: 19945.19733 | H176: 0.1329769324 | I176: 2652.251158
A177: 167 | C177: BIRCH CREEK UNIT 203-25 FR | D177: FRONTIER | E177: 2.921610834 | F177: 15929.675 | G177: 46540.31106 | H177: 0.1329769324 | I177: 6188.787799
A178: 168 | C178: BIRCH CREEK UNIT 26 FR | D178: FRONTIER | E178: 2.921610834 | F178: 6195.044 | G178: 18099.50767 | H178: 0.1329769324 | I178: 2406.817008
A179: 169 | C179: BIRCH CREEK UNIT 3 FFR | D179: 1ST FRONTIER | E179: 2.921610834 | F179: 16811.086 | G179: 49115.45099 | H179: 0.1329769324 | I179: 6531.222007
A180: 170 | C180: BIRCH CREEK UNIT 36 ALMY | D180: ALMY | E180: 2.921610834 | F180: 1053.055 | G180: 3076.616897 | H180: 0.13375 | I180: 411.49751
A181: 171 | C181: BIRCH CREEK UNIT 38 ALMY | D181: ALMY | E181: 2.921610834 | F181: 4087.429 | G181: 11941.87685 | H181: 0.13375 | I181: 1597.226029
A182: 172 | C182: BIRCH CREEK UNIT 43A BR | D182: BEAR RIVER | E182: 2.921610834 | F182: 1149.008 | G182: 3356.954221 | H182: 0.1329769324 | I182: 446.3974746
A183: 173 | C183: BIRCH CREEK UNIT 43A FR | D183: FRONTIER | E183: 2.921610834 | F183: 10310.407 | G183: 30122.9968 | H183: 0.1329769324 | I183: 4005.663709
A184: 174 | C184: BIRCH CREEK UNIT 5 2ND FR | D184: FRONTIER | E184: 2.921610834 | F184: 1929.081 | G184: 5636.023949 | H184: 0.1329769324 | I184: 749.4611758
A185: 175 | C185: BIRCH CREEK UNIT 5 FR | D185: FORT UNION | E185: 2.921610834 | F185: 2091.079 | G185: 6109.319061 | H185: 0.1329769324 | I185: 812.3985079
A186: 176 | C186: BIRCH CREEK UNIT 56 2ND FR | D186: FRONTIER | E186: 2.921610834 | F186: 4637.297 | G186: 13548.37716 | H186: 0.1329769324 | I186: 1801.621633
A187: 177 | C187: BIRCH CREEK UNIT 6 FR | D187: FRONTIER | E187: 2.921610834 | F187: 9902.137 | G187: 28930.19074 | H187: 0.1329769324 | I187: 3847.048019
A188: 178 | C188: BIRCH CREEK UNIT 61 BR | D188: BEAR RIVER | E188: 2.921610834 | F188: 2770.804 | G188: 8095.210986 | H188: 0.1329769324 | I188: 1076.476324
A189: 179 | C189: BIRCH CREEK UNIT 61 FR | D189: FRONTIER | E189: 2.921610834 | F189: 11065.164 | G189: 32328.10302 | H189: 0.1329769324 | I189: 4298.891971
A190: 180 | C190: BIRCH CREEK UNIT 69 MESA | D190: MESAVERDE | E190: 2.921610834 | F190: 97.992 | G190: 286.2944889 | H190: 0.1337500665 | I190: 38.29190692
A191: 181 | C191: BIRCH CREEK UNIT 7 FR | D191: FRONTIER | E191: 2.921610834 | F191: 5461.637 | G191: 15956.77783 | H191: 0.1329769324 | I191: 2121.883367
A192: 182 | C192: BIRCH CREEK UNIT 8 FR | D192: FRONTIER | E192: 2.921610834 | F192: 17072.477 | G192: 49879.13377 | H192: 0.1329769324 | I192: 6632.7742
A193: 183 | C193: BIRCH CREEK UNIT 87 2ND FR | D193: FRONTIER | E193: 2.921610834 | F193: 8790.512 | G193: 25682.4551 | H193: 0.1329769324 | I193: 3415.174096
A194: 184 | C194: BIRCH CREEK UNIT 87 BR | D194: BEAR RIVER | E194: 2.921610834 | F194: 966.093 | G194: 2822.547776 | H194: 0.1329769324 | I194: 375.3337448
A195: 185 | C195: BIRCH CREEK UNIT 87 BR RECOMP | D195: BEAR RIVER | E195: 2.921610834 | F195: 2253.068 | G195: 6582.587879 | H195: 0.1329769324 | I195: 875.3323435
A196: 186 | C196: BIRCH CREEK UNIT 87 FR | D196: FRONTIER | E196: 2.921610834 | F196: 3767.401 | G196: 11006.87958 | H196: 0.1329769324 | I196: 1463.661082
A197: 187 | C197: BIRCH CREEK UNIT 91 BR | D197: BEAR RIVER | E197: 2.921610834 | F197: 1583.939 | G197: 4627.653343 | H197: 0.1329769324 | I197: 615.3711458
A198: 188 | C198: BIRCH CREEK UNIT 91 FR | D198: FRONTIER | E198: 2.921610834 | F198: 14267.691 | G198: 41684.6406 | H198: 0.1329769324 | I198: 5543.095636
A199: 189 | C199: BIRCH CREEK UNIT 92 BR | D199: BEAR RIVER | E199: 2.921610834 | F199: 2820.542 | G199: 8240.526065 | H199: 0.1329769324 | I199: 1095.799878
A200: 190 | C200: BIRCH CREEK UNIT 92 FR | D200: FRONTIER | E200: 2.921610834 | F200: 8669.161 | G200: 25327.9147 | H200: 0.1329769324 | I200: 3368.028401
A201: 191 | C201: BIRCH CREEK UNIT 931 BR | D201: BEAR RIVER | E201: 2.921610834 | F201: 2266.787 | G201: 6622.669458 | H201: 0.1329769324 | I201: 880.6622689
A202: 192 | C202: BIRCH CREEK UNIT 931 FR | D202: FRONTIER | E202: 2.921610834 | F202: 17444.316 | G202: 50965.50262 | H202: 0.1329769324 | I202: 6777.236197
A203: 193 | C203: BIRCH CREEK UNIT 94 BR | D203: BEAR RIVER | E203: 2.921610834 | F203: 103.005 | G203: 300.940524 | H203: 0.1329769324 | I203: 40.01814772
A204: 194 | C204: BIRCH CREEK UNIT 94 FR | D204: FRONTIER | E204: 2.921610834 | F204: 14399.554 | G204: =E204*F204 -> 42069.89297 | H204: 0.1329769324 | I204: =G204*H204 -> 5594.325315
... 1470 more rows

Sheet SDR#1
E1: ='Control Panel'!E32 -> Dominion Energy Utah
E2: ='Control Panel'!E33 -> Docket No. 20-057-14
B4: Standard Data Request #1
B5: Summary of Sources of Supply and Demand
A8: 1 | B8: DEMAND | C8: Total | D8: Utah | E8: Wyoming
A10: =A8+1 -> 2 | B10: SALES IN DTHS | C10: =D10+E10 -> 116401186 | D10: =Calculations!P20 -> 112504300 | E10: =Calculations!P39 -> 3896886
A11: =A10+1 -> 3 | B11: DIST. CO. USE & | C11: 0
A12: =A11+1 -> 4 | B12: DIST. LOST & UNACCT. (0.49%) | C12: =Calculations!P148 -> 661403
A15: =A12+1 -> 5 | B15: TOTAL | C15: =SUM(C10:C12) -> 117062589
A19: =A15+1 -> 6 | B19: SUPPLY | C19: Total | D19: Utah | E19: Wyoming
A21: =A19+1 -> 7 | B21: COMPANY PRODUCTION | C21: ='Royalty Detail'!F1428+'Royalty Detail'!F1684 -> 61017573.68 | D21: =$D$10/$C$10*C21 -> 58974823.63 | E21: =$E$10/$C$10*C21 -> 2042750.051
A22: =A21+1 -> 8 | B22: GAS REIMBURSEMENT | C22: =C21*-'Other Inputs'!$E$274 -> -3169862.953 | D22: =D21*-'Other Inputs'!$E$274 -> -3063742.088 | E22: =E21*-'Other Inputs'!$E$274 -> -106120.8651
A25: =A22+1 -> 9 | B25: CONTRACT GAS | C25: ='Ut 1.2 p4'!F24 -> 59625393 | D25: =$D$10/$C$10*C25 -> 57629250.46 | E25: =$E$10/$C$10*C25 -> 1996142.541
A26: =A25+1 -> 10 | B26: GAS REIMBURSEMENT | C26: =C25*-'Other Inputs'!$E$273 -> -709542.1767 | D26: =D25*-'Other Inputs'!$E$273 -> -685788.0805 | E26: =E25*-'Other Inputs'!$E$273 -> -23754.09624
A28: =A26+1 -> 11 | B28: STORAGE
A29: =A28+1 -> 12 | B29: INJECTIONS | C29: ='Ut 1.2 p5'!G18 -> -13205679 | D29: =$D$10/$C$10*C29 -> -12763578.47 | E29: =$E$10/$C$10*C29 -> -442100.5264
A30: =A29+1 -> 13 | B30: WITHDRAWALS | C30: ='Ut 1.2 p5'!G17 -> 13882321.19 | D30: =$D$10/$C$10*C30 -> 13417567.99 | E30: =$E$10/$C$10*C30 -> 464753.195
A31: =A30+1 -> 14 | B31: NET (INJECTIONS) WITHDRAWALS | C31: =C29+C30 -> 676642.1906 | D31: =D29+D30 -> 653989.5221 | E31: =E29+E30 -> 22652.6685
A33: =A31+1 -> 15 | B33: Storage Fuel | C33: =Calculations!P165+Calculations!P166-1 -> -377616.1586 | D33: =D10/C10*C33 -> -364974.3018 | E33: =E10/C10*C33 -> -12641.85677
A36: =A33+1 -> 16 | B36: TOTAL SUPPLY | C36: =C21+C22+C25+C26+C29+C30+C33 -> 117062587.6 | D36: =SUM(D21:D30)+D33 -> 113143559.1 | E36: =SUM(E21:E30)+E33 -> 3919028.442
A38: =A36+1 -> 17 | B38: Company Use & Loss % | C38: =(+C36-C10)/C36 -> 0.005649982597 | D38: =(+D36-D10)/D36 -> 0.005649982597 | E38: =(+E36-E10)/E36 -> 0.005649982597
B41: Difference | C41: =C15-C36 -> 1.417419747

Sheet SDR#2
H1: ='Control Panel'!E32 -> Dominion Energy Utah
H2: ='Control Panel'!E33 -> Docket No. 20-057-14
A5: Standard Data Request #2
A6: Supplier Non-Gas Costs
B8: (A) | C8: (B) | D8: (C) | E8: (D) | F8: (E) | G8: (F) | T8: withdraw
A9: I. Transportation (QPC T-1) | C9: Volume (Dth) | G9: Utah Total | J9: Utah gas | K9: Utah Co. | L9: Utah gas | M9: Wyo gas | N9: Wyo Co. | O9: Wyo gas | Q9: @city gate | R9: @city gate | T9: loss | U9: Kern River
B10: Month | C10: Utah | D10: Wyoming | E10: $/dth | F10: Demand | G10: b*d+e*(Ut %) | J10: purchased | K10: production | L10: withdrawn | M10: purchased | N10: production | O10: withdrawn | P10: Total | Q10: purchased | R10: co production | S10: withdrawls | T10: =-Calculations!P165/Calculations!P137 -> 0.01484525237 | U10: Transportation
B12: =+'SDR#3'!C11 -> Nov20 | C12: =J12+K12+L12-(T12+$B$49*U12)*$J$39 -> 9879497.057 | D12: =M12+N12+O12-(T12+$B$49*U12)*$K$39 -> 342202.6871 | E12: ='Other Inputs'!$F$40 -> 0.00267 | F12: =('Other Inputs'!$D$28)*('Other Inputs'!$F$28)-('Other Inputs'!$E$278/12)+('Other Inputs'!$D$35*'Other Inputs'!$F$35) -> 4017465.673 | G12: =(+C12)*E12+F12*$J$33/$L$33 -> 3922506.316 | J12: =Q12*$J$39 -> 7216686.841 | K12: =R12*$J$39 -> 4912311.022 | L12: =S12*$J$39 -> 0 | M12: =Q12-J12 -> 249969.1649 | N12: =R12-K12 -> 170150.9724 | O12: =S12-L12 -> 0 | P12: =SUM(J12:O12)-U12 -> 9012568 | Q12: =Calculations!D169 -> 7466656.006 | R12: =Calculations!D161 -> 5082461.994 | S12: =Calculations!D163+Calculations!D164 -> 0 | T12: =S12*$T$10 -> 0 | U12: =V12*W12 -> 3536550 | V12: 117885 | W12: 30 | X12: =B12 -> Nov20 | Y12: 6
B13: =+'SDR#3'!C13 -> Dec20 | C13: 15330988.65 | D13: 531029.6144 | E13: ='Other Inputs'!$F$40 -> 0.00267 | F13: =('Other Inputs'!$D$28)*('Other Inputs'!$F$28)-('Other Inputs'!$E$278/12)+('Other Inputs'!$D$35*'Other Inputs'!$F$35) -> 4017465.673 | G13: =(+C13)*E13+F13*$J$33/$L$33 -> 3937061.798 | J13: =Q13*$J$39 -> 13057781.73 | K13: =R13*$J$39 -> 5118137.986 | L13: 490993.1533 | M13: 452291.0396 | N13: 177280.3374 | O13: 17006.85525 | P13: =SUM(J13:O13)-U13 -> 14080381.1 | Q13: =Calculations!E169 -> 13510072.77 | R13: =Calculations!E161 -> 5295418.323 | S13: =Calculations!E163+Calculations!E164 -> 508000.0086 | T13: =S13*$T$10 -> 7541.388333 | U13: =V13*W13 -> 5233110 | V13: 168810 | W13: 31 | X13: =B13 -> Dec20 | Y13: 7
B14: =+'SDR#3'!C15 -> Jan21 | C14: 17025974.65 | D14: 589739.9676 | E14: ='Other Inputs'!$F$40 -> 0.00267 | F14: =('Other Inputs'!$D$28)*('Other Inputs'!$F$28)-('Other Inputs'!$E$278/12)+('Other Inputs'!$D$35*'Other Inputs'!$F$35) -> 4017465.673 | G14: =(+C14)*E14+F14*$J$33/$L$33 -> 3941587.411 | J14: =Q14*$J$39 -> 11707144.52 | K14: 5017291.839 | L14: 3684876.502 | M14: 405508.1236 | N14: 173787.2626 | O14: 127635.5095 | P14: 15883133.76 | Q14: =Calculations!F169 -> 12112652.65 | R14: =Calculations!F161 -> 5191079.102 | S14: =Calculations!F163+Calculations!F164 -> 3812512.012 | T14: =S14*$T$10 -> 56597.70299 | U14: 5233110 | V14: 168810 | W14: 31 | X14: Jan21 | Y14: 8
B15: =+'SDR#3'!C17 -> Feb21 | C15: 13821468.69 | D15: 478743.3709 | E15: ='Other Inputs'!$F$40 -> 0.00267 | F15: =('Other Inputs'!$D$28)*('Other Inputs'!$F$28)-('Other Inputs'!$E$278/12)+('Other Inputs'!$D$35*'Other Inputs'!$F$35) -> 4017465.673 | G15: 3933031.38 | J15: =Q15*$J$39 -> 9386627.596 | K15: 4297206.63 | L15: 3191522.722 | M15: 325130.8409 | N15: 148845.194 | O15: 110546.8877 | P15: 12733199.87 | Q15: =Calculations!G169 -> 9711758.437 | R15: =Calculations!G161 -> 4446051.824 | S15: =Calculations!G163+Calculations!G164 -> 3302069.61 | T15: 49020.05672 | U15: 4726680 | V15: 168810 | W15: 28 | X15: Feb21 | Y15: 9
B16: =+'SDR#3'!C19 -> Mar21 | C16: 10909727.59 | D16: 377887.4648 | E16: ='Other Inputs'!$F$40 -> 0.00267 | F16: =('Other Inputs'!$D$28)*('Other Inputs'!$F$28)-('Other Inputs'!$E$278/12)+('Other Inputs'!$D$35*'Other Inputs'!$F$35) -> 4017465.673 | G16: 3925257.031 | J16: 4248521.56 | K16: 4844596.987 | L16: 4203495.154 | M16: 147158.8569 | N16: 167805.5165 | O16: 145599.2475 | P16: 10102742.32 | Q16: =Calculations!H169 -> 4395680.417 | R16: =Calculations!H161 -> 5012402.504 | S16: =Calculations!H163+Calculations!H164 -> 4349094.401 | T16: 64563.40398 | U16: 3654435 | V16: 117885 | W16: 31 | X16: Mar21 | Y16: 10
B17: =+'SDR#3'!C21 -> Apr21 | C17: 8718269.998 | D17: 301980.4958 | E17: ='Other Inputs'!$F$40 -> 0.00267 | F17: =('Other Inputs'!$D$28)*('Other Inputs'!$F$28)-('Other Inputs'!$E$278/12)+('Other Inputs'!$D$35*'Other Inputs'!$F$35) -> 4017465.673 | G17: 3919405.839 | J17: 2949996.292 | K17: 4614688.943 | L17: 1846680.462 | M17: 102180.9767 | N17: 159842.0392 | O17: 63964.69504 | P17: 8690803.408 | Q17: =Calculations!I169 -> 3052177.269 | R17: =Calculations!I161 -> 4774530.982 | S17: =Calculations!I163+Calculations!I164 -> 1910645.157 | T17: =S17*$T$10 -> 28364.00956 | U17: 1046550 | V17: 34885 | W17: 30 | X17: Apr21 | Y17: 11
B18: =+'SDR#3'!C23 -> May21 | C18: 4776451.031 | D18: 165445.0999 | E18: ='Other Inputs'!$F$40 -> 0.00267 | F18: =('Other Inputs'!$D$28)*('Other Inputs'!$F$28)-('Other Inputs'!$E$278/12)+('Other Inputs'!$D$35*'Other Inputs'!$F$35) -> 4017465.673 | G18: =(+C18)*E18+F18*$J$33/$L$33 -> 3908881.183 | J18: 766371.7629 | K18: 4697949.906 | L18: 0 | M18: 26545.32666 | N18: 162726.0044 | O18: 0 | P18: 4572158 | Q18: =Calculations!J169 -> 792917.0896 | R18: =Calculations!J161 -> 4860675.91 | S18: =Calculations!J163+Calculations!J164 -> 0 | T18: 0 | U18: 1081435 | V18: 34885 | W18: 31 | X18: May21 | Y18: 12
B19: =+'SDR#3'!C25 -> Jun21 | C19: 4902477.737 | D19: 169810.3704 | E19: ='Other Inputs'!$F$40 -> 0.00267 | F19: =('Other Inputs'!$D$28)*('Other Inputs'!$F$28)-('Other Inputs'!$E$278/12)+('Other Inputs'!$D$35*'Other Inputs'!$F$35) -> 4017465.673 | G19: 3909217.674 | J19: 1238228.681 | K19: 4329930.318 | L19: 0 | M19: 42889.34746 | N19: 149978.666 | O19: 0 | P19: 4714477.013 | Q19: =Calculations!K169 -> 1281118.029 | R19: =Calculations!K161 -> 4479908.984 | S19: =Calculations!K163+Calculations!K164 -> 0 | T19: 0 | U19: 1046550 | V19: 34885 | W19: 30 | X19: Jun21 | Y19: 1
B20: =+'SDR#3'!C27 -> Jul21 | C20: 4385624.741 | D20: 151907.7907 | E20: ='Other Inputs'!$F$40 -> 0.00267 | F20: =('Other Inputs'!$D$28)*('Other Inputs'!$F$28)-('Other Inputs'!$E$278/12)+('Other Inputs'!$D$35*'Other Inputs'!$F$35) -> 4017465.673 | G20: =(+C20)*E20+F20*$J$33/$L$33 -> 3907837.676 | J20: 655540.1264 | K20: 4417955.252 | L20: 0 | M20: 22706.37781 | N20: 153027.644 | O20: 0 | P20: 4167794.4 | Q20: =Calculations!L169 -> 678246.5042 | R20: =Calculations!L161 -> 4570982.896 | S20: =Calculations!L163+Calculations!L164 -> 0 | T20: 0 | U20: 1081435 | V20: 34885 | W20: 31 | X20: Jul21 | Y20: 2
B21: =+'SDR#3'!C29 -> Aug21 | C21: 4324136.548 | D21: 149777.9834 | E21: ='Other Inputs'!$F$40 -> 0.00267 | F21: =('Other Inputs'!$D$28)*('Other Inputs'!$F$28)-('Other Inputs'!$E$278/12)+('Other Inputs'!$D$35*'Other Inputs'!$F$35) -> 4017465.673 | G21: =(+C21)*E21+F21*$J$33/$L$33 -> 3907673.503 | J21: 475287.6053 | K21: 4536719.58 | L21: 0 | M21: 16462.85178 | N21: 157141.3628 | O21: 0 | P21: 4104176.4 | Q21: =Calculations!M169 -> 491750.4571 | R21: =Calculations!M161 -> 4693860.943 | S21: =Calculations!M163+Calculations!M164 -> 0 | T21: 0 | U21: 1081435 | V21: 34885 | W21: 31 | X21: Aug21 | Y21: 3
B22: =+'SDR#3'!C31 -> Sep21 | C22: 4993713.542 | D22: 172970.5655 | E22: ='Other Inputs'!$F$40 -> 0.00267 | F22: =('Other Inputs'!$D$28)*('Other Inputs'!$F$28)-('Other Inputs'!$E$278/12)+('Other Inputs'!$D$35*'Other Inputs'!$F$35) -> 4017465.673 | G22: =(+C22)*E22+F22*$J$33/$L$33 -> 3909461.274 | J22: 1183265.466 | K22: 4476129.338 | L22: 0 | M22: 40985.55013 | N22: 155042.6584 | O22: 0 | P22: 4808873.013 | Q22: =Calculations!N169 -> 1224251.016 | R22: =Calculations!N161 -> 4631171.997 | S22: =Calculations!N163+Calculations!N164 -> 0 | T22: 0 | U22: 1046550 | V22: 34885 | W22: 30 | X22: Sep21 | Y22: 4
B23: =+'SDR#3'!C33 -> Oct21 | C23: 8018303.702 | D23: 277735.2994 | E23: ='Other Inputs'!$F$40 -> 0.00267 | F23: =('Other Inputs'!$D$28)*('Other Inputs'!$F$28)-('Other Inputs'!$E$278/12)+('Other Inputs'!$D$35*'Other Inputs'!$F$35) -> 4017465.673 | G23: =(+C23)*E23+F23*$J$33/$L$33 -> 3917536.929 | J23: 4058010.644 | K23: 4648163.696 | L23: 0 | M23: 140560.0041 | N23: 161001.5264 | O23: 0 | P23: 7926300.87 | Q23: =Calculations!O169 -> 4198570.648 | R23: =Calculations!O161 -> 4809165.222 | S23: =Calculations!O163+Calculations!O164 -> 0 | T23: 0 | U23: 1081435 | V23: 34885 | W23: 31 | X23: Oct21 | Y23: 5
C26: =SUM(C12:C23) -> 107086633.9 | D26: =SUM(D12:D23) -> 3709230.71 | G26: =SUM(G12:G23) -> 47039458.01 | J26: =SUM(J12:J25) -> 56943462.83 | K26: 55911081.5 | L26: 13417567.99 | M26: 1972388.461 | N26: 1936629.184 | O26: 464753.195 | P26: =SUM(P12:P23) -> 100796608.2 | Q26: 58915851.29 | R26: 57847710.68 | S26: 13882321.19 | T26: 206086.5616 | U26: 29849275
C29: Months | F29: System | G29: Utah | J29: Allocation Factors
C30: or Days | D30: Dth | E30: Rate | F30: Total | G30: Total
J31: Peak Demand Allocation Base
A32: II. Transportation (ML 104 demand) | C32: ='Other Inputs'!E29 -> 12 | D32: ='Other Inputs'!D29 -> 30000 | E32: ='Other Inputs'!F29 -> 5.28804 | F32: =C32*D32*E32 -> 1903694.4 | G32: =F32*J34 -> 1846198.019 | J32: Utah | K32: Wyo | L32: Total
J33: ='Other Inputs'!E144 -> 1195063 | K33: ='Other Inputs'!E145 -> 37218 | L33: =J33+K33 -> 1232281
A34: III. Transportation (TL 112 demand) | C34: ='Other Inputs'!E30 -> 12 | D34: ='Other Inputs'!D30 -> 12000 | E34: ='Other Inputs'!F30 -> 5.28804 | F34: =C34*D34*E34 -> 761477.76 | G34: =F34*J34 -> 738479.2075 | J34: =J33/L33 -> 0.9697974731 | K34: =K33/L33 -> 0.03020252686
C35: ='Other Inputs'!E31 -> 5 | D35: ='Other Inputs'!D31 -> 75000 | E35: ='Other Inputs'!F31 -> 6.80887 | F35: =C35*D35*E35 -> 2553326.25 | G35: =F35*J34 -> 2476209.345
J36: Dth Sales Allocation Base
A37: III. Transportation (Hyrum) | C37: =+'Other Inputs'!E32 -> 12 | D37: ='Other Inputs'!D32 -> 100000 | E37: ='Other Inputs'!F32 -> 5.28804 | F37: =C37*D37*E37 -> 6345648 | G37: =F37*J34 -> 6153993.396 | J37: Utah | K37: Wyo | L37: Total
J38: =Calculations!P20 -> 112504300 | K38: =Calculations!P39 -> 3896886 | L38: =J38+K38 -> 116401186
A39: IV. Transportation (KR 2003 Expansion) | C39: ='Other Inputs'!E55 -> 12 | D39: ='Other Inputs'!D55 -> 33000 | E39: ='Other Inputs'!F55 -> 3.178233333 | F39: =C39*D39*E39 -> 1258580.4 | J39: =J38/L38 -> 0.966521939 | K39: =K38/L38 -> 0.03347806095
C40: ='Other Inputs'!E56 -> 5 | D40: ='Other Inputs'!D56 -> 50000 | E40: ='Other Inputs'!F56 -> 3.178233333 | F40: =C40*D40*E40 -> 794558.3333 | G40: =(F39+F40+F41+F42)*J34 -> 2111166.114
C41: ='Other Inputs'!E57 -> 12 | D41: ='Other Inputs'!D57 -> 1885 | E41: ='Other Inputs'!F57 -> 5.471958333 | F41: =C41*D41*E41 -> 123775.6975
C42: ='Other Inputs'!E59 -> 0 | D42: ='Other Inputs'!D59 -> 0 | E42: ='Other Inputs'!F59 -> 0 | F42: =C42*D42*E42 -> 0
A44: V. Transportation (KR #20024) | C44: =+'Other Inputs'!E66 -> 5 | D44: =+'Other Inputs'!D66 -> 27000 | E44: =+'Other Inputs'!F66 -> 8.758 | F44: =C44*D44*E44 -> 1182330 | G44: =F44*J34 -> 1146620.646
A46: VI. Transportation (KR #20017) | C46: =+'Other Inputs'!E62 -> 3 | D46: =+'Other Inputs'!D62 -> 56925 | E46: =+'Other Inputs'!F62 -> 8.7 | F46: =C46*D46*E46 -> 1485742.5 | G46: =F46*J34 -> 1440869.322
C47: =+'Other Inputs'!E64 -> 2 | D47: =+'Other Inputs'!D64 -> 6000 | E47: =+'Other Inputs'!F64 -> 8.845 | F47: =C47*D47*E47 -> 106140 | G47: =F47*J34 -> 102934.3038
A49: VIII. Trans (KR 2003 Expansion) | B49: ='Other Inputs'!C71 -> 0.6581041568 | C49: ='Other Inputs'!E70 -> 365 | D49: ='Other Inputs'!D70 -> 34885 | E49: ='Other Inputs'!F70 -> 0.0044 | F49: =B49*C49*D49*E49 -> 36870.4894
B50: ='Other Inputs'!C70 -> 0.6581041568 | C50: ='Other Inputs'!E71 -> 151 | D50: ='Other Inputs'!D71 -> 50000 | E50: ='Other Inputs'!F71 -> 0.0044 | F50: =B50*C50*D50*E50 -> 21862.22009 | G50: =(F49+F50)*J39 -> 56766.45226
A52: IX. Transportation (KR #20024) | B52: =+'Other Inputs'!C77 -> 0.6581041568 | C52: =+'Other Inputs'!E77 -> 151 | D52: =+'Other Inputs'!D77 -> 27000 | E52: =+'Other Inputs'!F77 -> 0.0044 | F52: =B52*C52*D52*E52 -> 11805.59885 | G52: =+F52*J39 -> 11410.37029
A54: X. Trans (KR #20017) | B54: =+'Other Inputs'!C74 -> 0.6581041568 | C54: =+'Other Inputs'!E74 -> 90 | D54: =+'Other Inputs'!D74 -> 56925 | E54: =+'Other Inputs'!F74 -> 0.0044 | F54: =B54*C54*D54*E54 -> 14835.18133
B55: =+'Other Inputs'!C75 -> 0.6581041568 | C55: =+'Other Inputs'!E75 -> 61 | D55: =+'Other Inputs'!D75 -> 6000 | E55: =+'Other Inputs'!F75 -> 0.0044 | F55: =B55*C55*D55*E55 -> 1059.810934 | G55: =(F54+F55)*J39 -> 15362.85875
A57: XII. Other Trans | F57: ='Other Inputs'!$D$181 -> 3682628.27 | G57: =F57*$J$39 -> 3559341.016
A59: Storage Commodity | F59: =+'Ut 1.4 p2'!J29 -> 424845 | G59: =+F59*J39 -> 410622.0132
A60: Total ACA | D60: =+'Ut 1.4 p1'!F38 -> 130439796.6 | E60: =+'Ut 1.4 p1'!J38 -> 0.0011 | F60: =+D60*E60 -> 143483.7763 | G60: =+F60*J39 -> 138680.2176
A62: XIV. Storage Demand | C62: 12 | D62: ='Other Inputs'!E166 -> 184625 | E62: ='Other Inputs'!E14 -> 2.87375 | F62: =C62*D62*E62 -> 6366793.125
C63: 5 | D63: =+'Other Inputs'!E167 -> 2500000 | E63: =+'Other Inputs'!E15 -> 0.09 | F63: =C63*D63*E63 -> 1125000
C64: 12 | D64: ='Other Inputs'!E168 -> 111827 | E64: ='Other Inputs'!E16 -> 2.85338 | F64: =C64*D64*E64 -> 3829019.103
C65: 12 | D65: ='Other Inputs'!E169 -> 13419000 | E65: ='Other Inputs'!E17 -> 0.02378 | F65: =C65*D65*E65 -> 3829245.84 | G65: =SUM(F62:F65)*J34 -> 14692488.03
A67: XV. Peak Hour Service | C67: =+'Other Inputs'!E20 -> 3 | D67: =+'Other Inputs'!D20 -> 28752 | E67: =+'Other Inputs'!F20 -> 11.65333333 | F67: =C67*D67*E67 -> 1005169.92 | G67: =F67*J34 -> 974811.2485
C68: =+'Other Inputs'!E23 -> 3 | D68: =+'Other Inputs'!D23 -> 66333.33333 | E68: =+'Other Inputs'!F23 -> 8.692105528 | F68: =C68*D68*E68 -> 1729729 | G68: =F68*J34 -> 1677486.813
A71: Total Supplier Non-Gas Costs | G71: =G26+G32+G34+G35+G40+G50+G57+G65++G44+G46+G47+G52+G55+G67+G68+G59+G60+G37 -> 84592897.39

Sheet Wy SDR#1 (hidden)
A1: Wyoming Standard Data Request #1
A2: Global Insights Forecast

Sheet SDR#3
I1: ='Control Panel'!E32 -> Dominion Energy Utah
I2: ='Control Panel'!E33 -> Docket No. 20-057-14
C5: Standard Data Request #3
C6: Monthly Forecasted Sales
D8: Utah Sales | F8: Wyoming Sales | H8: System Total
C9: Month | D9: Dth | F9: Dth | H9: Dth
B11: 1 | C11: =Calculations!D141 -> Nov20 | D11: =Calculations!D20 -> 11920504 | F11: =Calculations!D39 -> 437208 | H11: =SUM(D11:F11) -> 12357712
B13: =B11+1 -> 2 | C13: =Calculations!E141 -> Dec20 | D13: =Calculations!E20 -> 18599967 | F13: =Calculations!E39 -> 597388 | H13: =SUM(D13:F13) -> 19197355
B15: =B13+1 -> 3 | C15: =Calculations!F141 -> Jan21 | D15: =Calculations!F20 -> 20311983 | F15: =Calculations!F39 -> 634923 | H15: 20946906
B17: =B15+1 -> 4 | C17: =Calculations!G141 -> Feb21 | D17: =Calculations!G20 -> 16753834 | F17: =Calculations!G39 -> 560298 | H17: 17314132
B19: =B17+1 -> 5 | C19: =Calculations!H141 -> Mar21 | D19: =Calculations!H20 -> 13134513 | F19: =Calculations!H39 -> 469287 | H19: 13603800
B21: =B19+1 -> 6 | C21: =Calculations!I141 -> Apr21 | D21: =Calculations!I20 -> 9310693 | F21: =Calculations!I39 -> 345513 | H21: 9656206
B23: =B21+1 -> 7 | C23: =Calculations!J141 -> May21 | D23: =Calculations!J20 -> 5388954 | F23: =Calculations!J39 -> 232696 | H23: 5621650
B25: =B23+1 -> 8 | C25: =Calculations!K141 -> Jun21 | D25: =Calculations!K20 -> 3090658 | F25: =Calculations!K39 -> 120795 | H25: 3211453
B27: =B25+1 -> 9 | C27: =Calculations!L141 -> Jul21 | D27: =Calculations!L20 -> 2549038 | F27: =Calculations!L39 -> 72966 | H27: 2622004
B29: =B27+1 -> 10 | C29: =Calculations!M141 -> Aug21 | D29: =Calculations!M20 -> 2485947 | F29: =Calculations!M39 -> 72798 | H29: 2558745
B31: =B29+1 -> 11 | C31: =Calculations!N141 -> Sep21 | D31: =Calculations!N20 -> 2777744 | F31: =Calculations!N39 -> 101318 | H31: 2879062
B33: =B31+1 -> 12 | C33: =Calculations!O141 -> Oct21 | D33: =Calculations!O20 -> 6180465 | F33: =Calculations!O39 -> 251696 | H33: 6432161
B36: =B33+1 -> 13 | C36: Total Sales (Dth) | D36: =SUM(D11:D33) -> 112504300 | F36: =SUM(F11:F33) -> 3896886 | H36: =SUM(H11:H33) -> 116401186

Sheet SDR#4
H1: ='Control Panel'!E32 -> Dominion Energy Utah
H2: ='Control Panel'!E33 -> Docket No. 20-057-14
C5: Standard Data Request #4
C6: Supplier Non-Gas Costs Recovered at Current Rates
C9: (A) | D9: (B) | E9: (C) | F9: (D) | G9: (E)
B10: 1 | C10: Rate Schedule | D10: Season | E10: Sales Dth | F10: SNG Rate | G10: SNG Revenue
B12: =B10+1 -> 2 | C12: GS | D12: winter | E12: ='Utah Summary-by class'!B8 -> 79092643 | F12: ='Utah Summary-by class'!J8 -> 0.91868 | G12: =E12*F12 -> 72660829.27
B13: =B12+1 -> 3 | D13: summer | E13: ='Utah Summary-by class'!B9 -> 30260118 | F13: ='Utah Summary-by class'!J9 -> 0.38583 | G13: =E13*F13 -> 11675261.33
B15: =B13+1 -> 4 | C15: FS | D15: winter | E15: ='Utah Summary-by class'!B13 -> 1458904 | F15: ='Utah Summary-by class'!J13 -> 0.88925 | G15: =E15*F15 -> 1297330.382
B16: =B15+1 -> 5 | D16: summer | E16: ='Utah Summary-by class'!B14 -> 1336431 | F16: ='Utah Summary-by class'!J14 -> 0.76616 | G16: =E16*F16 -> 1023919.975
B18: =B16+1 -> 6 | C18: NGV | D18: annual | E18: ='Utah Summary-by class'!B18 -> 205030 | F18: ='Utah Summary-by class'!J18 -> 0.77861 | G18: =E18*F18 -> 159638.4083
B20: =B18+1 -> 7 | C20: IS | D20: annual | E20: ='Utah Summary-by class'!B21 -> 151174 | F20: ='Utah Summary-by class'!J21 -> 0.17898 | G20: =E20*F20 -> 27057.12252
B23: =B20+1 -> 8 | C23: Total Supplier Non-Gas Costs | E23: =SUM(E12:E20) -> 112504300 | G23: =SUM(G12:G21) -> 86844036.49
C27: Rate Schedule | D27: Season | E27: Trans Dth | F27: SNG Rate | G27: SNG Revenue
B28: 9 | C28: TSF | D28: annual | E28: ='Utah Summary-by class'!B23 -> 345541.44 | F28: ='Utah Summary-by class'!J23 -> 1.67911 | G28: =E28*F28 -> 580202.0873
B30: 10 | C30: TBF | D30: annual | E30: ='Utah Summary-by class'!B25 -> 47509.2 | F30: ='Utah Summary-by class'!J25 -> 1.05573 | G30: =E30*F30 -> 50156.88772
B33: 11 | C33: Total Supplier Non-Gas Costs | E33: =SUM(E28:E30) -> 393050.64 | G33: =SUM(G28:G30) -> 630358.975

Sheet Current Exh Updated Exh (hidden)
B8: Current Exhibits to Proposed Exhibits
B12: Current Exhibit | C12: Description of Exhibit | D12: Proposed Exhibit | E12: Comments
B13: 1.1 | C13: Company Production with detailed well information | D13: 1.2 p1 | E13: Detail of well info in electronic model
B14: 1.2 | C14: Purchased Gas Costs | D14: 1.2 p4
B15: 1.3 p1 | C15: Transportation | D15: 1.4 p1
C16: Gathering | D16: 1.2 p3
B17: 1.3 p2 | C17: Storage | D17: 1.4 p3
C18: Working Gas Charges | D18: 1.2 p5
B19: 1.4 p1 | C19: Gas Related Costs and Revenue Credits | D19: 1.2 p3
B20: 1.4 p2 | C20: Cost of Storage Gas | D20: 1.2 p5
B21: 1.4 p3 | C21: Other Revenues | D21: 1.2 p2
B22: 1.5 | C22: Gas Cost Allocation | D22: 1.1 p2
B23: 1.6 p1 | C23: Commodity Change and New Rates | D23: 1.5 p1
B24: 1.6 p2 | C24: Supplier Non-Gas Change | D24: 1.5 p2
B25: 1.6 p3 | C25: Supplier Non-Gas New Rates | D25: 1.5 p3 | E25: Detail of calculation updated
B26: 1.7 | C26: Effect on GS Typical Customer | D26: 1.6
B27: 1.8 | C27: Legislative/Proposed Rate Schedules | D27: 1.7
B28: 1.9 | C28: Dominion Energy Questar Pipeline, LLC Tariff Rates | D28: - | E28: Removed as an exhibit
B29: 1.10 | C29: Confidential Comparison of Natural Gas Price Forecast | D29: 1.3
B30: 1.11 | C30: Legislative/Proposed Combined Rate Schedules | D30: 1.8

Sheet Ut 1.1 p1
F1: ='Control Panel'!$E$32 -> Dominion Energy Utah
F2: ='Control Panel'!$E$33 -> Docket No. 20-057-14
F3: DEU Exhibit 1.1
F4: Page 1 of 2
B9: TABLE OF CONTENTS
B14: DEU Exhibit | D14: Description | E14: Type
B16: 1.1 | C16: Page 2 | D16: Test-Year Gas Cost Allocation | E16: Summary
B18: 1.2 | C18: Page 1 | D18: Test-Year Royalties & Company Production | E18: Commodity
C19: Page 2 | D19: Test-Year Other Revenues | E19: Commodity
C20: Page 3 | D20: Summary of Wexpro Test-Year Gas Costs and Revenue Credits | E20: Commodity
C21: Page 4 | D21: Test-Year Purchased Gas Costs | E21: Commodity
C22: Page 5 | D22: Test-Year Storage Gas & Working Gas Charges | E22: Commodity
B24: 1.3 | D24: Confidential Comparison of Natural Gas Price Forecasts | E24: Commodity
B26: 1.4 | C26: Page 1 | D26: Test-Year Transportation Charges | E26: SNG
C27: Page 2 | D27: Test-Year Storage Charges | E27: SNG
C28: Page 3 | D28: Supplier Non-Gas Cost Class Allocation | E28: SNG
C29: Page 4 | D29: Supplier Non-Gas Cost Summary | E29: SNG
B31: 1.5 | C31: Page 1 | D31: Test-Year Gas Cost Change | E31: Commodity
C32: Page 2 | D32: Test-Year Supplier Non-Gas Cost Change | E32: SNG
C33: Page 3 | D33: Supplier Non-Gas Rate Calculation | E33: SNG
C34: Page 4 | D34: General Service Summer / Winter Differential | E34: SNG
C35: Page 5 | D35: Firm Service Summer / Winter Differential | E35: SNG
C36: Page 6 | D36: Summary of Rates | E36: Summary
B38: 1.6 | D38: Effect on GS Typical Customer | E38: Summary
B40: 1.7 | C40: Page1-8 | D40: Legislative Rate Schedules | E40: Summary
C41: Page 9-17 | D41: Proposed Rate Schedules | E41: Summary
B43: 1.8 | C43: Page1-8 | D43: Legislative Combined Rate Schedules | E43: Summary
C44: Page 9-17 | D44: Proposed Combined Rate Schedules | E44: Summary

Sheet Ut 1.1 p2
I1: ='Control Panel'!$E$32 -> Dominion Energy Utah
I2: ='Control Panel'!$E$33 -> Docket No. 20-057-14
I3: DEU Exhibit 1.1
I4: Page 2 of 2
C8: TEST-YEAR GAS COST ALLOCATION
C11: (A) | E11: (B) | F11: (C) | G11: (D) | H11: (E)
E12: Allocation
E13: Factor 1/ | F13: System | G13: Wyoming | H13: Utah
B15: COMMODITY
A16: 1 | C16: Dominion Energy Production (DEU Exhibit 1.2, p 1) | E16: 2 | F16: ='Ut 1.2 p3'!E15+'Ut 1.2 p3'!E28 -> 243853237.2 | G16: =CHOOSE($E16,G$53,G$56)*$F16 -> 8163733.539 | H16: 235689503.7
A17: =A16+1 -> 2 | C17: Other Revenue's Credit (DEU Exhibit 1.2, p 2) | E17: 2 | F17: ='Ut 1.2 p3'!E16+'Ut 1.2 p3'!E29+'Ut 1.2 p3'!E47 -> -19108070.06 | G17: -639701.1342 | H17: -18468368.93
A18: =A17+1 -> 3 | C18: Gathering (DEU Exhibit 1.2, p 3, ln 4) | D18: - Demand | E18: 1 | F18: ='Ut 1.2 p3'!E19 -> 5013550.423 | G18: 151421.8913 | H18: 4862128.532
A19: =A18+1 -> 4 | C19: Gathering (DEU Exhibit 1.2, p 3, lns 5, 6, 12) | D19: - Commodity | E19: 2 | F19: ='Ut 1.2 p3'!E21+'Ut 1.2 p3'!E20+'Ut 1.2 p3'!E32 -> 7956934.034 | G19: 266382.7226 | H19: 7690551.312
A20: =A19+1 -> 5 | C20: Net Cost of Dominion Energy Production | F20: =SUM(F16:F19) -> 237715651.6 | G20: =SUM(G16:G19) -> 7941837.018 | H20: =SUM(H16:H19) -> 229773814.6
A22: =A20+1 -> 6 | C22: Dominion Energy Contract Gas (DEU Exhibit 1.2, p 4) | E22: 2 | F22: ='Ut 1.2 p4'!E24 -> 187030371 | G22: =CHOOSE($E22,G$53,G$56)*$F22 -> 6261414.161 | H22: =CHOOSE($E22,H$53,H$56)*$F22 -> 180768956.8
A24: =A22+1 -> 7 | C24: Injection / Withdrawal Adjustment (DEU Exhibit 1.2, p 5, ln 3) | E24: 2 | F24: ='Ut 1.2 p5'!E21 -> -1304250.696 | G24: =CHOOSE($E24,G$53,G$56)*$F24 -> -43663.78429 | H24: =CHOOSE($E24,H$53,H$56)*$F24 -> -1260586.911
A26: =A24+1 -> 8 | C26: Working Gas Costs (DEU Exhibit 1.2, p 5, ln 17) | E26: 2 | F26: ='Ut 1.2 p5'!I43 -> 2862084.434 | G26: =CHOOSE($E26,G$53,G$56)*$F26 -> 95817.03714 | H26: =CHOOSE($E26,H$53,H$56)*$F26 -> 2766267.397
A29: =A26+1 -> 9 | C29: TOTAL COMMODITY | F29: =SUM(F20:F27) -> 426303856.3 | G29: =SUM(G20:G27) -> 14255404.43 | H29: =SUM(H20:H27) -> 412048451.9
B31: SNG
A32: =A29+1 -> 10 | C32: Transportation (DEU Exhibit 1.4, p 1, ln 15) | D32: - Demand | E32: 1 | F32: ='Ut 1.4 p1'!M33 -> 64724861 | G32: =CHOOSE($E32,G$53,G$56)*$F32 -> 1954854.353 | H32: =CHOOSE($E32,H$53,H$56)*$F32 -> 62770006.65
A33: =A32+1 -> 11 | C33: Transportation (DEU Exhibit 1.4, p 1, ln 24) | D33: - Commodity | E33: 2 | F33: ='Ut 1.4 p1'!M50 -> 525742 | G33: =CHOOSE($E33,G$53,G$56)*$F33 -> 17600.82272 | H33: =CHOOSE($E33,H$53,H$56)*$F33 -> 508141.1773
A35: =A33+1 -> 12 | C35: Other Transportation (DEU Exhibit 1.4, p 1, ln 25) | E35: 2 | F35: ='Ut 1.4 p1'!M54 -> 3682628 | G35: =CHOOSE($E35,G$53,G$56)*$F35 -> 123287.2447 | H35: =CHOOSE($E35,H$53,H$56)*$F35 -> 3559340.755
A37: =A35+1 -> 13 | C37: Peak Hour Service (DEU Exhibit 1.4, p 1, ln 28) | E37: 1 | F37: ='Ut 1.4 p1'!L60+'Ut 1.4 p1'!L61 -> 2734899 | G37: =CHOOSE($E37,G$53,G$56)*$F37 -> 82600.8605 | H37: =CHOOSE($E37,H$53,H$56)*$F37 -> 2652298.139
A39: =A37+1 -> 14 | C39: Storage (DEU Exhibit 1.4, p 2, ln 5) | D39: - Demand | E39: 1 | F39: ='Ut 1.4 p2'!J20 -> 15150058 | G39: =CHOOSE($E39,G$53,G$56)*$F39 -> 457570.0337 | H39: =CHOOSE($E39,H$53,H$56)*$F39 -> 14692487.97
A40: =A39+1 -> 15 | C40: Storage (DEU Exhibit 1.4, p 2, ln 12) | D40: - Commodity | E40: 2 | F40: ='Ut 1.4 p2'!J29 -> 424845 | G40: =CHOOSE($E40,G$53,G$56)*$F40 -> 14222.98681 | H40: =CHOOSE($E40,H$53,H$56)*$F40 -> 410622.0132
A43: =A40+1 -> 16 | C43: TOTAL SNG | F43: =SUM(F32:F40) -> 87243033 | G43: =SUM(G32:G40) -> 2650136.301 | H43: =SUM(H32:H40) -> 84592896.7
A46: =A43+1 -> 17 | C46: TOTAL GAS COST | F46: =F29+F43 -> 513546889.3 | G46: =G29+G43 -> 16905540.73 | H46: =H29+H43 -> 496641348.6
A50: 1/ | C50: Allocation Factors | F50: Total | G50: Wyoming | H50: Utah
C52: #1 Peak Day Demand | E52: Dth- | F52: =SUM(G52:H52) -> 1232281 | G52: ='Other Inputs'!$E$145 -> 37218 | H52: ='Other Inputs'!$E$144 -> 1195063
E53: Percent- | F53: =G53+H53 -> 1 | G53: =G52/F52 -> 0.03020252686 | H53: =H52/F52 -> 0.9697974731
C55: #2 Commodity Sales - All | E55: Dth- | F55: =G55+H55 -> 116401186 | G55: ='Ut 1.5 p1'!H21 -> 3896886 | H55: ='Ut 1.5 p1'!H20 -> 112504300
E56: Percent- | F56: =G56+H56 -> 1 | G56: =G55/F55 -> 0.03347806095 | H56: =H55/F55 -> 0.966521939

Sheet Ut 1.2 p1
H1: Dominion Energy Utah
H2: ='Control Panel'!$E$33 -> Docket No. 20-057-14
H3: DEU Exhibit 1.2
H4: Page 1 of 5
C8: TEST-YEAR ROYALTIES & COMPANY PRODUCTION
B10: COMMODITY
C11: (A) | E11: (B) | G11: (C)
E12: Base Year | G12: Test-Year
E13: Dth | G13: Royalty $
B15: WEXPRO I
A16: =A15+1 -> 1 | C16: Royalties Based on Historical Production | E16: =+'Royalty Detail'!F1418 -> 54638886.56 | G16: =+'Royalty Detail'!I1418 -> 27061054.34
A18: =A16+1 -> 2 | C18: Test-Year Adjustment for IRP Production Forecast | E18: =+'Royalty Detail'!F1420 -> -7834936.698 | G18: =G16/E16*E18 -> -3880416.697
A21: =A18+1 -> 3 | C21: Total Wexpro I Test-Year Royalties | G21: =G16+G18 -> 23180637.64
A23: =A21+1 -> 4 | C23: Wexpro I Operator Service Fee | G23: ='Monthly Inputs'!S107 -> 174449128.1
A26: =A23+1 -> 5 | C26: Total Wexpro I Company Production (IRP Forecast) | E26: =+'Monthly Inputs'!S7 -> 46803949.86 | G26: =G21+G23 -> 197629765.8
B30: WEXPRO II
A31: =A26+1 -> 6 | C31: Royalties Based on Historical Production | E31: =+'Royalty Detail'!F1674 -> 15041953.4 | G31: =+'Royalty Detail'!I1674 -> 6986583.181
A33: =A31+1 -> 7 | C33: Test-Year Adjustment for IRP Production Forecast | E33: =+'Royalty Detail'!F1676 -> -828329.5876 | G33: =G31/E31*E33 -> -384736.8363
A36: =A33+1 -> 8 | C36: Total Wexpro II Test-Year Royalties | G36: =G31+G33 -> 6601846.345
A38: =A36+1 -> 9 | C38: Wexpro II Operator Service Fee | G38: ='Monthly Inputs'!S109 -> 39621625.1
A41: =A38+1 -> 10 | C41: Total Wexpro II Company Production (IRP Forecast) | E41: ='Monthly Inputs'!S13 -> 14213623.82 | G41: =G36+G38 -> 46223471.44
B45: TOTAL WEXPRO
A46: =A41+1 -> 11 | C46: Total Wexpro Test-Year Royalties | G46: =G36+G21 -> 29782483.99
A48: =A46+1 -> 12 | C48: Total Wexpro Operator Service Fee | G48: =G38+G23 -> 214070753.2
A51: =A48+1 -> 13 | C51: Total Wexpro Company Production | E51: =E41+E26 -> 61017573.68 | G51: =G46+G48 -> 243853237.2

Sheet Ut 1.2 p2
K1: ='Control Panel'!$E$32 -> Dominion Energy Utah
K2: ='Control Panel'!$E$33 -> Docket No. 20-057-14
K3: DEU Exhibit 1.2
K4: Page 2 of 5
D8: TEST-YEAR OTHER REVENUES 1/
B10: COMMODITY
C11: (A) | E11: (B) | F11: (C) | G11: (D)
C12: Account | G12: =Expenses!S8 -> 12 Months Ending
C13: Number | E13: Account Name | G13: ='Control Panel'!E7 -> 2021-10-31
C14: WEXPRO I
B15: 1 | D15: 483 | E15: Sales for Resale | H15: ='Other Inputs'!F205 -> 3386880
B17: =B15+1 -> 2 | D17: 490 | E17: Plant By-Product | H17: ='Other Inputs'!F206 -> 3053673
B19: =B17+1 -> 3 | D19: 492 | E19: Gasoline and Oil Sales | F19: ='Other Inputs'!F207 -> 3427726.576
B20: =B19+1 -> 4 | D20: 758-1 | E20: Gasoline and Oil Cost | F20: ='Other Inputs'!F211 -> -565232.1124
B21: =B20+1 -> 5 | E21: Net Gasoline and Oil Sales | H21: =F19+F20 -> 2862494.464
B23: =B21+1 -> 6 | D23: 495-1 | E23: Overriding Royalty Revenue | H23: ='Other Inputs'!F208 -> 7675684.86
B25: =B23+1 -> 7 | D25: 495-2 | E25: Oil Revenue Received from Wexpro | H25: ='Other Inputs'!F209 -> 0
B27: =B25+1 -> 8 | E27: 3rd Party & Liquids Credits from MLPX Acquisition | H27: ='Other Inputs'!F210 -> 795122.4
B30: =1+B27 -> 9 | E30: Total Wexpro I | H30: =SUM(H15:H27) -> 17773854.72
C32: WEXPRO II
B33: =B30+1 -> 10 | D33: 483 | E33: Sales for Resale | H33: ='Other Inputs'!E227 -> 0
B35: =B33+1 -> 11 | D35: 490 | E35: Plant By-Product | H35: ='Other Inputs'!E228 -> 216000
B37: =B35+1 -> 12 | D37: 492 | E37: Gasoline and Oil Sales | F37: ='Other Inputs'!E229 -> 1073422.594
B38: =B37+1 -> 13 | D38: 758-1 | E38: Gasoline and Oil Cost | F38: ='Other Inputs'!E232 -> -174860.5406
B39: =B38+1 -> 14 | E39: Net Gasoline and Oil Sales | H39: =F37+F38 -> 898562.0536
B41: =B39+1 -> 15 | D41: 495-1 | E41: Overriding Royalty Revenue | H41: ='Other Inputs'!E230 -> 0
B43: =B41+1 -> 16 | D43: 495-2 | E43: Oil Revenue Received from Wexpro | H43: ='Other Inputs'!E231 -> 219653.2824
B46: =B43+1 -> 17 | E46: Total Wexpro II | H46: =SUM(H33:H43) -> 1334215.336
B48: =1+B46 -> 18 | E48: Sales of Cost-of-Service Gas | H48: ='Other Inputs'!E238 -> 0
B51: =B48+1 -> 19 | E51: Grand Total (Line 9 + Line 17 + Line 18) | H51: =H30+H46+H48 -> 19108070.06
B55: 1/ | D55: Forecasted 12-month test year.

Sheet Ut 1.2 p3
G1: ='Control Panel'!$E$32 -> Dominion Energy Utah
G2: ='Control Panel'!$E$33 -> Docket No. 20-057-14
G3: DEU Exhibit 1.2
G4: Page 3 of 5
B8: SUMMARY OF WEXPRO TEST-YEAR GAS COSTS AND REVENUES CREDITS
B10: COMMODITY
B11: (A) | E11: (B) | F11: (C) | G11: (D)
B12: Component | E12: Costs | F12: Dth 1/ | G12: $ per Dth
B14: WEXPRO I
A15: 1 | C15: Dominion Energy Production 2/ | E15: ='Other Inputs'!D198 -> 197629765.8
A16: =A15+1 -> 2 | C16: Wexpro I Revenue Sharing Credits 3/ | E16: =-'Ut 1.2 p2'!H30 -> -17773854.72
A17: =A16+1 -> 3 | D17: Net Dominion Energy Production Costs | E17: =E15+E16 -> 179855911 | F17: =F25 -> 44929451.67 | G17: =E17/F25 -> 4.003073804
A19: =A17+1 -> 4 | C19: Gathering Demand | E19: ='Other Inputs'!E187 -> 5013550.423
A20: =A19+1 -> 5 | C20: Gathering Commodity | E20: ='Other Inputs'!D187 -> 3342366.949
A21: =A20+1 -> 6 | C21: Gathering Other Charges | E21: =ROUND('Other Inputs'!D179,0) -> 1415325
A22: =A21+1 -> 7 | D22: Gathering | E22: =SUM(E19:E21) -> 9771242.372
A25: =A22+1 -> 8 | B25: Total Wexpro I Cost of Production | E25: =E17+E22 -> 189627153.4 | F25: ='Monthly Inputs'!S7*(1-'Other Inputs'!E272) -> 44929451.67 | G25: =E25/F25 -> 4.220553476
B27: WEXPRO II
A28: =A25+1 -> 9 | C28: Wexpro II Production 4/ | E28: ='Other Inputs'!D220 -> 46223471.44
A29: =A28+1 -> 10 | C29: Wexpro II Revenue Sharing Credits 5/ | E29: =-'Ut 1.2 p2'!H46 -> -1334215.336
A30: =A29+1 -> 11 | D30: Net Cost of Wexpro II Production | E30: =E28+E29 -> 44889256.1 | F30: =F35 -> 13644368.18 | G30: =E30/F35 -> 3.289947581
A32: =A30+1 -> 12 | D32: Gathering | E32: ='Other Inputs'!D190 -> 3199242.085
A35: =A32+1 -> 13 | B35: Total Wexpro II Cost of Production | E35: =SUM(E30:E32) -> 48088498.19 | F35: ='Monthly Inputs'!S13*(1-'Other Inputs'!E272) -> 13644368.18 | G35: =E35/F35 -> 3.524421032
B37: TOTAL WEXPRO
A38: =A35+1 -> 14 | C38: Total Wexpro Production | E38: =E15+E28 -> 243853237.2
A39: =A38+1 -> 15 | C39: Total Wexpro Revenue Sharing Credits | E39: =E16+E29 -> -19108070.06
A40: =A39+1 -> 16 | D40: Net Cost of Total Wexpro Production | E40: =E38+E39 -> 224745167.1 | F40: =F25+F35 -> 58573819.85 | G40: =E40/F45 -> 3.836955959
A42: =A40+1 -> 17 | D42: Total Wexpro Gathering | E42: =E22+E32 -> 12970484.46
A45: =A42+1 -> 18 | B45: Total Wexpro Cost of Production | E45: =SUM(E40:E42) -> 237715651.6 | F45: =F25+F35 -> 58573819.85 | G45: =E45/F45 -> 4.058394214
A47: =A45+1 -> 19 | B47: Sales of Cost-of-Service Gas 6/ | E47: =-'Other Inputs'!E238 -> 0 | F47: ='Other Inputs'!F238 -> 0 | G47: ='Other Inputs'!G238 -> 0
A50: =A47+1 -> 20 | B50: Total Cost-of-Service Production | E50: =E25+E35+E47 -> 237715651.6 | F50: =F25+F35 -> 58573819.85 | G50: =E50/F50 -> 4.058394214
A54: 1/ | B54: Estimated into-pipe volumes used for Wexpro dths.
A55: 2/ | B55: DEU Exhibit 1.2, Page 1, Line 5.
A56: 3/ | B56: DEU Exhibit 1.2, Page 2, Line 9.
A57: 4/ | B57: DEU Exhibit 1.2, Page 1, Line 10.
A58: 5/ | B58: DEU Exhibit 1.2, Page 2, Line 17.
A59: 6/ | B59: DEU Exhibit 1.2, Page 2, Line 18.

Sheet Ut 1.2 p4
H1: ='Control Panel'!$E$32 -> Dominion Energy Utah
H2: ='Control Panel'!$E$33 -> Docket No. 20-057-14
H3: DEU Exhibit 1.2
H4: Page 4 of 5
A8: TEST-YEAR PURCHASED GAS COSTS
B10: COMMODITY
D11: (A) | E11: (B) | F11: (C) | G11: (D)
G12: Cost
C13: Component | E13: Total Cost | F13: Dth | G13: per Dth
B15: 1 | C15: Current Contracts | E15: =ROUND(Calculations!$P$186+Calculations!$P$189-E16,0) -> 72502189
B16: =B15+1 -> 2 | C16: Stabilization Costs | E16: ='Monthly Inputs'!S94 -> 0
B17: =B16+1 -> 3 | D17: Total Current Contracts | E17: =E15+E16 -> 72502189 | F17: =Calculations!$P$185+Calculations!$P$188 -> 21805000 | G17: =E17/F17 -> 3.325025866
B19: =B17+1 -> 4 | C19: Forecast Spot | E19: =ROUND(Calculations!P183,0) -> 112097373 | F19: =Calculations!$P$182 -> 37019153 | G19: =E19/F19 -> 3.028091242
B21: =B19+1 -> 5 | C21: Future Contracts | E21: =ROUND(Calculations!P192,0) -> 2430809 | F21: =Calculations!P191 -> 801240 | G21: =E21/F21 -> 3.033808846
B24: =B21+1 -> 6 | C24: Total Gas Purchased | E24: =E17+E19+E21 -> 187030371 | F24: =F17+F19+F21 -> 59625393 | G24: =E24/F24 -> 3.136757036

Sheet Ut 1.2 p5
K1: ='Control Panel'!$E$32 -> Dominion Energy Utah
K2: ='Control Panel'!$E$33 -> Docket No. 20-057-14
K3: DEU Exhibit 1.2
K4: Page 5 of 5
B8: TEST-YEAR STORAGE GAS & WORKING GAS CHARGES
B10: COMMODITY
C11: (A) | E11: (B) | G11: (C) | I11: (D)
I12: Average
E13: Total Costs | G13: Dth | I13: Rate
B15: STORAGE GAS 1/
B17: 1 | C17: Withdrawals | E17: =G17*I17 -> 48878483.72 | G17: ='Monthly Inputs'!S37 -> 13882321.19 | I17: ='Ut Storage'!L27 -> 3.520915779
B18: 2 | C18: Injections | E18: =G18*I18 -> -50182734.42 | G18: =-'Monthly Inputs'!S29 -> -13205679 | I18: ='Ut Storage'!K27 -> 3.800087404
B21: =B18+1 -> 3 | C21: Storage Adjustment | E21: =E17+E18 -> -1304250.696
B24: WORKING GAS CHARGES
D26: Month | E26: Amount | G26: Pre-Tax Return % | I26: Total
B28: =B21+1 -> 4 | D28: =+'Rate Base'!H8 -> 2019-08-01 | E28: =+'Rate Base'!H206 -> 44111455.51
B29: =B28+1 -> 5 | D29: =+'Rate Base'!I8 -> 2019-09-01 | E29: =+'Rate Base'!I206 -> 53650234.79
B30: 6 | D30: =+'Rate Base'!J8 -> 2019-10-01 | E30: =+'Rate Base'!J206 -> 55516771.69
B31: 7 | D31: =+'Rate Base'!K8 -> 2019-11-01 | E31: =+'Rate Base'!K206 -> 55528751.16
B32: 8 | D32: =+'Rate Base'!L8 -> 2019-12-01 | E32: =+'Rate Base'!L206 -> 45965722.86
B33: 9 | D33: =+'Rate Base'!M8 -> 2020-01-01 | E33: =+'Rate Base'!M206 -> 30071846.23
B34: 10 | D34: =+'Rate Base'!N8 -> 2020-02-01 | E34: =+'Rate Base'!N206 -> 17550004.17
B35: 11 | D35: =+'Rate Base'!O8 -> 2020-03-01 | E35: =+'Rate Base'!O206 -> 5954574.05
B36: 12 | D36: =+'Rate Base'!P8 -> 2020-04-01 | E36: =+'Rate Base'!P206 -> 7662333.65
B37: 13 | D37: =+'Rate Base'!Q8 -> 2020-05-01 | E37: =+'Rate Base'!Q206 -> 15431079.14
B38: 14 | D38: =+'Rate Base'!R8 -> 2020-06-01 | E38: =+'Rate Base'!R206 -> 23791129.14
B39: 15 | D39: =+'Rate Base'!S8 -> 2020-07-01 | E39: =+'Rate Base'!S206 -> 32725279.74
B40: 16 | D40: =+'Rate Base'!T8 -> 2020-08-01 | E40: =+'Rate Base'!T206 -> 39991140.93
B43: =B40+1 -> 17 | C43: 12-Month Average 2/ | E43: =(SUM(E29:E39)+E28/2+E40/2)/12 -> 32158252.07 | F43: x | G43: ='Other Inputs'!E267 -> 0.089 | H43: = | I43: =E43*G43 -> 2862084.434
B48: 1/ | C48: Dominion Energy planned volumes.
B49: 2/ | C49: (1/2 of Line 4 + sum of Lines 5-15 + 1/2 of Line 16) / 12

Sheet Ut 1.3 Redacted
I1: REDACTED
P29: DEU Exhibit 1.3 | Q29: =CONCATENATE("Docket No. ",'Control Panel'!E5) -> Docket No. 20-057-14 | R29: Dominion Energy Utah

Sheet Ut 1.4 p1
N1: ='Control Panel'!$E$32 -> Dominion Energy Utah
N2: ='Control Panel'!$E$33 -> Docket No. 20-057-14
N3: DEU Exhibit 1.4
N4: Page 1 of 4
B8: TEST-YEAR TRANSPORTATION CHARGES
B10: SNG
B11: (A) | D11: (B) | F11: (C) | H11: (D) | J11: (E) | L11: (F) | M11: (G)
D12: Fctr | F12: Dth | H12: Months/Days | J12: Rate | M12: Total Costs
B14: TRANSPORTATION DEMAND
B16: QPC Demand
A17: 1 | B17: T-1 Transportation - Yearly | F17: ='Other Inputs'!D28+'Other Inputs'!D29+'Other Inputs'!D30 -> 840902 | G17: x | H17: ='Other Inputs'!E28 -> 12 | I17: x | J17: ='Other Inputs'!F28 -> 5.28804 | K17: = | L17: =ROUND(F17*H17*J17,0) -> 53360681
A18: =A17+1 -> 2 | B18: T-1 Transportation - Yearly | F18: ='Other Inputs'!D32 -> 100000 | G18: x | H18: ='Other Inputs'!E32 -> 12 | I18: x | J18: ='Other Inputs'!F32 -> 5.28804 | K18: = | L18: =ROUND(F18*H18*J18,0) -> 6345648
A19: =A18+1 -> 3 | B19: T-1 Transportation Nov-Mar | F19: ='Other Inputs'!D31 -> 75000 | G19: x | H19: ='Other Inputs'!E31 -> 5 | I19: x | J19: ='Other Inputs'!F31 -> 6.80887 | K19: = | L19: =ROUND(F19*H19*J19,0) -> 2553326
A20: =A19+1 -> 4 | B20: No-Notice Transportation | F20: ='Other Inputs'!D35 -> 203542 | G20: x | H20: ='Other Inputs'!E35 -> 12 | I20: x | J20: ='Other Inputs'!F35 -> 0.86753 | K20: = | L20: =ROUND(F20*H20*J20,0) -> 2118945
A21: =A20+1 -> 5 | B21: Capacity Release Credits | L21: =-ROUND('Other Inputs'!E278,0) -> -4604866
A22: =A21+1 -> 6 | C22: Total | L22: =SUM(L17:L21) -> 59773734
B24: Kern River Demand
A25: =A22+1 -> 7 | B25: January - December | F25: ='Other Inputs'!D57 -> 1885 | G25: x | H25: ='Other Inputs'!E57 -> 12 | I25: x | J25: ='Other Inputs'!F57 -> 5.471958333 | K25: = | L25: =ROUND(F25*H25*J25,0) -> 123776
A26: =A25+1 -> 8 | B26: January - December | F26: ='Other Inputs'!D55 -> 33000 | G26: x | H26: ='Other Inputs'!E55 -> 12 | I26: x | J26: ='Other Inputs'!F55 -> 3.178233333 | K26: = | L26: 1258580
A27: =A26+1 -> 9 | B27: November - March | F27: ='Other Inputs'!D56 -> 50000 | G27: x | H27: ='Other Inputs'!E56 -> 5 | I27: x | J27: =J26 -> 3.178233333 | K27: = | L27: 794558
A28: 10 | B28: December - February | F28: ='Other Inputs'!D62 -> 56925 | G28: x | H28: ='Other Inputs'!E62 -> 3 | I28: x | J28: ='Other Inputs'!F62 -> 8.7 | K28: = | L28: 1485743
A29: 11 | B29: November & March | F29: ='Other Inputs'!D64 -> 6000 | G29: x | H29: ='Other Inputs'!E64 -> 2 | I29: x | J29: ='Other Inputs'!F64 -> 8.845 | K29: = | L29: 106140
A30: 12 | B30: November - March | F30: ='Other Inputs'!D66 -> 27000 | G30: x | H30: ='Other Inputs'!E66 -> 5 | I30: x | J30: ='Other Inputs'!F66 -> 8.758 | K30: = | L30: 1182330
A31: 13 | C31: Total | L31: =SUM(L25:L30) -> 4951127
A33: =A31+1 -> 14 | B33: Total Transportation Demand (SNG) | M33: =L22+L31 -> 64724861
B36: TRANSPORTATION COMMODITY
A38: =A33+1 -> 15 | B38: Total ACA | F38: =Calculations!$P$173 -> 130439796.6 | I38: x | J38: ='Other Inputs'!F41 -> 0.0011 | K38: = | L38: =ROUND(F38*J38,0) -> 143484
A40: =A38+1 -> 16 | B40: QPC Commodity (SNG) | F40: ='Ut 1.4 p1'!F38-(D43*F43*H43)-(D44*F44*H44)-(D45*F45*H45)-(D46*F46*H46)-(D47*F47*H47) -> 110795864.6 | I40: x | J40: ='Other Inputs'!F40 -> 0.00267 | K40: = | L40: =ROUND(F40*J40,0) -> 295825
B42: Kern River Commodity
A43: =A40+1 -> 17 | B43: January - December | D43: ='Other Inputs'!C70 -> 0.6581041568 | E43: x | F43: ='Other Inputs'!D70 -> 34885 | G43: x | H43: ='Other Inputs'!E70 -> 365 | I43: x | J43: ='Other Inputs'!F70 -> 0.0044 | K43: = | L43: =ROUND(D43*F43*H43*J43,0) -> 36870
A44: =A43+1 -> 18 | B44: November - March | D44: ='Other Inputs'!C71 -> 0.6581041568 | E44: x | F44: ='Other Inputs'!D71 -> 50000 | G44: x | H44: ='Other Inputs'!E71 -> 151 | I44: x | J44: ='Other Inputs'!F71 -> 0.0044 | K44: = | L44: =ROUND(D44*F44*H44*J44,0) -> 21862
A45: =A44+1 -> 19 | B45: November & March | D45: ='Other Inputs'!C75 -> 0.6581041568 | E45: x | F45: ='Other Inputs'!D75 -> 6000 | G45: x | H45: ='Other Inputs'!E75 -> 61 | I45: x | J45: ='Other Inputs'!F75 -> 0.0044 | K45: = | L45: =ROUND(D45*F45*H45*J45,0) -> 1060
A46: =A45+1 -> 20 | B46: December - February | D46: ='Other Inputs'!C74 -> 0.6581041568 | E46: x | F46: ='Other Inputs'!D74 -> 56925 | G46: x | H46: ='Other Inputs'!E74 -> 90 | I46: x | J46: ='Other Inputs'!F74 -> 0.0044 | K46: = | L46: =ROUND(D46*F46*H46*J46,0) -> 14835
A47: =A46+1 -> 21 | B47: November - March | D47: ='Other Inputs'!C75 -> 0.6581041568 | E47: x | F47: ='Other Inputs'!D77 -> 27000 | G47: x | H47: ='Other Inputs'!E77 -> 151 | I47: x | J47: ='Other Inputs'!F77 -> 0.0044 | K47: = | L47: =ROUND(D47*F47*H47*J47,0) -> 11806
A48: =A47+1 -> 22 | C48: Total (SNG) | L48: =SUM(L43:L47) -> 86433
A50: =A48+1 -> 23 | B50: Total Transportation Commodity | M50: =L48+L40+L38 -> 525742
B53: OTHER CHARGES
A54: =A50+1 -> 24 | B54: Other Transportation Charges | M54: =ROUND('Other Inputs'!$D$181,0) -> 3682628
B59: PEAK HOUR SERVICE
A60: =A54+1 -> 25 | B60: Mid November - Mid February | F60: ='Other Inputs'!D20 -> 28752 | G60: x | H60: ='Other Inputs'!E20 -> 3 | I60: x | J60: ='Other Inputs'!F20 -> 11.65333333 | K60: = | L60: =ROUND(F60*H60*J60,0) -> 1005170
A61: =A60+1 -> 26 | B61: Mid November - Mid February | F61: ='Other Inputs'!D23 -> 66333.33333 | G61: x | H61: ='Other Inputs'!E23 -> 3 | I61: x | J61: ='Other Inputs'!F23 -> 8.692105528 | K61: = | L61: =ROUND(F61*H61*J61,0) -> 1729729
A62: =A61+1 -> 27 | C62: Total Peak Hour Service | M62: =SUM(L60:L61) -> 2734899
A65: =A62+1 -> 28 | B65: TOTAL TRANSPORTATION AND OTHER CHARGES | M65: =SUM(M13:M63) -> 71668130

Sheet Ut 1.4 p2
L1: ='Control Panel'!$E$32 -> Dominion Energy Utah
L2: ='Control Panel'!$E$33 -> Docket No. 20-057-14
L3: DEU Exhibit 1.4
L4: Page 2 of 4
B7: TEST-YEAR STORAGE CHARGES
B9: SNG
B10: (A) | D10: (B) | F10: (C) | H10: (D) | J10: (E) | K10: (F)
B12: STORAGE CHARGES
B14: Component | D14: Dth | F14: Months | H14: Rate | K14: Total Costs
B15: Storage Demand
A16: 1 | B16: Aquifer Peaking Demand | D16: ='Other Inputs'!E166 -> 184625 | E16: x | F16: 12 | G16: x | H16: ='Other Inputs'!E14 -> 2.87375 | I16: = | J16: =ROUND(D16*F16*H16,0) -> 6366793
A17: =A16+1 -> 2 | B17: Spire Demand | D17: ='Other Inputs'!E167 -> 2500000 | E17: x | F17: 5 | G17: x | H17: ='Other Inputs'!E15 -> 0.09 | I17: = | J17: =ROUND(D17*F17*H17,0) -> 1125000
A18: =A17+1 -> 3 | B18: Clay Basin Demand | D18: ='Other Inputs'!E168 -> 111827 | E18: x | F18: 12 | G18: x | H18: ='Other Inputs'!E16 -> 2.85338 | I18: = | J18: =ROUND(D18*F18*H18,0) -> 3829019
A19: =A18+1 -> 4 | B19: Clay Basin Capacity | D19: ='Other Inputs'!E169 -> 13419000 | E19: x | F19: 12 | G19: x | H19: ='Other Inputs'!E17 -> 0.02378 | I19: = | J19: =ROUND(D19*F19*H19,0) -> 3829246
A20: =A19+1 -> 5 | C20: Total Demand Charges (SNG) | J20: =SUM(J16:J19) -> 15150058
B22: Storage Commodity 1/
A23: =A20+1 -> 6 | B23: Aquifer Peaking Injections | D23: =(+'Monthly Inputs'!S24+'Monthly Inputs'!S26+'Monthly Inputs'!S27) -> 1123683.999 | F23: x | H23: ='Other Inputs'!E6 -> 0.03872 | I23: = | J23: =ROUND(D23*H23,0) -> 43509
A24: =A23+1 -> 7 | B24: Aquifer Peaking Withdrawals | D24: =(+'Monthly Inputs'!S32+'Monthly Inputs'!S34+'Monthly Inputs'!S35) -> 1099392.146 | F24: x | H24: ='Other Inputs'!E7 -> 0.03872 | I24: = | J24: 42568
A25: 8 | B25: Spire Injections | D25: ='Monthly Inputs'!S28 -> 0 | F25: x | H25: ='Other Inputs'!E8 -> 0.015 | I25: = | J25: 0
A26: 9 | B26: Spire Withdrawals | D26: ='Monthly Inputs'!S36 -> 2002000.043 | F26: x | H26: ='Other Inputs'!E9 -> 0.01 | I26: = | J26: 20020
A27: 10 | B27: Clay Basin Injections | D27: ='Monthly Inputs'!S25 -> 12081995 | F27: x | H27: ='Other Inputs'!E10 -> 0.01049 | I27: = | J27: 126740
A28: 11 | B28: Clay Basin Withdrawals | D28: ='Monthly Inputs'!S33 -> 10780929 | F28: x | H28: ='Other Inputs'!E11 -> 0.01781 | I28: = | J28: 192008
A29: 12 | C29: Total Commodity Charges | J29: =SUM(J23:J28) -> 424845
A31: =A29+1 -> 13 | B31: Total Storage Charges | K31: =J20+J29 -> 15574903
A39: 1/ | B39: Dominion Energy planned volumes.

Sheet Ut 1.4 p3
N1: ='Control Panel'!$E$32 -> Dominion Energy Utah
N2: ='Control Panel'!$E$33 -> Docket No. 20-057-14
N3: DEU Exhibit 1.4
N4: Page 3 of 4
B9: SUPPLIER NON-GAS COST CLASS ALLOCATION
A12: SNG | C12: (A) | D12: (B) | E12: (C) | F12: (D) | G12: (E) | H12: (F) | I12: (G) | J12: (H) | K12: (I) | L12: (J) | M12: (K) | N12: (L)
C13: Description | D13: Total UT & WY SNG | E13: Allocation Factor 1/ | F13: UT SNG | G13: COS Factor 2/ | H13: GS | I13: FS | J13: IS | K13: TSF | L13: TBF | M13: NGV | N13: UT SNG Total | O13: Check
B14: Transportation | O14: =N14-F14 -> 0
A15: 1 | C15: DEQPC T-1 Transportation: Yearly | D15: =+'Ut 1.4 p1'!$L$17+'Ut 1.4 p1'!$L$18 -> 59706329 | E15: 1 | F15: ='Ut 1.1 p2'!$H$53*$D15 -> 57903046.99 | G15: Firm Sales | H15: =$D$57*$F15 -> 56341250.54 | I15: =$E$57*$F15 -> 1425808.11 | J15: =$F$57*$F15 -> 0 | K15: =$G$57*$F15 -> 0 | L15: =$H$57*$F15 -> 0 | M15: =$I$57*$F15 -> 135988.3493 | N15: =SUM(H15:M15) -> 57903046.99 | O15: =N15-F15 -> 0
A16: 2 | C16: DEQPC T-1 Transportation: November - March | D16: =+'Ut 1.4 p1'!$L$19 -> 2553326 | E16: 1 | F16: ='Ut 1.1 p2'!$H$53*$D16 -> 2476209.103 | G16: Firm Sales | H16: =$D$57*$F16 -> 2409419.274 | I16: =$E$57*$F16 -> 60974.32181 | J16: 0 | K16: 0 | L16: 0 | M16: 5815.507228 | N16: 2476209.103 | O16: 0
A17: 3 | C17: DEQPC No-Notice Transportation | D17: =+'Ut 1.4 p1'!$L$20 -> 2118945 | E17: 1 | F17: ='Ut 1.1 p2'!$H$53*$D17 -> 2054947.507 | G17: Firm Sales | H17: 1999520.204 | I17: 50601.15094 | J17: 0 | K17: 0 | L17: 0 | M17: 4826.152228 | N17: 2054947.507 | O17: 0
A18: 4 | C18: Capacity Release Credits | D18: =+'Ut 1.4 p1'!$L$21 -> -4604866 | E18: 1 | F18: ='Ut 1.1 p2'!$H$53*$D18 -> -4465787.411 | G18: Firm Sales | H18: -4345333.457 | I18: -109965.8177 | J18: 0 | K18: 0 | L18: 0 | M18: -10488.13646 | N18: -4465787.411 | O18: 0
A19: 5 | C19: Kern River Transportation: Yearly | D19: =+'Ut 1.4 p1'!$L$25+'Ut 1.4 p1'!L26 -> 1382356 | E19: 1 | F19: ='Ut 1.1 p2'!$H$53*$D19 -> 1340605.356 | G19: Firm Sales | H19: 1304445.727 | I19: 33011.14687 | J19: 0 | K19: 0 | L19: 0 | M19: 3148.48214 | N19: 1340605.356 | O19: 0
A20: 6 | C20: Kern River Transportation: November - March | D20: =+'Ut 1.4 p1'!$L$27+'Ut 1.4 p1'!$L$30 -> 1976888 | E20: 1 | F20: ='Ut 1.1 p2'!$H$53*$D20 -> 1917180.987 | G20: Firm Sales | H20: 1865469.607 | I20: 47208.77988 | J20: 0 | K20: 0 | L20: 0 | M20: 4502.600315 | N20: 1917180.987 | O20: 0
A21: 7 | C21: Kern River Transportation: December - February | D21: =+'Ut 1.4 p1'!$L$28 -> 1485743 | E21: 1 | F21: ='Ut 1.1 p2'!$H$53*$D21 -> 1440869.807 | G21: Firm Sales | H21: 1402005.784 | I21: 35480.06475 | J21: 0 | K21: 0 | L21: 0 | M21: 3383.958474 | N21: 1440869.807 | O21: 0
A22: 8 | C22: Kern River Transportation: November & March | D22: =+'Ut 1.4 p1'!$L$29 -> 106140 | E22: 1 | F22: ='Ut 1.1 p2'!$H$53*$D22 -> 102934.3038 | G22: Firm Sales | H22: 100157.8967 | I22: 2534.660485 | J22: 0 | K22: 0 | L22: 0 | M22: 241.7466227 | N22: 102934.3038 | O22: 0
A23: 9 | C23: ACA (FERC) | D23: =+'Ut 1.4 p1'!$L$38 -> 143484 | E23: 2 | F23: ='Ut 1.1 p2'!$H$56*$D23 -> 138680.4339 | G23: Firm Sales | H23: 134939.8603 | I23: 3414.875341 | J23: 0 | K23: 0 | L23: 0 | M23: 325.6982881 | N23: 138680.4339 | O23: 0
A24: 10 | C24: QPC Commodity | D24: =+'Ut 1.4 p1'!$L$40 -> 295825 | E24: 2 | F24: ='Ut 1.1 p2'!$H$56*$D24 -> 285921.3526 | G24: Firm Sales | H24: 278209.3067 | I24: 7040.544575 | J24: 0 | K24: 0 | L24: 0 | M24: 671.5013247 | N24: 285921.3526 | O24: 0
A25: 11 | C25: Kern River Commodity | D25: =+'Ut 1.4 p1'!$L$48 -> 86433 | E25: 2 | F25: ='Ut 1.1 p2'!$H$56*$D25 -> 83539.39076 | G25: Firm Sales | H25: 81286.11513 | I25: 2057.07898 | J25: 0 | K25: 0 | L25: 0 | M25: 196.19665 | N25: 83539.39076 | O25: 0
A26: 12 | C26: Other Transportation Charges | D26: =+'Ut 1.4 p1'!$M$54 -> 3682628 | E26: 2 | F26: ='Ut 1.1 p2'!$H$56*$D26 -> 3559340.755 | G26: Firm Sales | H26: 3463336.036 | I26: 87645.42073 | J26: 0 | K26: 0 | L26: 0 | M26: 8359.298843 | N26: 3559340.755 | O26: 0
C27: Total Transportation | D27: =SUM(D15:D26) -> 68933231 | F27: =SUM(F15:F26) -> 66837488.58 | H27: =SUM(H15:H26) -> 65034706.89 | I27: 1645810.337 | J27: 0 | K27: 0 | L27: 0 | M27: 156971.3549 | N27: =SUM(N15:N26) -> 66837488.58 | O27: 0
B29: Peak Hour
A30: 13 | C30: DEQPC Peak Hour Service | D30: =+'Ut 1.4 p1'!L61 -> 1729729 | E30: 1 | F30: ='Ut 1.1 p2'!$H$53*$D30 -> 1677486.813 | G30: Design Day | H30: =$D$56*$F30 -> 1345312.125 | I30: =$E$56*$F30 -> 19183.59848 | J30: =$F$56*$F30 -> 0 | K30: =$G$56*$F30 -> 244680.4053 | L30: =$H$56*$F30 -> 67462.74723 | M30: =$I$56*$F30 -> 847.9369436 | N30: =SUM(H30:M30) -> 1677486.813 | O30: =N30-F30 -> 0
A31: 14 | C31: Kern River Peak Hour Service | D31: =+'Ut 1.4 p1'!L60 -> 1005170 | E31: 1 | F31: ='Ut 1.1 p2'!$H$53*$D31 -> 974811.3261 | G31: Design Day | H31: =$D$56*$F31 -> 781779.9142 | I31: =$E$56*$F31 -> 11147.86055 | J31: =$F$56*$F31 -> 0 | K31: =$G$56*$F31 -> 142187.2461 | L31: =$H$56*$F31 -> 39203.55711 | M31: =$I$56*$F31 -> 492.7481574 | N31: =SUM(H31:M31) -> 974811.3261 | O31: =N31-F31 -> 0
C32: Total Peak Hour | D32: =SUM(D30:D31) -> 2734899 | F32: =SUM(F30:F31) -> 2652298.139 | H32: =SUM(H30:H31) -> 2127092.04 | I32: 30331.45903 | J32: 0 | K32: 386867.6514 | L32: 106666.3043 | M32: 1340.685101 | N32: 2652298.139
B34: Storage
A35: 15 | C35: Aquifer Peaking Storage Demand | D35: =+'Ut 1.4 p2'!$J$16 -> 6366793 | E35: 1 | F35: ='Ut 1.1 p2'!$H$53*$D35 -> 6174499.763 | G35: Firm Sales | H35: =$D$57*$F35 -> 6007957.373 | I35: =$E$57*$F35 -> 152041.2534 | J35: =$F$57*$F35 -> 0 | K35: =$G$57*$F35 -> 0 | L35: =$H$57*$F35 -> 0 | M35: =$I$57*$F35 -> 14501.13723 | N35: =SUM(H35:M35) -> 6174499.763 | O35: =N35-F35 -> 0
A36: 16 | C36: Spire Storage Demand | D36: =+'Ut 1.4 p2'!$J$17 -> 1125000 | E36: 1 | F36: ='Ut 1.1 p2'!$H$53*$D36 -> 1091022.157 | G36: Firm Sales | H36: 1061594.439 | I36: 26865.39519 | J36: 0 | K36: 0 | L36: 0 | M36: 2562.322881 | N36: 1091022.157 | O36: 0
A37: 17 | C37: Clay Basin Storage Demand | D37: =+'Ut 1.4 p2'!$J$18 -> 3829019 | E37: 1 | F37: ='Ut 1.1 p2'!$H$53*$D37 -> 3713372.951 | G37: Firm Sales | H37: 3613213.58 | I37: 91438.31878 | J37: 0 | K37: 0 | L37: 0 | M37: 8721.05155 | N37: 3713372.951 | O37: 0
A38: 18 | C38: Clay Basin Storage Capacity | D38: =+'Ut 1.4 p2'!$J$19 -> 3829246 | E38: 1 | F38: ='Ut 1.1 p2'!$H$53*$D38 -> 3713593.095 | G38: Firm Sales | H38: 3613427.787 | I38: 91443.73962 | J38: 0 | K38: 0 | L38: 0 | M38: 8721.56857 | N38: 3713593.095 | O38: 0
A39: 19 | C39: Aquifer Peaking Injections Storage Commodity | D39: =+'Ut 1.4 p2'!$J$23 -> 43509 | E39: 2 | F39: ='Ut 1.1 p2'!$H$56*$D39 -> 42052.40305 | G39: Firm Sales | H39: 40918.13987 | I39: 1035.500901 | J39: 0 | K39: 0 | L39: 0 | M39: 98.76227883 | N39: 42052.40305 | O39: 0
A40: 20 | C40: Aquifer Peaking Withdrawals Storage Commodity | D40: =+'Ut 1.4 p2'!$J$24 -> 42568 | E40: 2 | F40: ='Ut 1.1 p2'!$H$56*$D40 -> 41142.9059 | G40: Firm Sales | H40: 40033.17424 | I40: 1013.105388 | J40: 0 | K40: 0 | L40: 0 | M40: 96.62627698 | N40: 41142.9059 | O40: 0
A41: 21 | C41: Spire Injections Storage Commodity | D41: =+'Ut 1.4 p2'!$J$25 -> 0 | E41: 2 | F41: ='Ut 1.1 p2'!$H$56*$D41 -> 0 | G41: Firm Sales | H41: 0 | I41: 0 | J41: 0 | K41: 0 | L41: 0 | M41: 0 | N41: 0 | O41: 0
A42: 22 | C42: Spire Withdrawals Storage Commodity | D42: =+'Ut 1.4 p2'!$J$26 -> 20020 | E42: 2 | F42: ='Ut 1.1 p2'!$H$56*$D42 -> 19349.76922 | G42: Firm Sales | H42: 18827.85539 | I42: 476.4698805 | J42: 0 | K42: 0 | L42: 0 | M42: 45.44395004 | N42: 19349.76922 | O42: 0
A43: 23 | C43: Clay Basin Injections Storage Commodity | D43: =+'Ut 1.4 p2'!$J$27 -> 126740 | E43: 2 | F43: ='Ut 1.1 p2'!$H$56*$D43 -> 122496.9906 | G43: Firm Sales | H43: 119192.9267 | I43: 3016.37326 | J43: 0 | K43: 0 | L43: 0 | M43: 287.6906208 | N43: 122496.9906 | O43: 0
A44: 24 | C44: Clay Basin Withdrawals Storage Commodity | D44: =+'Ut 1.4 p2'!$J$28 -> 192008 | E44: 2 | F44: ='Ut 1.1 p2'!$H$56*$D44 -> 185579.9445 | G44: Firm Sales | H44: =$D$57*$F44 -> 180574.3685 | I44: 4569.731709 | J44: 0 | K44: 0 | L44: 0 | M44: 435.8442537 | N44: 185579.9445 | O44: 0
C45: Total Storage | D45: =SUM(D35:D44) -> 15574903 | F45: =SUM(F35:F44) -> 15103109.98 | H45: =SUM(H35:H44) -> 14695739.64 | I45: 371899.8881 | J45: 0 | K45: 0 | L45: 0 | M45: 35470.44761 | N45: 15103109.98
A47: 25 | C47: Supplier Non-Gas Costs | D47: =+D27+D32+D45 -> 87243033 | F47: =+F27+F32+F45 -> 84592896.7 | H47: =+H27+H32+H45 -> 81857538.57 | I47: 2048041.684 | J47: 0 | K47: 386867.6514 | L47: 106666.3043 | M47: 193782.4876 | N47: 84592896.7 | O47: =N47-F47 -> 0
H49: =H47/$F$47 -> 0.9676644466 | I49: =I47/$F$47 -> 0.02421056334 | J49: 0 | K49: 0.004573287669 | L49: 0.001260936893 | M49: 0.00229076548 | N49: 1
B53: 1/ | C53: Allocations Factors, DEU Exhibit 1.1 page 2, footnote
B55: 2/ | C55: Cost-of-Service Allocation Factor Docket No. 19-057-02 | D55: GS | E55: FS | F55: IS | G55: TS | H55: TBF | I55: NGV | J55: Total
C56: 210 Design Day | D56: =+'Other Inputs'!C307 -> 0.8019807457 | E56: =+'Other Inputs'!D307 -> 0.01143591611 | F56: =+'Other Inputs'!E307 -> 0 | G56: =+'Other Inputs'!F307 -> 0.1458612988 | H56: =+'Other Inputs'!G307 -> 0.04021655889 | I56: =+'Other Inputs'!H307 -> 0.000505480542 | J56: =SUM(D56:I56) -> 1
C57: 240 Firm Sales | D57: =+'Other Inputs'!C308 -> 0.9730273873 | E57: =+'Other Inputs'!D308 -> 0.02462406012 | F57: =+'Other Inputs'!E308 -> 0 | G57: =+'Other Inputs'!F308 -> 0 | H57: =+'Other Inputs'!G308 -> 0 | I57: =+'Other Inputs'!H308 -> 0.00234855256 | J57: =SUM(D57:I57) -> 1

Sheet Ut 1.4 p4
I1: ='Control Panel'!$E$32 -> Dominion Energy Utah
I2: ='Control Panel'!$E$33 -> Docket No. 20-057-14
I3: DEU Exhibit 1.4
I4: Page 4 of 4
C6: SUPPLIER NON-GAS COST SUMMARY
A9: SNG | C9: (A) | D9: (B) | E9: (C) | F9: (D) | G9: (E) | H9: (F) | I9: (G)
B10: Description | C10: GS | D10: FS | E10: IS | F10: TS | G10: TBF | H10: NGV | I10: Total
A13: 1 | B13: Transportation - Demand | C13: =SUM('Ut 1.4 p3'!H15:H22) -> 61076935.57 | D13: =SUM('Ut 1.4 p3'!I15:I22) -> 1545652.417 | E13: =SUM('Ut 1.4 p3'!J15:J22) -> 0 | F13: =SUM('Ut 1.4 p3'!K15:K22) -> 0 | G13: =SUM('Ut 1.4 p3'!L15:L22) -> 0 | H13: =SUM('Ut 1.4 p3'!M15:M22) -> 147418.6598 | I13: =SUM(C13:H13) -> 62770006.65
A14: =+A13+1 -> 2 | B14: Transportation - Commodity | C14: =SUM('Ut 1.4 p3'!H23:H25) -> 494435.2821 | D14: =SUM('Ut 1.4 p3'!I23:I25) -> 12512.4989 | E14: =SUM('Ut 1.4 p3'!J23:J25) -> 0 | F14: =SUM('Ut 1.4 p3'!K23:K25) -> 0 | G14: =SUM('Ut 1.4 p3'!L23:L25) -> 0 | H14: =SUM('Ut 1.4 p3'!M23:M25) -> 1193.396263 | I14: =SUM(C14:H14) -> 508141.1773
A16: =+A14+1 -> 3 | B16: Other Transportation | C16: =+'Ut 1.4 p3'!H26 -> 3463336.036 | D16: =+'Ut 1.4 p3'!I26 -> 87645.42073 | E16: =+'Ut 1.4 p3'!J26 -> 0 | F16: =+'Ut 1.4 p3'!K26 -> 0 | G16: =+'Ut 1.4 p3'!L26 -> 0 | H16: =+'Ut 1.4 p3'!M26 -> 8359.298843 | I16: =SUM(C16:H16) -> 3559340.755
A18: =+A16+1 -> 4 | B18: Peak Hour Service | C18: =SUM('Ut 1.4 p3'!H30:H31) -> 2127092.04 | D18: =SUM('Ut 1.4 p3'!I30:I31) -> 30331.45903 | E18: =SUM('Ut 1.4 p3'!J30:J31) -> 0 | F18: =SUM('Ut 1.4 p3'!K30:K31) -> 386867.6514 | G18: =SUM('Ut 1.4 p3'!L30:L31) -> 106666.3043 | H18: =SUM('Ut 1.4 p3'!M30:M31) -> 1340.685101 | I18: =SUM(C18:H19) -> 2652298.139
A19: 5 | B19: TBF Adjustment 1/ | C19: =+C18/($C$18+$D$18+$F$18+$H$18)*-$G$19 -> 44564.38746 | D19: =+D18/($C$18+$D$18+$F$18+$H$18)*-$G$19 -> 635.4698655 | E19: =+E18/($C$18+$D$18+$F$18+$H$18)*$G$18 -> 0 | F19: =+F18/($C$18+$D$18+$F$18+$H$18)*-$G$19 -> 8105.206351 | G19: =+-G18*0.5 -> -53333.15217 | H19: =+H18/($C$18+$D$18+$F$18+$H$18)*-$G$19 -> 28.0884932 | I19: =SUM(C19:H19) -> 9.201528428e-13
A20: 6 | B20: Total Peak Hour Service | C20: =SUM(C18:C19) -> 2171656.427 | D20: 30966.9289 | E20: 0 | F20: 394972.8577 | G20: 53333.15217 | H20: 1368.773594 | I20: 2652298.139
A22: 7 | B22: Storage - Demand | C22: =SUM('Ut 1.4 p3'!H35:H38) -> 14296193.18 | D22: =SUM('Ut 1.4 p3'!I35:I38) -> 361788.7069 | E22: =SUM('Ut 1.4 p3'!J35:J38) -> 0 | F22: =SUM('Ut 1.4 p3'!K35:K38) -> 0 | G22: =SUM('Ut 1.4 p3'!L35:L38) -> 0 | H22: =SUM('Ut 1.4 p3'!M35:M38) -> 34506.08023 | I22: =SUM(C22:H22) -> 14692487.97
A23: 8 | B23: Storage - Commodity | C23: =SUM('Ut 1.4 p3'!H39:H44) -> 399546.4647 | D23: =SUM('Ut 1.4 p3'!I39:I44) -> 10111.18114 | E23: =SUM('Ut 1.4 p3'!J39:J44) -> 0 | F23: =SUM('Ut 1.4 p3'!K39:K44) -> 0 | G23: =SUM('Ut 1.4 p3'!L39:L44) -> 0 | H23: =SUM('Ut 1.4 p3'!M39:M44) -> 964.3673803 | I23: =SUM(C23:H23) -> 410622.0132
A26: =+A23+1 -> 9 | B26: Total SNG | C26: =SUM(C13:C14,C16,C20,C22:C23) -> 81902102.96 | D26: 2048677.154 | E26: 0 | F26: 394972.8577 | G26: 53333.15217 | H26: 193810.5761 | I26: =SUM(C26:H26) -> 84592896.7
A29: =+A26+1 -> 10 | B29: Percent Allocated to Rate Classes | C29: =C26/$I$26 -> 0.9681912567 | D29: 0.02421807544 | E29: 0 | F29: 0.004669101936 | G29: 0.0006304684465 | H29: 0.002291097523 | I29: =SUM(C29:H29) -> 1
A34: 1/ | B34: Represents a 50% subsidy of costs to the TBF class, which is allocated to all other classes using the design day factor.

Sheet Ut 1.5 p1
J1: ='Control Panel'!$E$32 -> Dominion Energy Utah
J2: ='Control Panel'!$E$33 -> Docket No. 20-057-14
J3: DEU Exhibit 1.5
J4: Page 1 of 6
B8: TEST-YEAR GAS COST CHANGE
B10: COMMODITY
B11: (A) | C11: (B) | D11: (C) | F11: (D) | H11: (E) | J11: (F)
F12: Average Rate | H12: x Dth | I12: = | J12: Total
A13: 1 | B13: Commodity Portion of Test-Year Gas Cost 1/ | J13: ='Ut 1.1 p2'!H29-D52 -> 412068879.9
A14: =A13+1 -> 2 | B14: 191 Account Balance for Commodity Costs 2/ | J14: =D45 -> 24862215
A15: =A14+1 -> 3 | B15: Total | J15: =J13+J14 -> 436931094.9
H17: Total
B18: Test-Year Sales: | D18: Firm | F18: + Interruptible | H18: = Sales Dth
A20: =A15+1 -> 4 | B20: Utah | D20: =Calculations!P13 -> 112353126 | F20: =Calculations!P17 -> 151174 | H20: =D20+F20 -> 112504300
A21: =A20+1 -> 5 | B21: Wyoming | D21: =Calculations!P32 -> 3749302 | F21: =Calculations!P36 -> 147584 | H21: =D21+F21 -> 3896886
A22: =A21+1 -> 6 | B22: Total Dth | H22: =SUM(H20:H21) -> 116401186
F26: Current Case | H26: Prior Case
B27: COMMODITY RATES | F27: ='Control Panel'!E5 -> 20-057-14 | H27: ='Control Panel'!E9 -> 20-057-07 | J27: Difference
A29: =A22+1 -> 7 | B29: Gas Cost (line 1/Total Sales Dth, line 4) | F29: =ROUND((J13)/H20,5) -> 3.66269 | H29: ='Other Inputs'!F116 -> 3.07628 | J29: =F29-H29 -> 0.58641
A30: =A29+1 -> 8 | B30: 191 Account Amortization (Commodity Portion) | F30: =H45 -> 0.22099 | H30: ='Other Inputs'!F117 -> 0.43865 | J30: =F30-H30 -> -0.21766
A31: 9 | B31: Tax Reform Surcredit 4 3/ | F31: =H48 -> -0.00972 | H31: =H48 -> -0.00972 | J31: =F31-H31 -> 0
A32: 10 | B32: Total Sales Unit Commodity Cost (Lines 7 + 8 + 9) | F32: =F29+F30+F31 -> 3.87396 | H32: =H29+H30+H31 -> 3.50521 | J32: =J29+J30+J31 -> 0.36875
A39: 1/ | B39: DEU Exhibit 1.1, page 2, line 9, column E less RIN Proceed from CNG 4/
B41: Amortization from Docket No. 19-057-18
B42: Commodity amortization will be adjusted in the 2020 fall pass-through.
A43: 2/ | B43: 191 Account (August 2020) actual | D43: ='Other Inputs'!E136 -> 35999919
B44: Less: Supplier Non-Gas balance actual | D44: ='Other Inputs'!E137 -> 11137704
B45: 191 Account Commodity Portion | D45: =(D43-D44) -> 24862215 | F45: =H20 -> 112504300 | H45: =ROUND(D45/F45,5) -> 0.22099
B46: See Application, paragraph 15.
A48: 3/ | B48: Purchase Gas Agreement EDIT | H48: -0.00972
B49: 12 months beginning June 2020
B50: Established in previous Docket No. 20-057-07
A52: 4/ | B52: RIN Proceed from CNG / NGV Dths | D52: -20428 | F52: =Calculations!P12 -> 205030 | H52: =ROUND(D52/F52,5) -> -0.09963

Sheet Ut 1.5 p2
G1: ='Control Panel'!$E$32 -> Dominion Energy Utah
G2: ='Control Panel'!$E$33 -> Docket No. 20-057-14
G3: DEU Exhibit 1.5
G4: Page 2 of 6
C8: TEST-YEAR SUPPLIER NON-GAS COST CHANGE
B10: SNG
C11: (A) | D11: (B) | E11: (C) | F11: (D)
D12: Dth | E12: Average Rate | F12: Total
B15: 1 | C15: Supplier Non-Gas (SNG) Costs 1/ | F15: ='Ut 1.1 p2'!H43 -> 84592896.7
B16: =B15+1 -> 2 | C16: 191 Account Balance for SNG Costs 2/ | F16: =E44 -> 962115
B17: =1+B16 -> 3 | C17: SNG Total Costs Recovered for Test-Year 3/ | F17: =SUM(F15:F16) -> 85555011.7
B20: 4 | C20: Supplier Non-Gas Base Cost at Current Rates | F20: =F22-F21 -> 86274917.76
B21: 5 | C21: Amortization | F21: =E45 -> 962115
B22: 6 | C22: SNG Total Costs Recovered at Current Rates 3/ | F22: ='Other Inputs'!E244-(D30*('Other Inputs'!G93-'Other Inputs'!F245)) -> 87237032.76
B25: =1+B22 -> 7 | C25: SNG Costs Adjustment to Current Rates (Line 3 - Line 6) | F25: =F17-F22 -> -1682021.058
C29: Adjustment for SNG contributions from:
B30: 8 | C30: IS SNG current rate | D30: ='RevRun Fcst'!T102+'RevRun Fcst'!T93 -> 151174 | E30: ='Other Inputs'!E44 -> 0.17652 | F30: =D30*E30 -> 26685.23448
B31: 9 | C31: IS SNG new rate | D31: ='RevRun Fcst'!T102+'RevRun Fcst'!T93 -> 151174 | E31: ='Other Inputs'!F44 -> 0.17652 | F31: =D31*E31 -> 26685.23448
B35: 10 | C35: Percent Change to Amortization | F35: =((F16-F21)/F21)*100 -> 0 | G35: %
C36: (ln 2-ln 5)/ln 5
B40: 1/ | C40: DEU Exhibit 1.1, page 2, line 16, column E.
B42: 2/ | C42: Actual March 2020 SNG Balance | E42: ='Other Inputs'!D140 -> -13037885
C43: Expected March 2020 SNG Balance | E43: ='Other Inputs'!E140 -> -14000000
E44: ='Other Inputs'!F140 -> 962115 | H44: =E42-E43-E44 -> 0
B45: 2/ | C45: Spring Pass Through SNG Amortization From Docket No. 20-057-07 | E45: ='Other Inputs'!F140 -> 962115
C46: Amortization will be adjusted in the 2021 Spring Pass Through
B49: 3/ | C49: ="Output of Revrun.Exe computer program dated "&'RevRun Fcst'!D4 -> Output of Revrun.Exe computer program dated 09/21/20

Sheet Ut 1.5 p3
I1: ='Control Panel'!$E$32 -> Dominion Energy Utah
I2: ='Control Panel'!$E$33 -> Docket No. 20-057-14
I3: DEU Exhibit 1.5
I4: Page 3 of 6
B7: SUPPLIER NON-GAS RATE CALCULATION
B9: SNG | C9: (A) | D9: (B) | E9: (C) | F9: (D) | G9: (E) | H9: (F) | I9: (G)
C10: GS | D10: FS | E10: IS 1/ | F10: TSF | G10: TBF | H10: NGV | I10: Total
A11: 1 | B11: Allocated SNG Costs | C11: =+'Ut 1.4 p4'!C26 -> 81902102.96 | D11: =+'Ut 1.4 p4'!D26 -> 2048677.154 | E11: =+'Ut 1.4 p4'!E26 -> 0 | F11: =+'Ut 1.4 p4'!F26 -> 394972.8577 | G11: =+'Ut 1.4 p4'!G26 -> 53333.15217 | H11: =+'Ut 1.4 p4'!H26 -> 193810.5761 | I11: =SUM(C11:H11) -> 84592896.7
A12: =+A11+1 -> 2 | B12: IS SNG Revenue | C12: =-$E$12*'Ut 1.4 p4'!C29 -> -26282.82501 | D12: =-$E$12*'Ut 1.4 p4'!D29 -> -657.4315089 | E12: =$E$17*E23 -> 27146.31518 | F12: =-$E$12*'Ut 1.4 p4'!F29 -> -126.7489128 | G12: =-$E$12*'Ut 1.4 p4'!G29 -> -17.11489516 | H12: =-$E$12*'Ut 1.4 p4'!H29 -> -62.19485547 | I12: =SUM(C12:H12) -> 4.838796031e-12
A13: 3 | B13: SNG Costs to Recover | C13: =+C11+C12 -> 81875820.13 | D13: 2048019.722 | E13: 27146.31518 | F13: 394846.1088 | G13: 53316.03727 | H13: 193748.3813 | I13: =SUM(C13:H13) -> 84592896.7
A14: 4 | B14: Summer/Winter Differential | C14: ='Ut 1.5 p4'!C38 -> 0.51748 | D14: ='Ut 1.5 p5'!C39 -> 0.17721 | F14: 0 | G14: 0 | H14: 0
A15: 5 | B15: Summer Forecast Throughput 2020-21 | C15: =SUM('RevRun Fcst'!$M$21:$S$21) -> 30260118 | D15: =SUM('RevRun Fcst'!$M$48:$S$48) -> 1336431 | E15: =SUM('RevRun Fcst'!$M$102:$S$102) -> 65361 | F15: =SUM('RevRun Fcst'!$M$165:$S$165) -> 28425606 | G15: =SUM('RevRun Fcst'!$M$129:$S$129) -> 2199887 | H15: =SUM('RevRun Fcst'!$M$66:$S$66) -> 121589
A16: 6 | B16: Winter Forecast Throughput 2020-21 | C16: =SUM('RevRun Fcst'!$H$21:$L$21) -> 79092643 | D16: =SUM('RevRun Fcst'!$H$48:$L$48) -> 1458904 | E16: =SUM('RevRun Fcst'!$H$102:$L$102) -> 85813 | F16: =SUM('RevRun Fcst'!$H$165:$L$165) -> 26327029 | G16: =SUM('RevRun Fcst'!$H$129:$L$129) -> 1389316 | H16: =SUM('RevRun Fcst'!$H$66:$L$66) -> 83441
A17: 7 | B17: Total Forecast Throughput 2020-21 | C17: =SUM(C15:C16) -> 109352761 | D17: 2795335 | E17: 151174 | F17: 54752635 | G17: 3589203 | H17: 205030
A18: 8 | B18: Forecast Demand Dth | C18: 0 | D18: 0 | F18: =+'Other Inputs'!D310 -> 345541.44 | G18: =+'Other Inputs'!D311 -> 47509.2 | H18: 0
A20: =A18+1 -> 9 | B20: Summer Base Rate | C20: =ROUND(C21-C14,5) -> 0.37445 | D20: =ROUND(D21-D14,5) -> 0.64017 | F20: 0 | G20: 0 | H20: 0
A21: =A20+1 -> 10 | B21: Winter Base Rate | C21: =ROUND((C13+C14*C15)/C17,5) -> 0.89193 | D21: =ROUND((D13+D14*D15)/D17,5) -> 0.81738 | F21: 0 | G21: 0 | H21: 0
A23: =A21+1 -> 11 | B23: Year Round Base Rates | C23: 0 | D23: 0 | E23: =ROUND(C54,5) -> 0.17957 | F23: 0 | G23: 0 | H23: =ROUND(H13/H17,5) -> 0.94498
A25: =A23+1 -> 12 | B25: Annual Demand Rate | C25: 0 | D25: 0 | F25: =ROUND(F13/F18,5) -> 1.14269 | G25: =ROUND(G13/G18,5) -> 1.12223 | H25: 0
A26: =A25+1 -> 13 | B26: Monthly Demand Rate | C26: 0 | D26: 0 | F26: =ROUND(F25/12,5) -> 0.09522 | G26: =ROUND(G25/12,5) -> 0.09352 | H26: 0
A28: =A26+1 -> 14 | B28: Revenue Collected With Rate | C28: =C20*C15+C16*C21 -> 81876002.26 | D28: =D20*D15+D16*D21 -> 2048021.985 | E28: =+E17*E23 -> 27146.31518 | F28: =F25*F18 -> 394846.7481 | G28: =G25*G18 -> 53316.24952 | H28: =H23*H17 -> 193749.2494 | I28: =SUM(C28:H28) -> 84593082.8
A30: =+A28+1 -> 15 | B30: Amortization of Balance 2/ | C30: 932109.9137 | D30: 23350.82362 | E30: 0 | F30: =+'Ut 1.5 p2'!$F$16*'Ut 1.4 p4'!F29 -> 4492.213009 | G30: 528.5481278 | H30: 2211.41068
A31: =+A30+1 -> 16 | B31: Summer/Winter Differential | C31: 0.00593 | D31: 0.00137
A33: =+A31+1 -> 17 | B33: Summer Amortization Rate | C33: 0.00429 | D33: 0.00852
A34: =+A33+1 -> 18 | B34: Winter Amortization Rate | C34: 0.01022 | D34: 0.00989
A35: =+A34+1 -> 19 | B35: Annual Amortization Rate | F35: 0.01868 | G35: 0.01175 | H35: 0.00866
A37: =+A35+1 -> 20 | B37: Amortization Collected With Rate | C37: =+C15*C33+C16*C34 -> 938142.7177 | D37: =+D15*D33+D16*D34 -> 25814.95268 | E37: 0 | F37: =+F35*F18 -> 6454.714099 | G37: =+G35*G18 -> 558.2331 | H37: =+H35*H17 -> 1775.5598 | I37: =SUM(C37:H37) -> 972746.1774
A39: =+A37+1 -> 21 | B39: Summer Total Rate | C39: =+C20+C33 -> 0.37874 | D39: =+D20+D33 -> 0.64869
A40: =+A39+1 -> 22 | B40: Winter Total Rate | C40: =+C21+C34 -> 0.90215 | D40: =+D21+D34 -> 0.82727
A41: =+A40+1 -> 23 | B41: Annual Total Rate | E41: =+E23 -> 0.17957 | F41: =+F25+F35 -> 1.16137 | G41: =+G25+G35 -> 1.13398 | H41: =+H23+H35 -> 0.95364
A42: =+A41+1 -> 24 | B42: Monthly Total Rate | F42: =ROUND(F41/12,5) -> 0.09678 | G42: =ROUND(G41/12,5) -> 0.0945
A44: =+A42+1 -> 25 | B44: Summer Total Collected | C44: =+C15*C39 -> 11460717.09 | D44: =+D15*D39 -> 866929.4254
A45: =+A44+1 -> 26 | B45: Winter Total Collected | C45: =+C16*C40 -> 71353427.88 | D45: =+D16*D40 -> 1206907.512
A46: =+A45+1 -> 27 | B46: Annual Total Collected | E46: =+E41*E17 -> 27146.31518 | F46: =+F41*F18 -> 401301.4622 | G46: =+G41*G18 -> 53874.48262 | H46: =+H41*H17 -> 195524.8092
C47: =SUM(C44:C46) -> 82814144.97 | D47: 2073836.937 | E47: 27146.31518 | F47: 401301.4622 | G47: 53874.48262 | H47: 195524.8092 | I47: =SUM(C47:H47) -> 85565828.98
A51: 1/ | B51: ="Calculated by adding QPC T-2 and ACA rates, then adjusting for distr. loss of "&TEXT('Other Inputs'!E270,"0.000%") -> Calculated by adding QPC T-2 and ACA rates, then adjusting for distr. loss of 0.565%
B52: ="= ("&TEXT('Other Inputs'!$F$44,"$0.00000")&" + "&TEXT('Other Inputs'!$F$45,"$0.00000")&") / ( 1 - "&TEXT('Other Inputs'!$E$270,"0.00000")&" ) = "&TEXT(('Other Inputs'!F44+'Other Inputs'!F45)/(1-('Other Inputs'!$E$270)),("$0.00000")) -> = ($0.17652 + $0.00110) / ( 1 - 0.00565 ) = $0.17863
B53: ="IS Tariff rate has an adjustment for bad debt of "&TEXT('Other Inputs'!$E$281,"0.00%") -> IS Tariff rate has an adjustment for bad debt of 0.52%
B54: =" = "&TEXT((('Other Inputs'!$F$44+'Other Inputs'!$F$45)/(1-'Other Inputs'!$E$270)),"$0.00000")&" / ( 1 - "&TEXT('Other Inputs'!$E$281,"0.00000")&" ) = " -> = $0.17863 / ( 1 - 0.00522 ) = | C54: =+(('Other Inputs'!$F$44+'Other Inputs'!$F$45)/(1-'Other Inputs'!$E$270))/(1-('Other Inputs'!$E$281)) -> 0.1795665929
A56: 2/ | B56: Spring Pass Through SNG Amortization From Docket No. 20-057-07 (Lines 15-19)
B57: Amortization will be adjusted in the 2021 Spring Pass Through

Sheet Ut 1.5 p4
E1: ='Control Panel'!$E$32 -> Dominion Energy Utah
E2: ='Control Panel'!$E$33 -> Docket No. 20-057-14
E3: DEU Exhibit 1.5
E4: Page 4 of 6
A6: GENERAL SERVICE SUMMER / WINTER DIFFERENTIAL
A8: SNG | B8: (A) | C8: (B) | D8: (C) | E8: (D)
B9: Contract | C9: Allocated GS Costs | D9: Winter Allocation | E9: Summer Allocation
A10: 1 | B10: DEQPC T-1 Transportation: Yearly | C10: =+'Ut 1.4 p3'!H15 -> 56341250.54 | D10: =C10*D47 -> 40750488.36 | E10: =C10*$D$46 -> 15590762.17
A11: =A10+1 -> 2 | B11: DEQPC T-1 Transportation: November - March | C11: =+'Ut 1.4 p3'!H16 -> 2409419.274 | D11: =C11 -> 2409419.274
A12: =A11+1 -> 3 | B12: DEQPC No-Notice Transportation | C12: =+'Ut 1.4 p3'!H17 -> 1999520.204 | D12: =C12*D47 -> 1446212.571 | E12: =C12*$D$46 -> 553307.6326
A13: 4 | B13: Capacity Release Credits | C13: =+'Ut 1.4 p3'!H18 -> -4345333.457 | D13: =C13*$D$47 -> -3142891.909 | E13: =C13*$D$46 -> -1202441.547
A14: 5 | B14: Kern River Transportation: Yearly | C14: =+'Ut 1.4 p3'!H19 -> 1304445.727 | D14: =C14*$D$47 -> 943479.2431 | E14: =C14*$D$46 -> 360966.4837
A15: 6 | B15: Kern River Transportation: November - March | C15: =+'Ut 1.4 p3'!H20 -> 1865469.607 | D15: =C15 -> 1865469.607
A16: 7 | B16: Kern River Transportation: December - February | C16: =+'Ut 1.4 p3'!H21 -> 1402005.784 | D16: =C16 -> 1402005.784
A17: 8 | B17: Kern River Transportation: November & March | C17: =+'Ut 1.4 p3'!H22 -> 100157.8967 | D17: =C17 -> 100157.8967
A18: 9 | B18: ACA (FERC) | C18: =+'Ut 1.4 p3'!H23 -> 134939.8603 | D18: =C18*$D$47 -> 97599.27502 | E18: =C18*$D$46 -> 37340.58525
A19: 10 | B19: QPC Commodity | C19: =+'Ut 1.4 p3'!H24 -> 278209.3067 | D19: =C19*$D$47 -> 201223.1715 | E19: 76986.13527
A20: 11 | B20: Kern River Commodity | C20: =+'Ut 1.4 p3'!H25 -> 81286.11513 | D20: =C20*$D$47 -> 58792.60501 | E20: 22493.51011
A21: 12 | B21: Other Transportation Charges | C21: =+'Ut 1.4 p3'!H26 -> 3463336.036 | D21: =C21*$D$47 -> 2504960.992 | E21: 958375.0438
A22: 13 | B22: DEQPC Peak Hour Service | C22: =+'Ut 1.4 p3'!H30 -> 1345312.125 | D22: =C22 -> 1345312.125
A23: 14 | B23: Kern River Peak Hour Service | C23: =+'Ut 1.4 p3'!H31 -> 781779.9142 | D23: =C23 -> 781779.9142
A24: 15 | B24: Aquifer Peaking Storage Demand | C24: =+'Ut 1.4 p3'!H35 -> 6007957.373 | D24: =C24*$D$47 -> 4345434.201 | E24: 1662523.172
A25: 16 | B25: Spire Storage Demand | C25: =+'Ut 1.4 p3'!H36 -> 1061594.439 | D25: 767829.8127 | E25: 293764.6266
A26: 17 | B26: Clay Basin Storage Demand | C26: =+'Ut 1.4 p3'!H37 -> 3613213.58 | D26: 2613364.392 | E26: 999849.1881
A27: 18 | B27: Clay Basin Storage Capacity | C27: =+'Ut 1.4 p3'!H38 -> 3613427.787 | D27: 2613519.323 | E27: 999908.4633
A28: 19 | B28: Aquifer Peaking Injections Storage Commodity | C28: =+'Ut 1.4 p3'!H39 -> 40918.13987 | D28: 29595.26398 | E28: 11322.87589
A29: 20 | B29: Aquifer Peaking Withdrawals Storage Commodity | C29: =+'Ut 1.4 p3'!H40 -> 40033.17424 | D29: 28955.18622 | E29: 11077.98802
A30: 21 | B30: Spire Injections Storage Commodity | C30: =+'Ut 1.4 p3'!H41 -> 0 | D30: 0 | E30: 0
A31: 22 | B31: Spire Withdrawals Storage Commodity | C31: =+'Ut 1.4 p3'!H42 -> 18827.85539 | D31: 13617.80746 | E31: 5210.047927
A32: 23 | B32: Clay Basin Injections Storage Commodity | C32: =+'Ut 1.4 p3'!H43 -> 119192.9267 | D32: 86209.83605 | E32: 32983.09062
A33: 24 | B33: Clay Basin Withdrawals Storage Commodity | C33: =+'Ut 1.4 p3'!H44 -> 180574.3685 | D33: 130605.793 | E33: 49968.57554
A34: 25 | B34: Utah SNG Costs | C34: =SUM(C10:C33) -> 81857538.57 | D34: =SUM(D10:D33) -> 61393140.53 | E34: =SUM(E10:E33) -> 20464398.04
A36: =A34+1 -> 26 | B36: Winter SNG - Summer SNG | C36: =D34-E34 -> 40928742.49
A37: =A36+1 -> 27 | B37: Winter Dth | C37: =C47 -> 79092643
A38: =A37+1 -> 28 | B38: Seasonal Cost Differential | C38: =ROUND(C36/C37,5) -> 0.51748
A40: 29 | B40: SNG Amortization | C40: =+'Ut 1.5 p3'!C30 -> 932109.9137 | D40: =+C40*D34/C34 -> 699082.2827 | E40: =+C40*E34/C34 -> 233027.631
A42: 30 | B42: Winter SNG - Summer SNG Amortization | C42: =+D40-E40 -> 466054.6517
A43: 31 | B43: Winter Dth | C43: =+C47 -> 79092643
A44: =+A43+1 -> 32 | B44: Seasonal Cost Differential | C44: =ROUND(C42/C43,5) -> 0.00589
A46: =+A44+1 -> 33 | B46: 2020-21 Forecast GS Summer Usage | C46: =+'Ut 1.5 p3'!C15 -> 30260118 | D46: =C46/(C46+C47) -> 0.276720201
A47: =A46+1 -> 34 | B47: 2020-21 Forecast GS Winter Usage | C47: =+'Ut 1.5 p3'!C16 -> 79092643 | D47: =C47/(C47+C46) -> 0.723279799

Sheet Ut 1.5 p5
E1: ='Control Panel'!$E$32 -> Dominion Energy Utah
E2: ='Control Panel'!$E$33 -> Docket No. 20-057-14
E3: DEU Exhibit 1.5
E4: Page 5 of 6
A7: FIRM SALES SUMMER / WINTER DIFFERENTIAL
A9: SNG | B9: (A) | C9: (B) | D9: (C) | E9: (D)
B10: Contract | C10: Allocated FS Costs | D10: Winter Allocation | E10: Summer Allocation
A11: 1 | B11: DEQPC T-1 Transportation: Yearly | C11: =+'Ut 1.4 p3'!I15 -> 1425808.11 | D11: =C11*D49 -> 744138.7723 | E11: =C11*$D$48 -> 681669.3378
A12: =A11+1 -> 2 | B12: DEQPC T-1 Transportation: November - March | C12: =+'Ut 1.4 p3'!I16 -> 60974.32181 | D12: =C12 -> 60974.32181
A13: =A12+1 -> 3 | B13: DEQPC No-Notice Transportation | C13: =+'Ut 1.4 p3'!I17 -> 50601.15094 | D13: =C13*D49 -> 26409.07852 | E13: =C13*$D$48 -> 24192.07242
A14: 4 | B14: Capacity Release Credits | C14: =+'Ut 1.4 p3'!I18 -> -109965.8177 | D14: =C14*$D$49 -> -57391.89445 | E14: =C14*$D$48 -> -52573.92323
A15: 5 | B15: Kern River Transportation: Yearly | C15: =+'Ut 1.4 p3'!I19 -> 33011.14687 | D15: =C15*$D$49 -> 17228.73796 | E15: =C15*$D$48 -> 15782.40892
A16: 6 | B16: Kern River Transportation: November - March | C16: =+'Ut 1.4 p3'!I20 -> 47208.77988 | D16: =C16 -> 47208.77988
A17: 7 | B17: Kern River Transportation: December - February | C17: =+'Ut 1.4 p3'!I21 -> 35480.06475 | D17: =C17 -> 35480.06475
A18: 8 | B18: Kern River Transportation: November & March | C18: =+'Ut 1.4 p3'!I22 -> 2534.660485 | D18: =C18 -> 2534.660485
A19: 9 | B19: ACA (FERC) | C19: =+'Ut 1.4 p3'!I23 -> 3414.875341 | D19: =C19*$D$49 -> 1782.246241 | E19: =C19*$D$48 -> 1632.629101
A20: 10 | B20: QPC Commodity | C20: =+'Ut 1.4 p3'!I24 -> 7040.544575 | D20: 3674.507221 | E20: 3366.037354
A21: 11 | B21: Kern River Commodity | C21: =+'Ut 1.4 p3'!I25 -> 2057.07898 | D21: 1073.603254 | E21: 983.475726
A22: 12 | B22: Other Transportation Charges | C22: =+'Ut 1.4 p3'!I26 -> 87645.42073 | D22: 45742.73026 | E22: 41902.69047
A23: 13 | B23: DEQPC Peak Hour Service | C23: =+'Ut 1.4 p3'!I30 -> 19183.59848 | D23: =C23 -> 19183.59848
A24: 14 | B24: Kern River Peak Hour Service | C24: =+'Ut 1.4 p3'!I31 -> 11147.86055 | D24: =C24 -> 11147.86055
A25: 15 | B25: Aquifer Peaking Storage Demand | C25: =+'Ut 1.4 p3'!I35 -> 152041.2534 | D25: 79351.34526 | E25: 72689.90811
A26: 16 | B26: Spire Storage Demand | C26: =+'Ut 1.4 p3'!I36 -> 26865.39519 | D26: 14021.22912 | E26: 12844.16607
A27: 17 | B27: Clay Basin Storage Demand | C27: =+'Ut 1.4 p3'!I37 -> 91438.31878 | D27: 47722.26907 | E27: 43716.0497
A28: 18 | B28: Clay Basin Storage Capacity | C28: =+'Ut 1.4 p3'!I38 -> 91443.73962 | D28: 47725.09824 | E28: 43718.64137
A29: 19 | B29: Aquifer Peaking Injections Storage Commodity | C29: =+'Ut 1.4 p3'!I39 -> 1035.500901 | D29: 540.4348337 | E29: 495.0660669
A30: 20 | B30: Aquifer Peaking Withdrawals Storage Commodity | C30: =+'Ut 1.4 p3'!I40 -> 1013.105388 | D30: 528.7464663 | E30: 484.358922
A31: 21 | B31: Spire Injections Storage Commodity | C31: =+'Ut 1.4 p3'!I41 -> 0 | D31: 0 | E31: 0
A32: 22 | B32: Spire Withdrawals Storage Commodity | C32: =+'Ut 1.4 p3'!I42 -> 476.4698805 | D32: 248.6728119 | E32: 227.7970686
A33: 23 | B33: Clay Basin Injections Storage Commodity | C33: =+'Ut 1.4 p3'!I43 -> 3016.37326 | D33: 1574.265343 | E33: 1442.107916
A34: 24 | B34: Clay Basin Withdrawals Storage Commodity | C34: =+'Ut 1.4 p3'!I44 -> 4569.731709 | D34: 2384.97349 | E34: 2184.75822
A35: 25 | B35: Utah SNG Costs | C35: =SUM(C11:C34) -> 2048041.684 | D35: =SUM(D11:D34) -> 1153284.102 | E35: =SUM(E11:E34) -> 894757.582
A37: =A35+1 -> 26 | B37: Winter SNG - Summer SNG | C37: =D35-E35 -> 258526.5199
A38: =A37+1 -> 27 | B38: Winter Dth | C38: =C49 -> 1458904
A39: =A38+1 -> 28 | B39: Seasonal Cost Differential | C39: =ROUND(C37/C38,5) -> 0.17721
A41: 29 | B41: SNG Amortization | C41: =+'Ut 1.5 p3'!D30 -> 23350.82362 | D41: =+C41*D35/C35 -> 13149.21169 | E41: =+C41*E35/C35 -> 10201.61193
A43: 30 | B43: Winter SNG - Summer SNG Amortization | C43: =+D41-E41 -> 2947.599756
A44: =+A43+1 -> 31 | B44: Winter Dth | C44: =+C49 -> 1458904
A45: =+A44+1 -> 32 | B45: Seasonal Cost Differential | C45: =ROUND(C43/C44,5) -> 0.00202
A48: =+A45+1 -> 33 | B48: 2020 Forecast FS Summer Usage | C48: =+'Ut 1.5 p3'!D15 -> 1336431 | D48: =C48/(C48+C49) -> 0.4780933233
A49: =+A48+1 -> 34 | B49: 2020 Forecast FS Winter Usage | C49: =+'Ut 1.5 p3'!D16 -> 1458904 | D49: =C49/(C49+C48) -> 0.5219066767

Sheet Ut 1.5 p6
H1: ='Control Panel'!$E$32 -> Dominion Energy Utah
H2: ='Control Panel'!$E$33 -> Docket No. 20-057-14
H3: DEU Exhibit 1.5
H4: Page 6 of 6
C7: SUMMARY OF RATES
B9: COMMODITY | D9: (A) | E9: (B)
B10: Class | C10: Description | D10: Current | E10: Proposed
B11: GS, FS, IS
A12: 1 | C12: Base Gas Cost | D12: =+'Other Inputs'!F116 -> 3.07628 | E12: =+'Ut 1.5 p1'!F29 -> 3.66269
A13: 2 | C13: 191 Amortization | D13: =+'Other Inputs'!F117 -> 0.43865 | E13: =+'Ut 1.5 p1'!F30 -> 0.22099
A14: 3 | C14: Tax Reform Surcredit 4 | D14: =+'Ut 1.5 p1'!H31 -> -0.00972 | E14: =+'Ut 1.5 p1'!F31 -> -0.00972
A15: 4 | C15: Commodity Rate | D15: =+D12+D13+D14 -> 3.50521 | E15: =+E12+E13+E14 -> 3.87396
B17: NGV
A18: 5 | C18: Base Gas Cost | D18: =+'Other Inputs'!F116 -> 3.07628 | E18: =+'Ut 1.5 p1'!F29 -> 3.66269
A19: 6 | C19: 191 Amortization | D19: =+'Other Inputs'!F117 -> 0.43865 | E19: =+'Ut 1.5 p1'!F30 -> 0.22099
A20: 7 | C20: Tax Reform Surcredit 4 | D20: =+'Ut 1.5 p1'!H31 -> -0.00972 | E20: =+'Ut 1.5 p1'!F31 -> -0.00972
A21: 8 | C21: RIN Credit | D21: 0 | E21: ='Ut 1.5 p1'!H52 -> -0.09963
A22: 9 | C22: Commodity Rate | D22: =+D18+D19+D20+D21 -> 3.50521 | E22: =+E18+E19+E20+E21 -> 3.77433
B25: SNG
B26: Class | C26: Description | D26: Current | E26: Proposed
A27: 10 | B27: GS | C27: Base SNG Summer | D27: =+'Other Inputs'!E86 -> 0.38154 | E27: =ROUND('Ut 1.5 p3'!C20,5) -> 0.37445
A28: 11 | C28: SNG Amortization | D28: =+'Other Inputs'!F86 -> 0.00429 | E28: =ROUND('Ut 1.5 p3'!C33,5) -> 0.00429
A29: =+A28+1 -> 12 | C29: SNG Summer Rate | D29: =+D27+D28 -> 0.38583 | E29: =+E27+E28 -> 0.37874
A31: =+A29+1 -> 13 | C31: Base SNG Winter | D31: =+'Other Inputs'!E85 -> 0.90846 | E31: =ROUND('Ut 1.5 p3'!C21,5) -> 0.89193
A32: =+A31+1 -> 14 | C32: SNG Amortization | D32: =+'Other Inputs'!F85 -> 0.01022 | E32: =ROUND('Ut 1.5 p3'!C34,5) -> 0.01022
A33: =+A32+1 -> 15 | C33: SNG Winter Rate | D33: =+D31+D32 -> 0.91868 | E33: =+E31+E32 -> 0.90215
A35: =+A33+1 -> 16 | B35: FS | C35: Base SNG Summer | D35: =+'Other Inputs'!E89 -> 0.75764 | E35: =ROUND('Ut 1.5 p3'!D20,5) -> 0.64017
A36: =+A35+1 -> 17 | C36: SNG Amortization | D36: =+'Other Inputs'!F89 -> 0.00852 | E36: =ROUND('Ut 1.5 p3'!D33,5) -> 0.00852
A37: =+A36+1 -> 18 | C37: SNG Summer Rate | D37: =+D35+D36 -> 0.76616 | E37: =+E35+E36 -> 0.64869
A39: =+A37+1 -> 19 | C39: Base SNG Winter | D39: =+'Other Inputs'!E88 -> 0.87936 | E39: =ROUND('Ut 1.5 p3'!D21,5) -> 0.81738
A40: =+A39+1 -> 20 | C40: SNG Amortization | D40: =+'Other Inputs'!F88 -> 0.00989 | E40: =ROUND('Ut 1.5 p3'!D34,5) -> 0.00989
A41: =+A40+1 -> 21 | C41: SNG Winter Rate | D41: =+D39+D40 -> 0.88925 | E41: =+E39+E40 -> 0.82727
A43: =+A41+1 -> 22 | B43: IS | C43: SNG Rate | D43: =+'Other Inputs'!E93 -> 0.17898 | E43: =ROUND('Ut 1.5 p3'!E23,5) -> 0.17957
A45: =+A43+1 -> 23 | B45: TSF | C45: Base SNG Annual Demand | D45: =+'Other Inputs'!G314 -> 1.66043 | E45: =ROUND('Ut 1.5 p3'!F25,5) -> 1.14269
A46: =+A45+1 -> 24 | C46: SNG Amortization | D46: =+'Other Inputs'!G315 -> 0.01868 | E46: =ROUND('Ut 1.5 p3'!F35,5) -> 0.01868
A47: =+A46+1 -> 25 | C47: SNG Adder Annual | D47: =+D45+D46 -> 1.67911 | E47: =+E45+E46 -> 1.16137
A48: =+A47+1 -> 26 | C48: SNG Adder Monthly | D48: =+ROUND(D47/12,5) -> 0.13993 | E48: =+ROUND(E47/12,5) -> 0.09678
A50: =+A48+1 -> 27 | B50: TBF | C50: Base SNG Annual Demand | D50: ='Other Inputs'!G319 -> 1.04398 | E50: =ROUND('Ut 1.5 p3'!G25,5) -> 1.12223
A51: =+A50+1 -> 28 | C51: SNG Amortization | D51: ='Other Inputs'!G320 -> 0.01175 | E51: =ROUND('Ut 1.5 p3'!G35,5) -> 0.01175
A52: =+A51+1 -> 29 | C52: SNG Adder Annual | D52: =+D50+D51 -> 1.05573 | E52: =+E50+E51 -> 1.13398
A53: =+A52+1 -> 30 | C53: SNG Adder Monthly | D53: =+ROUND(D52/12,5) -> 0.08798 | E53: =+ROUND(E52/12,5) -> 0.0945
A55: =+A53+1 -> 31 | B55: NGV | C55: Base SNG | D55: =+'Other Inputs'!E91 -> 0.76995 | E55: =ROUND('Ut 1.5 p3'!H23,5) -> 0.94498
A56: =+A55+1 -> 32 | C56: SNG Amortization | D56: =+'Other Inputs'!F91 -> 0.00866 | E56: =ROUND('Ut 1.5 p3'!H35,5) -> 0.00866
A57: =+A56+1 -> 33 | C57: SNG Rate | D57: =+D55+D56 -> 0.77861 | E57: =+E55+E56 -> 0.95364

Sheet Ut 1.6
L1: ='Control Panel'!$E$32 -> Dominion Energy Utah
L2: ='Control Panel'!$E$33 -> Docket No. 20-057-14
L3: DEU Exhibit 1.6
C7: EFFECT ON GS TYPICAL CUSTOMER
C8: 80 DTHS - ANNUAL CONSUMPTION
C11: (A) | D11: (B) | E11: (C) | F11: (D) | H11: (E) | J11: (F)
F12: Billed at Current | H12: Billed at
C13: Rate | E13: Usage | F13: Rates Effective | H13: Proposed Rates
C14: Schedule | D14: Month | E14: In Dth | F14: ='Other Inputs'!J97 -> 2020-06-01 | H14: ='Control Panel'!E5 -> 20-057-14 | J14: Change
B16: 1 | C16: GS | D16: Jan | E16: ='Monthly Inputs'!G116 -> 14.9 | F16: =ROUND((+E16*'Other Inputs'!$G$99)+'Other Inputs'!$G$101,2) -> 116.49 | H16: =ROUND((+E16*'Ut 1.6 Source'!$F$10)+'Ut 1.6 Source'!$C$12,2) -> 121.74 | J16: =H16-F16 -> 5.25
B17: =B16+1 -> 2 | D17: Feb | E17: ='Monthly Inputs'!G117 -> 12.5 | F17: =ROUND((+E17*'Other Inputs'!$G$99)+'Other Inputs'!$G$101,2) -> 98.81 | H17: =ROUND((+E17*'Ut 1.6 Source'!$F$10)+'Ut 1.6 Source'!$C$12,2) -> 103.22 | J17: 4.41
B18: =B17+1 -> 3 | D18: Mar | E18: ='Monthly Inputs'!G118 -> 10.1 | F18: =ROUND((+E18*'Other Inputs'!$G$99)+'Other Inputs'!$G$101,2) -> 81.14 | H18: =ROUND((+E18*'Ut 1.6 Source'!$F$10)+'Ut 1.6 Source'!$C$12,2) -> 84.69 | J18: 3.55
B19: 4 | D19: Apr | E19: ='Monthly Inputs'!G119 -> 8.3 | F19: =ROUND((+E19*'Other Inputs'!$G$97)+'Other Inputs'!$G$101,2) -> 57.7 | H19: =ROUND((+E19*'Ut 1.6 Source'!$C$10)+'Ut 1.6 Source'!$C$12,2) -> 60.7 | J19: 3
B20: 5 | D20: May | E20: ='Monthly Inputs'!G120 -> 4.4 | F20: =ROUND((+E20*'Other Inputs'!$G$97)+'Other Inputs'!$G$101,2) -> 33.76 | H20: =ROUND((+E20*'Ut 1.6 Source'!$C$10)+'Ut 1.6 Source'!$C$12,2) -> 35.35 | J20: 1.59
B21: 6 | D21: Jun | E21: ='Monthly Inputs'!G121 -> 3.1 | F21: =ROUND((+E21*'Other Inputs'!$G$97)+'Other Inputs'!$G$101,2) -> 25.78 | H21: =ROUND((+E21*'Ut 1.6 Source'!$C$10)+'Ut 1.6 Source'!$C$12,2) -> 26.9 | J21: 1.12
B22: 7 | D22: Jul | E22: ='Monthly Inputs'!G122 -> 2 | F22: =ROUND((+E22*'Other Inputs'!$G$97)+'Other Inputs'!$G$101,2) -> 19.03 | H22: =ROUND((+E22*'Ut 1.6 Source'!$C$10)+'Ut 1.6 Source'!$C$12,2) -> 19.75 | J22: 0.72
B23: 8 | D23: Aug | E23: ='Monthly Inputs'!G123 -> 1.8 | F23: =ROUND((+E23*'Other Inputs'!$G$97)+'Other Inputs'!$G$101,2) -> 17.8 | H23: =ROUND((+E23*'Ut 1.6 Source'!$C$10)+'Ut 1.6 Source'!$C$12,2) -> 18.45 | J23: 0.65
B24: 9 | D24: Sep | E24: ='Monthly Inputs'!G124 -> 2 | F24: =ROUND((+E24*'Other Inputs'!$G$97)+'Other Inputs'!$G$101,2) -> 19.03 | H24: =ROUND((+E24*'Ut 1.6 Source'!$C$10)+'Ut 1.6 Source'!$C$12,2) -> 19.75 | J24: 0.72
B25: 10 | D25: Oct | E25: ='Monthly Inputs'!G125 -> 3.1 | F25: =ROUND((+E25*'Other Inputs'!$G$97)+'Other Inputs'!$G$101,2) -> 25.78 | H25: =ROUND((+E25*'Ut 1.6 Source'!$C$10)+'Ut 1.6 Source'!$C$12,2) -> 26.9 | J25: 1.12
B26: 11 | D26: Nov | E26: ='Monthly Inputs'!G126 -> 6.3 | F26: =ROUND((+E26*'Other Inputs'!$G$99)+'Other Inputs'!$G$101,2) -> 53.15 | H26: =ROUND((+E26*'Ut 1.6 Source'!$F$10)+'Ut 1.6 Source'!$C$12,2) -> 55.37 | J26: 2.22
B27: 12 | D27: Dec | E27: ='Monthly Inputs'!G127 -> 11.5 | F27: =ROUND((+E27*'Other Inputs'!$G$99)+'Other Inputs'!$G$101,2) -> 91.45 | H27: =ROUND((+E27*'Ut 1.6 Source'!$F$10)+'Ut 1.6 Source'!$C$12,2) -> 95.5 | J27: 4.05
B30: =B27+1 -> 13 | D30: Total | E30: =SUM(E16:E27) -> 80 | F30: =SUM(F16:F27) -> 639.92 | H30: =SUM(H16:H27) -> 668.32 | J30: =H30-F30 -> 28.4
B32: =B30+1 -> 14 | H32: Percent Change: | J32: =ROUND(J30/F30,4)*100 -> 4.44 | K32: %

Sheet Ut 1.7 Tot (hidden)
L1: ='Control Panel'!$E$32 -> Dominion Energy Utah
L2: Docket Nos. 08-057-15, 08-057-16 & 08-057-17
L3: Hearing Exhibit 2
A5: NOT USED
C7: EFFECT ON GS-1 TYPICAL CUSTOMER
B8: OF PROPOSED COMMODITY AND SNG RATES AND CET AND DSM AMORTIZATIONS
C9: 80 DTHS - ANNUAL CONSUMPTION
C12: (A) | D12: (B) | E12: (C) | F12: (D) | H12: (E) | J12: (F)
F13: Billed at Current | H13: Billed at
C14: Rate | E14: Usage | F14: Rates Effective | H14: Proposed
C15: Schedule | D15: Month | E15: In Dth | F15: ='Other Inputs'!J97 -> 2020-06-01 | H15: Rates | J15: Change
B17: 1 | C17: GS | D17: Jan | E17: ='Monthly Inputs'!G116 -> 14.9 | F17: =ROUND((+E17*'Other Inputs'!$G$99)+'Other Inputs'!$G$101,2) -> 116.49 | H17: ='CET & DSM'!D107 ->  | J17: =H17-F17 -> 
B18: =B17+1 -> 2 | D18: Feb | E18: ='Monthly Inputs'!G117 -> 12.5 | F18: =ROUND((+E18*'Other Inputs'!$G$99)+'Other Inputs'!$G$101,2) -> 98.81 | H18: ='CET & DSM'!D108 -> 
B19: 3 | D19: Mar | E19: ='Monthly Inputs'!G118 -> 10.1 | F19: =ROUND((+E19*'Other Inputs'!$G$99)+'Other Inputs'!$G$101,2) -> 81.14 | H19: ='CET & DSM'!D109 -> 
B20: 4 | D20: Apr | E20: ='Monthly Inputs'!G119 -> 8.3 | F20: =ROUND((+E20*'Other Inputs'!$G$97)+'Other Inputs'!$G$101,2) -> 57.7 | H20: ='CET & DSM'!D110 -> 
B21: 5 | D21: May | E21: ='Monthly Inputs'!G120 -> 4.4 | F21: =ROUND((+E21*'Other Inputs'!$G$97)+'Other Inputs'!$G$101,2) -> 33.76 | H21: ='CET & DSM'!D111 -> 
B22: 6 | D22: Jun | E22: ='Monthly Inputs'!G121 -> 3.1 | F22: =ROUND((+E22*'Other Inputs'!$G$97)+'Other Inputs'!$G$101,2) -> 25.78 | H22: ='CET & DSM'!D112 -> 
B23: 7 | D23: Jul | E23: ='Monthly Inputs'!G122 -> 2 | F23: =ROUND((+E23*'Other Inputs'!$G$97)+'Other Inputs'!$G$101,2) -> 19.03 | H23: ='CET & DSM'!D113 -> 
B24: 8 | D24: Aug | E24: ='Monthly Inputs'!G123 -> 1.8 | F24: =ROUND((+E24*'Other Inputs'!$G$97)+'Other Inputs'!$G$101,2) -> 17.8 | H24: ='CET & DSM'!D114 -> 
B25: 9 | D25: Sep | E25: ='Monthly Inputs'!G124 -> 2 | F25: =ROUND((+E25*'Other Inputs'!$G$97)+'Other Inputs'!$G$101,2) -> 19.03 | H25: ='CET & DSM'!D115 -> 
B26: 10 | D26: Oct | E26: ='Monthly Inputs'!G125 -> 3.1 | F26: =ROUND((+E26*'Other Inputs'!$G$97)+'Other Inputs'!$G$101,2) -> 25.78 | H26: ='CET & DSM'!D116 -> 
B27: 11 | D27: Nov | E27: ='Monthly Inputs'!G126 -> 6.3 | F27: =ROUND((+E27*'Other Inputs'!$G$99)+'Other Inputs'!$G$101,2) -> 53.15 | H27: ='CET & DSM'!D117 -> 
B28: 12 | D28: Dec | E28: ='Monthly Inputs'!G127 -> 11.5 | F28: =ROUND((+E28*'Other Inputs'!$G$99)+'Other Inputs'!$G$101,2) -> 91.45 | H28: ='CET & DSM'!D118 -> 
B31: =B28+1 -> 13 | D31: Total | E31: =SUM(E17:E28) -> 80 | F31: =SUM(F17:F28) -> 639.92 | H31: =SUM(H17:H28) ->  | J31: =H31-F31 -> 
H33: Percent Change: | J33: =ROUND(J31/F31,4)*100 ->  | K33: %

Sheet Ut 1.7 p1
F1: ='Control Panel'!E32 -> Dominion Energy Utah
F2: ='Control Panel'!E33 -> Docket No. 20-057-14
F3: DEU Exhibit 1.7
F4: Page 1 of 17
A15: DOMINION ENERGY UTAH
A16: 333 South State Street
A17: P.O. Box 45433
A18: Salt Lake City, Utah 84145-0433
A29: LEGISLATIVE/PROPOSED RATE SCHEDULES
A31: P.S.C. Utah No. 500
A32: Affecting GS, FS, NGV, IS, TBF, and TSF Rate Schedules
A33: and Classes of Service In
A34: Dominion Energy
A35: Utah Service Area
A37: Tariff Section 2.02, 2.03, 2.04, 4.02, 5,02, and 5.04
A39: Date Issued: October 1, 2020
A40: To Become Effective November 1, 2020

Sheet LEG - PR
A2: LEGISLATIVE TARIFF
A3: SHEETS
A6: PROPOSED TARIFF
A7: SHEETS

Sheet Ut 1.6 Source
A1: SUMMARY OF PROPOSED RATES
A3: UTAH RATE CLASSES | C3: Rates per Dth Used Each Month
C4: All Season Rates or Summer Rates: Apr. 1 - Oct. 31 | F4: Winter Rates: Nov. 1 - Mar. 31
A5: UT GS | C5: First 45 Dth | D5: All Over 45 Dth | F5: First 45 Dth | G5: All Over 45 Dth
B6: Distribution Non-Gas Cost | C6: 2.24732 | D6: 1.05872 | F6: 2.94111 | G6: 1.75251
B7: Supplier Non-Gas Cost | C7: =+'Ut 1.5 p6'!E29 -> 0.37874 | D7: =C7 -> 0.37874 | F7: =+'Ut 1.5 p6'!E33 -> 0.90215 | G7: =F7 -> 0.90215
B8: Commodity Cost | C8: =('Ut 1.5 p1'!$F$32) -> 3.87396 | D8: =C8 -> 3.87396 | F8: =D8 -> 3.87396 | G8: =F8 -> 3.87396
B10: Total Rate | C10: =SUM(C6:C9) -> 6.50002 | D10: =SUM(D6:D9) -> 5.31142 | F10: =SUM(F6:F9) -> 7.71722 | G10: =SUM(G6:G9) -> 6.52862
B12: BSF Category 1 | C12: 6.75
B13: BSF Category 2 | C13: 18.25
B14: BSF Category 3 | C14: 63.5
B15: BSF Category 4 | C15: 420.25
A18: UT FS | C18: First 200 Dth | D18: Next 1,800 Dth | E18: All Over 2,000 Dth | F18: First 200 Dth | G18: Next 1,800 Dth | H18: All Over 2,000 Dth
B19: Distribution Non-Gas Cost | C19: 1.08979 | D19: 0.59781 | E19: 0.07994 | F19: 1.61575 | G19: 1.12377 | H19: 0.60589
B20: Supplier Non-Gas Cost | C20: =+'Ut 1.5 p6'!E37 -> 0.64869 | D20: =C20 -> 0.64869 | E20: =D20 -> 0.64869 | F20: =+'Ut 1.5 p6'!E41 -> 0.82727 | G20: =F20 -> 0.82727 | H20: =G20 -> 0.82727
B21: Commodity Cost | C21: =('Ut 1.5 p1'!$F$32) -> 3.87396 | D21: =C21 -> 3.87396 | E21: =D21 -> 3.87396 | F21: =E21 -> 3.87396 | G21: =F21 -> 3.87396 | H21: =G21 -> 3.87396
B23: Total Rate | C23: =SUM(C19:C22) -> 5.61244 | D23: =SUM(D19:D22) -> 5.12046 | E23: 4.60259 | F23: 6.31698 | G23: 5.825 | H23: 5.30712
B25: Minimum Monthly DNG Charge: | C25: 191 | F25: 284
B27: BSF Category 1 | C27: =C12 -> 6.75
B28: BSF Category 2 | C28: =C13 -> 18.25
B29: BSF Category 3 | C29: =C14 -> 63.5
B30: BSF Category 4 | C30: =C15 -> 420.25
A33: UT Future Rate Class
C34: First 10,000 Dth | D34: All Over 10,000 Dth
B35: Distribution Non-Gas Cost
B36: Supplier Non-Gas Cost
B37: Commodity Cost
B39: Total Rate | C39: =SUM(C35:C38) -> 0 | D39: =SUM(D35:D38) -> 0
B41: Minimum Yearly Distribution Non-Gas Charge | D41: =ROUND(((10000*C35))*12,-2) -> 0
B44: BSF Category 1 | C44: =C12 -> 6.75
B45: BSF Category 2 | C45: =C13 -> 18.25
B46: BSF Category 3 | C46: =C14 -> 63.5
B47: BSF Category 4 | C47: =C15 -> 420.25
A51: UT NGV
B52: Distribution Non-Gas Cost | C52: 8.09217
B53: Supplier Non-Gas Cost | C53: =+'Ut 1.5 p6'!E57 -> 0.95364
B54: Commodity Cost | C54: ='Ut 1.5 p6'!E22 -> 3.77433
B56: Total Rate | C56: =SUM(C52:C55) -> 12.82014
A59: UT IS | C59: First 2,000 Dth | D59: Next 18,000 Dth | E59: All Over 20,000
B60: Distribution Non-Gas Cost | C60: 0.91606 | D60: 0.146 | E60: 0.08965
B61: Supplier Non-Gas Cost | C61: =+'Ut 1.5 p6'!E43 -> 0.17957 | D61: =C61 -> 0.17957 | E61: =D61 -> 0.17957
B62: Commodity Cost | C62: =('Ut 1.5 p1'!$F$32) -> 3.87396 | D62: =('Ut 1.5 p1'!$F$32) -> 3.87396 | E62: =('Ut 1.5 p1'!$F$32) -> 3.87396
B64: Total Rate | C64: =SUM(C60:C62) -> 4.96959 | D64: =SUM(D60:D62) -> 4.19953 | E64: =SUM(E60:E62) -> 4.14318
B66: BSF Category 1 | C66: =C12 -> 6.75
B67: BSF Category 2 | C67: =C13 -> 18.25
B68: BSF Category 3 | C68: =C14 -> 63.5
B69: BSF Category 4 | C69: =C15 -> 420.25

Sheet Ut 1.11 (hidden)
F1: ='Control Panel'!#REF! -> 
F2: ='Control Panel'!E33 -> Docket No. 20-057-14
F3: Exhibit 1.11
F4: Page 1 of 7
A17: DOMINION ENERGY UTAH
A18: 333 South State Street
A19: P.O. Box 45433
A20: Salt Lake City, Utah 84145-0433
A31: LEGISLATIVE/PROPOSED RATE SCHEDULES
A32: P.S.C. Utah Tariff

Sheet Ut 1.8 p1
F1: ='Control Panel'!E32 -> Dominion Energy Utah
F2: ='Control Panel'!E33 -> Docket No. 20-057-14
F3: DEU Exhibit 1.8
F4: Page 1 of 17
A15: DOMINION ENERGY UTAH
A16: 333 South State Street
A17: P.O. Box 45433
A18: Salt Lake City, Utah 84145-0433
A29: LEGISLATIVE/PROPOSED COMBINED RATE SCHEDULES
A31: P.S.C. Utah No. 500
A32: Affecting GS, FS, NGV, IS, TBF, and TSF Rate Schedules
A33: and Classes of Service In
A34: Dominion Energy
A35: Utah Service Area
A37: Tariff Section 2.02, 2.03, 2.04, 4.02, 5,02, and 5.04
A39: Date Issued: September 1, 2020
A40: To Become Effective November 1, 2020

Sheet Ut Storage
A1: Storage Injection / Withdrawal adjustment
C3: (A) | D3: (B) | E3: (C) | F3: (D) | G3: (E) | H3: (F) | I3: (G) | K3: (H) | L3: (I) | M3: (J)
G4: Injections | I4: (J) / (C)
E5: Storage | G5: ------------------------------------------------------------- | I5: Storage | M5: Storage
C6: Injection Dth | D6: Withdrawal Dth | E6: Inventory Dth | F6: % that is | G6: Co. Prod. | H6: Purchased | I6: Inventory | M6: Inventory
A7: Line | B7: Month | C7: Per IRPs | D7: Per IRPs | E7: Balance | F7: Co. Prod. (1) | G7: $/Dth (2) | H7: $/Dth (3) | I7: Average $/Dth | K7: Injection (4) | L7: Withdrawal (5) | M7: Balance
B8: =+Expenses!S9 -> 2020-08-31 | E8: =-1*'Other Inputs'!D249 -> 10922007 | I8: =M8/E8 -> 3.661519438 | M8: ='Other Inputs'!E249 -> 39991140.93
B9: ='Monthly Inputs'!E3 -> Sep20 | C9: ='Monthly Inputs'!E29 -> 2885570 | D9: =-'Monthly Inputs'!E37 -> 0 | E9: =E8+C9+D9 -> 13807577 | F9: =F21 -> 0.7976800882 | G9: ='Other Inputs'!F113 -> 3.9227 | H9: ='Monthly Inputs'!E79 -> 1.95 | I9: =M9/E9 -> 3.632692963 | K9: =(+F9*C9*G9)+((1-F9)*C9*H9) -> 10167546.87 | L9: =D9*I8 -> 0 | M9: =M8+L9+K9 -> 50158687.8
B10: ='Monthly Inputs'!F3 -> Oct20 | C10: ='Monthly Inputs'!F29 -> 3120594 | D10: =-'Monthly Inputs'!F37 -> 0 | E10: =E9+C10+D10 -> 16928171 | F10: =F22 -> 0.5441735451 | G10: =G9 -> 3.9227 | H10: ='Monthly Inputs'!F79 -> 1.99 | I10: 3.523751864 | K10: =(+F10*C10*G10)+((1-F10)*C10*H10) -> 9491986.321 | L10: =D10*I9 -> 0 | M10: =M9+L10+K10 -> 59650674.12
A11: 1. | B11: ='Monthly Inputs'!G3 -> Nov20 | C11: ='Monthly Inputs'!G29 -> 120000 | D11: =-'Monthly Inputs'!G37 -> 0 | E11: =E10+C11+D11 -> 17048171 | F11: =Calculations!D177 -> 0.4150142172 | G11: ='Ut 1.2 p3'!$G$50 -> 4.058394214 | H11: =Calculations!D197 -> 2.45799 | I11: 3.520925252 | K11: 374661.6603 | L11: =D11*I10 -> 0 | M11: =M10+L11+K11 -> 60025335.78
A12: 2. | B12: ='Monthly Inputs'!H3 -> Dec20 | C12: ='Monthly Inputs'!H29 -> 1000.000015 | D12: =-'Monthly Inputs'!H37 -> -508000.0086 | E12: =E11+C12+D12 -> 16541170.99 | F12: =Calculations!E177 -> 0.2900344011 | G12: ='Ut 1.2 p3'!$G$50 -> 4.058394214 | H12: =Calculations!E197 -> 3.07226 | I12: 3.520915419 | K12: 3358.272897 | L12: =D12*I11 -> -1788630.058 | M12: =M11+L12+K12 -> 58240063.99
A13: 3. | B13: ='Monthly Inputs'!I3 -> Jan21 | C13: ='Monthly Inputs'!I29 -> 0 | D13: =-'Monthly Inputs'!I37 -> -3812512.012 | E13: =E12+C13+D13 -> 12728658.98 | F13: =Calculations!F177 -> 0.3087579749 | G13: ='Ut 1.2 p3'!$G$50 -> 4.058394214 | H13: =Calculations!F197 -> 3.56056 | I13: 3.520915419 | K13: 0 | L13: =D13*I12 -> -13423532.33 | M13: 44816531.67
A14: 4. | B14: ='Monthly Inputs'!J3 -> Feb21 | C14: ='Monthly Inputs'!J29 -> 0 | D14: =-'Monthly Inputs'!J37 -> -3302069.61 | E14: 9426589.37 | F14: =Calculations!G177 -> 0.3230163487 | G14: ='Ut 1.2 p3'!$G$50 -> 4.058394214 | H14: =Calculations!G197 -> 3.39957 | I14: =M14/E14 -> 3.520915419 | K14: 0 | L14: =D14*I13 -> -11626307.81 | M14: 33190223.86
A15: 5. | B15: ='Monthly Inputs'!K3 -> Mar21 | C15: ='Monthly Inputs'!K29 -> 0 | D15: =-'Monthly Inputs'!K37 -> -4349094.401 | E15: 5077494.968 | F15: =Calculations!H177 -> 0.5430604804 | G15: ='Ut 1.2 p3'!$G$50 -> 4.058394214 | H15: =Calculations!H197 -> 3.22789 | I15: 3.520915419 | K15: 0 | L15: -15312793.54 | M15: 17877430.32
A16: 6. | B16: ='Monthly Inputs'!L3 -> Apr21 | C16: ='Monthly Inputs'!L29 -> 0 | D16: =-'Monthly Inputs'!L37 -> -1910645.157 | E16: =E15+C16+D16 -> 3166849.811 | F16: =Calculations!I177 -> 0.6198277526 | G16: ='Ut 1.2 p3'!$G$50 -> 4.058394214 | H16: =Calculations!I197 -> 3.1466 | I16: =M16/E16 -> 3.520915419 | K16: 0 | L16: -6727219.995 | M16: 11150210.33
A17: 7. | B17: ='Monthly Inputs'!M3 -> May21 | C17: ='Monthly Inputs'!M29 -> 0 | D17: =-'Monthly Inputs'!M37 -> 0 | E17: 3166849.811 | F17: =Calculations!J177 -> 0.8646652787 | G17: ='Ut 1.2 p3'!$G$50 -> 4.058394214 | H17: =Calculations!J197 -> 3.03028 | I17: =M17/E17 -> 3.520915419 | K17: 0 | L17: 0 | M17: 11150210.33
A18: 8. | B18: ='Monthly Inputs'!N3 -> Jun21 | C18: ='Monthly Inputs'!N29 -> 2500001 | D18: =-'Monthly Inputs'!N37 -> 0 | E18: 5666850.811 | F18: =Calculations!K177 -> 0.7846961272 | G18: ='Ut 1.2 p3'!$G$50 -> 4.058394214 | H18: =Calculations!K197 -> 3.00107 | I18: 3.657601972 | K18: 9576874.371 | L18: =D18*I17 -> 0 | M18: 20727084.7
A19: 9. | B19: ='Monthly Inputs'!O3 -> Jul21 | C19: ='Monthly Inputs'!O29 -> 2580000 | D19: =-'Monthly Inputs'!O37 -> 0 | E19: 8246850.811 | F19: =Calculations!L177 -> 0.8753756644 | G19: ='Ut 1.2 p3'!$G$50 -> 4.058394214 | H19: =Calculations!L197 -> 3.01 | I19: 3.742113379 | K19: 10133566.06 | L19: 0 | M19: =M18+L19+K19 -> 30860650.76
A20: 10. | B20: ='Monthly Inputs'!P3 -> Aug21 | C20: ='Monthly Inputs'!P29 -> 2580000 | D20: =-'Monthly Inputs'!P37 -> 0 | E20: 10826850.81 | F20: =Calculations!M177 -> 0.9086627693 | G20: ='Ut 1.2 p3'!$G$50 -> 4.058394214 | H20: =Calculations!M197 -> 2.98 | I20: 3.794010363 | K20: 10216533.42 | L20: 0 | M20: =M19+L20+K20 -> 41077184.17
A21: 11. | B21: ='Monthly Inputs'!Q3 -> Sep21 | C21: ='Monthly Inputs'!Q29 -> 2920001 | D21: =-'Monthly Inputs'!Q37 -> 0 | E21: 13746851.81 | F21: =Calculations!N177 -> 0.7976800882 | G21: ='Ut 1.2 p3'!$G$50 -> 4.058394214 | H21: =Calculations!N197 -> 2.89 | I21: 3.799956727 | K21: 11160257.84 | L21: 0 | M21: =M20+L21+K21 -> 52237442.01
A22: 12. | B22: ='Monthly Inputs'!R3 -> Oct21 | C22: ='Monthly Inputs'!R29 -> 2504676.999 | D22: =-'Monthly Inputs'!R37 -> 0 | E22: 16251528.81 | F22: =Calculations!O177 -> 0.5441735451 | G22: ='Ut 1.2 p3'!$G$50 -> 4.058394214 | H22: =Calculations!O197 -> 2.79056 | I22: 3.750719427 | K22: 8717482.806 | L22: 0 | M22: =M21+L22+K22 -> 60954924.82
M25: Inj./With. Adj.
A26: 14. | B26: Total | C26: =SUM(C11:C22) -> 13205679 | D26: =SUM(D11:D22) -> -13882321.19 | K26: =SUM(K11:K22) -> 50182734.42 | L26: =SUM(L11:L22) -> -48878483.72 | M26: =L26+K26 -> 1304250.696
A27: 15. | B27: Average $ /Dth | K27: =K26/C26 -> 3.800087404 | L27: =L26/D26 -> 3.520915779
A31: ___________________________________________________________________

Sheet Royalty Data
A1: MLPX Gathered | B1: 9723946.689 | C1: Adjusted test year-> | D1: -0.1433948821 | E1: 8329582.5 | H1: MLPX Gathered | I1: 8117691.254 | J1: Adjusted test year-> | K1: -0.05506795329 | L1: 7670666.611
A2: Birch Creek | B2: 1532455.917 | C2: Adjusted test year-> | D2: -0.1433948821 | E2: 1312709.581 | H2: Birch Creek | I2: 0
A3: Other | B3: 16255577.9 | H3: Other | I3: 6061502.488
A4: Wexpro | B4: 0 | H4: Wexpro | I4: 862759.663
A5: MLPX-Acquired | B5: 27126906.06 | H5: MLPX-Acquired | I5: 0
C7: WEXPRO I | J7: WEXPRO II
A8: Input Operator Service Fee > | C8: =+'Monthly Inputs'!S107 -> 174449128.1 | H8: Input Operator Service Fee > | J8: =+'Monthly Inputs'!S109 -> 39621625.1
A11: \/ | C11: 2020-08-31 | H11: \/ | J11: 2020-08-31
A12: \/ | B12: Company | C12: Average Index | D12: Church Buttes | H12: \/ | I12: Company | J12: Average Index | K12: Church Buttes
A13: \/ | B13: Production | C13: Spot Prices | D13: & Canyon Cr | H13: \/ | I13: Production | J13: Spot Prices | K13: & Canyon Cr
A14: January | B14: 4199300.303 | C14: 3.5 | D14: 3.6 | E14: 15117481.09 | H14: January | I14: 1276232.799 | J14: 3.5 | K14: 3.6 | L14: 4594438.075
A15: February | B15: 3607811.222 | C15: 3.35 | D15: 3.45 | E15: 12446948.72 | H15: February | I15: 1081869.601 | J15: 3.35 | K15: 3.45 | L15: 3732450.124
A16: March | B16: 4077727.58 | C16: 3.18 | D16: 3.28 | E16: 13374946.46 | H16: March | I16: 1209337.924 | J16: 3.18 | K16: 3.28 | L16: 3966628.391
A17: April | B17: 3892772.98 | C17: 3.08 | D17: 3.18 | E17: 12379018.08 | H17: April | I17: 1143387.002 | J17: 3.08 | K17: 3.18 | L17: 3635970.665
A18: May | B18: 3970687.71 | C18: 3.02 | D18: 3.12 | E18: 12388545.65 | H18: May | I18: 1156337.201 | J18: 3.02 | K18: 3.12 | L18: 3607772.066
A19: June | B19: 3628610.995 | C19: 3 | D19: 3.1 | E19: 11248694.08 | H19: June | I19: 1096781.989 | J19: 3 | K19: 3.1 | L19: 3400024.166
A20: July | B20: 3709329.799 | C20: 3.01 | D20: 3.11 | E20: 11536015.67 | H20: July | I20: 1112128.097 | J20: 3.01 | K20: 3.11 | L20: 3458718.382
A21: August | B21: 3802801.048 | C21: 2.98 | D21: 3.08 | E21: 11712627.23 | H21: August | I21: 1148267.895 | J21: 2.98 | K21: 3.08 | L21: 3536665.116
A22: September | B22: 3746574.004 | C22: 2.89 | D22: 2.99 | E22: 11202256.27 | H22: September | I22: 1138370.993 | J22: 2.89 | K22: 2.99 | L22: 3403729.268
A23: October | B23: 3864162.413 | C23: 2.79 | D23: 2.89 | E23: 11167429.37 | H23: October | I23: 1208528.809 | J23: 2.79 | K23: 2.89 | L23: 3492648.258
A24: November | B24: 4036562.991 | C24: 2.42 | D24: 2.52 | E24: 10172138.74 | H24: November | I24: 1324401.003 | J24: 2.42 | K24: 2.52 | L24: 3337490.528
A25: December | B25: 4267608.818 | C25: 3.03 | D25: 3.13 | E25: 13357615.6 | H25: December | I25: 1317980.505 | J25: 3.03 | K25: 3.13 | L25: 4125278.982
B27: =SUM(B14:B25) -> 46803949.86 | C27: CANYON CREEK | D27: =E27/B27 -> 3.121610834 | E27: =SUM(E14:E25) -> 146103717 | I27: =SUM(I14:I25) -> 14213623.82 | J27: CANYON CREEK | K27: =L27/I27 -> 3.116152122 | L27: =SUM(L14:L25) -> 44291814.02
C28: CHURCH BUTTES | J28: CHURCH BUTTES
C29: All Others -> | D29: =D27-0.2 -> 2.921610834 | J29: All Others -> | K29: =K27-0.2 -> 2.916152122

Sheet Expenses
A1: %,LACTUALS
S7: Historical
S8: 12 Months Ending
C9: FERC Acct | E9: Description | G9: 2019-09-30 | H9: 2019-10-31 | I9: 2019-11-30 | J9: 2019-12-31 | K9: 2020-01-31 | L9: 2020-02-29 | M9: 2020-03-31 | N9: 2020-04-30 | O9: 2020-05-31 | P9: 2020-06-30 | Q9: 2020-07-31 | R9: 2020-08-31 | S9: =+R9 -> 2020-08-31
B11: 497 | C11: UTILITY OPERATING EXPENSES
B12: 498 | C12: GAS PURCHASE EXPENSES
B13: 499
B14: 500 | D14: Utah % of Sales Dth from 191 Acct ===> | G14: 2 | H14: 3 | I14: 4 | J14: 5 | K14: 10 | L14: 11 | M14: 0 | N14: 1 | O14: 2 | P14: 3 | Q14: 4 | R14: 5 | S14: 12
B15: 501
A16: %,FACCOUNT,TQGCACCTS,V758000 | B16: 502 | C16: 758 | D16: Gas Well Royalties
B17: 503 | E17: Utah | G17: 0 | H17: 0 | I17: 0 | J17: 0 | K17: 0 | L17: 0 | M17: 0 | N17: 0 | O17: 0 | P17: 0 | Q17: 0 | R17: 0 | S17: 0
B18: 504 | E18: Wyoming | G18: 0 | H18: 0 | I18: 0 | J18: 0 | K18: 0 | L18: 0 | M18: 0 | N18: 0 | O18: 0 | P18: 0 | Q18: 0 | R18: 0 | S18: 0
B19: 505 | E19: Total | G19: 0 | H19: 0 | I19: 0 | J19: 0 | K19: 0 | L19: 0 | M19: 0 | N19: 0 | O19: 0 | P19: 0 | Q19: 0 | R19: 0 | S19: 0
B20: 506
A21: %,FACCOUNT,TQGCACCTS,V758001,V758002,V758003,V758004 | B21: 507 | C21: 758.1 | D21: Gas Well Royalties - Other
B22: 508 | E22: Utah | G22: 0 | H22: 0 | I22: 0 | J22: 0 | K22: 0 | L22: 0 | M22: 0 | N22: 0 | O22: 0 | P22: 0 | Q22: 0 | R22: 0 | S22: 0
B23: 509 | E23: Wyoming | G23: 0 | H23: 0 | I23: 0 | J23: 0 | K23: 0 | L23: 0 | M23: 0 | N23: 0 | O23: 0 | P23: 0 | Q23: 0 | R23: 0 | S23: 0
B24: 510 | E24: Total | G24: 0 | H24: 0 | I24: 0 | J24: 0 | K24: 0 | L24: 0 | M24: 0 | N24: 0 | O24: 0 | P24: 0 | Q24: 0 | R24: 0 | S24: 0
B25: 511
A26: %,FACCOUNT,TQGCACCTS,V759000,V759001,V759002,V759003,V759004 | B26: 512 | C26: 759 | D26: Gathering by Others, GRI & ACA - Gas Cost
B27: 513 | E27: Utah | G27: 0 | H27: 0 | I27: 0 | J27: 0 | K27: 0 | L27: 0 | M27: 0 | N27: 0 | O27: 0 | P27: 0 | Q27: 0 | R27: 0 | S27: 0
B28: 514 | E28: Wyoming | G28: 0 | H28: 0 | I28: 0 | J28: 0 | K28: 0 | L28: 0 | M28: 0 | N28: 0 | O28: 0 | P28: 0 | Q28: 0 | R28: 0 | S28: 0
B29: 515 | E29: Total | G29: 0 | H29: 0 | I29: 0 | J29: 0 | K29: 0 | L29: 0 | M29: 0 | N29: 0 | O29: 0 | P29: 0 | Q29: 0 | R29: 0 | S29: 0
B30: 516
A31: %,FACCOUNT,TQGCACCTS,V759005 | B31: 517 | C31: 759 | D31: Gathering by Others - SNG Cost
B32: 518 | E32: Utah | G32: 0 | H32: 0 | I32: 0 | J32: 0 | K32: 0 | L32: 0 | M32: 0 | N32: 0 | O32: 0 | P32: 0 | Q32: 0 | R32: 0 | S32: 0
B33: 519 | E33: Wyoming | G33: 0 | H33: 0 | I33: 0 | J33: 0 | K33: 0 | L33: 0 | M33: 0 | N33: 0 | O33: 0 | P33: 0 | Q33: 0 | R33: 0 | S33: 0
B34: 520 | E34: Total | G34: 0 | H34: 0 | I34: 0 | J34: 0 | K34: 0 | L34: 0 | M34: 0 | N34: 0 | O34: 0 | P34: 0 | Q34: 0 | R34: 0 | S34: 0
B35: 521
A36: %,FACCOUNT,TQGCACCTS,V800000,V800005,V800002 | B36: 522 | C36: 800 | D36: Natural Gas Well Head Purchases
B37: 523 | E37: Utah | G37: 0 | H37: 0 | I37: 0 | J37: 0 | K37: 0 | L37: 0 | M37: 0 | N37: 0 | O37: 0 | P37: 0 | Q37: 0 | R37: 0 | S37: 0
B38: 524 | E38: Wyoming | G38: 0 | H38: 0 | I38: 0 | J38: 0 | K38: 0 | L38: 0 | M38: 0 | N38: 0 | O38: 0 | P38: 0 | Q38: 0 | R38: 0 | S38: 0
B39: 525 | E39: Total | G39: 0 | H39: 0 | I39: 0 | J39: 0 | K39: 0 | L39: 0 | M39: 0 | N39: 0 | O39: 0 | P39: 0 | Q39: 0 | R39: 0 | S39: 0
B40: 526
A41: %,FACCOUNT,TQGCACCTS,V801000 | B41: 527 | C41: 801 | D41: Natural Gas Field Line Purchases
B42: 528 | E42: Utah | G42: 0 | H42: 0 | I42: 0 | J42: 0 | K42: 0 | L42: 0 | M42: 0 | N42: 0 | O42: 0 | P42: 0 | Q42: 0 | R42: 0 | S42: 0
B43: 529 | E43: Wyoming | G43: 0 | H43: 0 | I43: 0 | J43: 0 | K43: 0 | L43: 0 | M43: 0 | N43: 0 | O43: 0 | P43: 0 | Q43: 0 | R43: 0 | S43: 0
B44: 530 | E44: Total | G44: 0 | H44: 0 | I44: 0 | J44: 0 | K44: 0 | L44: 0 | M44: 0 | N44: 0 | O44: 0 | P44: 0 | Q44: 0 | R44: 0 | S44: 0
B45: 531
A46: %,FACCOUNT,TQGCACCTS,V802000 | B46: 532 | C46: 802 | D46: Natural Gas Gasoline Plant Outlet Purchase
B47: 533 | E47: Utah | G47: 0 | H47: 0 | I47: 0 | J47: 0 | K47: 0 | L47: 0 | M47: 0 | N47: 0 | O47: 0 | P47: 0 | Q47: 0 | R47: 0 | S47: 0
B48: 534 | E48: Wyoming | G48: 0 | H48: 0 | I48: 0 | J48: 0 | K48: 0 | L48: 0 | M48: 0 | N48: 0 | O48: 0 | P48: 0 | Q48: 0 | R48: 0 | S48: 0
B49: 535 | E49: Total | G49: 0 | H49: 0 | I49: 0 | J49: 0 | K49: 0 | L49: 0 | M49: 0 | N49: 0 | O49: 0 | P49: 0 | Q49: 0 | R49: 0 | S49: 0
B50: 536
A51: %,FACCOUNT,TQGCACCTS,V803000,V803002 | B51: 537 | C51: 803 | D51: Natural Gas Transmission Line - Purchases
B52: 538 | E52: Utah | G52: 0 | H52: 0 | I52: 0 | J52: 0 | K52: 0 | L52: 0 | M52: 0 | N52: 0 | O52: 0 | P52: 0 | Q52: 0 | R52: 0 | S52: 0
B53: 539 | E53: Wyoming | G53: 0 | H53: 0 | I53: 0 | J53: 0 | K53: 0 | L53: 0 | M53: 0 | N53: 0 | O53: 0 | P53: 0 | Q53: 0 | R53: 0 | S53: 0
B54: 540 | E54: Total | G54: 0 | H54: 0 | I54: 0 | J54: 0 | K54: 0 | L54: 0 | M54: 0 | N54: 0 | O54: 0 | P54: 0 | Q54: 0 | R54: 0 | S54: 0
B55: 541
A56: %,FACCOUNT,V804000,FAFFILIATE,V09 | B56: 542 | C56: 804 | D56: Natural Gas City Gate Purchases - Resources
B57: 543 | E57: Utah | G57: 0 | H57: 0 | I57: 0 | J57: 0 | K57: 0 | L57: 0 | M57: 0 | N57: 0 | O57: 0 | P57: 0 | Q57: 0 | R57: 0 | S57: 0
B58: 544 | E58: Wyoming | G58: 0 | H58: 0 | I58: 0 | J58: 0 | K58: 0 | L58: 0 | M58: 0 | N58: 0 | O58: 0 | P58: 0 | Q58: 0 | R58: 0 | S58: 0
B59: 545 | E59: Total | G59: 0 | H59: 0 | I59: 0 | J59: 0 | K59: 0 | L59: 0 | M59: 0 | N59: 0 | O59: 0 | P59: 0 | Q59: 0 | R59: 0 | S59: 0
B60: 546
A61: %,FACCOUNT,V804000,FAFFILIATE,V | B61: 547 | C61: 804.1 | D61: Natural Gas City Gate Purchases - Other
B62: 548 | E62: Utah | G62: 0 | H62: 0 | I62: 0 | J62: 0 | K62: 0 | L62: 0 | M62: 0 | N62: 0 | O62: 0 | P62: 0 | Q62: 0 | R62: 0 | S62: 0
B63: 549 | E63: Wyoming | G63: 0 | H63: 0 | I63: 0 | J63: 0 | K63: 0 | L63: 0 | M63: 0 | N63: 0 | O63: 0 | P63: 0 | Q63: 0 | R63: 0 | S63: 0
B64: 550 | E64: Total | G64: 0 | H64: 0 | I64: 0 | J64: 0 | K64: 0 | L64: 0 | M64: 0 | N64: 0 | O64: 0 | P64: 0 | Q64: 0 | R64: 0 | S64: 0
B65: 551
B66: 552 | C66: 805 | D66: Purchased Gas Cost Adjustments - Other
B67: 553 | E67: Utah | G67: 0 | H67: 0 | I67: 0 | J67: 0 | K67: 0 | L67: 0 | M67: 0 | N67: 0 | O67: 0 | P67: 0 | Q67: 0 | R67: 0 | S67: 0
B68: 554 | E68: Wyoming | G68: 0 | H68: 0 | I68: 0 | J68: 0 | K68: 0 | L68: 0 | M68: 0 | N68: 0 | O68: 0 | P68: 0 | Q68: 0 | R68: 0 | S68: 0
B69: 555 | E69: Total | G69: 0 | H69: 0 | I69: 0 | J69: 0 | K69: 0 | L69: 0 | M69: 0 | N69: 0 | O69: 0 | P69: 0 | Q69: 0 | R69: 0 | S69: 0
B70: 556
A71: %,FACCOUNT,TQGCACCTS,V805100 | B71: 557 | C71: 805.1 | D71: Purchased Gas Cost Adjustments - Utah
B72: 558 | E72: Utah | G72: 0 | H72: 0 | I72: 0 | J72: 0 | K72: 0 | L72: 0 | M72: 0 | N72: 0 | O72: 0 | P72: 0 | Q72: 0 | R72: 0 | S72: 0
B73: 559 | E73: Wyoming | G73: 0 | H73: 0 | I73: 0 | J73: 0 | K73: 0 | L73: 0 | M73: 0 | N73: 0 | O73: 0 | P73: 0 | Q73: 0 | R73: 0 | S73: 0
B74: 560 | E74: Total | G74: 0 | H74: 0 | I74: 0 | J74: 0 | K74: 0 | L74: 0 | M74: 0 | N74: 0 | O74: 0 | P74: 0 | Q74: 0 | R74: 0 | S74: 0
B75: 561
A76: %,FACCOUNT,TQGCACCTS,V806000 | B76: 562 | C76: 806 | D76: Exchange Gas
B77: 563 | E77: Utah | G77: 0 | H77: 0 | I77: 0 | J77: 0 | K77: 0 | L77: 0 | M77: 0 | N77: 0 | O77: 0 | P77: 0 | Q77: 0 | R77: 0 | S77: 0
B78: 564 | E78: Wyoming | G78: 0 | H78: 0 | I78: 0 | J78: 0 | K78: 0 | L78: 0 | M78: 0 | N78: 0 | O78: 0 | P78: 0 | Q78: 0 | R78: 0 | S78: 0
B79: 565 | E79: Total | G79: 0 | H79: 0 | I79: 0 | J79: 0 | K79: 0 | L79: 0 | M79: 0 | N79: 0 | O79: 0 | P79: 0 | Q79: 0 | R79: 0 | S79: 0
B80: 566
A81: %,FACCOUNT,TQGCACCTS,V808100 | B81: 567 | C81: 808.1 | D81: Gas Withdrawn from Underground Storage
B82: 568 | E82: Utah | G82: 0 | H82: 0 | I82: 0 | J82: 0 | K82: 0 | L82: 0 | M82: 0 | N82: 0 | O82: 0 | P82: 0 | Q82: 0 | R82: 0 | S82: 0
B83: 569 | E83: Wyoming | G83: 0 | H83: 0 | I83: 0 | J83: 0 | K83: 0 | L83: 0 | M83: 0 | N83: 0 | O83: 0 | P83: 0 | Q83: 0 | R83: 0 | S83: 0
B84: 570 | E84: Total | G84: 0 | H84: 0 | I84: 0 | J84: 0 | K84: 0 | L84: 0 | M84: 0 | N84: 0 | O84: 0 | P84: 0 | Q84: 0 | R84: 0 | S84: 0
B85: 571
A86: %,FACCOUNT,TQGCACCTS,V808200 | B86: 572 | C86: 808.2 | D86: Gas Delivered to Underground Storage
B87: 573 | E87: Utah | G87: 0 | H87: 0 | I87: 0 | J87: 0 | K87: 0 | L87: 0 | M87: 0 | N87: 0 | O87: 0 | P87: 0 | Q87: 0 | R87: 0 | S87: 0
B88: 574 | E88: Wyoming | G88: 0 | H88: 0 | I88: 0 | J88: 0 | K88: 0 | L88: 0 | M88: 0 | N88: 0 | O88: 0 | P88: 0 | Q88: 0 | R88: 0 | S88: 0
B89: 575 | E89: Total | G89: 0 | H89: 0 | I89: 0 | J89: 0 | K89: 0 | L89: 0 | M89: 0 | N89: 0 | O89: 0 | P89: 0 | Q89: 0 | R89: 0 | S89: 0
B90: 576
A91: %,FACCOUNT,TQGCACCTS,V808300 | B91: 577 | C91: 808.3 | D91: Exchange Gas
B92: 578 | E92: Utah | G92: 0 | H92: 0 | I92: 0 | J92: 0 | K92: 0 | L92: 0 | M92: 0 | N92: 0 | O92: 0 | P92: 0 | Q92: 0 | R92: 0 | S92: 0
B93: 579 | E93: Wyoming | G93: 0 | H93: 0 | I93: 0 | J93: 0 | K93: 0 | L93: 0 | M93: 0 | N93: 0 | O93: 0 | P93: 0 | Q93: 0 | R93: 0 | S93: 0
B94: 580 | E94: Total | G94: 0 | H94: 0 | I94: 0 | J94: 0 | K94: 0 | L94: 0 | M94: 0 | N94: 0 | O94: 0 | P94: 0 | Q94: 0 | R94: 0 | S94: 0
B95: 581
A96: %,FACCOUNT,TQGCACCTS,V813000,V813001,V813002,V813003,V813004 | B96: 582 | C96: 813 | D96: Other Gas Supply Expenses - Gas Cost
B97: 583 | E97: Utah | G97: 0 | H97: 0 | I97: 0 | J97: 0 | K97: 0 | L97: 0 | M97: 0 | N97: 0 | O97: 0 | P97: 0 | Q97: 0 | R97: 0 | S97: 0
B98: 584 | E98: Wyoming | G98: 0 | H98: 0 | I98: 0 | J98: 0 | K98: 0 | L98: 0 | M98: 0 | N98: 0 | O98: 0 | P98: 0 | Q98: 0 | R98: 0 | S98: 0
B99: 585 | E99: Total | G99: 0 | H99: 0 | I99: 0 | J99: 0 | K99: 0 | L99: 0 | M99: 0 | N99: 0 | O99: 0 | P99: 0 | Q99: 0 | R99: 0 | S99: 0
B100: 586
B101: 587 | C101: 813 | D101: Other Gas Supply Expenses - SNG Cost
B102: 588 | E102: Utah
B103: 589 | E103: Wyoming
B104: 590 | E104: Total | G104: 0 | H104: 0 | I104: 0 | J104: 0 | K104: 0 | L104: 0 | M104: 0 | N104: 0 | O104: 0 | P104: 0 | Q104: 0 | R104: 0 | S104: 0
B105: 591
B106: 592 | C106: 813.5 | D106: CO2 Processing Expenses
A107: %,FACCOUNT,TQGCACCTS,V813005,V813007,V813008 | B107: 593 | E107: Utah | G107: 0 | H107: 0 | I107: 0 | J107: 0 | K107: 0 | L107: 0 | M107: 0 | N107: 0 | O107: 0 | P107: 0 | Q107: 0 | R107: 0 | S107: 0
A108: %,FACCOUNT,TQGCACCTS,V813006 | B108: 594 | E108: Wyoming | G108: 0 | H108: 0 | I108: 0 | J108: 0 | K108: 0 | L108: 0 | M108: 0 | N108: 0 | O108: 0 | P108: 0 | Q108: 0 | R108: 0 | S108: 0
B109: 595 | E109: Total | G109: 0 | H109: 0 | I109: 0 | J109: 0 | K109: 0 | L109: 0 | M109: 0 | N109: 0 | O109: 0 | P109: 0 | Q109: 0 | R109: 0 | S109: 0
B110: 596
A111: %,FACCOUNT,TQGCACCTS,V858000 | B111: 597 | C111: 858 | D111: Transportation GRI & ACA - Gas Cost
B112: 598 | E112: Utah | G112: 0 | H112: 0 | I112: 0 | J112: 0 | K112: 0 | L112: 0 | M112: 0 | N112: 0 | O112: 0 | P112: 0 | Q112: 0 | R112: 0 | S112: 0
B113: 599 | E113: Wyoming | G113: 0 | H113: 0 | I113: 0 | J113: 0 | K113: 0 | L113: 0 | M113: 0 | N113: 0 | O113: 0 | P113: 0 | Q113: 0 | R113: 0 | S113: 0
B114: 600 | E114: Total | G114: 0 | H114: 0 | I114: 0 | J114: 0 | K114: 0 | L114: 0 | M114: 0 | N114: 0 | O114: 0 | P114: 0 | Q114: 0 | R114: 0 | S114: 0
B115: 601
A116: %,FACCOUNT,TQGCACCTS,V858001 | B116: 602 | C116: 858 | D116: Trans & Comp of Gas by Others - SNG Cost
B117: 603 | E117: Utah | G117: 0 | H117: 0 | I117: 0 | J117: 0 | K117: 0 | L117: 0 | M117: 0 | N117: 0 | O117: 0 | P117: 0 | Q117: 0 | R117: 0 | S117: 0
B118: 604 | E118: Wyoming | G118: 0 | H118: 0 | I118: 0 | J118: 0 | K118: 0 | L118: 0 | M118: 0 | N118: 0 | O118: 0 | P118: 0 | Q118: 0 | R118: 0 | S118: 0
B119: 605 | E119: Total | G119: 0 | H119: 0 | I119: 0 | J119: 0 | K119: 0 | L119: 0 | M119: 0 | N119: 0 | O119: 0 | P119: 0 | Q119: 0 | R119: 0 | S119: 0
B120: 606
B121: 607 | C121: System Total Gas Purchase Expenses
B122: 608 | D122: Utah Gas Purchase Expenses | G122: 0 | H122: 0 | I122: 0 | J122: 0 | K122: 0 | L122: 0 | M122: 0 | N122: 0 | O122: 0 | P122: 0 | Q122: 0 | R122: 0 | S122: 0
B123: 609 | D123: Wyoming Gas Purchase Expenses | G123: 0 | H123: 0 | I123: 0 | J123: 0 | K123: 0 | L123: 0 | M123: 0 | N123: 0 | O123: 0 | P123: 0 | Q123: 0 | R123: 0 | S123: 0
B124: 610
B125: 611
B126: 612 | D126: System Total Gas Purchase Expenses | G126: 0 | H126: 0 | I126: 0 | J126: 0 | K126: 0 | L126: 0 | M126: 0 | N126: 0 | O126: 0 | P126: 0 | Q126: 0 | R126: 0 | S126: 0
B127: 613
B128: 614
B129: 615 | C129: OPERATION AND MAINTENANCE EXPENSES
B130: 616
B131: 617 | C131: Production Expenses
B132: 618
A133: %,FACCOUNT,TQGCACCTS,V810000,V810001 | B133: 619 | C133: 810 | D133: Gas Used for Compressor Station Fuel | G133: 0 | H133: 0 | I133: 0 | J133: 0 | K133: 0 | L133: 0 | M133: 0 | N133: 0 | O133: 0 | P133: 0 | Q133: 0 | R133: 0 | S133: 0
A134: %,FACCOUNT,TQGCACCTS,V812000,V812001 | B134: 620 | C134: 812 | D134: Gas Used for Other Utility Operations | G134: 0 | H134: 0 | I134: 0 | J134: 0 | K134: 0 | L134: 0 | M134: 0 | N134: 0 | O134: 0 | P134: 0 | Q134: 0 | R134: 0 | S134: 0
B135: 621
B136: 622 | D136: Total Production Expenses | G136: 0 | H136: 0 | I136: 0 | J136: 0 | K136: 0 | L136: 0 | M136: 0 | N136: 0 | O136: 0 | P136: 0 | Q136: 0 | R136: 0 | S136: 0
B137: 623 | G137: 0 | H137: 0 | I137: 0 | J137: 0 | K137: 0 | L137: 0 | M137: 0 | N137: 0 | O137: 0 | P137: 0 | Q137: 0 | R137: 0 | S137: 0
B138: 624 | C138: Distribution Operations & Maintenance Expenses
B139: 625
B140: 626 | C140: 870 | D140: Operation Supervision & Engineering
B141: 627 | E141: Utah | G141: 0 | H141: 0 | I141: 0 | J141: 0 | K141: 0 | L141: 0 | M141: 0 | N141: 0 | O141: 0 | P141: 0 | Q141: 0 | R141: 0 | S141: 0
B142: 628 | E142: Wyoming | G142: 0 | H142: 0 | I142: 0 | J142: 0 | K142: 0 | L142: 0 | M142: 0 | N142: 0 | O142: 0 | P142: 0 | Q142: 0 | R142: 0 | S142: 0
A143: %,FACCOUNT,TQGCACCTS,N870 | B143: 629 | E143: Total | G143: 0 | H143: 0 | I143: 0 | J143: 0 | K143: 0 | L143: 0 | M143: 0 | N143: 0 | O143: 0 | P143: 0 | Q143: 0 | R143: 0 | S143: 0
B144: 630
B145: 631 | C145: 871 | D145: Distribution Load Dispatching
B146: 632 | E146: Utah | G146: 0 | H146: 0 | I146: 0 | J146: 0 | K146: 0 | L146: 0 | M146: 0 | N146: 0 | O146: 0 | P146: 0 | Q146: 0 | R146: 0 | S146: 0
B147: 633 | E147: Wyoming | G147: 0 | H147: 0 | I147: 0 | J147: 0 | K147: 0 | L147: 0 | M147: 0 | N147: 0 | O147: 0 | P147: 0 | Q147: 0 | R147: 0 | S147: 0
A148: %,FACCOUNT,TQGCACCTS,N871 | B148: 634 | E148: Total | G148: 0 | H148: 0 | I148: 0 | J148: 0 | K148: 0 | L148: 0 | M148: 0 | N148: 0 | O148: 0 | P148: 0 | Q148: 0 | R148: 0 | S148: 0
B149: 635
B150: 636 | C150: 872 | D150: Compressor Station Labor & Expenses
B151: 637 | E151: Utah | G151: 0 | H151: 0 | I151: 0 | J151: 0 | K151: 0 | L151: 0 | M151: 0 | N151: 0 | O151: 0 | P151: 0 | Q151: 0 | R151: 0 | S151: 0
B152: 638 | E152: Wyoming | G152: 0 | H152: 0 | I152: 0 | J152: 0 | K152: 0 | L152: 0 | M152: 0 | N152: 0 | O152: 0 | P152: 0 | Q152: 0 | R152: 0 | S152: 0
A153: %,FACCOUNT,TQGCACCTS,N872 | B153: 639 | E153: Total | G153: 0 | H153: 0 | I153: 0 | J153: 0 | K153: 0 | L153: 0 | M153: 0 | N153: 0 | O153: 0 | P153: 0 | Q153: 0 | R153: 0 | S153: 0
B154: 640
B155: 641 | C155: 873 | D155: Compressor Station Fuel & Power
B156: 642 | E156: Utah | G156: 0 | H156: 0 | I156: 0 | J156: 0 | K156: 0 | L156: 0 | M156: 0 | N156: 0 | O156: 0 | P156: 0 | Q156: 0 | R156: 0 | S156: 0
B157: 643 | E157: Wyoming | G157: 0 | H157: 0 | I157: 0 | J157: 0 | K157: 0 | L157: 0 | M157: 0 | N157: 0 | O157: 0 | P157: 0 | Q157: 0 | R157: 0 | S157: 0
A158: %,FACCOUNT,TQGCACCTS,N873 | B158: 644 | E158: Total | G158: 0 | H158: 0 | I158: 0 | J158: 0 | K158: 0 | L158: 0 | M158: 0 | N158: 0 | O158: 0 | P158: 0 | Q158: 0 | R158: 0 | S158: 0
B159: 645
B160: 646 | C160: 874 | D160: Mains & Service Expenses
B161: 647 | E161: Utah | G161: 0 | H161: 0 | I161: 0 | J161: 0 | K161: 0 | L161: 0 | M161: 0 | N161: 0 | O161: 0 | P161: 0 | Q161: 0 | R161: 0 | S161: 0
B162: 648 | E162: Wyoming | G162: 0 | H162: 0 | I162: 0 | J162: 0 | K162: 0 | L162: 0 | M162: 0 | N162: 0 | O162: 0 | P162: 0 | Q162: 0 | R162: 0 | S162: 0
A163: %,FACCOUNT,TQGCACCTS,N874 | B163: 649 | E163: Total | G163: 0 | H163: 0 | I163: 0 | J163: 0 | K163: 0 | L163: 0 | M163: 0 | N163: 0 | O163: 0 | P163: 0 | Q163: 0 | R163: 0 | S163: 0
B164: 650
B165: 651 | C165: 875 | D165: Measuring & Regulating Station Expenses
B166: 652 | E166: Utah | G166: 0 | H166: 0 | I166: 0 | J166: 0 | K166: 0 | L166: 0 | M166: 0 | N166: 0 | O166: 0 | P166: 0 | Q166: 0 | R166: 0 | S166: 0
B167: 653 | E167: Wyoming | G167: 0 | H167: 0 | I167: 0 | J167: 0 | K167: 0 | L167: 0 | M167: 0 | N167: 0 | O167: 0 | P167: 0 | Q167: 0 | R167: 0 | S167: 0
A168: %,FACCOUNT,TQGCACCTS,N875 | B168: 654 | E168: Total | G168: 0 | H168: 0 | I168: 0 | J168: 0 | K168: 0 | L168: 0 | M168: 0 | N168: 0 | O168: 0 | P168: 0 | Q168: 0 | R168: 0 | S168: 0
B169: 655
B170: 656 | C170: 878 | D170: Meter & House Regulator Expenses
B171: 657 | E171: Utah | G171: 0 | H171: 0 | I171: 0 | J171: 0 | K171: 0 | L171: 0 | M171: 0 | N171: 0 | O171: 0 | P171: 0 | Q171: 0 | R171: 0 | S171: 0
B172: 658 | E172: Wyoming | G172: 0 | H172: 0 | I172: 0 | J172: 0 | K172: 0 | L172: 0 | M172: 0 | N172: 0 | O172: 0 | P172: 0 | Q172: 0 | R172: 0 | S172: 0
A173: %,FACCOUNT,TQGCACCTS,N878 | B173: 659 | E173: Total | G173: 0 | H173: 0 | I173: 0 | J173: 0 | K173: 0 | L173: 0 | M173: 0 | N173: 0 | O173: 0 | P173: 0 | Q173: 0 | R173: 0 | S173: 0
B174: 660
B175: 661 | C175: 879 | D175: Customer Installations Expenses
B176: 662 | E176: Utah | G176: 0 | H176: 0 | I176: 0 | J176: 0 | K176: 0 | L176: 0 | M176: 0 | N176: 0 | O176: 0 | P176: 0 | Q176: 0 | R176: 0 | S176: 0
B177: 663 | E177: Wyoming | G177: 0 | H177: 0 | I177: 0 | J177: 0 | K177: 0 | L177: 0 | M177: 0 | N177: 0 | O177: 0 | P177: 0 | Q177: 0 | R177: 0 | S177: 0
A178: %,FACCOUNT,TQGCACCTS,N879 | B178: 664 | E178: Total | G178: 0 | H178: 0 | I178: 0 | J178: 0 | K178: 0 | L178: 0 | M178: 0 | N178: 0 | O178: 0 | P178: 0 | Q178: 0 | R178: 0 | S178: 0
B179: 665
B180: 666 | C180: 880 | D180: Other Expenses
B181: 667 | E181: Utah | G181: 0 | H181: 0 | I181: 0 | J181: 0 | K181: 0 | L181: 0 | M181: 0 | N181: 0 | O181: 0 | P181: 0 | Q181: 0 | R181: 0 | S181: 0
B182: 668 | E182: Wyoming | G182: 0 | H182: 0 | I182: 0 | J182: 0 | K182: 0 | L182: 0 | M182: 0 | N182: 0 | O182: 0 | P182: 0 | Q182: 0 | R182: 0 | S182: 0
A183: %,FACCOUNT,TQGCACCTS,N880 | B183: 669 | E183: Total | G183: 0 | H183: 0 | I183: 0 | J183: 0 | K183: 0 | L183: 0 | M183: 0 | N183: 0 | O183: 0 | P183: 0 | Q183: 0 | R183: 0 | S183: 0
B184: 670
B185: 671 | C185: 881 | D185: Rents
B186: 672 | E186: Utah | G186: 0 | H186: 0 | I186: 0 | J186: 0 | K186: 0 | L186: 0 | M186: 0 | N186: 0 | O186: 0 | P186: 0 | Q186: 0 | R186: 0 | S186: 0
B187: 673 | E187: Wyoming | G187: 0 | H187: 0 | I187: 0 | J187: 0 | K187: 0 | L187: 0 | M187: 0 | N187: 0 | O187: 0 | P187: 0 | Q187: 0 | R187: 0 | S187: 0
A188: %,FACCOUNT,TQGCACCTS,N881 | B188: 674 | E188: Total | G188: 0 | H188: 0 | I188: 0 | J188: 0 | K188: 0 | L188: 0 | M188: 0 | N188: 0 | O188: 0 | P188: 0 | Q188: 0 | R188: 0 | S188: 0
B189: 675
B190: 676 | C190: 885 | D190: Maintenance Supervision & Engineering
B191: 677 | E191: Utah | G191: 0 | H191: 0 | I191: 0 | J191: 0 | K191: 0 | L191: 0 | M191: 0 | N191: 0 | O191: 0 | P191: 0 | Q191: 0 | R191: 0 | S191: 0
B192: 678 | E192: Wyoming | G192: 0 | H192: 0 | I192: 0 | J192: 0 | K192: 0 | L192: 0 | M192: 0 | N192: 0 | O192: 0 | P192: 0 | Q192: 0 | R192: 0 | S192: 0
A193: %,FACCOUNT,TQGCACCTS,N885 | B193: 679 | E193: Total | G193: 0 | H193: 0 | I193: 0 | J193: 0 | K193: 0 | L193: 0 | M193: 0 | N193: 0 | O193: 0 | P193: 0 | Q193: 0 | R193: 0 | S193: 0
B194: 680
B195: 681 | C195: 886 | D195: Maintenance of Structures & Improvements
B196: 682 | E196: Utah | G196: 0 | H196: 0 | I196: 0 | J196: 0 | K196: 0 | L196: 0 | M196: 0 | N196: 0 | O196: 0 | P196: 0 | Q196: 0 | R196: 0 | S196: 0
B197: 683 | E197: Wyoming | G197: 0 | H197: 0 | I197: 0 | J197: 0 | K197: 0 | L197: 0 | M197: 0 | N197: 0 | O197: 0 | P197: 0 | Q197: 0 | R197: 0 | S197: 0
A198: %,FACCOUNT,TQGCACCTS,N886 | B198: 684 | E198: Total | G198: 0 | H198: 0 | I198: 0 | J198: 0 | K198: 0 | L198: 0 | M198: 0 | N198: 0 | O198: 0 | P198: 0 | Q198: 0 | R198: 0 | S198: 0
B199: 685
B200: 686 | C200: 887 | D200: Maintenance of Mains
B201: 687 | E201: Utah | G201: 0 | H201: 0 | I201: 0 | J201: 0 | K201: 0 | L201: 0 | M201: 0 | N201: 0 | O201: 0 | P201: 0 | Q201: 0 | R201: 0 | S201: 0
B202: 688 | E202: Wyoming | G202: 0 | H202: 0 | I202: 0 | J202: 0 | K202: 0 | L202: 0 | M202: 0 | N202: 0 | O202: 0 | P202: 0 | Q202: 0 | R202: 0 | S202: 0
A203: %,FACCOUNT,TQGCACCTS,N887 | B203: 689 | E203: Total | G203: 0 | H203: 0 | I203: 0 | J203: 0 | K203: 0 | L203: 0 | M203: 0 | N203: 0 | O203: 0 | P203: 0 | Q203: 0 | R203: 0 | S203: 0
B204: 690
B205: 691 | C205: 888 | D205: Maint of Compressor Station Equipment
B206: 692 | E206: Utah | G206: 0 | H206: 0 | I206: 0 | J206: 0 | K206: 0 | L206: 0 | M206: 0 | N206: 0 | O206: 0 | P206: 0 | Q206: 0 | R206: 0 | S206: 0
... 813 more rows

Sheet Rate Base
A1: %,LACTUALS
C2: Company: | F2: Company:
C3: Period Ended: | F3: Period Ended:
C4: Date,Time, Stamp: | F4: Date,Time, Stamp:
U5: Historical
U6: 13-Month Avg
U7: Period Ended
G8: =+H8-30 -> 2019-07-02 | H8: 2019-08-01 | I8: 2019-09-01 | J8: 2019-10-01 | K8: 2019-11-01 | L8: 2019-12-01 | M8: 2020-01-01 | N8: 2020-02-01 | O8: 2020-03-01 | P8: 2020-04-01 | Q8: 2020-05-01 | R8: 2020-06-01 | S8: 2020-07-01 | T8: 2020-08-01 | U8: 2020-03-31
C10: UTILITY RATE BASE
D11: NET UTILITY PLANT
D13: Intangible Plant
C14: 101 | D14: Gas Plant In Service
E15: Intangible Plant
B16: 1 | D16: 302 | E16: Franchises & Consents
B17: =+B16+1 -> 2 | E17: Distribution - Wyoming | H17: 0 | I17: 0 | J17: 0 | K17: 0 | L17: 0 | M17: 0 | N17: 0 | O17: 0 | P17: 0 | Q17: 0 | R17: 0 | S17: 0 | T17: 0 | U17: 0
B18: 3 | E18: Distribution - Utah | H18: 0 | I18: 0 | J18: 0 | K18: 0 | L18: 0 | M18: 0 | N18: 0 | O18: 0 | P18: 0 | Q18: 0 | R18: 0 | S18: 0 | T18: 0 | U18: 0
B19: 4
A20: ="%,FACCOUNT,TQGCACCTS,N"&(D16) -> %,FACCOUNT,TQGCACCTS,N302 | B20: 5 | E20: Total Intangible Plant | H20: 0 | I20: 0 | J20: 0 | K20: 0 | L20: 0 | M20: 0 | N20: 0 | O20: 0 | P20: 0 | Q20: 0 | R20: 0 | S20: 0 | T20: 0 | U20: 0
B21: 6
B22: 7 | E22: Production & Gathering Plant
A23: ="%,FACCOUNT,TQGCACCTS,N"&(D23) -> %,FACCOUNT,TQGCACCTS,N325 | B23: 8 | D23: 325 | E23: Land & Land Rights | H23: 0 | I23: 0 | J23: 0 | K23: 0 | L23: 0 | M23: 0 | N23: 0 | O23: 0 | P23: 0 | Q23: 0 | R23: 0 | S23: 0 | T23: 0 | U23: 0
A24: %,FACCOUNT,TQGCACCTS,N326,N327,N328,N329 | B24: 9 | D24: 326...9 | E24: Structures | H24: 0 | I24: 0 | J24: 0 | K24: 0 | L24: 0 | M24: 0 | N24: 0 | O24: 0 | P24: 0 | Q24: 0 | R24: 0 | S24: 0 | T24: 0 | U24: 0
A25: ="%,FACCOUNT,TQGCACCTS,N"&(D25) -> %,FACCOUNT,TQGCACCTS,N330 | B25: 10 | D25: 330 | E25: Gas Wells - Construction | H25: 0 | I25: 0 | J25: 0 | K25: 0 | L25: 0 | M25: 0 | N25: 0 | O25: 0 | P25: 0 | Q25: 0 | R25: 0 | S25: 0 | T25: 0 | U25: 0
A26: ="%,FACCOUNT,TQGCACCTS,N"&(D26) -> %,FACCOUNT,TQGCACCTS,N331 | B26: 11 | D26: 331 | E26: Gas Wells - Equipment | H26: 0 | I26: 0 | J26: 0 | K26: 0 | L26: 0 | M26: 0 | N26: 0 | O26: 0 | P26: 0 | Q26: 0 | R26: 0 | S26: 0 | T26: 0 | U26: 0
A27: %,FACCOUNT,TQGCACCTS,N332,N333,N334 | B27: 12 | D27: 332...4 | E27: Field Lines & Comp, Meas & Reg St Eqpt | H27: 0 | I27: 0 | J27: 0 | K27: 0 | L27: 0 | M27: 0 | N27: 0 | O27: 0 | P27: 0 | Q27: 0 | R27: 0 | S27: 0 | T27: 0 | U27: 0
A28: ="%,FACCOUNT,TQGCACCTS,N"&(D28) -> %,FACCOUNT,TQGCACCTS,N336 | B28: 13 | D28: 336 | E28: Purification Equipment | H28: 0 | I28: 0 | J28: 0 | K28: 0 | L28: 0 | M28: 0 | N28: 0 | O28: 0 | P28: 0 | Q28: 0 | R28: 0 | S28: 0 | T28: 0 | U28: 0
A29: ="%,FACCOUNT,TQGCACCTS,N"&(D29) -> %,FACCOUNT,TQGCACCTS,N337 | B29: 14 | D29: 337 | E29: Other Equipment | H29: 0 | I29: 0 | J29: 0 | K29: 0 | L29: 0 | M29: 0 | N29: 0 | O29: 0 | P29: 0 | Q29: 0 | R29: 0 | S29: 0 | T29: 0 | U29: 0
B30: 15
B31: 16 | E31: Total Production & Gathering Plant | H31: 0 | I31: 0 | J31: 0 | K31: 0 | L31: 0 | M31: 0 | N31: 0 | O31: 0 | P31: 0 | Q31: 0 | R31: 0 | S31: 0 | T31: 0 | U31: 0
B32: 17
B33: 18 | E33: Distribution Plant
B34: 19 | D34: 374 | E34: Land & Land Rights
B35: 20 | F35: Wyoming | H35: 0 | I35: 0 | J35: 0 | K35: 0 | L35: 0 | M35: 0 | N35: 0 | O35: 0 | P35: 0 | Q35: 0 | R35: 0 | S35: 0 | T35: 0 | U35: 0
A36: ="%,FACCOUNT,TQGCACCTS,N"&(D34) -> %,FACCOUNT,TQGCACCTS,N374 | B36: 21 | F36: Utah | H36: 0 | I36: 0 | J36: 0 | K36: 0 | L36: 0 | M36: 0 | N36: 0 | O36: 0 | P36: 0 | Q36: 0 | R36: 0 | S36: 0 | T36: 0 | U36: 0
B37: 22 | F37: Total | H37: 0 | I37: 0 | J37: 0 | K37: 0 | L37: 0 | M37: 0 | N37: 0 | O37: 0 | P37: 0 | Q37: 0 | R37: 0 | S37: 0 | T37: 0 | U37: 0
B38: 23
B39: 24 | D39: 375 | E39: Structures & Improvements
B40: 25 | F40: Wyoming | H40: 0 | I40: 0 | J40: 0 | K40: 0 | L40: 0 | M40: 0 | N40: 0 | O40: 0 | P40: 0 | Q40: 0 | R40: 0 | S40: 0 | T40: 0 | U40: 0
A41: ="%,FACCOUNT,TQGCACCTS,N"&(D39) -> %,FACCOUNT,TQGCACCTS,N375 | B41: 26 | F41: Utah | H41: 0 | I41: 0 | J41: 0 | K41: 0 | L41: 0 | M41: 0 | N41: 0 | O41: 0 | P41: 0 | Q41: 0 | R41: 0 | S41: 0 | T41: 0 | U41: 0
B42: 27 | F42: Total | H42: 0 | I42: 0 | J42: 0 | K42: 0 | L42: 0 | M42: 0 | N42: 0 | O42: 0 | P42: 0 | Q42: 0 | R42: 0 | S42: 0 | T42: 0 | U42: 0
B43: 28
B44: 29 | D44: 376 | E44: Mains
B45: 30 | F45: Dist - Wy - Mains - SD
B46: 31 | F46: Dist - Wy - Mains - LD
B47: 32 | F47: Dist - Wy - Mains - Feeders
B48: 33 | F48: Wyoming | H48: 0 | I48: 0 | J48: 0 | K48: 0 | L48: 0 | M48: 0 | N48: 0 | O48: 0 | P48: 0 | Q48: 0 | R48: 0 | S48: 0 | T48: 0 | U48: 0
B49: 34 | F49: Dist - Ut - Mains - SD
B50: 35 | F50: Dist - Ut - Mains - LD
B51: 36 | F51: Dist - Ut - Mains - Feeders
A52: ="%,FACCOUNT,TQGCACCTS,N"&(D44) -> %,FACCOUNT,TQGCACCTS,N376 | B52: 37 | F52: Utah | H52: 0 | I52: 0 | J52: 0 | K52: 0 | L52: 0 | M52: 0 | N52: 0 | O52: 0 | P52: 0 | Q52: 0 | R52: 0 | S52: 0 | T52: 0 | U52: 0
B53: 38 | F53: Total | H53: 0 | I53: 0 | J53: 0 | K53: 0 | L53: 0 | M53: 0 | N53: 0 | O53: 0 | P53: 0 | Q53: 0 | R53: 0 | S53: 0 | T53: 0 | U53: 0
B54: 39 | H54: 0 | I54: 0 | J54: 0 | K54: 0 | L54: 0 | M54: 0 | N54: 0 | O54: 0 | P54: 0 | Q54: 0 | R54: 0 | S54: 0 | T54: 0 | U54: 0
B55: 40 | D55: 377 | E55: Compressor Station Equipment
B56: 41 | F56: Wyoming | H56: 0 | I56: 0 | J56: 0 | K56: 0 | L56: 0 | M56: 0 | N56: 0 | O56: 0 | P56: 0 | Q56: 0 | R56: 0 | S56: 0 | T56: 0 | U56: 0
A57: ="%,FACCOUNT,TQGCACCTS,N"&(D55) -> %,FACCOUNT,TQGCACCTS,N377 | B57: 42 | F57: Utah | H57: 0 | I57: 0 | J57: 0 | K57: 0 | L57: 0 | M57: 0 | N57: 0 | O57: 0 | P57: 0 | Q57: 0 | R57: 0 | S57: 0 | T57: 0 | U57: 0
B58: 43 | F58: Total | H58: 0 | I58: 0 | J58: 0 | K58: 0 | L58: 0 | M58: 0 | N58: 0 | O58: 0 | P58: 0 | Q58: 0 | R58: 0 | S58: 0 | T58: 0 | U58: 0
B59: 44
B60: 45 | D60: 378 | E60: Measuring & Regulation Station Equip
B61: 46 | F61: Wyoming | H61: 0 | I61: 0 | J61: 0 | K61: 0 | L61: 0 | M61: 0 | N61: 0 | O61: 0 | P61: 0 | Q61: 0 | R61: 0 | S61: 0 | T61: 0 | U61: 0
A62: ="%,FACCOUNT,TQGCACCTS,N"&(D60) -> %,FACCOUNT,TQGCACCTS,N378 | B62: 47 | F62: Utah | H62: 0 | I62: 0 | J62: 0 | K62: 0 | L62: 0 | M62: 0 | N62: 0 | O62: 0 | P62: 0 | Q62: 0 | R62: 0 | S62: 0 | T62: 0 | U62: 0
B63: 48 | F63: Total | H63: 0 | I63: 0 | J63: 0 | K63: 0 | L63: 0 | M63: 0 | N63: 0 | O63: 0 | P63: 0 | Q63: 0 | R63: 0 | S63: 0 | T63: 0 | U63: 0
B64: 49
B65: 50 | D65: 380 | E65: Services
B66: 51 | F66: Wyoming | H66: 0 | I66: 0 | J66: 0 | K66: 0 | L66: 0 | M66: 0 | N66: 0 | O66: 0 | P66: 0 | Q66: 0 | R66: 0 | S66: 0 | T66: 0 | U66: 0
A67: ="%,FACCOUNT,TQGCACCTS,N"&(D65) -> %,FACCOUNT,TQGCACCTS,N380 | B67: 52 | F67: Utah | H67: 0 | I67: 0 | J67: 0 | K67: 0 | L67: 0 | M67: 0 | N67: 0 | O67: 0 | P67: 0 | Q67: 0 | R67: 0 | S67: 0 | T67: 0 | U67: 0
B68: 53 | F68: Total | H68: 0 | I68: 0 | J68: 0 | K68: 0 | L68: 0 | M68: 0 | N68: 0 | O68: 0 | P68: 0 | Q68: 0 | R68: 0 | S68: 0 | T68: 0 | U68: 0
B69: 54
B70: 55 | D70: 381...2 | E70: Meters & Meter Installation
B71: 56 | F71: Wyoming | H71: 0 | I71: 0 | J71: 0 | K71: 0 | L71: 0 | M71: 0 | N71: 0 | O71: 0 | P71: 0 | Q71: 0 | R71: 0 | S71: 0 | T71: 0 | U71: 0
A72: %,FACCOUNT,TQGCACCTS,N381,N382 | B72: 57 | F72: Utah | H72: 0 | I72: 0 | J72: 0 | K72: 0 | L72: 0 | M72: 0 | N72: 0 | O72: 0 | P72: 0 | Q72: 0 | R72: 0 | S72: 0 | T72: 0 | U72: 0
B73: 58 | F73: Total | H73: 0 | I73: 0 | J73: 0 | K73: 0 | L73: 0 | M73: 0 | N73: 0 | O73: 0 | P73: 0 | Q73: 0 | R73: 0 | S73: 0 | T73: 0 | U73: 0
B74: 59
B75: 60 | D75: 383...4 | E75: House Regulators & Reg Installations
B76: 61 | F76: Wyoming | H76: 0 | I76: 0 | J76: 0 | K76: 0 | L76: 0 | M76: 0 | N76: 0 | O76: 0 | P76: 0 | Q76: 0 | R76: 0 | S76: 0 | T76: 0 | U76: 0
A77: %,FACCOUNT,TQGCACCTS,N383,N384 | B77: 62 | F77: Utah | H77: 0 | I77: 0 | J77: 0 | K77: 0 | L77: 0 | M77: 0 | N77: 0 | O77: 0 | P77: 0 | Q77: 0 | R77: 0 | S77: 0 | T77: 0 | U77: 0
B78: 63 | F78: Total | H78: 0 | I78: 0 | J78: 0 | K78: 0 | L78: 0 | M78: 0 | N78: 0 | O78: 0 | P78: 0 | Q78: 0 | R78: 0 | S78: 0 | T78: 0 | U78: 0
B79: 64
B80: 65 | D80: 387 | E80: Other Equipment
B81: =+B80+1 -> 66 | F81: Wyoming | H81: 0 | I81: 0 | J81: 0 | K81: 0 | L81: 0 | M81: 0 | N81: 0 | O81: 0 | P81: 0 | Q81: 0 | R81: 0 | S81: 0 | T81: 0 | U81: 0
A82: ="%,FACCOUNT,TQGCACCTS,N"&(D80) -> %,FACCOUNT,TQGCACCTS,N387 | B82: 67 | F82: Utah | H82: 0 | I82: 0 | J82: 0 | K82: 0 | L82: 0 | M82: 0 | N82: 0 | O82: 0 | P82: 0 | Q82: 0 | R82: 0 | S82: 0 | T82: 0 | U82: 0
B83: 68 | F83: Total | H83: 0 | I83: 0 | J83: 0 | K83: 0 | L83: 0 | M83: 0 | N83: 0 | O83: 0 | P83: 0 | Q83: 0 | R83: 0 | S83: 0 | T83: 0 | U83: 0
B84: 69
B85: 70 | E85: Total Distribution Plant | H85: 0 | I85: 0 | J85: 0 | K85: 0 | L85: 0 | M85: 0 | N85: 0 | O85: 0 | P85: 0 | Q85: 0 | R85: 0 | S85: 0 | T85: 0 | U85: 0
B86: 71
B87: 72 | C87: General Plant
B88: 73 | D88: 389 | E88: Land & Land Rights
B89: 74 | F89: Distribution - Wyoming | H89: 0 | I89: 0 | J89: 0 | K89: 0 | L89: 0 | M89: 0 | N89: 0 | O89: 0 | P89: 0 | Q89: 0 | R89: 0 | S89: 0 | T89: 0 | U89: 0
A90: ="%,FACCOUNT,TQGCACCTS,N"&(D88) -> %,FACCOUNT,TQGCACCTS,N389 | B90: 75 | F90: Distribution - Utah | H90: 0 | I90: 0 | J90: 0 | K90: 0 | L90: 0 | M90: 0 | N90: 0 | O90: 0 | P90: 0 | Q90: 0 | R90: 0 | S90: 0 | T90: 0 | U90: 0
B91: 76 | F91: Total | H91: 0 | I91: 0 | J91: 0 | K91: 0 | L91: 0 | M91: 0 | N91: 0 | O91: 0 | P91: 0 | Q91: 0 | R91: 0 | S91: 0 | T91: 0 | U91: 0
B92: 77
B93: 78 | D93: 390 | E93: Structures & Improvements
B94: 79 | F94: Distribution - Wyoming | H94: 0 | I94: 0 | J94: 0 | K94: 0 | L94: 0 | M94: 0 | N94: 0 | O94: 0 | P94: 0 | Q94: 0 | R94: 0 | S94: 0 | T94: 0 | U94: 0
A95: ="%,FACCOUNT,TQGCACCTS,N"&(D93) -> %,FACCOUNT,TQGCACCTS,N390 | B95: 80 | F95: Distribution - Utah | H95: 0 | I95: 0 | J95: 0 | K95: 0 | L95: 0 | M95: 0 | N95: 0 | O95: 0 | P95: 0 | Q95: 0 | R95: 0 | S95: 0 | T95: 0 | U95: 0
